Workbook

Sheet Sign Off
B2: Sign Off's
B4: Accounting
C6: Name | D6: Title | E6: Date
B7: Preparer | C7: Mike Salassa | D7: Sr. Business Planning Analyst | E7: 2019-11-25
B8: Reviewer | C8: William Adams | D8: Financial Planning Manager | E8: 2020-01-13
B9: Approver | C9: N/A | D9: N/A | E9: N/A
B11: Audit Services
C13: Name | D13: Title | E13: Date
B14: Preparer
B16: Energy Delivery
C18: Name | D18: Title | E18: Date
B19: Final Reviewer

Sheet A - Contractor Summary
B2: Contractor Summary
B4: Test Plan: (A) Using the drop down list, select the vendor. (B) Ensure address agrees to invoice(s). (C) Enter the distance between vendor address to Plant City, FL. (D) Determine if vendor is part of the SEE (see tab A.1 for listing). (E) Determine if other agreements exist. (F) Using the drop down list, select the Incident Base that the vendor was initially assigned. (G) If the contractor includes multiple crews with different timelines, utilize the '+' symbol at the top of columns 'H' and 'K' (if necessary) to unhide the vendor summary. (H) Click the button to populate the second (and third, if necessary) set of tabs for documentation of those expenses. (I) Complete steps (A) through (F).
F14: G | I14: G
C15: Vendor #13 | F15: Vendor #2 | I15: Vendor #3
G17: H | J17: H
B19: Contractor/Company | C19: Wolf Tree | D19: A | G19: A | J19: A
B20: SAP Vendor# | F20: 10044004 | I20: =VLOOKUP(I19,#REF!,2,FALSE) -> 
B21: Service Type | C21: Distribution | F21: Transmission | I21: =VLOOKUP($I$19,#REF!,4,FALSE) -> 
B23: Address | C23: 3310 Greenway Drive | D23: B | G23: B | I23: =VLOOKUP($I$19,#REF!,13,FALSE) ->  | J23: B
B24: City | C24: Knoxville | I24: =VLOOKUP($I$19,#REF!,14,FALSE) -> 
B25: State/Providence | C25: TN | I25: =VLOOKUP($I$19,#REF!,15,FALSE) -> 
B26: Zip | C26: 37918 | I26: =VLOOKUP($I$19,#REF!,16,FALSE) -> 
B27: Country | C27: US | F27: US | I27: =VLOOKUP($I$19,#REF!,17,FALSE) -> 
B29: Distance from FL (in miles) | D29: C | F29: 815 | G29: C | I29: 800 | J29: C
B30: Travel Days (500 m/per day) | F30: =ROUNDUP(F29/500,0) -> 2 | I30: =ROUNDUP(I29/500,0) -> 2
B32: Member of the SEE | D32: D | F32: NO | G32: D | I32: NO | J32: D
B33: Other Agreement/Contract (Y/N) | D33: E | F33: NO | G33: E | I33: NO | J33: E
B34: Incident Base | D34: F | F34: Winter Haven | G34: F | I34: Winter Haven | J34: F
B36: Date Secured | F36: 2017-09-04 | I36: =VLOOKUP($I$19,#REF!,6,FALSE) -> 
B37: Start Travel | F37: N/A | I37: =VLOOKUP($I$19,#REF!,7,FALSE) -> 
B38: Date Arrived | F38: 2017-09-12 | I38: =VLOOKUP($I$19,#REF!,8,FALSE) -> 
B39: Date Released | F39: 2017-09-13 | I39: =VLOOKUP($I$19,#REF!,9,FALSE) -> 
B40: Time Released | F40: 16:27 | I40: =VLOOKUP($I$19,#REF!,10,FALSE) -> 
B41: Released To | F41: Home | I41: =VLOOKUP($I$19,#REF!,11,FALSE) -> 
B42: Arrived Home/Utility* | F42: 2017-09-15 | I42: =IF(I41="home",SUM(IF(I29>500,I39+I30,I39)),I39) -> 
F47: C.1 - Rate Sheets (2) | I47: C.1 - Rate Sheets (3)
F48: C.2 - Timesheets - Labor (2) | I48: C.2 - Timesheets - Labor (3)
F49: C.4 - Timesheets - Equipmen (2) | I49: C.4 - Timesheets - Equipmen (3)
F50: D - Lodging (2) | I50: D - Lodging (3)
F51: E - Fuel (2) | I51: E - Fuel (3)
F52: F - Meals (2) | I52: F - Meals (3)
F53: G - Per Diem (2) | I53: G - Per Diem (3)
F54: H - Mileage (2) | I54: H - Mileage (3)
F55: I - Other (2) | I55: I - Other (3)
B59: *Estimates reasonable arrival time
B61: Tickmark Explanation:
B69: Invoice | C69: Crew | D69: Date Secured/Start Travel | E69: Date Arrived in Service Area | F69: Location | G69: Mileage | J69: Number of Travel Days
B70: SW008052 | C70: Maynard | D70: 2018-10-12 | E70: 2018-10-12 | F70: unknown | G70: 387 | J70: 1 | M70: start location not annoted on invoice/time sheet
B71: SW008054 | C71: Suggs | D71: 2018-10-12 | E71: 2018-10-12 | F71: Mountain Electric, TN | G71: 582 | J71: 1
B72: SW008053 | C72: Williams | D72: 2018-10-12 | E72: 2018-10-12 | F72: unknown | G72: 582 | J72: 1 | M72: start location not annoted on invoice/time sheet
B73: SW008055 | C73: Taylor | D73: 2018-10-12 | E73: 2018-10-12 | F73: unknown | G73: 444 | J73: 1 | M73: start location not annoted on invoice/time sheet
B74: SW008056 | C74: Anthony | D74: 2018-10-12 | E74: 2018-10-12 | F74: unknown | G74: 444 | J74: 1 | M74: start location not annoted on invoice/time sheet
B75: SW008062 | C75: Allison | D75: 2018-10-12 | E75: 2018-10-12 | F75: unknown | G75: 387 | J75: 1 | M75: start location not annoted on invoice/time sheet
B76: SW007752 | C76: Mullins | D76: 2018-10-12 | E76: 2018-10-12 | F76: Tallahassee FL | G76: 71 | J76: 1
B77: SW007709 | C77: Singleton | D77: 2018-10-12 | E77: 2018-10-12 | F77: Tallahassee FL | G77: 71 | J77: 1
B78: SW007716 | C78: Childress | D78: 2018-10-12 | E78: 2018-10-12 | F78: Tallahassee FL | G78: 71 | J78: 1
B79: SW007718 | C79: Patterson | D79: 2018-10-12 | E79: 2018-10-12 | F79: Tallahassee FL | G79: 71 | J79: 1
B80: SW007720 | C80: Houswrite | D80: 2018-10-12 | E80: 2018-10-12 | F80: Tallahassee FL | G80: 71 | J80: 1
B81: SW007754 | C81: Franklin | D81: 2018-10-17 | E81: 2018-10-17 | F81: Tallahassee FL | G81: 71 | J81: 1
B82: SW007757 | C82: Norten | D82: 2018-10-17 | E82: 2018-10-17 | F82: Tallahassee FL | G82: 71 | J82: 1
B83: SW007760 | C83: Collins | D83: 2018-10-17 | E83: 2018-10-17 | F83: Tallahassee FL | G83: 71 | J83: 1
B84: SW007766 | C84: Melan | D84: 2018-10-17 | E84: 2018-10-17 | F84: Tallahassee FL | G84: 71 | J84: 1
B85: SW007707 | C85: Brooks | D85: 2018-10-17 | E85: 2018-10-17 | F85: Tallahassee FL | G85: 71 | J85: 1
B86: SW007768 | C86: Carvel | D86: 2018-10-17 | E86: 2018-10-17 | F86: Tallahassee FL | G86: 71 | J86: 1
B87: SW007770 | C87: Dycard | D87: 2018-10-17 | E87: 2018-10-17 | F87: Greenville TN | G87: 496 | J87: 1
B88: SW007772 | C88: White | D88: 2018-10-17 | E88: 2018-10-17 | F88: Dunn NC | G88: 567 | J88: 1
B89: SW007775 | C89: Puckett | D89: 2018-10-17 | E89: 2018-10-17 | F89: Dunn NC | G89: 567 | J89: 1
B90: 5356275 | C90: Hudson | D90: 2018-10-22 | E90: 2018-10-22 | F90: unknown (Home) | G90: 80 | J90: 1 | M90: start location not annoted on invoice/time sheet
B91: 5356276 | C91: Wisham | D91: 2018-10-22 | E91: 2018-10-22 | F91: unknown (Home) | G91: 80 | J91: 1 | M91: start location not annoted on invoice/time sheet
B92: 5356277 | C92: Hale | D92: 2018-10-22 | E92: 2018-10-22 | F92: unknown (Home) | G92: 80 | J92: 1 | M92: start location not annoted on invoice/time sheet
B93: 5356278 | C93: Robison | D93: 2018-10-22 | E93: 2018-10-22 | F93: unknown (Home) | G93: 80 | J93: 1 | M93: start location not annoted on invoice/time sheet
B94: 5356279 | C94: Hudson | D94: 2018-10-22 | E94: 2018-10-22 | F94: unknown (Home) | G94: 80 | J94: 1 | M94: start location not annoted on invoice/time sheet
B95: 5356280 | C95: Hales | D95: 2018-10-22 | E95: 2018-10-23 | F95: unknown (Home) | G95: 80 | J95: 1 | M95: start location not annoted on invoice/time sheet
D97: Date Released | E97: Date arrived at home | F97: Location | G97: Mileage | J97: Number of Travel Days
B98: SW007827 | C98: Brooks | D98: 2018-10-27 | E98: 2018-10-27 | F98: Jefferson City, TN | G98: 462 | H98: Return | J98: 1
B99: SW007829 | C99: Patterson | D99: 2018-10-27 | E99: 2018-10-27 | F99: Jefferson City, TN | G99: 462 | H99: Return | J99: 1
B100: SW007832 | C100: Singleton | D100: 2018-10-27 | E100: 2018-10-27 | F100: Jefferson City, TN | G100: 462 | H100: Return | J100: 1
B101: SW007834 | C101: Childress | D101: 2018-10-27 | E101: 2018-10-27 | F101: Jefferson City, TN | G101: 462 | H101: Return | J101: 1
B102: SW007906 | C102: Collins | D102: 2018-10-27 | E102: 2018-10-27 | F102: Greeneville, TN | G102: 492 | H102: Return | J102: 1
B103: SW008076 | C103: Allison | D103: 2018-10-27 | E103: 2018-10-27 | F103: unknown (Home) | G103: 386 | H103: Return | J103: 1 | M103: stop location not annoted on invoice/time sheet
B104: SW008077 | C104: Maynard | D104: 2018-10-27 | E104: 2018-10-27 | F104: unknown (Home) | G104: 386 | H104: Return | J104: 1 | M104: stop location not annoted on invoice/time sheet
B105: SW008078 | C105: Williams | D105: 2018-10-27 | E105: 2018-10-27 | F105: unknown (Home) | G105: 532 | H105: Return | J105: 1 | M105: stop location not annoted on invoice/time sheet
B106: SW008079 | C106: Suggs | D106: 2018-10-26 | E106: 2018-10-26 | F106: unknown (Home) | G106: 532 | H106: Return | J106: 1 | M106: stop location not annoted on invoice/time sheet
B107: SW008080 | C107: Anthony | D107: 2018-10-26 | E107: 2018-10-26 | F107: unknown (Home) | G107: 486 | H107: Return | J107: 1 | M107: stop location not annoted on invoice/time sheet
B108: SW008081 | C108: Taylor | D108: 2018-10-26 | E108: 2018-10-26 | F108: unknown (Home) | G108: 486 | H108: Return | J108: 1 | M108: stop location not annoted on invoice/time sheet
B109: SW007911 | C109: Mullins | D109: 2018-11-03 | E109: 2018-11-03 | F109: Greenville, TN | G109: 492 | H109: Return | J109: 1
B110: SW007913 | C110: Nuccio | D110: 2018-11-03 | E110: 2018-11-03 | F110: Greenville, TN | G110: 492 | H110: Return | J110: 1
B111: SW007915 | C111: Franklin | D111: 2018-11-03 | E111: 2018-11-03 | F111: Greenville, TN | G111: 492 | H111: Return | J111: 1
B112: SW007917 | C112: Carvel | D112: 2018-11-03 | E112: 2018-11-03 | F112: Greenville, TN | G112: 492 | H112: Return | J112: 1
B113: SW007919 | C113: Melan | D113: 2018-11-03 | E113: 2018-11-03 | F113: Greenville, TN | G113: 492 | H113: Return | J113: 1
B114: SW007921 | C114: Puckett | D114: 2018-11-03 | E114: 2018-11-03 | F114: Dunn NC | G114: 567 | H114: Return | J114: 1
B115: SW007923 | C115: White | D115: 2018-11-03 | E115: 2018-11-03 | F115: Dunn NC | G115: 567 | H115: Return | J115: 1
B116: 5356333 | C116: Hudson | D116: 2018-11-03 | E116: 2018-11-03 | F116: unknown (Home) | G116: 80 | H116: Return | J116: 1 | M116: stop location not annoted on invoice/time sheet
B117: 5356334 | C117: Hudson | D117: 2018-11-03 | E117: 2018-11-03 | F117: unknown (Home) | G117: 80 | H117: Return | J117: 1 | M117: stop location not annoted on invoice/time sheet
B118: 5356335 | C118: Robison | D118: 2018-11-03 | E118: 2018-11-03 | F118: unknown (Home) | G118: 80 | H118: Return | J118: 1 | M118: stop location not annoted on invoice/time sheet
B119: 5356336 | C119: Hale | D119: 2018-11-03 | E119: 2018-11-03 | F119: unknown (Home) | G119: 80 | H119: Return | J119: 1 | M119: stop location not annoted on invoice/time sheet
B120: 5356337 | C120: Conley | D120: 2018-11-03 | E120: 2018-11-03 | F120: unknown (Home) | G120: 80 | H120: Return | J120: 1 | M120: stop location not annoted on invoice/time sheet
B121: 5356338 | C121: Hale | D121: 2018-11-03 | E121: 2018-11-03 | F121: unknown (Home) | G121: 80 | H121: Return | J121: 1 | M121: stop location not annoted on invoice/time sheet

Sheet A.1 SEE Members
A1: RMAG | B1: RESPONDING COMPANY | C1: COMPANY NAME
A2: SEE
A3: SEE
A4: SEE
A5: SEE
A6: SEE
A7: SEE
A8: SEE
A9: SEE
A10: SEE
A11: SEE
A12: SEE
A13: SEE
A14: SEE
A15: SEE
A16: SEE
A17: SEE
A18: SEE
A19: SEE
A24: SEE
A25: SEE
A26: SEE
A27: SEE
A28: SEE
A29: SEE
A31: SEE
A32: SEE
A33: SEE
A34: SEE
A35: SEE
A40: SEE
A41: SEE
A42: SEE
A43: SEE
A47: SEE
A55: SEE
A56: SEE
A57: SEE
A61: SEE
A64: SEE
A65: SEE

Sheet B - Summary Expenses
B2: Summary of Expenses
B4: Test Plan: (A) Calculate Total Amount Invoiced for each expense category. (B) Using SAP t-code FBL1N, list Vendor Invoices Paid. (C) Ensure there are no differences between the Total Expense Amount and the Total Paid Amount. (D) Ensure there are no difference between Total Invoiced Amount and Total Expense Amount. (E) If applicable, identify difference due to Foreign currency exchange rates.
C9: A
C10: Total Invoiced | D10: Total Calculated | E10: Allowable | F10: Reviewed - Allowed | G10: Reviewed - Not Allowable | H10: Not Allowable
B11: Labor Expense Total | C11: 706582.6 | D11: ='C.2 - Timesheets - Labor'!FC233 -> 705557.9 | E11: ='C.2 - Timesheets - Labor'!FD233 -> 705557.9 | F11: ='C.2 - Timesheets - Labor'!FG233 -> 0 | G11: ='C.2 - Timesheets - Labor'!FH233 -> 1024.3 | H11: =D11-(E11+F11+G11) -> -1024.3
B12: Equipment Expense Total | C12: 104100.96 | D12: ='C.4 - Timesheets - Equipment'!AM81 -> 104000.96 | E12: ='C.4 - Timesheets - Equipment'!AN81 -> 104000.96 | F12: ='C.4 - Timesheets - Equipment'!AP81 -> 0 | G12: ='C.4 - Timesheets - Equipment'!AQ81 -> 0 | H12: =D12-(E12+F12+G12) -> 0
B13: Lodging Expense Total | D13: ='D - Lodging'!L93 -> 0 | E13: ='D - Lodging'!T93 -> 0 | F13: ='D - Lodging'!V93 -> 0 | G13: ='D - Lodging'!W93 -> 0 | H13: =D13-(E13+F13+G13) -> 0
B14: Fuel/Transport Expense Total | D14: ='E - Fuel'!J34 -> 0 | E14: ='E - Fuel'!Q34 -> 0 | F14: ='E - Fuel'!S34 -> 0 | G14: ='E - Fuel'!T34 -> 0 | H14: 0
B15: Meal Expense Total | D15: ='F - Meals'!K57 -> 0 | E15: ='F - Meals'!R57 -> 0 | F15: ='F - Meals'!T57 -> 0 | G15: ='F - Meals'!U57 -> 0 | H15: 0
B16: Per Diem Expense Total | C16: 1139.5 | D16: ='G - Per Diem'!I60 -> 1139.5 | E16: ='G - Per Diem'!N60 -> 1139.5 | F16: ='G - Per Diem'!P60 -> 0 | G16: ='G - Per Diem'!Q60 -> 0 | H16: 0
B17: Mileage Expense Total | C17: 17955.87 | D17: =+'H - Mileage'!L66 -> 17955.87 | E17: ='H - Mileage'!R66 -> 0 | F17: ='H - Mileage'!T66 -> 17955.87 | G17: ='H - Mileage'!U66 -> 0 | H17: 0
B18: Other Expense | D18: ='I - Other'!K24 -> 0 | E18: =+'I - Other'!R24 -> 0 | F18: =+'I - Other'!T24 -> 0 | G18: =+'I - Other'!U24 -> 0 | H18: =+'I - Other'!V24 -> 0
B20: Total Expense per tabs | C20: =SUM(C11:C18) -> 829778.93 | D20: =SUM(D11:D18) -> 828654.23 | E20: =SUM(E11:E18) -> 810698.36 | F20: =SUM(F11:F18) -> 17955.87 | G20: =SUM(G11:G18) -> 1024.3 | H20: -1024.3
B21: Difference | C21: =IF(D21=0,"","1") -> 1 | D21: =C20-D20 -> 1124.7 | E21: D
B23: Total Expense | D23: =+D20 -> 828654.23 | E23: (from Total SAP Summary)
B24: Total Paid | D24: =-D147 -> -829778.93 | E24: (from FBL1N in SAP)
B25: Difference | C25: =IF(D25=0,"",SUM(C21,1)) -> 1 | D25: =+D23+D24 -> -1124.7 | E25: C
B27: Exchange Rate
B28: Fx Adjusted to USD
B29: Difference | C29: =IF(D29=0,"","3") ->  | E29: E
B31: B
B33: Document No | C33: Doc Date | D33: Amount | E33: Reference
B34: SW008052 | C34: 2018-10-13 | D34: 2263.23 | E34: 673692
B35: SW008053 | C35: 2018-10-13 | D35: 3025.98 | E35: 673693
B36: SW008054 | C36: 2018-10-13 | D36: 2143.68 | E36: 673694
B37: SW008055 | C37: 2018-10-13 | D37: 2256.96 | E37: 673695
B38: SW008056 | C38: 2018-10-13 | D38: 2256.96 | E38: 673696
B39: SW008057 | C39: 2018-10-13 | D39: 2723.2 | E39: 673697
B40: SW008058 | C40: 2018-10-13 | D40: 2723.2 | E40: 673698
B41: SW008059 | C41: 2018-10-13 | D41: 3524.4 | E41: 673699
B42: SW008060 | C42: 2018-10-13 | D42: 3204 | E42: 673700
B43: SW008061 | C43: 2018-10-13 | D43: 3204 | E43: 673701
B44: SW008062 | C44: 2018-10-13 | D44: 1537.49 | E44: 673702
B45: SW008063 | C45: 2018-10-13 | D45: 1758.4 | E45: 673703
B46: SW007707 | C46: 2018-10-20 | D46: 216.16 | E46: 676298
B47: SW007708 | C47: 2018-10-20 | D47: 6244 | E47: 676299
B48: SW007709 | C48: 2018-10-20 | D48: 298.64 | E48: 676300
B49: SW007712 | C49: 2018-10-20 | D49: 9373.4 | E49: 676301 | F49: 1
B50: SW007716 | C50: 2018-10-20 | D50: 298.64 | E50: 676303
B51: SW007717 | C51: 2018-10-20 | D51: 9712.6 | E51: 676304 | F51: 1
B52: SW007718 | C52: 2018-10-20 | D52: 298.64 | E52: 676305
B53: SW007719 | C53: 2018-10-20 | D53: 9712.6 | E53: 676306 | F53: 1
B54: SW007720 | C54: 2018-10-20 | D54: 298.64 | E54: 676307
B55: SW007721 | C55: 2018-10-20 | D55: 4851.8 | E55: 676309 | F55: 1
B56: SW007752 | C56: 2018-10-20 | D56: 216.16 | E56: 676311
B57: SW007753 | C57: 2018-10-20 | D57: 6244 | E57: 676312
B58: SW007754 | C58: 2018-10-20 | D58: 298.64 | E58: 676313
B59: SW007755 | C59: 2018-10-20 | D59: 9120.6 | E59: 676315
B60: SW007757 | C60: 2018-10-20 | D60: 282.04 | E60: 676316
B61: SW007759 | C61: 2018-10-20 | D61: 6584.6 | E61: 676317
B62: SW007760 | C62: 2018-10-20 | D62: 298.64 | E62: 676318
B63: SW007761 | C63: 2018-10-20 | D63: 9120.6 | E63: 676319
B64: SW007764 | C64: 2018-10-20 | D64: 9120.6 | E64: 676320
B65: SW007766 | C65: 2018-10-20 | D65: 298.64 | E65: 676322
B66: SW007768 | C66: 2018-10-20 | D66: 302.19 | E66: 676323
B67: SW007769 | C67: 2018-10-20 | D67: 9740.6 | E67: 676324
B68: SW007770 | C68: 2018-10-20 | D68: 1674.64 | E68: 676325
B69: SW007771 | C69: 2018-10-20 | D69: 8109.9 | E69: 676326 | F69: 1
B70: SW007772 | C70: 2018-10-20 | D70: 2758.08 | E70: 676327
B71: SW007773 | C71: 2018-10-20 | D71: 7099.2 | E71: 676328 | F71: 1
B72: SW007774 | C72: 2018-10-20 | D72: 7246.8 | E72: 676329
B73: SW007775 | C73: 2018-10-20 | D73: 2758.08 | E73: 676330
B74: SW008064 | C74: 2018-10-20 | D74: 18007.2 | E74: 679165
B75: SW008065 | C75: 2018-10-20 | D75: 11568.8 | E75: 679166
B76: SW008066 | C76: 2018-10-20 | D76: 18007.2 | E76: 676331
B77: SW008067 | C77: 2018-10-20 | D77: 16887.2 | E77: 676332
B78: SW008068 | C78: 2018-10-20 | D78: 16887.2 | E78: 676333
B79: SW008069 | C79: 2018-10-20 | D79: 16887.2 | E79: 676335
B80: 5356275 | C80: 2018-10-27 | D80: 224.8 | E80: 673713
B81: 5356276 | C81: 2018-10-27 | D81: 410.8 | E81: 673714
B82: 5356277 | C82: 2018-10-27 | D82: 313.8 | E82: 673715
B83: 5356278 | C83: 2018-10-27 | D83: 313.8 | E83: 673716
B84: 5356279 | C84: 2018-10-27 | D84: 309.8 | E84: 673717
B85: 5356280 | C85: 2018-10-27 | D85: 309.8 | E85: 673718
B86: 5356281 | C86: 2018-10-27 | D86: 9346.4 | E86: 673719
B87: 5356282 | C87: 2018-10-27 | D87: 20107.6 | E87: 673720
B88: 5356283 | C88: 2018-10-27 | D88: 14596.6 | E88: 673721
B89: 5356284 | C89: 2018-10-27 | D89: 14596.6 | E89: 673722
B90: 5356285 | C90: 2018-10-27 | D90: 13656.6 | E90: 673723
B91: 5356286 | C91: 2018-10-27 | D91: 12793.92 | E91: 673724
B92: SW007826 | C92: 2018-10-27 | D92: 9810.4 | E92: 673725
B93: SW007827 | C93: 2018-10-27 | D93: 1771.72 | E93: 673726
B94: SW007829 | C94: 2018-10-27 | D94: 2259.48 | E94: 673728 | F94: 1
B95: SW007830 | C95: 2018-10-27 | D95: 14324 | E95: 673729
B96: SW007831 | C96: 2018-10-27 | D96: 14324 | E96: 673730
B97: SW007832 | C97: 2018-10-27 | D97: 2480.48 | E97: 673731
B98: SW007833 | C98: 2018-10-27 | D98: 14324 | E98: 673732
B99: SW007834 | C99: 2018-10-27 | D99: 2480.48 | E99: 673733
B100: SW007901 | C100: 2018-10-27 | D100: 11568.8 | E100: 673704
B101: SW007902 | C101: 2018-10-27 | D101: 16887.2 | E101: 673705
B102: SW007903 | C102: 2018-10-27 | D102: 16887.2 | E102: 673706
B103: SW007904 | C103: 2018-10-27 | D103: 18007.2 | E103: 673707
B104: SW007905 | C104: 2018-10-27 | D104: 20125.6 | E104: 673708
B105: SW007906 | C105: 2018-10-27 | D105: 2375.48 | E105: 673709 | F105: 1
B106: SW007907 | C106: 2018-10-27 | D106: 16887.2 | E106: 673710
B107: SW007908 | C107: 2018-10-27 | D107: 18971.2 | E107: 673711 | F107: 1
B108: SW007909 | C108: 2018-10-27 | D108: 16887.2 | E108: 673712
B109: SW008070 | C109: 2018-10-27 | D109: 9810.4 | E109: 673734
B110: SW008071 | C110: 2018-10-27 | D110: 15284 | E110: 673736
B111: SW008072 | C111: 2018-10-27 | D111: 15284 | E111: 673738
B112: SW008073 | C112: 2018-10-27 | D112: 12056 | E112: 673740
B113: SW008074 | C113: 2018-10-27 | D113: 12056 | E113: 673741
B114: SW008075 | C114: 2018-10-27 | D114: 12056 | E114: 673742
B115: SW008076 | C115: 2018-10-27 | D115: 1925.12 | E115: 673743
B116: SW008077 | C116: 2018-10-27 | D116: 2405.54 | E116: 673744
B117: SW008078 | C117: 2018-10-27 | D117: 3020.48 | E117: 673745
B118: SW008079 | C118: 2018-10-27 | D118: 2213.08 | E118: 673746
B119: SW008080 | C119: 2018-10-27 | D119: 2215.04 | E119: 673747
B120: SW008081 | C120: 2018-10-27 | D120: 2215.04 | E120: 673750
B121: SW007910 | C121: 2018-11-03 | D121: 9810.4 | E121: 676340
B122: SW007911 | C122: 2018-11-03 | D122: 1800.52 | E122: 676341
B123: SW007912 | C123: 2018-11-03 | D123: 14324 | E123: 676342
B124: SW007913 | C124: 2018-11-03 | D124: 2517.68 | E124: 676343
B125: SW007914 | C125: 2018-11-03 | D125: 14324 | E125: 676344
B126: SW007915 | C126: 2018-11-03 | D126: 2517.68 | E126: 676345
B127: SW007916 | C127: 2018-11-23 | D127: 15284 | E127: 676346 | F127: error in invoice date- should be 11/3/18
B128: SW007917 | C128: 2018-11-03 | D128: 2542.28 | E128: 676347
B129: SW007918 | C129: 2018-11-03 | D129: 14324 | E129: 676348
B130: SW007919 | C130: 2018-11-03 | D130: 2517.68 | E130: 676349
B131: SW007920 | C131: 2018-11-03 | D131: 7520 | E131: 676350
B132: SW007921 | C132: 2018-11-03 | D132: 3683.58 | E132: 676351
B133: SW007922 | C133: 2018-11-03 | D133: 10724 | E133: 676352
B134: SW007923 | C134: 2018-11-03 | D134: 1959.78 | E134: 676353
B135: 5856327 | C135: 2018-11-03 | D135: 9810.4 | E135: 676354
B136: 5356328 | C136: 2018-11-03 | D136: 21085.6 | E136: 676355
B137: 5356329 | C137: 2018-11-03 | D137: 15284 | E137: 676356
B138: 5356330 | C138: 2018-11-03 | D138: 15284 | E138: 676357
B139: 5356331 | C139: 2018-11-03 | D139: 14324 | E139: 676358
B140: 5356332 | C140: 2018-11-03 | D140: 18465.44 | E140: 676359
B141: 5356333 | C141: 2018-11-03 | D141: 276.6 | E141: 676360
B142: 5356334 | C142: 2018-11-03 | D142: 383.6 | E142: 676361
B143: 5356335 | C143: 2018-11-03 | D143: 387.6 | E143: 676362
B144: 5356336 | C144: 2018-11-03 | D144: 387.6 | E144: 676363
B145: 5356337 | C145: 2018-11-03 | D145: 518.6 | E145: 676364
B146: 5356338 | C146: 2018-11-03 | D146: 383.6 | E146: 676365
D147: =SUM(D34:D146) -> 829778.93
B149: Tickmark Explanation:
B150: 1 see Timesheet for invoice variences

Sheet C.1 - Rate Sheets
B2: Labor Charges - Rate Sheet
B4: Test Plan: (A) Using the vendor rate sheet, ensure that a rate was provided for all Positions and Equipment types.
B6: Labor Types:
B7: ST | C7: Straight Time
B8: OT | C8: Over Time
B9: DT | C9: Double Time
B10: MOB/DMOB | C10: Mobilization/Demobilization Time
B13: Labor per Man Hour | H13: Labor per Equipment Hour
B14: A | H14: A
B15: POSITION | C15: ST | D15: OT | E15: DT | F15: MOB/DMOB | H15: Type | I15: $/HOUR
B16: Crew Foreman | C16: 56.8 | D16: 76.7 | E16: 90.9 | H16: 4x4 Pickup | I16: 10 | J16: 1
B17: Grounds Person | C17: 40 | D17: 54 | E17: 64 | H17: Ariel Lift 60-2WD | I17: 18
B18: Supervisor | C18: 74 | D18: 99.9 | E18: 118.4 | H18: Ariel Lift 60-4WD | I18: 23.25
B19: Tree Trimmer | C19: 48.5 | D19: 65.5 | E19: 77.6 | H19: Ariel Lift Over 60 | I19: 28
H20: 4x4 Bigfoot | I20: 30.03
H21: Manual Crew Truck | I21: 14
H22: Loader | I22: 61.14
H23: Disc Chipper | I23: 6.75
B54: Tickmark Explanation:
B55: 1

Sheet C.2 - Timesheets - Labor
B2: Labor Charges - Time Card
B4: Test Plan: | C4: Obtain the time cards. (A) Using the Asset by Company tab (C.3), populate the crew members names and positions (if provided). Find additional information regarding individual crew member from related invoice. (B) Enter hours worked from time card(s). (C) Confirm that the dates per the time cards fall between dates provided per 'A - Contractor Summary' tab. (D) Confirm the labor type charged agrees to the rate sheet. (E) Identify any labor charges to be reviewed (manually enter amounts based on reasonability of time period labor was charged, discrepancies between timecards and invoice, etc. (F) For charges which required further review, document review (include why it was determined to be allowed/disallowed via a tickmark).
B10: Rx | C10: Recalculated.
B11: a | C11: Provided from tab 'C.1 - Rate Sheets'.
B12: b | C12: Check figure should equal $0. Cell will appear yellow if discrepancies are noted.
C14: A | H14: Rx | J14: C | K14: a | O14: B | ET14: Rx | EY14: Rx | FD14: Rx | FF14: E | FG14: F
B15: # | C15: Name | D15: Position | E15: Company | F15: Crew# | G15: Invoice# | H15: Start Date | I15: End Date | J15: Dates Worked Reasonable? | K15: Rates | O15: 2018-10-08 | T15: 2018-10-09 | Y15: 2018-10-10 | AD15: 2018-10-11 | AI15: 2018-10-12 | AN15: 2018-10-13 | AS15: 2018-10-14 | AX15: 2018-10-15 | BC15: 2018-10-16 | BH15: 2018-10-17 | BM15: 2018-10-18 | BR15: 2018-10-19 | BW15: 2018-10-20 | CB15: 2018-10-21 | CG15: 2018-10-22 | CL15: 2018-10-23 | CQ15: 2018-10-24 | CV15: 2018-10-25 | DA15: 2018-10-26 | DF15: 2018-10-27 | DK15: 2018-10-28 | DP15: 2018-10-29 | DU15: 2018-10-30 | DZ15: 2018-10-31 | EE15: 2018-11-01 | EJ15: 2018-11-02 | EO15: 2018-11-03 | ET15: Total Labor Hours | EY15: Total Labor $ | FD15: Allowable Charges | FE15: Labor Type Appropriate? | FF15: To Be Reviewed | FG15: Reviewed - Allowable Charge | FH15: Reviewed - Unallowable Charge | FI15: Tickmarks
O16: 2018-10-08 | P16: 2018-10-08 | Q16: 2018-10-08 | R16: 2018-10-08 | S16: 2018-10-08 | T16: 2018-10-09 | U16: 2018-10-09 | V16: 2018-10-09 | W16: 2018-10-09 | X16: 2018-10-09 | Y16: 2018-10-10 | Z16: 2018-10-10 | AA16: 2018-10-10 | AB16: 2018-10-10 | AC16: 2018-10-10 | AD16: 2018-10-11 | AE16: 2018-10-11 | AF16: 2018-10-11 | AG16: 2018-10-11 | AH16: 2018-10-11 | AI16: 2018-10-12 | AJ16: 2018-10-12 | AK16: 2018-10-12 | AL16: 2018-10-12 | AM16: 2018-10-12 | AN16: 2018-10-13 | AO16: 2018-10-13 | AP16: 2018-10-13 | AQ16: 2018-10-13 | AR16: 2018-10-13 | AS16: 2018-10-14 | AT16: 2018-10-14 | AU16: 2018-10-14 | AV16: 2018-10-14 | AW16: 2018-10-14 | AX16: 2018-10-15 | AY16: 2018-10-15 | AZ16: 2018-10-15 | BA16: 2018-10-15 | BB16: 2018-10-15 | BC16: 2018-10-16 | BD16: 2018-10-16 | BE16: 2018-10-16 | BF16: 2018-10-16 | BG16: 2018-10-16 | BH16: 2018-10-17 | BI16: 2018-10-17 | BJ16: 2018-10-17 | BK16: 2018-10-17 | BL16: 2018-10-17 | BM16: 2018-10-18 | BN16: 2018-10-18 | BO16: 2018-10-18 | BP16: 2018-10-18 | BQ16: 2018-10-18 | BR16: 2018-10-19 | BS16: 2018-10-19 | BT16: 2018-10-19 | BU16: 2018-10-19 | BV16: 2018-10-19 | BW16: 2018-10-20 | BX16: 2018-10-20 | BY16: 2018-10-20 | BZ16: 2018-10-20 | CA16: 2018-10-20 | CB16: 2018-10-21 | CC16: 2018-10-21 | CD16: 2018-10-21 | CE16: 2018-10-21 | CF16: 2018-10-21 | CG16: 2018-10-22 | CH16: 2018-10-22 | CI16: 2018-10-22 | CJ16: 2018-10-22 | CK16: 2018-10-22 | CL16: 2018-10-23 | CM16: 2018-10-23 | CN16: 2018-10-23 | CO16: 2018-10-23 | CP16: 2018-10-22 | CQ16: 2018-10-24 | CR16: 2018-10-24 | CS16: 2018-10-24 | CT16: 2018-10-24 | CU16: 2018-10-24 | CV16: 2018-10-25 | CW16: 2018-10-25 | CX16: 2018-10-25 | CY16: 2018-10-25 | CZ16: 2018-10-25 | DA16: 2018-10-26 | DB16: 2018-10-26 | DC16: 2018-10-26 | DD16: 2018-10-26 | DE16: 2018-10-26 | DF16: 2018-10-27 | DG16: 2018-10-27 | DH16: 2018-10-27 | DI16: 2018-10-27 | DJ16: 2018-10-27 | DK16: 2018-10-28 | DL16: 2018-10-28 | DM16: 2018-10-28 | DN16: 2018-10-28 | DO16: 2018-10-28 | DP16: 2018-10-29 | DQ16: 2018-10-29 | DR16: 2018-10-29 | DS16: 2018-10-29 | DT16: 2018-10-29 | DU16: 2018-10-30 | DV16: 2018-10-30 | DW16: 2018-10-30 | DX16: 2018-10-30 | DY16: 2018-10-30 | DZ16: 2018-10-31 | EA16: 2018-10-31 | EB16: 2018-10-31 | EC16: 2018-10-31 | ED16: 2018-10-31 | EE16: 2018-11-01 | EF16: 2018-11-01 | EG16: 2018-11-01 | EH16: 2018-11-01 | EI16: 2018-11-01 | EJ16: 2018-11-02 | EK16: 2018-11-02 | EL16: 2018-11-02 | EM16: 2018-11-02 | EN16: 2018-11-02 | EO16: 2018-11-03 | EP16: 2018-11-03 | EQ16: 2018-11-03 | ER16: 2018-11-03 | ES16: 2018-11-03 | ET16: Total ST | EU16: OT | EV16: DT | EW16: MOB/DMOB | EX16: Total Hours | EY16: Total ST $ | EZ16: Total OT $ | FA16: Total DT $ | FB16: Total MOB/DMOB $ | FC16: Total Labor $
O17: Monday | T17: Tuesday | Y17: Wednesday | AD17: Thursday | AI17: Friday | AN17: Saturday | AS17: Sunday | AX17: Monday | BC17: Tuesday | BH17: Wednesday | BM17: Thursday | BR17: Friday | BW17: Saturday | CB17: Sunday | CG17: Monday | CL17: Tuesday | CQ17: Wednesday | CV17: Thursday | DA17: Friday | DF17: Saturdauy | DK17: Sunday | DP17: Monday | DU17: Tuesday | DZ17: Wednesday | EE17: Thursday | EJ17: Friday | EO17: Saturday
K18: ST | L18: OT | M18: DT | N18: MOB/DMOB | O18: ST | P18: OT | Q18: DT | R18: MOB/DMOB | S18: Total | T18: ST | U18: OT | V18: DT | W18: MOB/DMOB | X18: Total | Y18: ST | Z18: OT | AA18: DT | AB18: MOB/DMOB | AC18: Total | AD18: ST | AE18: OT | AF18: DT | AG18: MOB/DMOB | AH18: Total | AI18: ST | AJ18: OT | AK18: DT | AL18: MOB/DMOB | AM18: Total | AN18: ST | AO18: OT | AP18: DT | AQ18: MOB/DMOB | AR18: Total | AS18: ST | AT18: OT | AU18: DT | AV18: MOB/DMOB | AW18: Total | AX18: ST | AY18: OT | AZ18: DT | BA18: MOB/DMOB | BB18: Total | BC18: ST | BD18: OT | BE18: DT | BF18: MOB/DMOB | BG18: Total | BH18: ST | BI18: OT | BJ18: DT | BK18: MOB/DMOB | BL18: Total | BM18: ST | BN18: OT | BO18: DT | BP18: MOB/DMOB | BQ18: Total | BR18: ST | BS18: OT | BT18: DT | BU18: MOB/DMOB | BV18: Total | BW18: ST | BX18: OT | BY18: DT | BZ18: MOB/DMOB | CA18: Total | CB18: ST | CC18: OT | CD18: DT | CE18: MOB/DMOB | CF18: Total | CG18: ST | CH18: OT | CI18: DT | CJ18: MOB/DMOB | CK18: Total | CL18: ST | CM18: OT | CN18: DT | CO18: MOB/DMOB | CP18: Total | CQ18: ST | CR18: OT | CS18: DT | CT18: MOB/DMOB | CU18: Total | CV18: ST | CW18: OT | CX18: DT | CY18: MOB/DMOB | CZ18: Total | DA18: ST | DB18: OT | DC18: DT | DD18: MOB/DMOB | DE18: Total | DF18: ST | DG18: OT | DH18: DT | DI18: MOB/DMOB | DJ18: Total | DK18: ST | DL18: OT | DM18: DT | DN18: MOB/DMOB | DO18: Total | DP18: ST | DQ18: OT | DR18: DT | DS18: MOB/DMOB | DT18: Total | DU18: ST | DV18: OT | DW18: DT | DX18: MOB/DMOB | DY18: Total | DZ18: ST | EA18: OT | EB18: DT | EC18: MOB/DMOB | ED18: Total | EE18: ST | EF18: OT | EG18: DT | EH18: MOB/DMOB | EI18: Total | EJ18: ST | EK18: OT | EL18: DT | EM18: MOB/DMOB | EN18: Total | EO18: ST | EP18: OT | EQ18: DT | ER18: MOB/DMOB | ES18: Total
B19: 1 | D19: Crew Foreman | E19: Vendor #13 | G19: SW008052 | H19: 2018-10-12 | I19: 2018-10-13 | J19: Yes | K19: =VLOOKUP($D19,'C.1 - Rate Sheets'!$B$16:$E$35,2) -> 56.8 | L19: =VLOOKUP($D19,'C.1 - Rate Sheets'!$B$16:$E$35,3) -> 76.7 | M19: =VLOOKUP($D19,'C.1 - Rate Sheets'!$B$16:$E$35,4) -> 90.9 | N19: =VLOOKUP($D19,'C.1 - Rate Sheets'!B:F,5,FALSE) -> 0 | O19: 0 | P19: 0 | Q19: 0 | R19: 0 | S19: 0 | T19: 0 | U19: 0 | V19: 0 | W19: 0 | X19: =SUM(T19:W19) -> 0 | Y19: 0 | Z19: 0 | AA19: 0 | AB19: 0 | AC19: =SUM(Y19:AB19) -> 0 | AD19: 0 | AE19: 0 | AF19: 0 | AG19: 0 | AH19: =SUM(AD19:AG19) -> 0 | AI19: 10 | AJ19: 5 | AM19: =SUM(AI19:AL19) -> 15 | AR19: =SUM(AN19:AQ19) -> 0 | AW19: =SUM(AS19:AV19) -> 0 | BB19: =SUM(AX19:BA19) -> 0 | BG19: =SUM(BC19:BF19) -> 0 | BH19: 0 | BL19: =SUM(BH19:BK19) -> 0 | BQ19: =SUM(BM19:BP19) -> 0 | BV19: =SUM(BR19:BU19) -> 0 | CA19: =SUM(BW19:BZ19) -> 0 | CF19: =+SUM(CB19:CE19) -> 0 | CK19: =SUM(CG19:CJ19) -> 0 | CL19: 0 | CM19: 0 | CN19: 0 | CO19: 0 | CP19: =+SUM(CL19:CO19) -> 0 | CQ19: 0 | CR19: 0 | CS19: 0 | CT19: 0 | CU19: =+SUM(CQ19:CT19) -> 0 | CV19: 0 | CW19: 0 | CX19: 0 | CY19: 0 | CZ19: =+SUM(CV19:CY19) -> 0 | DA19: 0 | DB19: 0 | DC19: 0 | DD19: 0 | DE19: =+SUM(DA19:DD19) -> 0 | DF19: 0 | DG19: 0 | DH19: 0 | DI19: 0 | DJ19: =+SUM(DF19:DI19) -> 0 | DK19: 0 | DL19: 0 | DM19: 0 | DN19: 0 | DO19: =SUM(DK19:DN19) -> 0 | DP19: 0 | DQ19: 0 | DR19: 0 | DS19: 0 | DT19: =SUM(DP19:DS19) -> 0 | DU19: 0 | DV19: 0 | DW19: 0 | DX19: 0 | DY19: =SUM(DU19:DX19) -> 0 | DZ19: 0 | EA19: 0 | EB19: 0 | EC19: 0 | ED19: =SUM(DZ19:EC19) -> 0 | EE19: 0 | EF19: 0 | EG19: 0 | EH19: 0 | EI19: =SUM(EE19:EH19) -> 0 | EJ19: 0 | EK19: 0 | EL19: 0 | EM19: 0 | EN19: =SUM(EJ19:EM19) -> 0 | EO19: 0 | EP19: 0 | EQ19: 0 | ER19: 0 | ES19: =SUM(EO19:ER19) -> 0 | ET19: =SUM(O19,T19,Y19,AI19,AN19,AS19,AX19,BC19,BH19,BM19,BR19,BW19,CB19,CL19, CG19,CQ19,CV19,DA19,DF19,DK19, DP19,DU19,DZ19,EE19,EJ19,EO19) -> 10 | EU19: =SUM(P19,U19,Z19,AJ19,AO19,AT19,AY19,BD19,BI19,BN19,BS19,BX19,CC19,CM19, CH19,CR19,CW19,DB19,DG19,DL19, DQ19,DV19,EA19,EF19,EK19,EP19) -> 5 | EV19: =SUM(Q19,V19,AA19,AK19,AP19,AU19,AZ19,BE19,BJ19,BO19,BT19,BY19,CD19,CN19, CI19,CS19,CX19,DC19,DH19,DM19, DR19,DW19,EB19,EG19,EL19,EQ19) -> 0 | EW19: =SUM(R19,W19,AB19,AL19,AQ19,AV19,BA19,BF19,BK19,BP19,BU19,BZ19,CO19, CJ19,CT19,CY19,DD19,DI19,DN19, DS19,DX19,EC19,EH19,EM19,ER19) -> 0 | EX19: =SUM(S19,X19,AC19,AM19,AR19,AW19,BB19,BG19,BL19,BQ19,BV19,CA19,CP19, CK19,CU19,CZ19,DE19,DJ19,DO19, DT19,DY19,ED19,EI19,EN19,ES19) -> 15 | EY19: =ET19*K19 -> 568 | EZ19: =EU19*L19 -> 383.5 | FA19: =EV19*M19 -> 0 | FB19: =EW19*N19 -> 0 | FC19: =SUM(EY19:FB19) -> 951.5 | FD19: =FC19-FF19 -> 951.5 | FE19: Yes | FF19: 0 | FG19: 0 | FH19: 0
B20: 2 | D20: Tree Trimmer | E20: Vendor #13 | G20: SW008052 | H20: 2018-10-12 | I20: 2018-10-13 | J20: Yes | K20: =VLOOKUP($D20,'C.1 - Rate Sheets'!$B$16:$E$35,2) -> 48.5 | L20: =VLOOKUP($D20,'C.1 - Rate Sheets'!$B$16:$E$35,3) -> 65.5 | M20: =VLOOKUP($D20,'C.1 - Rate Sheets'!$B$16:$E$35,4) -> 77.6 | N20: =VLOOKUP($D20,'C.1 - Rate Sheets'!B:F,5,FALSE) -> 0 | O20: 0 | P20: 0 | Q20: 0 | R20: 0 | S20: 0 | T20: 0 | U20: 0 | V20: 0 | W20: 0 | X20: =SUM(T20:W20) -> 0 | Y20: 0 | Z20: 0 | AA20: 0 | AB20: 0 | AC20: =SUM(Y20:AB20) -> 0 | AD20: 0 | AE20: 0 | AF20: 0 | AG20: 0 | AH20: =SUM(AD20:AG20) -> 0 | AI20: 10 | AJ20: 5 | AM20: =SUM(AI20:AL20) -> 15 | AR20: =SUM(AN20:AQ20) -> 0 | AW20: =SUM(AS20:AV20) -> 0 | BB20: =SUM(AX20:BA20) -> 0 | BG20: =SUM(BC20:BF20) -> 0 | BL20: =SUM(BH20:BK20) -> 0 | BQ20: =SUM(BM20:BP20) -> 0 | BV20: =SUM(BR20:BU20) -> 0 | CA20: =SUM(BW20:BZ20) -> 0 | CF20: =+SUM(CB20:CE20) -> 0 | CK20: =SUM(CG20:CJ20) -> 0 | CL20: 0 | CM20: 0 | CN20: 0 | CO20: 0 | CP20: =+SUM(CL20:CO20) -> 0 | CQ20: 0 | CR20: 0 | CS20: 0 | CT20: 0 | CU20: =+SUM(CQ20:CT20) -> 0 | CV20: 0 | CW20: 0 | CX20: 0 | CY20: 0 | CZ20: =+SUM(CV20:CY20) -> 0 | DA20: 0 | DB20: 0 | DC20: 0 | DD20: 0 | DE20: =+SUM(DA20:DD20) -> 0 | DF20: 0 | DG20: 0 | DH20: 0 | DI20: 0 | DJ20: =+SUM(DF20:DI20) -> 0 | DK20: 0 | DL20: 0 | DM20: 0 | DN20: 0 | DO20: =SUM(DK20:DN20) -> 0 | DP20: 0 | DQ20: 0 | DR20: 0 | DS20: 0 | DT20: =SUM(DP20:DS20) -> 0 | DU20: 0 | DV20: 0 | DW20: 0 | DX20: 0 | DY20: =SUM(DU20:DX20) -> 0 | DZ20: 0 | EA20: 0 | EB20: 0 | EC20: 0 | ED20: =SUM(DZ20:EC20) -> 0 | EE20: 0 | EF20: 0 | EG20: 0 | EH20: 0 | EI20: =SUM(EE20:EH20) -> 0 | EJ20: 0 | EK20: 0 | EL20: 0 | EM20: 0 | EN20: =SUM(EJ20:EM20) -> 0 | EO20: 0 | EP20: 0 | EQ20: 0 | ER20: 0 | ES20: =SUM(EO20:ER20) -> 0 | ET20: 10 | EU20: 5 | EV20: 0 | EW20: 0 | EX20: 15 | EY20: 485 | EZ20: 327.5 | FA20: 0 | FB20: 0 | FC20: =SUM(EY20:FB20) -> 812.5 | FD20: 812.5 | FE20: Yes | FF20: 0 | FG20: 0 | FH20: 0
B21: 3 | D21: Crew Foreman | E21: Vendor #13 | G21: SW008053 | H21: 2018-10-12 | I21: 2018-10-13 | J21: Yes | K21: =VLOOKUP($D21,'C.1 - Rate Sheets'!$B$16:$E$35,2) -> 56.8 | L21: =VLOOKUP($D21,'C.1 - Rate Sheets'!$B$16:$E$35,3) -> 76.7 | M21: =VLOOKUP($D21,'C.1 - Rate Sheets'!$B$16:$E$35,4) -> 90.9 | N21: =VLOOKUP($D21,'C.1 - Rate Sheets'!B:F,5,FALSE) -> 0 | O21: 0 | P21: 0 | Q21: 0 | R21: 0 | S21: =SUM(O21:R21) -> 0 | T21: 0 | U21: 0 | V21: 0 | W21: 0 | X21: 0 | Y21: 0 | Z21: 0 | AA21: 0 | AB21: 0 | AC21: 0 | AD21: 0 | AE21: 0 | AF21: 0 | AG21: 0 | AH21: 0 | AI21: 0 | AJ21: 16 | AM21: 16 | AN21: 0 | AR21: 0 | AS21: 0 | AW21: 0 | AX21: 0 | BB21: 0 | BG21: 0 | BL21: 0 | BQ21: 0 | BV21: 0 | CA21: 0 | CF21: 0 | CK21: 0 | CL21: 0 | CM21: 0 | CN21: 0 | CO21: 0 | CP21: 0 | CQ21: 0 | CR21: 0 | CS21: 0 | CT21: 0 | CU21: 0 | CV21: 0 | CW21: 0 | CX21: 0 | CY21: 0 | CZ21: 0 | DA21: 0 | DB21: 0 | DC21: 0 | DD21: 0 | DE21: 0 | DF21: 0 | DG21: 0 | DH21: 0 | DI21: 0 | DJ21: 0 | DK21: 0 | DL21: 0 | DM21: 0 | DN21: 0 | DO21: 0 | DP21: 0 | DQ21: 0 | DR21: 0 | DS21: 0 | DT21: 0 | DU21: 0 | DV21: 0 | DW21: 0 | DX21: 0 | DY21: 0 | DZ21: 0 | EA21: 0 | EB21: 0 | EC21: 0 | ED21: 0 | EE21: 0 | EF21: 0 | EG21: 0 | EH21: 0 | EI21: 0 | EJ21: 0 | EK21: 0 | EL21: 0 | EM21: 0 | EN21: 0 | EO21: 0 | EP21: 0 | EQ21: 0 | ER21: 0 | ES21: 0 | ET21: 0 | EU21: 16 | EV21: 0 | EW21: 0 | EX21: 16 | EY21: 0 | EZ21: 1227.2 | FA21: 0 | FB21: 0 | FC21: 1227.2 | FD21: 1227.2 | FE21: Yes | FF21: 0 | FG21: 0 | FH21: 0
B22: 4 | D22: Tree Trimmer | E22: Vendor #13 | G22: SW008053 | H22: 2018-10-12 | I22: 2018-10-13 | J22: Yes | K22: =VLOOKUP($D22,'C.1 - Rate Sheets'!$B$16:$E$35,2) -> 48.5 | L22: =VLOOKUP($D22,'C.1 - Rate Sheets'!$B$16:$E$35,3) -> 65.5 | M22: =VLOOKUP($D22,'C.1 - Rate Sheets'!$B$16:$E$35,4) -> 77.6 | N22: =VLOOKUP($D22,'C.1 - Rate Sheets'!B:F,5,FALSE) -> 0 | O22: 0 | P22: 0 | Q22: 0 | R22: 0 | S22: 0 | T22: 0 | U22: 0 | V22: 0 | W22: 0 | X22: 0 | Y22: 0 | Z22: 0 | AA22: 0 | AB22: 0 | AC22: 0 | AD22: 0 | AE22: 0 | AF22: 0 | AG22: 0 | AH22: 0 | AI22: 0 | AJ22: 16 | AM22: 16 | AN22: 0 | AR22: 0 | AS22: 0 | AW22: 0 | AX22: 0 | BB22: 0 | BG22: 0 | BL22: 0 | BQ22: 0 | BV22: 0 | CA22: 0 | CF22: 0 | CK22: 0 | CL22: 0 | CM22: 0 | CN22: 0 | CO22: 0 | CP22: 0 | CQ22: 0 | CR22: 0 | CS22: 0 | CT22: 0 | CU22: 0 | CV22: 0 | CW22: 0 | CX22: 0 | CY22: 0 | CZ22: 0 | DA22: 0 | DB22: 0 | DC22: 0 | DD22: 0 | DE22: 0 | DF22: 0 | DG22: 0 | DH22: 0 | DI22: 0 | DJ22: 0 | DK22: 0 | DL22: 0 | DM22: 0 | DN22: 0 | DO22: 0 | DP22: 0 | DQ22: 0 | DR22: 0 | DS22: 0 | DT22: 0 | DU22: 0 | DV22: 0 | DW22: 0 | DX22: 0 | DY22: 0 | DZ22: 0 | EA22: 0 | EB22: 0 | EC22: 0 | ED22: 0 | EE22: 0 | EF22: 0 | EG22: 0 | EH22: 0 | EI22: 0 | EJ22: 0 | EK22: 0 | EL22: 0 | EM22: 0 | EN22: 0 | EO22: 0 | EP22: 0 | EQ22: 0 | ER22: 0 | ES22: 0 | ET22: 0 | EU22: 16 | EV22: 0 | EW22: 0 | EX22: 16 | EY22: 0 | EZ22: 1048 | FA22: 0 | FB22: 0 | FC22: 1048 | FD22: 1048 | FE22: Yes | FF22: 0 | FG22: 0 | FH22: 0
B23: 3 | D23: Crew Foreman | E23: Vendor #13 | G23: SW008054 | H23: 2018-10-12 | I23: 2018-10-13 | J23: Yes | K23: =VLOOKUP($D23,'C.1 - Rate Sheets'!$B$16:$E$35,2) -> 56.8 | L23: =VLOOKUP($D23,'C.1 - Rate Sheets'!$B$16:$E$35,3) -> 76.7 | M23: =VLOOKUP($D23,'C.1 - Rate Sheets'!$B$16:$E$35,4) -> 90.9 | N23: =VLOOKUP($D23,'C.1 - Rate Sheets'!B:F,5,FALSE) -> 0 | O23: 0 | P23: 0 | Q23: 0 | R23: 0 | S23: =SUM(O23:R23) -> 0 | T23: 0 | U23: 0 | V23: 0 | W23: 0 | X23: =SUM(T23:W23) -> 0 | Y23: 0 | Z23: 0 | AA23: 0 | AB23: 0 | AC23: =SUM(Y23:AB23) -> 0 | AD23: 0 | AE23: 0 | AF23: 0 | AG23: 0 | AH23: =SUM(AD23:AG23) -> 0 | AI23: 0 | AJ23: 10 | AM23: =SUM(AI23:AL23) -> 10 | AN23: 0 | AR23: =SUM(AN23:AQ23) -> 0 | AS23: 0 | AW23: =SUM(AS23:AV23) -> 0 | AX23: 0 | BB23: =SUM(AX23:BA23) -> 0 | BG23: =SUM(BC23:BF23) -> 0 | BL23: =SUM(BH23:BK23) -> 0 | BQ23: =SUM(BM23:BP23) -> 0 | BV23: =SUM(BR23:BU23) -> 0 | CA23: =SUM(BW23:BZ23) -> 0 | CF23: =+SUM(CB23:CE23) -> 0 | CK23: =SUM(CG23:CJ23) -> 0 | CL23: 0 | CM23: 0 | CN23: 0 | CO23: 0 | CP23: =+SUM(CL23:CO23) -> 0 | CQ23: 0 | CR23: 0 | CS23: 0 | CT23: 0 | CU23: =+SUM(CQ23:CT23) -> 0 | CV23: 0 | CW23: 0 | CX23: 0 | CY23: 0 | CZ23: =+SUM(CV23:CY23) -> 0 | DA23: 0 | DB23: 0 | DC23: 0 | DD23: 0 | DE23: =+SUM(DA23:DD23) -> 0 | DF23: 0 | DG23: 0 | DH23: 0 | DI23: 0 | DJ23: =+SUM(DF23:DI23) -> 0 | DK23: 0 | DL23: 0 | DM23: 0 | DN23: 0 | DO23: =SUM(DK23:DN23) -> 0 | DP23: 0 | DQ23: 0 | DR23: 0 | DS23: 0 | DT23: =SUM(DP23:DS23) -> 0 | DU23: 0 | DV23: 0 | DW23: 0 | DX23: 0 | DY23: =SUM(DU23:DX23) -> 0 | DZ23: 0 | EA23: 0 | EB23: 0 | EC23: 0 | ED23: =SUM(DZ23:EC23) -> 0 | EE23: 0 | EF23: 0 | EG23: 0 | EH23: 0 | EI23: =SUM(EE23:EH23) -> 0 | EJ23: 0 | EK23: 0 | EL23: 0 | EM23: 0 | EN23: =SUM(EJ23:EM23) -> 0 | EO23: 0 | EP23: 0 | EQ23: 0 | ER23: 0 | ES23: =SUM(EO23:ER23) -> 0 | ET23: =SUM(O23,T23,Y23,AI23,AN23,AS23,AX23,BC23,BH23,BM23,BR23,BW23,CB23,CL23, CG23,CQ23,CV23,DA23,DF23,DK23, DP23,DU23,DZ23,EE23,EJ23,EO23) -> 0 | EU23: =SUM(P23,U23,Z23,AJ23,AO23,AT23,AY23,BD23,BI23,BN23,BS23,BX23,CC23,CM23, CH23,CR23,CW23,DB23,DG23,DL23, DQ23,DV23,EA23,EF23,EK23,EP23) -> 10 | EV23: =SUM(Q23,V23,AA23,AK23,AP23,AU23,AZ23,BE23,BJ23,BO23,BT23,BY23,CD23,CN23, CI23,CS23,CX23,DC23,DH23,DM23, DR23,DW23,EB23,EG23,EL23,EQ23) -> 0 | EW23: =SUM(R23,W23,AB23,AL23,AQ23,AV23,BA23,BF23,BK23,BP23,BU23,BZ23,CO23, CJ23,CT23,CY23,DD23,DI23,DN23, DS23,DX23,EC23,EH23,EM23,ER23) -> 0 | EX23: =SUM(S23,X23,AC23,AM23,AR23,AW23,BB23,BG23,BL23,BQ23,BV23,CA23,CP23, CK23,CU23,CZ23,DE23,DJ23,DO23, DT23,DY23,ED23,EI23,EN23,ES23) -> 10 | EY23: 0 | EZ23: 767 | FA23: 0 | FB23: 0 | FC23: =SUM(EY23:FB23) -> 767 | FD23: =FC23-FF23 -> 767 | FE23: Yes | FF23: 0 | FG23: 0 | FH23: 0
B24: 4 | D24: Tree Trimmer | E24: Vendor #13 | G24: SW008054 | H24: 2018-10-12 | I24: 2018-10-13 | J24: Yes | K24: =VLOOKUP($D24,'C.1 - Rate Sheets'!$B$16:$E$35,2) -> 48.5 | L24: =VLOOKUP($D24,'C.1 - Rate Sheets'!$B$16:$E$35,3) -> 65.5 | M24: =VLOOKUP($D24,'C.1 - Rate Sheets'!$B$16:$E$35,4) -> 77.6 | N24: =VLOOKUP($D24,'C.1 - Rate Sheets'!B:F,5,FALSE) -> 0 | O24: 0 | P24: 0 | Q24: 0 | R24: 0 | S24: 0 | T24: 0 | U24: 0 | V24: 0 | W24: 0 | X24: 0 | Y24: 0 | Z24: 0 | AA24: 0 | AB24: 0 | AC24: 0 | AD24: 0 | AE24: 0 | AF24: 0 | AG24: 0 | AH24: 0 | AI24: 0 | AJ24: 10 | AM24: 10 | AN24: 0 | AR24: 0 | AS24: 0 | AW24: 0 | AX24: 0 | BB24: 0 | BG24: 0 | BL24: 0 | BQ24: 0 | BV24: 0 | CA24: 0 | CF24: 0 | CK24: 0 | CL24: 0 | CM24: 0 | CN24: 0 | CO24: 0 | CP24: 0 | CQ24: 0 | CR24: 0 | CS24: 0 | CT24: 0 | CU24: 0 | CV24: 0 | CW24: 0 | CX24: 0 | CY24: 0 | CZ24: 0 | DA24: 0 | DB24: 0 | DC24: 0 | DD24: 0 | DE24: 0 | DF24: 0 | DG24: 0 | DH24: 0 | DI24: 0 | DJ24: 0 | DK24: 0 | DL24: 0 | DM24: 0 | DN24: 0 | DO24: 0 | DP24: 0 | DQ24: 0 | DR24: 0 | DS24: 0 | DT24: 0 | DU24: 0 | DV24: 0 | DW24: 0 | DX24: 0 | DY24: 0 | DZ24: 0 | EA24: 0 | EB24: 0 | EC24: 0 | ED24: 0 | EE24: 0 | EF24: 0 | EG24: 0 | EH24: 0 | EI24: 0 | EJ24: 0 | EK24: 0 | EL24: 0 | EM24: 0 | EN24: 0 | EO24: 0 | EP24: 0 | EQ24: 0 | ER24: 0 | ES24: 0 | ET24: 0 | EU24: 10 | EV24: 0 | EW24: 0 | EX24: 10 | EY24: 0 | EZ24: 655 | FA24: 0 | FB24: 0 | FC24: 655 | FD24: 655 | FE24: Yes | FF24: 0 | FG24: 0 | FH24: 0
B25: 5 | D25: Crew Foreman | E25: Vendor #13 | G25: SW008055 | H25: 2018-10-12 | I25: 2018-10-13 | J25: Yes | K25: =VLOOKUP($D25,'C.1 - Rate Sheets'!$B$16:$E$35,2) -> 56.8 | L25: =VLOOKUP($D25,'C.1 - Rate Sheets'!$B$16:$E$35,3) -> 76.7 | M25: =VLOOKUP($D25,'C.1 - Rate Sheets'!$B$16:$E$35,4) -> 90.9 | N25: =VLOOKUP($D25,'C.1 - Rate Sheets'!B:F,5,FALSE) -> 0 | O25: 0 | P25: 0 | Q25: 0 | R25: 0 | S25: 0 | T25: 0 | U25: 0 | V25: 0 | W25: 0 | X25: 0 | Y25: 0 | Z25: 0 | AA25: 0 | AB25: 0 | AC25: 0 | AD25: 0 | AE25: 0 | AF25: 0 | AG25: 0 | AH25: 0 | AI25: 0 | AJ25: 12 | AM25: 12 | AN25: 0 | AR25: 0 | AS25: 0 | AW25: 0 | AX25: 0 | BB25: 0 | BG25: 0 | BL25: 0 | BQ25: 0 | BV25: 0 | CA25: 0 | CF25: 0 | CK25: 0 | CL25: 0 | CM25: 0 | CN25: 0 | CO25: 0 | CP25: 0 | CQ25: 0 | CR25: 0 | CS25: 0 | CT25: 0 | CU25: 0 | CV25: 0 | CW25: 0 | CX25: 0 | CY25: 0 | CZ25: 0 | DA25: 0 | DB25: 0 | DC25: 0 | DD25: 0 | DE25: 0 | DF25: 0 | DG25: 0 | DH25: 0 | DI25: 0 | DJ25: 0 | DK25: 0 | DL25: 0 | DM25: 0 | DN25: 0 | DO25: 0 | DP25: 0 | DQ25: 0 | DR25: 0 | DS25: 0 | DT25: 0 | DU25: 0 | DV25: 0 | DW25: 0 | DX25: 0 | DY25: 0 | DZ25: 0 | EA25: 0 | EB25: 0 | EC25: 0 | ED25: 0 | EE25: 0 | EF25: 0 | EG25: 0 | EH25: 0 | EI25: 0 | EJ25: 0 | EK25: 0 | EL25: 0 | EM25: 0 | EN25: 0 | EO25: 0 | EP25: 0 | EQ25: 0 | ER25: 0 | ES25: 0 | ET25: 0 | EU25: 12 | EV25: 0 | EW25: 0 | EX25: 12 | EY25: 0 | EZ25: 920.4 | FA25: 0 | FB25: 0 | FC25: 920.4 | FD25: 920.4 | FE25: Yes | FF25: 0 | FG25: 0 | FH25: 0
B26: 6 | D26: Tree Trimmer | E26: Vendor #13 | G26: SW008055 | H26: 2018-10-12 | I26: 2018-10-13 | J26: Yes | K26: =VLOOKUP($D26,'C.1 - Rate Sheets'!$B$16:$E$35,2) -> 48.5 | L26: =VLOOKUP($D26,'C.1 - Rate Sheets'!$B$16:$E$35,3) -> 65.5 | M26: =VLOOKUP($D26,'C.1 - Rate Sheets'!$B$16:$E$35,4) -> 77.6 | N26: =VLOOKUP($D26,'C.1 - Rate Sheets'!B:F,5,FALSE) -> 0 | O26: 0 | P26: 0 | Q26: 0 | R26: 0 | S26: 0 | T26: 0 | U26: 0 | V26: 0 | W26: 0 | X26: 0 | Y26: 0 | Z26: 0 | AA26: 0 | AB26: 0 | AC26: 0 | AD26: 0 | AE26: 0 | AF26: 0 | AG26: 0 | AH26: 0 | AI26: 0 | AJ26: 12 | AM26: 12 | AN26: 0 | AR26: 0 | AS26: 0 | AW26: 0 | AX26: 0 | BB26: 0 | BG26: 0 | BL26: 0 | BQ26: 0 | BV26: 0 | CA26: 0 | CF26: 0 | CK26: 0 | CL26: 0 | CM26: 0 | CN26: 0 | CO26: 0 | CP26: 0 | CQ26: 0 | CR26: 0 | CS26: 0 | CT26: 0 | CU26: 0 | CV26: 0 | CW26: 0 | CX26: 0 | CY26: 0 | CZ26: 0 | DA26: 0 | DB26: 0 | DC26: 0 | DD26: 0 | DE26: 0 | DF26: 0 | DG26: 0 | DH26: 0 | DI26: 0 | DJ26: 0 | DK26: 0 | DL26: 0 | DM26: 0 | DN26: 0 | DO26: 0 | DP26: 0 | DQ26: 0 | DR26: 0 | DS26: 0 | DT26: 0 | DU26: 0 | DV26: 0 | DW26: 0 | DX26: 0 | DY26: 0 | DZ26: 0 | EA26: 0 | EB26: 0 | EC26: 0 | ED26: 0 | EE26: 0 | EF26: 0 | EG26: 0 | EH26: 0 | EI26: 0 | EJ26: 0 | EK26: 0 | EL26: 0 | EM26: 0 | EN26: 0 | EO26: 0 | EP26: 0 | EQ26: 0 | ER26: 0 | ES26: 0 | ET26: 0 | EU26: 12 | EV26: 0 | EW26: 0 | EX26: 12 | EY26: 0 | EZ26: 786 | FA26: 0 | FB26: 0 | FC26: 786 | FD26: 786 | FE26: Yes | FF26: 0 | FG26: 0 | FH26: 0
B27: 7 | D27: Crew Foreman | E27: Vendor #13 | G27: SW008056 | H27: 2018-10-12 | I27: 2018-10-13 | J27: Yes | K27: =VLOOKUP($D27,'C.1 - Rate Sheets'!$B$16:$E$35,2) -> 56.8 | L27: =VLOOKUP($D27,'C.1 - Rate Sheets'!$B$16:$E$35,3) -> 76.7 | M27: =VLOOKUP($D27,'C.1 - Rate Sheets'!$B$16:$E$35,4) -> 90.9 | N27: =VLOOKUP($D27,'C.1 - Rate Sheets'!B:F,5,FALSE) -> 0 | O27: 0 | P27: 0 | Q27: 0 | R27: 0 | S27: 0 | T27: 0 | U27: 0 | V27: 0 | W27: 0 | X27: 0 | Y27: 0 | Z27: 0 | AA27: 0 | AB27: 0 | AC27: 0 | AD27: 0 | AE27: 0 | AF27: 0 | AG27: 0 | AH27: 0 | AJ27: 12 | AM27: 12 | AR27: 0 | AW27: 0 | BB27: 0 | BC27: 0 | BG27: 0 | BH27: 0 | BL27: 0 | BQ27: 0 | BV27: 0 | CA27: 0 | CF27: 0 | CK27: 0 | CL27: 0 | CM27: 0 | CN27: 0 | CO27: 0 | CP27: 0 | CQ27: 0 | CR27: 0 | CS27: 0 | CT27: 0 | CU27: 0 | CV27: 0 | CW27: 0 | CX27: 0 | CY27: 0 | CZ27: 0 | DA27: 0 | DB27: 0 | DC27: 0 | DD27: 0 | DE27: 0 | DF27: 0 | DG27: 0 | DH27: 0 | DI27: 0 | DJ27: 0 | DK27: 0 | DL27: 0 | DM27: 0 | DN27: 0 | DO27: 0 | DP27: 0 | DQ27: 0 | DR27: 0 | DS27: 0 | DT27: 0 | DU27: 0 | DV27: 0 | DW27: 0 | DX27: 0 | DY27: 0 | DZ27: 0 | EA27: 0 | EB27: 0 | EC27: 0 | ED27: 0 | EE27: 0 | EF27: 0 | EG27: 0 | EH27: 0 | EI27: 0 | EJ27: 0 | EK27: 0 | EL27: 0 | EM27: 0 | EN27: 0 | EO27: 0 | EP27: 0 | EQ27: 0 | ER27: 0 | ES27: 0 | ET27: 0 | EU27: 12 | EV27: 0 | EW27: 0 | EX27: 12 | EY27: 0 | EZ27: 920.4 | FA27: 0 | FB27: 0 | FC27: 920.4 | FD27: 920.4 | FE27: Yes | FF27: 0 | FG27: 0 | FH27: 0
B28: 8 | D28: Tree Trimmer | E28: Vendor #13 | G28: SW008056 | H28: 2018-10-12 | I28: 2018-10-13 | J28: Yes | K28: =VLOOKUP($D28,'C.1 - Rate Sheets'!$B$16:$E$35,2) -> 48.5 | L28: =VLOOKUP($D28,'C.1 - Rate Sheets'!$B$16:$E$35,3) -> 65.5 | M28: =VLOOKUP($D28,'C.1 - Rate Sheets'!$B$16:$E$35,4) -> 77.6 | N28: =VLOOKUP($D28,'C.1 - Rate Sheets'!B:F,5,FALSE) -> 0 | O28: 0 | P28: 0 | Q28: 0 | R28: 0 | S28: 0 | T28: 0 | U28: 0 | V28: 0 | W28: 0 | X28: 0 | Y28: 0 | Z28: 0 | AA28: 0 | AB28: 0 | AC28: 0 | AD28: 0 | AE28: 0 | AF28: 0 | AG28: 0 | AH28: 0 | AJ28: 12 | AM28: 12 | AR28: 0 | AW28: 0 | BB28: 0 | BC28: 0 | BG28: 0 | BH28: 0 | BL28: 0 | BQ28: 0 | BV28: 0 | CA28: 0 | CF28: 0 | CK28: 0 | CL28: 0 | CM28: 0 | CN28: 0 | CO28: 0 | CP28: 0 | CQ28: 0 | CR28: 0 | CS28: 0 | CT28: 0 | CU28: 0 | CV28: 0 | CW28: 0 | CX28: 0 | CY28: 0 | CZ28: 0 | DA28: 0 | DB28: 0 | DC28: 0 | DD28: 0 | DE28: 0 | DF28: 0 | DG28: 0 | DH28: 0 | DI28: 0 | DJ28: 0 | DK28: 0 | DL28: 0 | DM28: 0 | DN28: 0 | DO28: 0 | DP28: 0 | DQ28: 0 | DR28: 0 | DS28: 0 | DT28: 0 | DU28: 0 | DV28: 0 | DW28: 0 | DX28: 0 | DY28: 0 | DZ28: 0 | EA28: 0 | EB28: 0 | EC28: 0 | ED28: 0 | EE28: 0 | EF28: 0 | EG28: 0 | EH28: 0 | EI28: 0 | EJ28: 0 | EK28: 0 | EL28: 0 | EM28: 0 | EN28: 0 | EO28: 0 | EP28: 0 | EQ28: 0 | ER28: 0 | ES28: 0 | ET28: 0 | EU28: 12 | EV28: 0 | EW28: 0 | EX28: 12 | EY28: 0 | EZ28: 786 | FA28: 0 | FB28: 0 | FC28: 786 | FD28: 786 | FE28: Yes | FF28: 0 | FG28: 0 | FH28: 0
B29: 9 | D29: Crew Foreman | E29: Vendor #13 | G29: SW008057 | H29: 2018-10-13 | I29: 2018-10-13 | J29: Yes | K29: =VLOOKUP($D29,'C.1 - Rate Sheets'!$B$16:$E$35,2) -> 56.8 | L29: =VLOOKUP($D29,'C.1 - Rate Sheets'!$B$16:$E$35,3) -> 76.7 | M29: =VLOOKUP($D29,'C.1 - Rate Sheets'!$B$16:$E$35,4) -> 90.9 | N29: =VLOOKUP($D29,'C.1 - Rate Sheets'!B:F,5,FALSE) -> 0 | O29: 0 | P29: 0 | Q29: 0 | R29: 0 | S29: 0 | T29: 0 | U29: 0 | V29: 0 | W29: 0 | X29: 0 | Y29: 0 | Z29: 0 | AA29: 0 | AB29: 0 | AC29: 0 | AD29: 0 | AE29: 0 | AF29: 0 | AG29: 0 | AH29: 0 | AM29: 0 | AO29: 16 | AR29: 16 | AW29: 0 | BB29: 0 | BC29: 0 | BG29: 0 | BH29: 0 | BL29: 0 | BQ29: 0 | BV29: 0 | CA29: 0 | CF29: 0 | CK29: 0 | CL29: 0 | CM29: 0 | CN29: 0 | CO29: 0 | CP29: 0 | CQ29: 0 | CR29: 0 | CS29: 0 | CT29: 0 | CU29: 0 | CV29: 0 | CW29: 0 | CX29: 0 | CY29: 0 | CZ29: 0 | DA29: 0 | DB29: 0 | DC29: 0 | DD29: 0 | DE29: 0 | DF29: 0 | DG29: 0 | DH29: 0 | DI29: 0 | DJ29: 0 | DK29: 0 | DL29: 0 | DM29: 0 | DN29: 0 | DO29: 0 | DP29: 0 | DQ29: 0 | DR29: 0 | DS29: 0 | DT29: 0 | DU29: 0 | DV29: 0 | DW29: 0 | DX29: 0 | DY29: 0 | DZ29: 0 | EA29: 0 | EB29: 0 | EC29: 0 | ED29: 0 | EE29: 0 | EF29: 0 | EG29: 0 | EH29: 0 | EI29: 0 | EJ29: 0 | EK29: 0 | EL29: 0 | EM29: 0 | EN29: 0 | EO29: 0 | EP29: 0 | EQ29: 0 | ER29: 0 | ES29: 0 | ET29: 0 | EU29: 16 | EV29: 0 | EW29: 0 | EX29: 16 | EY29: 0 | EZ29: 1227.2 | FA29: 0 | FB29: 0 | FC29: 1227.2 | FD29: 1227.2 | FE29: Yes | FF29: 0 | FG29: 0 | FH29: 0
B30: 10 | D30: Tree Trimmer | E30: Vendor #13 | G30: SW008057 | H30: 2018-10-13 | I30: 2018-10-13 | J30: Yes | K30: =VLOOKUP($D30,'C.1 - Rate Sheets'!$B$16:$E$35,2) -> 48.5 | L30: =VLOOKUP($D30,'C.1 - Rate Sheets'!$B$16:$E$35,3) -> 65.5 | M30: =VLOOKUP($D30,'C.1 - Rate Sheets'!$B$16:$E$35,4) -> 77.6 | N30: =VLOOKUP($D30,'C.1 - Rate Sheets'!B:F,5,FALSE) -> 0 | O30: 0 | P30: 0 | Q30: 0 | R30: 0 | S30: 0 | T30: 0 | U30: 0 | V30: 0 | W30: 0 | X30: 0 | Y30: 0 | Z30: 0 | AA30: 0 | AB30: 0 | AC30: 0 | AD30: 0 | AE30: 0 | AF30: 0 | AG30: 0 | AH30: 0 | AM30: 0 | AO30: 16 | AR30: 16 | AW30: 0 | BB30: 0 | BC30: 0 | BG30: 0 | BH30: 0 | BL30: 0 | BQ30: 0 | BV30: 0 | CA30: 0 | CF30: 0 | CK30: 0 | CM30: 0 | CN30: 0 | CO30: 0 | CP30: 0 | CQ30: 0 | CR30: 0 | CS30: 0 | CT30: 0 | CU30: 0 | CV30: 0 | CW30: 0 | CX30: 0 | CY30: 0 | CZ30: 0 | DA30: 0 | DB30: 0 | DC30: 0 | DD30: 0 | DE30: 0 | DF30: 0 | DG30: 0 | DH30: 0 | DI30: 0 | DJ30: 0 | DK30: 0 | DL30: 0 | DM30: 0 | DN30: 0 | DO30: 0 | DP30: 0 | DQ30: 0 | DR30: 0 | DS30: 0 | DT30: 0 | DU30: 0 | DV30: 0 | DW30: 0 | DX30: 0 | DY30: 0 | DZ30: 0 | EA30: 0 | EB30: 0 | EC30: 0 | ED30: 0 | EE30: 0 | EF30: 0 | EG30: 0 | EH30: 0 | EI30: 0 | EJ30: 0 | EK30: 0 | EL30: 0 | EM30: 0 | EN30: 0 | EO30: 0 | EP30: 0 | EQ30: 0 | ER30: 0 | ES30: 0 | ET30: 0 | EU30: 16 | EV30: 0 | EW30: 0 | EX30: 16 | EY30: 0 | EZ30: 1048 | FA30: 0 | FB30: 0 | FC30: 1048 | FD30: 1048 | FE30: Yes | FF30: 0 | FG30: 0 | FH30: 0
B31: 11 | D31: Crew Foreman | E31: Vendor #13 | G31: SW008058 | H31: 2018-10-13 | I31: 2018-10-13 | J31: Yes | K31: =VLOOKUP($D31,'C.1 - Rate Sheets'!$B$16:$E$35,2) -> 56.8 | L31: =VLOOKUP($D31,'C.1 - Rate Sheets'!$B$16:$E$35,3) -> 76.7 | M31: =VLOOKUP($D31,'C.1 - Rate Sheets'!$B$16:$E$35,4) -> 90.9 | N31: =VLOOKUP($D31,'C.1 - Rate Sheets'!B:F,5,FALSE) -> 0 | O31: 0 | P31: 0 | Q31: 0 | R31: 0 | S31: 0 | T31: 0 | U31: 0 | V31: 0 | W31: 0 | X31: 0 | Y31: 0 | Z31: 0 | AA31: 0 | AB31: 0 | AC31: 0 | AD31: 0 | AE31: 0 | AF31: 0 | AG31: 0 | AH31: 0 | AM31: 0 | AO31: 16 | AR31: 16 | AW31: 0 | BB31: 0 | BG31: 0 | BL31: 0 | BQ31: 0 | BV31: 0 | CA31: 0 | CF31: 0 | CK31: 0 | CM31: 0 | CN31: 0 | CO31: 0 | CP31: 0 | CR31: 0 | CS31: 0 | CT31: 0 | CU31: 0 | CW31: 0 | CX31: 0 | CY31: 0 | CZ31: 0 | DB31: 0 | DC31: 0 | DD31: 0 | DE31: 0 | DF31: 0 | DG31: 0 | DH31: 0 | DI31: 0 | DJ31: 0 | DK31: 0 | DL31: 0 | DM31: 0 | DN31: 0 | DO31: 0 | DP31: 0 | DQ31: 0 | DR31: 0 | DS31: 0 | DT31: 0 | DU31: 0 | DV31: 0 | DW31: 0 | DX31: 0 | DY31: 0 | DZ31: 0 | EA31: 0 | EB31: 0 | EC31: 0 | ED31: 0 | EE31: 0 | EF31: 0 | EG31: 0 | EH31: 0 | EI31: 0 | EJ31: 0 | EK31: 0 | EL31: 0 | EM31: 0 | EN31: 0 | EO31: 0 | EP31: 0 | EQ31: 0 | ER31: 0 | ES31: 0 | ET31: 0 | EU31: 16 | EV31: 0 | EW31: 0 | EX31: 16 | EY31: 0 | EZ31: 1227.2 | FA31: 0 | FB31: 0 | FC31: 1227.2 | FD31: 1227.2 | FE31: Yes | FF31: 0 | FG31: 0 | FH31: 0
B32: 12 | D32: Tree Trimmer | E32: Vendor #13 | G32: SW008058 | H32: 2018-10-13 | I32: 2018-10-13 | J32: Yes | K32: =VLOOKUP($D32,'C.1 - Rate Sheets'!$B$16:$E$35,2) -> 48.5 | L32: =VLOOKUP($D32,'C.1 - Rate Sheets'!$B$16:$E$35,3) -> 65.5 | M32: =VLOOKUP($D32,'C.1 - Rate Sheets'!$B$16:$E$35,4) -> 77.6 | N32: =VLOOKUP($D32,'C.1 - Rate Sheets'!B:F,5,FALSE) -> 0 | O32: 0 | P32: 0 | Q32: 0 | R32: 0 | S32: 0 | T32: 0 | U32: 0 | V32: 0 | W32: 0 | X32: 0 | Y32: 0 | Z32: 0 | AA32: 0 | AB32: 0 | AC32: 0 | AD32: 0 | AE32: 0 | AF32: 0 | AG32: 0 | AH32: 0 | AM32: 0 | AO32: 16 | AR32: 16 | AW32: 0 | BB32: 0 | BG32: 0 | BL32: 0 | BQ32: 0 | BV32: 0 | CA32: 0 | CF32: 0 | CK32: 0 | CM32: 0 | CN32: 0 | CO32: 0 | CP32: 0 | CR32: 0 | CS32: 0 | CT32: 0 | CU32: 0 | CW32: 0 | CX32: 0 | CY32: 0 | CZ32: 0 | DB32: 0 | DC32: 0 | DD32: 0 | DE32: 0 | DF32: 0 | DG32: 0 | DH32: 0 | DI32: 0 | DJ32: 0 | DK32: 0 | DL32: 0 | DM32: 0 | DN32: 0 | DO32: 0 | DP32: 0 | DQ32: 0 | DR32: 0 | DS32: 0 | DT32: 0 | DU32: 0 | DV32: 0 | DW32: 0 | DX32: 0 | DY32: 0 | DZ32: 0 | EA32: 0 | EB32: 0 | EC32: 0 | ED32: 0 | EE32: 0 | EF32: 0 | EG32: 0 | EH32: 0 | EI32: 0 | EJ32: 0 | EK32: 0 | EL32: 0 | EM32: 0 | EN32: 0 | EO32: 0 | EP32: 0 | EQ32: 0 | ER32: 0 | ES32: 0 | ET32: 0 | EU32: 16 | EV32: 0 | EW32: 0 | EX32: 16 | EY32: 0 | EZ32: 1048 | FA32: 0 | FB32: 0 | FC32: 1048 | FD32: 1048 | FE32: Yes | FF32: 0 | FG32: 0 | FH32: 0
B33: 13 | D33: Crew Foreman | E33: Vendor #13 | G33: SW008059 | H33: 2018-10-12 | I33: 2018-10-13 | J33: Yes | K33: =VLOOKUP($D33,'C.1 - Rate Sheets'!$B$16:$E$35,2) -> 56.8 | L33: =VLOOKUP($D33,'C.1 - Rate Sheets'!$B$16:$E$35,3) -> 76.7 | M33: =VLOOKUP($D33,'C.1 - Rate Sheets'!$B$16:$E$35,4) -> 90.9 | N33: =VLOOKUP($D33,'C.1 - Rate Sheets'!B:F,5,FALSE) -> 0 | O33: 0 | P33: 0 | Q33: 0 | R33: 0 | S33: 0 | T33: 0 | U33: 0 | V33: 0 | W33: 0 | X33: 0 | Y33: 0 | Z33: 0 | AA33: 0 | AB33: 0 | AC33: 0 | AD33: 0 | AE33: 0 | AF33: 0 | AG33: 0 | AH33: 0 | AJ33: 6 | AM33: 6 | AO33: 16 | AR33: 16 | AW33: 0 | BB33: 0 | BG33: 0 | BL33: 0 | BQ33: 0 | BV33: 0 | CA33: 0 | CF33: 0 | CK33: 0 | CM33: 0 | CN33: 0 | CO33: 0 | CP33: 0 | CR33: 0 | CS33: 0 | CT33: 0 | CU33: 0 | CW33: 0 | CX33: 0 | CY33: 0 | CZ33: 0 | DB33: 0 | DC33: 0 | DD33: 0 | DE33: 0 | DF33: 0 | DG33: 0 | DH33: 0 | DI33: 0 | DJ33: 0 | DK33: 0 | DL33: 0 | DM33: 0 | DN33: 0 | DO33: 0 | DP33: 0 | DQ33: 0 | DR33: 0 | DS33: 0 | DT33: 0 | DU33: 0 | DV33: 0 | DW33: 0 | DX33: 0 | DY33: 0 | DZ33: 0 | EA33: 0 | EB33: 0 | EC33: 0 | ED33: 0 | EE33: 0 | EF33: 0 | EG33: 0 | EH33: 0 | EI33: 0 | EJ33: 0 | EK33: 0 | EL33: 0 | EM33: 0 | EN33: 0 | EO33: 0 | EP33: 0 | EQ33: 0 | ER33: 0 | ES33: 0 | ET33: 0 | EU33: 22 | EV33: 0 | EW33: 0 | EX33: 22 | EY33: 0 | EZ33: 1687.4 | FA33: 0 | FB33: 0 | FC33: 1687.4 | FD33: 1687.4 | FE33: Yes | FF33: 0 | FG33: 0 | FH33: 0
B34: 14 | D34: Tree Trimmer | E34: Vendor #13 | G34: SW008059 | H34: 2018-10-12 | I34: 2018-10-13 | J34: Yes | K34: =VLOOKUP($D34,'C.1 - Rate Sheets'!$B$16:$E$35,2) -> 48.5 | L34: =VLOOKUP($D34,'C.1 - Rate Sheets'!$B$16:$E$35,3) -> 65.5 | M34: =VLOOKUP($D34,'C.1 - Rate Sheets'!$B$16:$E$35,4) -> 77.6 | N34: =VLOOKUP($D34,'C.1 - Rate Sheets'!B:F,5,FALSE) -> 0 | O34: 0 | P34: 0 | Q34: 0 | R34: 0 | S34: 0 | T34: 0 | U34: 0 | V34: 0 | W34: 0 | X34: 0 | Y34: 0 | Z34: 0 | AA34: 0 | AB34: 0 | AC34: 0 | AD34: 0 | AE34: 0 | AF34: 0 | AG34: 0 | AH34: 0 | AJ34: 6 | AM34: 6 | AO34: 16 | AR34: 16 | AW34: 0 | BB34: 0 | BG34: 0 | BL34: 0 | BQ34: 0 | BV34: 0 | CA34: 0 | CF34: 0 | CK34: 0 | CM34: 0 | CN34: 0 | CO34: 0 | CP34: 0 | CR34: 0 | CS34: 0 | CT34: 0 | CU34: 0 | CW34: 0 | CX34: 0 | CY34: 0 | CZ34: 0 | DB34: 0 | DC34: 0 | DD34: 0 | DE34: 0 | DF34: 0 | DG34: 0 | DH34: 0 | DI34: 0 | DJ34: 0 | DK34: 0 | DL34: 0 | DM34: 0 | DN34: 0 | DO34: 0 | DP34: 0 | DQ34: 0 | DR34: 0 | DS34: 0 | DT34: 0 | DU34: 0 | DV34: 0 | DW34: 0 | DX34: 0 | DY34: 0 | DZ34: 0 | EA34: 0 | EB34: 0 | EC34: 0 | ED34: 0 | EE34: 0 | EF34: 0 | EG34: 0 | EH34: 0 | EI34: 0 | EJ34: 0 | EK34: 0 | EL34: 0 | EM34: 0 | EN34: 0 | EO34: 0 | EP34: 0 | EQ34: 0 | ER34: 0 | ES34: 0 | ET34: 0 | EU34: 22 | EV34: 0 | EW34: 0 | EX34: 22 | EY34: 0 | EZ34: 1441 | FA34: 0 | FB34: 0 | FC34: 1441 | FD34: 1441 | FE34: Yes | FF34: 0 | FG34: 0 | FH34: 0
B35: 15 | D35: Crew Foreman | E35: Vendor #13 | G35: SW008060 | H35: 2018-10-12 | I35: 2018-10-13 | J35: Yes | K35: =VLOOKUP($D35,'C.1 - Rate Sheets'!$B$16:$E$35,2) -> 56.8 | L35: =VLOOKUP($D35,'C.1 - Rate Sheets'!$B$16:$E$35,3) -> 76.7 | M35: =VLOOKUP($D35,'C.1 - Rate Sheets'!$B$16:$E$35,4) -> 90.9 | N35: =VLOOKUP($D35,'C.1 - Rate Sheets'!B:F,5,FALSE) -> 0 | O35: 0 | P35: 0 | Q35: 0 | R35: 0 | S35: 0 | T35: 0 | U35: 0 | V35: 0 | W35: 0 | X35: 0 | Y35: 0 | Z35: 0 | AA35: 0 | AB35: 0 | AC35: 0 | AD35: 0 | AE35: 0 | AF35: 0 | AG35: 0 | AH35: 0 | AJ35: 4 | AM35: 4 | AO35: 16 | AR35: 16 | AW35: 0 | BB35: 0 | BG35: 0 | BL35: 0 | BQ35: 0 | BV35: 0 | CA35: 0 | CF35: 0 | CK35: 0 | CM35: 0 | CN35: 0 | CO35: 0 | CP35: 0 | CR35: 0 | CS35: 0 | CT35: 0 | CU35: 0 | CW35: 0 | CX35: 0 | CY35: 0 | CZ35: 0 | DA35: 0 | DB35: 0 | DC35: 0 | DD35: 0 | DE35: 0 | DG35: 0 | DH35: 0 | DI35: 0 | DJ35: 0 | DL35: 0 | DM35: 0 | DN35: 0 | DO35: 0 | DQ35: 0 | DR35: 0 | DS35: 0 | DT35: 0 | DV35: 0 | DW35: 0 | DX35: 0 | DY35: 0 | EA35: 0 | EB35: 0 | EC35: 0 | ED35: 0 | EE35: 0 | EF35: 0 | EG35: 0 | EH35: 0 | EI35: 0 | EJ35: 0 | EK35: 0 | EL35: 0 | EM35: 0 | EN35: 0 | EO35: 0 | EP35: 0 | EQ35: 0 | ER35: 0 | ES35: 0 | ET35: 0 | EU35: 20 | EV35: 0 | EW35: 0 | EX35: 20 | EY35: 0 | EZ35: 1534 | FA35: 0 | FB35: 0 | FC35: 1534 | FD35: 1534 | FE35: Yes | FF35: 0 | FG35: 0 | FH35: 0
B36: 16 | D36: Tree Trimmer | E36: Vendor #13 | G36: SW008060 | H36: 2018-10-12 | I36: 2018-10-13 | J36: Yes | K36: =VLOOKUP($D36,'C.1 - Rate Sheets'!$B$16:$E$35,2) -> 48.5 | L36: =VLOOKUP($D36,'C.1 - Rate Sheets'!$B$16:$E$35,3) -> 65.5 | M36: =VLOOKUP($D36,'C.1 - Rate Sheets'!$B$16:$E$35,4) -> 77.6 | N36: =VLOOKUP($D36,'C.1 - Rate Sheets'!B:F,5,FALSE) -> 0 | O36: 0 | P36: 0 | Q36: 0 | R36: 0 | S36: 0 | T36: 0 | U36: 0 | V36: 0 | W36: 0 | X36: 0 | Y36: 0 | Z36: 0 | AA36: 0 | AB36: 0 | AC36: 0 | AD36: 0 | AE36: 0 | AF36: 0 | AG36: 0 | AH36: 0 | AJ36: 4 | AM36: 4 | AO36: 16 | AR36: 16 | AW36: 0 | BB36: 0 | BG36: 0 | BL36: 0 | BQ36: 0 | BV36: 0 | CA36: 0 | CF36: 0 | CK36: 0 | CM36: 0 | CN36: 0 | CO36: 0 | CP36: 0 | CR36: 0 | CS36: 0 | CT36: 0 | CU36: 0 | CV36: 0 | CW36: 0 | CX36: 0 | CY36: 0 | CZ36: 0 | DA36: 0 | DB36: 0 | DC36: 0 | DD36: 0 | DE36: 0 | DG36: 0 | DH36: 0 | DI36: 0 | DJ36: 0 | DL36: 0 | DM36: 0 | DN36: 0 | DO36: 0 | DQ36: 0 | DR36: 0 | DS36: 0 | DT36: 0 | DV36: 0 | DW36: 0 | DX36: 0 | DY36: 0 | EA36: 0 | EB36: 0 | EC36: 0 | ED36: 0 | EE36: 0 | EF36: 0 | EG36: 0 | EH36: 0 | EI36: 0 | EJ36: 0 | EK36: 0 | EL36: 0 | EM36: 0 | EN36: 0 | EO36: 0 | EP36: 0 | EQ36: 0 | ER36: 0 | ES36: 0 | ET36: 0 | EU36: 20 | EV36: 0 | EW36: 0 | EX36: 20 | EY36: 0 | EZ36: 1310 | FA36: 0 | FB36: 0 | FC36: 1310 | FD36: 1310 | FE36: Yes | FF36: 0 | FG36: 0 | FH36: 0
B37: 17 | D37: Crew Foreman | E37: Vendor #13 | G37: SW008061 | H37: 2018-10-12 | I37: 2018-10-13 | J37: Yes | K37: =VLOOKUP($D37,'C.1 - Rate Sheets'!$B$16:$E$35,2) -> 56.8 | L37: =VLOOKUP($D37,'C.1 - Rate Sheets'!$B$16:$E$35,3) -> 76.7 | M37: =VLOOKUP($D37,'C.1 - Rate Sheets'!$B$16:$E$35,4) -> 90.9 | N37: =VLOOKUP($D37,'C.1 - Rate Sheets'!B:F,5,FALSE) -> 0 | O37: 0 | P37: 0 | Q37: 0 | R37: 0 | S37: 0 | T37: 0 | U37: 0 | V37: 0 | W37: 0 | X37: 0 | Y37: 0 | Z37: 0 | AA37: 0 | AB37: 0 | AC37: 0 | AD37: 0 | AE37: 0 | AF37: 0 | AG37: 0 | AH37: 0 | AJ37: 4 | AM37: 4 | AO37: 16 | AR37: 16 | AW37: 0 | BB37: 0 | BG37: 0 | BL37: 0 | BQ37: 0 | BV37: 0 | CA37: 0 | CF37: 0 | CK37: 0 | CM37: 0 | CN37: 0 | CO37: 0 | CP37: 0 | CQ37: 0 | CR37: 0 | CS37: 0 | CT37: 0 | CU37: 0 | CV37: 0 | CW37: 0 | CX37: 0 | CY37: 0 | CZ37: 0 | DA37: 0 | DB37: 0 | DC37: 0 | DD37: 0 | DE37: 0 | DG37: 0 | DH37: 0 | DI37: 0 | DJ37: 0 | DL37: 0 | DM37: 0 | DN37: 0 | DO37: 0 | DQ37: 0 | DR37: 0 | DS37: 0 | DT37: 0 | DV37: 0 | DW37: 0 | DX37: 0 | DY37: 0 | EA37: 0 | EB37: 0 | EC37: 0 | ED37: 0 | EE37: 0 | EF37: 0 | EG37: 0 | EH37: 0 | EI37: 0 | EJ37: 0 | EK37: 0 | EL37: 0 | EM37: 0 | EN37: 0 | EO37: 0 | EP37: 0 | EQ37: 0 | ER37: 0 | ES37: 0 | ET37: 0 | EU37: 20 | EV37: 0 | EW37: 0 | EX37: 20 | EY37: 0 | EZ37: 1534 | FA37: 0 | FB37: 0 | FC37: 1534 | FD37: 1534 | FE37: Yes | FF37: 0 | FG37: 0 | FH37: 0
B38: 18 | D38: Tree Trimmer | E38: Vendor #13 | G38: SW008061 | H38: 2018-10-12 | I38: 2018-10-13 | J38: Yes | K38: =VLOOKUP($D38,'C.1 - Rate Sheets'!$B$16:$E$35,2) -> 48.5 | L38: =VLOOKUP($D38,'C.1 - Rate Sheets'!$B$16:$E$35,3) -> 65.5 | M38: =VLOOKUP($D38,'C.1 - Rate Sheets'!$B$16:$E$35,4) -> 77.6 | N38: =VLOOKUP($D38,'C.1 - Rate Sheets'!B:F,5,FALSE) -> 0 | O38: 0 | P38: 0 | Q38: 0 | R38: 0 | S38: 0 | T38: 0 | U38: 0 | V38: 0 | W38: 0 | X38: 0 | Y38: 0 | Z38: 0 | AA38: 0 | AB38: 0 | AC38: 0 | AD38: 0 | AE38: 0 | AF38: 0 | AG38: 0 | AH38: 0 | AJ38: 4 | AM38: 4 | AO38: 16 | AR38: 16 | AW38: 0 | BB38: 0 | BG38: 0 | BL38: 0 | BQ38: 0 | BV38: 0 | CA38: 0 | CF38: 0 | CK38: 0 | CL38: 0 | CM38: 0 | CN38: 0 | CO38: 0 | CP38: 0 | CQ38: 0 | CR38: 0 | CS38: 0 | CT38: 0 | CU38: 0 | CV38: 0 | CW38: 0 | CX38: 0 | CY38: 0 | CZ38: 0 | DA38: 0 | DB38: 0 | DC38: 0 | DD38: 0 | DE38: 0 | DG38: 0 | DH38: 0 | DI38: 0 | DJ38: 0 | DL38: 0 | DM38: 0 | DN38: 0 | DO38: 0 | DQ38: 0 | DR38: 0 | DS38: 0 | DT38: 0 | DV38: 0 | DW38: 0 | DX38: 0 | DY38: 0 | EA38: 0 | EB38: 0 | EC38: 0 | ED38: 0 | EE38: 0 | EF38: 0 | EG38: 0 | EH38: 0 | EI38: 0 | EJ38: 0 | EK38: 0 | EL38: 0 | EM38: 0 | EN38: 0 | EO38: 0 | EP38: 0 | EQ38: 0 | ER38: 0 | ES38: 0 | ET38: 0 | EU38: 20 | EV38: 0 | EW38: 0 | EX38: 20 | EY38: 0 | EZ38: 1310 | FA38: 0 | FB38: 0 | FC38: 1310 | FD38: 1310 | FE38: Yes | FF38: 0 | FG38: 0 | FH38: 0
B39: 19 | D39: Supervisor | E39: Vendor #13 | G39: SW008062 | H39: 2018-10-10 | I39: 2018-10-13 | J39: Yes | K39: =VLOOKUP($D39,'C.1 - Rate Sheets'!$B$16:$E$35,2) -> 74 | L39: =VLOOKUP($D39,'C.1 - Rate Sheets'!$B$16:$E$35,3) -> 99.9 | M39: =VLOOKUP($D39,'C.1 - Rate Sheets'!$B$16:$E$35,4) -> 118.4 | N39: =VLOOKUP($D39,'C.1 - Rate Sheets'!B:F,5,FALSE) -> 0 | O39: 0 | P39: 0 | Q39: 0 | R39: 0 | S39: 0 | T39: 0 | U39: 0 | V39: 0 | W39: 0 | X39: 0 | Y39: 10 | Z39: 5 | AA39: 0 | AB39: 0 | AC39: 15 | AD39: 0 | AE39: 0 | AF39: 0 | AG39: 0 | AH39: 0 | AM39: 0 | AR39: 0 | AW39: 0 | BB39: 0 | BG39: 0 | BL39: 0 | BQ39: 0 | BV39: 0 | CA39: 0 | CF39: 0 | CK39: 0 | CL39: 0 | CM39: 0 | CN39: 0 | CO39: 0 | CP39: 0 | CQ39: 0 | CR39: 0 | CS39: 0 | CT39: 0 | CU39: 0 | CV39: 0 | CW39: 0 | CX39: 0 | CY39: 0 | CZ39: 0 | DA39: 0 | DB39: 0 | DC39: 0 | DD39: 0 | DE39: 0 | DF39: 0 | DG39: 0 | DH39: 0 | DI39: 0 | DJ39: 0 | DK39: 0 | DL39: 0 | DM39: 0 | DN39: 0 | DO39: 0 | DP39: 0 | DQ39: 0 | DR39: 0 | DS39: 0 | DT39: 0 | DU39: 0 | DV39: 0 | DW39: 0 | DX39: 0 | DY39: 0 | DZ39: 0 | EA39: 0 | EB39: 0 | EC39: 0 | ED39: 0 | EF39: 0 | EG39: 0 | EH39: 0 | EI39: 0 | EK39: 0 | EL39: 0 | EM39: 0 | EN39: 0 | EP39: 0 | EQ39: 0 | ER39: 0 | ES39: 0 | ET39: 10 | EU39: 5 | EV39: 0 | EW39: 0 | EX39: 15 | EY39: 740 | EZ39: 499.5 | FA39: 0 | FB39: 0 | FC39: =SUM(EY39:FB39) -> 1239.5 | FD39: 1239.5 | FE39: Yes | FF39: 0 | FG39: 0 | FH39: 0
B40: 20 | D40: Supervisor | E40: Vendor #13 | G40: SW008063 | H40: 2018-10-13 | I40: 2018-10-13 | J40: Yes | K40: =VLOOKUP($D40,'C.1 - Rate Sheets'!$B$16:$E$35,2) -> 74 | L40: =VLOOKUP($D40,'C.1 - Rate Sheets'!$B$16:$E$35,3) -> 99.9 | M40: =VLOOKUP($D40,'C.1 - Rate Sheets'!$B$16:$E$35,4) -> 118.4 | N40: =VLOOKUP($D40,'C.1 - Rate Sheets'!B:F,5,FALSE) -> 0 | O40: 0 | P40: 0 | Q40: 0 | R40: 0 | S40: 0 | T40: 0 | U40: 0 | V40: 0 | W40: 0 | X40: 0 | Y40: 0 | Z40: 0 | AA40: 0 | AB40: 0 | AC40: 0 | AD40: 0 | AE40: 0 | AF40: 0 | AG40: 0 | AH40: 0 | AM40: 0 | AO40: 16 | AR40: 16 | AW40: 0 | BB40: 0 | BG40: 0 | BL40: 0 | BQ40: 0 | BV40: 0 | CA40: 0 | CF40: 0 | CK40: 0 | CL40: 0 | CM40: 0 | CN40: 0 | CO40: 0 | CP40: 0 | CQ40: 0 | CR40: 0 | CS40: 0 | CT40: 0 | CU40: 0 | CV40: 0 | CW40: 0 | CX40: 0 | CY40: 0 | CZ40: 0 | DA40: 0 | DB40: 0 | DC40: 0 | DD40: 0 | DE40: 0 | DF40: 0 | DG40: 0 | DH40: 0 | DI40: 0 | DJ40: 0 | DK40: 0 | DL40: 0 | DM40: 0 | DN40: 0 | DO40: 0 | DP40: 0 | DQ40: 0 | DR40: 0 | DS40: 0 | DT40: 0 | DU40: 0 | DV40: 0 | DW40: 0 | DX40: 0 | DY40: 0 | DZ40: 0 | EA40: 0 | EB40: 0 | EC40: 0 | ED40: 0 | EF40: 0 | EG40: 0 | EH40: 0 | EI40: 0 | EK40: 0 | EL40: 0 | EM40: 0 | EN40: 0 | EP40: 0 | EQ40: 0 | ER40: 0 | ES40: 0 | ET40: 0 | EU40: 16 | EV40: 0 | EW40: 0 | EX40: 16 | EY40: 0 | EZ40: 1598.4 | FA40: 0 | FB40: 0 | FC40: 1598.4 | FD40: 1598.4 | FE40: Yes | FF40: 0 | FG40: 0 | FH40: 0
B41: 21 | D41: Supervisor | E41: Vendor #13 | G41: SW007707 | H41: 2018-10-17 | I41: 2018-10-20 | J41: Yes | K41: =VLOOKUP($D41,'C.1 - Rate Sheets'!$B$16:$E$35,2) -> 74 | L41: =VLOOKUP($D41,'C.1 - Rate Sheets'!$B$16:$E$35,3) -> 99.9 | M41: =VLOOKUP($D41,'C.1 - Rate Sheets'!$B$16:$E$35,4) -> 118.4 | N41: =VLOOKUP($D41,'C.1 - Rate Sheets'!B:F,5,FALSE) -> 0 | O41: 0 | P41: 0 | Q41: 0 | R41: 0 | S41: 0 | T41: 0 | U41: 0 | V41: 0 | W41: 0 | X41: 0 | Y41: 0 | Z41: 0 | AA41: 0 | AB41: 0 | AC41: =SUM(Y41:AB41) -> 0 | AD41: 0 | AE41: 0 | AF41: 0 | AG41: 0 | AH41: =SUM(AD41:AG41) -> 0 | AM41: =SUM(AI41:AL41) -> 0 | AR41: =SUM(AN41:AQ41) -> 0 | AW41: 0 | BB41: 0 | BG41: 0 | BH41: 2 | BL41: =SUM(BH41:BK41) -> 2 | BQ41: =SUM(BM41:BP41) -> 0 | BV41: =SUM(BR41:BU41) -> 0 | CA41: =SUM(BW41:BZ41) -> 0 | CF41: 0 | CK41: 0 | CL41: 0 | CM41: 0 | CN41: 0 | CO41: 0 | CP41: 0 | CQ41: 0 | CR41: 0 | CS41: 0 | CT41: 0 | CU41: 0 | CV41: 0 | CW41: 0 | CX41: 0 | CY41: 0 | CZ41: 0 | DA41: 0 | DB41: 0 | DC41: 0 | DD41: 0 | DE41: 0 | DF41: 0 | DG41: 0 | DH41: 0 | DI41: 0 | DJ41: 0 | DK41: 0 | DL41: 0 | DM41: 0 | DN41: 0 | DO41: 0 | DP41: 0 | DQ41: 0 | DR41: 0 | DS41: 0 | DT41: 0 | DU41: 0 | DV41: 0 | DW41: 0 | DX41: 0 | DY41: 0 | DZ41: 0 | EA41: 0 | EB41: 0 | EC41: 0 | ED41: 0 | EF41: 0 | EG41: 0 | EH41: 0 | EI41: 0 | EK41: 0 | EL41: 0 | EM41: 0 | EN41: 0 | EP41: 0 | EQ41: 0 | ER41: 0 | ES41: 0 | ET41: 2 | EU41: 0 | EV41: 0 | EW41: 0 | EX41: 2 | EY41: 148 | EZ41: 0 | FA41: 0 | FB41: 0 | FC41: =SUM(EY41:FB41) -> 148 | FD41: 148 | FE41: Yes | FF41: 0 | FG41: 0 | FH41: 0
B42: 22 | D42: Supervisor | E42: Vendor #13 | G42: SW007708 | H42: 2018-10-17 | I42: 2018-10-20 | J42: Yes | K42: =VLOOKUP($D42,'C.1 - Rate Sheets'!$B$16:$E$35,2) -> 74 | L42: =VLOOKUP($D42,'C.1 - Rate Sheets'!$B$16:$E$35,3) -> 99.9 | M42: =VLOOKUP($D42,'C.1 - Rate Sheets'!$B$16:$E$35,4) -> 118.4 | N42: =VLOOKUP($D42,'C.1 - Rate Sheets'!B:F,5,FALSE) -> 0 | O42: 0 | P42: 0 | Q42: 0 | R42: 0 | S42: 0 | T42: 0 | U42: 0 | V42: 0 | W42: 0 | X42: 0 | Y42: 0 | Z42: 0 | AA42: 0 | AB42: 0 | AC42: 0 | AD42: 0 | AE42: 0 | AF42: 0 | AG42: 0 | AH42: 0 | AM42: 0 | AR42: 0 | AW42: 0 | BB42: 0 | BG42: 0 | BH42: 6 | BI42: 8 | BL42: 14 | BM42: 8 | BN42: 8 | BQ42: 16 | BR42: 8 | BS42: 8 | BV42: 16 | BX42: 16 | CA42: 16 | CF42: 0 | CK42: 0 | CL42: 0 | CM42: 0 | CN42: 0 | CO42: 0 | CP42: 0 | CQ42: 0 | CR42: 0 | CS42: 0 | CT42: 0 | CU42: 0 | CV42: 0 | CW42: 0 | CX42: 0 | CY42: 0 | CZ42: 0 | DA42: 0 | DB42: 0 | DC42: 0 | DD42: 0 | DE42: 0 | DF42: 0 | DG42: 0 | DH42: 0 | DI42: 0 | DJ42: 0 | DK42: 0 | DL42: 0 | DM42: 0 | DN42: 0 | DO42: 0 | DP42: 0 | DQ42: 0 | DR42: 0 | DS42: 0 | DT42: 0 | DU42: 0 | DV42: 0 | DW42: 0 | DX42: 0 | DY42: 0 | DZ42: 0 | EA42: 0 | EB42: 0 | EC42: 0 | ED42: 0 | EF42: 0 | EG42: 0 | EH42: 0 | EI42: 0 | EK42: 0 | EL42: 0 | EM42: 0 | EN42: 0 | EP42: 0 | EQ42: 0 | ER42: 0 | ES42: 0 | ET42: 22 | EU42: 40 | EV42: 0 | EW42: 0 | EX42: 62 | EY42: 1628 | EZ42: 3996 | FA42: 0 | FB42: 0 | FC42: 5624 | FD42: 5624 | FE42: Yes | FF42: 0 | FG42: 0 | FH42: 0
B43: 23 | D43: Crew Foreman | E43: Vendor #13 | G43: SW007709 | H43: 2018-10-17 | I43: 2018-10-20 | J43: Yes | K43: =VLOOKUP($D43,'C.1 - Rate Sheets'!$B$16:$E$35,2) -> 56.8 | L43: =VLOOKUP($D43,'C.1 - Rate Sheets'!$B$16:$E$35,3) -> 76.7 | M43: =VLOOKUP($D43,'C.1 - Rate Sheets'!$B$16:$E$35,4) -> 90.9 | N43: =VLOOKUP($D43,'C.1 - Rate Sheets'!B:F,5,FALSE) -> 0 | O43: 0 | P43: 0 | Q43: 0 | R43: 0 | S43: 0 | T43: 0 | U43: 0 | V43: 0 | W43: 0 | X43: 0 | Y43: 0 | Z43: 0 | AA43: 0 | AB43: 0 | AC43: 0 | AD43: 0 | AE43: 0 | AF43: 0 | AG43: 0 | AH43: 0 | AM43: 0 | AR43: 0 | AW43: 0 | BB43: 0 | BG43: 0 | BH43: 2 | BL43: 2 | BQ43: 0 | BV43: 0 | CA43: 0 | CF43: 0 | CK43: 0 | CL43: 0 | CM43: 0 | CN43: 0 | CO43: 0 | CP43: 0 | CQ43: 0 | CR43: 0 | CS43: 0 | CT43: 0 | CU43: 0 | CV43: 0 | CW43: 0 | CX43: 0 | CY43: 0 | CZ43: 0 | DA43: 0 | DB43: 0 | DC43: 0 | DD43: 0 | DE43: 0 | DF43: 0 | DG43: 0 | DH43: 0 | DI43: 0 | DJ43: 0 | DK43: 0 | DL43: 0 | DM43: 0 | DN43: 0 | DO43: 0 | DP43: 0 | DQ43: 0 | DR43: 0 | DS43: 0 | DT43: 0 | DU43: 0 | DV43: 0 | DW43: 0 | DX43: 0 | DY43: 0 | DZ43: 0 | EA43: 0 | EB43: 0 | EC43: 0 | ED43: 0 | EE43: 0 | EF43: 0 | EG43: 0 | EH43: 0 | EI43: 0 | EJ43: 0 | EK43: 0 | EL43: 0 | EM43: 0 | EN43: 0 | EO43: 0 | EP43: 0 | EQ43: 0 | ER43: 0 | ES43: 0 | ET43: 2 | EU43: 0 | EV43: 0 | EW43: 0 | EX43: 2 | EY43: 113.6 | EZ43: 0 | FA43: 0 | FB43: 0 | FC43: 113.6 | FD43: 113.6 | FE43: Yes | FF43: 0 | FG43: 0 | FH43: 0
B44: 24 | D44: Tree Trimmer | E44: Vendor #13 | G44: SW007709 | H44: 2018-10-17 | I44: 2018-10-20 | J44: Yes | K44: =VLOOKUP($D44,'C.1 - Rate Sheets'!$B$16:$E$35,2) -> 48.5 | L44: =VLOOKUP($D44,'C.1 - Rate Sheets'!$B$16:$E$35,3) -> 65.5 | M44: =VLOOKUP($D44,'C.1 - Rate Sheets'!$B$16:$E$35,4) -> 77.6 | N44: =VLOOKUP($D44,'C.1 - Rate Sheets'!B:F,5,FALSE) -> 0 | O44: 0 | P44: 0 | Q44: 0 | R44: 0 | S44: 0 | T44: 0 | U44: 0 | V44: 0 | W44: 0 | X44: 0 | Y44: 0 | Z44: 0 | AA44: 0 | AB44: 0 | AC44: 0 | AD44: 0 | AE44: 0 | AF44: 0 | AG44: 0 | AH44: 0 | AM44: 0 | AR44: 0 | AW44: 0 | BB44: 0 | BG44: 0 | BH44: 2 | BL44: 2 | BQ44: 0 | BV44: 0 | CA44: 0 | CF44: 0 | CK44: 0 | CL44: 0 | CM44: 0 | CN44: 0 | CO44: 0 | CP44: 0 | CQ44: 0 | CR44: 0 | CS44: 0 | CT44: 0 | CU44: 0 | CV44: 0 | CW44: 0 | CX44: 0 | CY44: 0 | CZ44: 0 | DA44: 0 | DB44: 0 | DC44: 0 | DD44: 0 | DE44: 0 | DF44: 0 | DG44: 0 | DH44: 0 | DI44: 0 | DJ44: 0 | DK44: 0 | DL44: 0 | DM44: 0 | DN44: 0 | DO44: 0 | DP44: 0 | DQ44: 0 | DR44: 0 | DS44: 0 | DT44: 0 | DU44: 0 | DV44: 0 | DW44: 0 | DX44: 0 | DY44: 0 | DZ44: 0 | EA44: 0 | EB44: 0 | EC44: 0 | ED44: 0 | EE44: 0 | EF44: 0 | EG44: 0 | EH44: 0 | EI44: 0 | EJ44: 0 | EK44: 0 | EL44: 0 | EM44: 0 | EN44: 0 | EO44: 0 | EP44: 0 | EQ44: 0 | ER44: 0 | ES44: 0 | ET44: 2 | EU44: 0 | EV44: 0 | EW44: 0 | EX44: 2 | EY44: 97 | EZ44: 0 | FA44: 0 | FB44: 0 | FC44: 97 | FD44: 97 | FE44: Yes | FF44: 0 | FG44: 0 | FH44: 0
B45: 25 | D45: Crew Foreman | E45: Vendor #13 | G45: SW007712 | H45: 2018-10-17 | I45: 2018-10-20 | J45: Yes | K45: =VLOOKUP($D45,'C.1 - Rate Sheets'!$B$16:$E$35,2) -> 56.8 | L45: =VLOOKUP($D45,'C.1 - Rate Sheets'!$B$16:$E$35,3) -> 76.7 | M45: =VLOOKUP($D45,'C.1 - Rate Sheets'!$B$16:$E$35,4) -> 90.9 | N45: =VLOOKUP($D45,'C.1 - Rate Sheets'!B:F,5,FALSE) -> 0 | O45: 0 | P45: 0 | Q45: 0 | R45: 0 | S45: 0 | T45: 0 | U45: 0 | V45: 0 | W45: 0 | X45: 0 | Y45: 0 | Z45: 0 | AA45: 0 | AB45: 0 | AC45: 0 | AD45: 0 | AE45: 0 | AF45: 0 | AG45: 0 | AH45: 0 | AM45: 0 | AR45: 0 | AW45: 0 | BB45: 0 | BG45: 0 | BH45: 6 | BI45: 8 | BL45: 14 | BM45: 8 | BN45: 8 | BQ45: 16 | BR45: 8 | BS45: 8 | BV45: 16 | BX45: 16 | CA45: 16 | CF45: 0 | CK45: 0 | CL45: 0 | CM45: 0 | CN45: 0 | CO45: 0 | CP45: 0 | CQ45: 0 | CR45: 0 | CS45: 0 | CT45: 0 | CU45: 0 | CV45: 0 | CW45: 0 | CX45: 0 | CY45: 0 | CZ45: 0 | DA45: 0 | DB45: 0 | DC45: 0 | DD45: 0 | DE45: 0 | DF45: 0 | DG45: 0 | DH45: 0 | DI45: 0 | DJ45: 0 | DK45: 0 | DL45: 0 | DM45: 0 | DN45: 0 | DO45: 0 | DP45: 0 | DQ45: 0 | DR45: 0 | DS45: 0 | DT45: 0 | DU45: 0 | DV45: 0 | DW45: 0 | DX45: 0 | DY45: 0 | DZ45: 0 | EA45: 0 | EB45: 0 | EC45: 0 | ED45: 0 | EE45: 0 | EF45: 0 | EG45: 0 | EH45: 0 | EI45: 0 | EJ45: 0 | EK45: 0 | EL45: 0 | EM45: 0 | EN45: 0 | EO45: 0 | EP45: 0 | EQ45: 0 | ER45: 0 | ES45: 0 | ET45: 22 | EU45: 40 | EV45: 0 | EW45: 0 | EX45: 62 | EY45: 1249.6 | EZ45: 3068 | FA45: 0 | FB45: 0 | FC45: 4317.6 | FD45: 4317.6 | FE45: Yes | FF45: 0 | FG45: 0 | FH45: 0
B46: 26 | D46: Tree Trimmer | E46: Vendor #13 | G46: SW007712 | H46: 2018-10-17 | I46: 2018-10-20 | J46: Yes | K46: =VLOOKUP($D46,'C.1 - Rate Sheets'!$B$16:$E$35,2) -> 48.5 | L46: =VLOOKUP($D46,'C.1 - Rate Sheets'!$B$16:$E$35,3) -> 65.5 | M46: =VLOOKUP($D46,'C.1 - Rate Sheets'!$B$16:$E$35,4) -> 77.6 | N46: =VLOOKUP($D46,'C.1 - Rate Sheets'!B:F,5,FALSE) -> 0 | O46: 0 | P46: 0 | Q46: 0 | R46: 0 | S46: 0 | T46: 0 | U46: 0 | V46: 0 | W46: 0 | X46: 0 | Y46: 0 | Z46: 0 | AA46: 0 | AB46: 0 | AC46: 0 | AD46: 0 | AE46: 0 | AF46: 0 | AG46: 0 | AH46: 0 | AM46: 0 | AR46: 0 | AW46: 0 | BB46: 0 | BG46: 0 | BH46: 6 | BI46: 8 | BL46: 14 | BM46: 8 | BN46: 8 | BQ46: 16 | BR46: 8 | BS46: 8 | BV46: 16 | BX46: 16 | CA46: 16 | CF46: 0 | CK46: 0 | CL46: 0 | CM46: 0 | CN46: 0 | CO46: 0 | CP46: 0 | CQ46: 0 | CR46: 0 | CS46: 0 | CT46: 0 | CU46: 0 | CV46: 0 | CW46: 0 | CX46: 0 | CY46: 0 | CZ46: 0 | DA46: 0 | DB46: 0 | DC46: 0 | DD46: 0 | DE46: 0 | DF46: 0 | DG46: 0 | DH46: 0 | DI46: 0 | DJ46: 0 | DK46: 0 | DL46: 0 | DM46: 0 | DN46: 0 | DO46: 0 | DP46: 0 | DQ46: 0 | DR46: 0 | DS46: 0 | DT46: 0 | DU46: 0 | DV46: 0 | DW46: 0 | DX46: 0 | DY46: 0 | DZ46: 0 | EA46: 0 | EB46: 0 | EC46: 0 | ED46: 0 | EE46: 0 | EF46: 0 | EG46: 0 | EH46: 0 | EI46: 0 | EJ46: 0 | EK46: 0 | EL46: 0 | EM46: 0 | EN46: 0 | EO46: 0 | EP46: 0 | EQ46: 0 | ER46: 0 | ES46: 0 | ET46: 22 | EU46: 40 | EV46: 0 | EW46: 0 | EX46: 62 | EY46: 1067 | EZ46: 2620 | FA46: 0 | FB46: 0 | FC46: 3687 | FD46: 3687 | FE46: Yes | FF46: 0 | FG46: 0 | FH46: 252.8 | FI46: 1
B47: 27 | D47: Crew Foreman | E47: Vendor #13 | G47: SW007716 | H47: 2018-10-17 | I47: 2018-10-20 | J47: Yes | K47: =VLOOKUP($D47,'C.1 - Rate Sheets'!$B$16:$E$35,2) -> 56.8 | L47: =VLOOKUP($D47,'C.1 - Rate Sheets'!$B$16:$E$35,3) -> 76.7 | M47: =VLOOKUP($D47,'C.1 - Rate Sheets'!$B$16:$E$35,4) -> 90.9 | N47: =VLOOKUP($D47,'C.1 - Rate Sheets'!B:F,5,FALSE) -> 0 | O47: 0 | P47: 0 | Q47: 0 | R47: 0 | S47: 0 | T47: 0 | U47: 0 | V47: 0 | W47: 0 | X47: 0 | Y47: 0 | Z47: 0 | AA47: 0 | AB47: 0 | AC47: 0 | AD47: 0 | AE47: 0 | AF47: 0 | AG47: 0 | AH47: 0 | AM47: 0 | AR47: 0 | AW47: 0 | BB47: 0 | BG47: 0 | BH47: 2 | BL47: 2 | BQ47: 0 | BV47: 0 | CA47: 0 | CF47: 0 | CK47: 0 | CL47: 0 | CM47: 0 | CN47: 0 | CO47: 0 | CP47: 0 | CQ47: 0 | CR47: 0 | CS47: 0 | CT47: 0 | CU47: 0 | CV47: 0 | CW47: 0 | CX47: 0 | CY47: 0 | CZ47: 0 | DA47: 0 | DB47: 0 | DC47: 0 | DD47: 0 | DE47: 0 | DF47: 0 | DG47: 0 | DH47: 0 | DI47: 0 | DJ47: 0 | DK47: 0 | DL47: 0 | DM47: 0 | DN47: 0 | DO47: 0 | DP47: 0 | DQ47: 0 | DR47: 0 | DS47: 0 | DT47: 0 | DU47: 0 | DV47: 0 | DW47: 0 | DX47: 0 | DY47: 0 | DZ47: 0 | EA47: 0 | EB47: 0 | EC47: 0 | ED47: 0 | EE47: 0 | EF47: 0 | EG47: 0 | EH47: 0 | EI47: 0 | EJ47: 0 | EK47: 0 | EL47: 0 | EM47: 0 | EN47: 0 | EO47: 0 | EP47: 0 | EQ47: 0 | ER47: 0 | ES47: 0 | ET47: 2 | EU47: 0 | EV47: 0 | EW47: 0 | EX47: 2 | EY47: 113.6 | EZ47: 0 | FA47: 0 | FB47: 0 | FC47: 113.6 | FD47: 113.6 | FE47: Yes | FF47: 0 | FG47: 0 | FH47: 0
B48: 28 | D48: Tree Trimmer | E48: Vendor #13 | G48: SW007716 | H48: 2018-10-17 | I48: 2018-10-20 | J48: Yes | K48: =VLOOKUP($D48,'C.1 - Rate Sheets'!$B$16:$E$35,2) -> 48.5 | L48: =VLOOKUP($D48,'C.1 - Rate Sheets'!$B$16:$E$35,3) -> 65.5 | M48: =VLOOKUP($D48,'C.1 - Rate Sheets'!$B$16:$E$35,4) -> 77.6 | N48: =VLOOKUP($D48,'C.1 - Rate Sheets'!B:F,5,FALSE) -> 0 | O48: 0 | P48: 0 | Q48: 0 | R48: 0 | S48: 0 | T48: 0 | U48: 0 | V48: 0 | W48: 0 | X48: 0 | Y48: 0 | Z48: 0 | AA48: 0 | AB48: 0 | AC48: 0 | AD48: 0 | AE48: 0 | AF48: 0 | AG48: 0 | AH48: 0 | AM48: 0 | AR48: 0 | AW48: 0 | BB48: 0 | BG48: 0 | BH48: 2 | BL48: 2 | BQ48: 0 | BV48: 0 | CA48: 0 | CF48: 0 | CK48: 0 | CL48: 0 | CM48: 0 | CN48: 0 | CO48: 0 | CP48: 0 | CQ48: 0 | CR48: 0 | CS48: 0 | CT48: 0 | CU48: 0 | CV48: 0 | CW48: 0 | CX48: 0 | CY48: 0 | CZ48: 0 | DA48: 0 | DB48: 0 | DC48: 0 | DD48: 0 | DE48: 0 | DF48: 0 | DG48: 0 | DH48: 0 | DI48: 0 | DJ48: 0 | DK48: 0 | DL48: 0 | DM48: 0 | DN48: 0 | DO48: 0 | DP48: 0 | DQ48: 0 | DR48: 0 | DS48: 0 | DT48: 0 | DU48: 0 | DV48: 0 | DW48: 0 | DX48: 0 | DY48: 0 | DZ48: 0 | EA48: 0 | EB48: 0 | EC48: 0 | ED48: 0 | EE48: 0 | EF48: 0 | EG48: 0 | EH48: 0 | EI48: 0 | EJ48: 0 | EK48: 0 | EL48: 0 | EM48: 0 | EN48: 0 | EO48: 0 | EP48: 0 | EQ48: 0 | ER48: 0 | ES48: 0 | ET48: 2 | EU48: 0 | EV48: 0 | EW48: 0 | EX48: 2 | EY48: 97 | EZ48: 0 | FA48: 0 | FB48: 0 | FC48: 97 | FD48: 97 | FE48: Yes | FF48: 0 | FG48: 0 | FH48: 0
B49: 29 | D49: Crew Foreman | E49: Vendor #13 | G49: SW007717 | H49: 2018-10-17 | I49: 2018-10-20 | J49: Yes | K49: =VLOOKUP($D49,'C.1 - Rate Sheets'!$B$16:$E$35,2) -> 56.8 | L49: =VLOOKUP($D49,'C.1 - Rate Sheets'!$B$16:$E$35,3) -> 76.7 | M49: =VLOOKUP($D49,'C.1 - Rate Sheets'!$B$16:$E$35,4) -> 90.9 | N49: =VLOOKUP($D49,'C.1 - Rate Sheets'!B:F,5,FALSE) -> 0 | O49: 0 | P49: 0 | Q49: 0 | R49: 0 | S49: 0 | T49: 0 | U49: 0 | V49: 0 | W49: 0 | X49: 0 | Y49: 0 | Z49: 0 | AA49: 0 | AB49: 0 | AC49: 0 | AD49: 0 | AE49: 0 | AF49: 0 | AG49: 0 | AH49: 0 | AM49: 0 | AR49: 0 | AW49: 0 | BB49: 0 | BG49: 0 | BH49: 6 | BI49: 8 | BL49: 14 | BM49: 8 | BN49: 8 | BQ49: 16 | BR49: 8 | BS49: 8 | BV49: 16 | BX49: 16 | CA49: 16 | CF49: 0 | CK49: 0 | CL49: 0 | CM49: 0 | CN49: 0 | CO49: 0 | CP49: 0 | CQ49: 0 | CR49: 0 | CS49: 0 | CT49: 0 | CU49: 0 | CV49: 0 | CW49: 0 | CX49: 0 | CY49: 0 | CZ49: 0 | DA49: 0 | DB49: 0 | DC49: 0 | DD49: 0 | DE49: 0 | DF49: 0 | DG49: 0 | DH49: 0 | DI49: 0 | DJ49: 0 | DK49: 0 | DL49: 0 | DM49: 0 | DN49: 0 | DO49: 0 | DP49: 0 | DQ49: 0 | DR49: 0 | DS49: 0 | DT49: 0 | DU49: 0 | DV49: 0 | DW49: 0 | DX49: 0 | DY49: 0 | DZ49: 0 | EA49: 0 | EB49: 0 | EC49: 0 | ED49: 0 | EE49: 0 | EF49: 0 | EG49: 0 | EH49: 0 | EI49: 0 | EJ49: 0 | EK49: 0 | EL49: 0 | EM49: 0 | EN49: 0 | EO49: 0 | EP49: 0 | EQ49: 0 | ER49: 0 | ES49: 0 | ET49: 22 | EU49: 40 | EV49: 0 | EW49: 0 | EX49: 62 | EY49: 1249.6 | EZ49: 3068 | FA49: 0 | FB49: 0 | FC49: 4317.6 | FD49: 4317.6 | FE49: Yes | FF49: 0 | FG49: 0 | FH49: 0
B50: 30 | D50: Tree Trimmer | E50: Vendor #13 | G50: SW007717 | H50: 2018-10-17 | I50: 2018-10-20 | J50: Yes | K50: =VLOOKUP($D50,'C.1 - Rate Sheets'!$B$16:$E$35,2) -> 48.5 | L50: =VLOOKUP($D50,'C.1 - Rate Sheets'!$B$16:$E$35,3) -> 65.5 | M50: =VLOOKUP($D50,'C.1 - Rate Sheets'!$B$16:$E$35,4) -> 77.6 | N50: =VLOOKUP($D50,'C.1 - Rate Sheets'!B:F,5,FALSE) -> 0 | O50: 0 | P50: 0 | Q50: 0 | R50: 0 | S50: 0 | T50: 0 | U50: 0 | V50: 0 | W50: 0 | X50: 0 | Y50: 0 | Z50: 0 | AA50: 0 | AB50: 0 | AC50: 0 | AD50: 0 | AE50: 0 | AF50: 0 | AG50: 0 | AH50: 0 | AM50: 0 | AR50: 0 | AW50: 0 | BB50: 0 | BG50: 0 | BH50: 14 | BL50: 14 | BM50: 8 | BN50: 8 | BQ50: 16 | BR50: 8 | BS50: 8 | BV50: 16 | BX50: 16 | CA50: 16 | CF50: 0 | CK50: 0 | CL50: 0 | CM50: 0 | CN50: 0 | CO50: 0 | CP50: 0 | CQ50: 0 | CR50: 0 | CS50: 0 | CT50: 0 | CU50: 0 | CV50: 0 | CW50: 0 | CX50: 0 | CY50: 0 | CZ50: 0 | DA50: 0 | DB50: 0 | DC50: 0 | DD50: 0 | DE50: 0 | DF50: 0 | DG50: 0 | DH50: 0 | DI50: 0 | DJ50: 0 | DK50: 0 | DL50: 0 | DM50: 0 | DN50: 0 | DO50: 0 | DP50: 0 | DQ50: 0 | DR50: 0 | DS50: 0 | DT50: 0 | DU50: 0 | DV50: 0 | DW50: 0 | DX50: 0 | DY50: 0 | DZ50: 0 | EA50: 0 | EB50: 0 | EC50: 0 | ED50: 0 | EE50: 0 | EF50: 0 | EG50: 0 | EH50: 0 | EI50: 0 | EJ50: 0 | EK50: 0 | EL50: 0 | EM50: 0 | EN50: 0 | EO50: 0 | EP50: 0 | EQ50: 0 | ER50: 0 | ES50: 0 | ET50: 30 | EU50: 32 | EV50: 0 | EW50: 0 | EX50: 62 | EY50: 1455 | EZ50: 2096 | FA50: 0 | FB50: 0 | FC50: 3551 | FD50: 3551 | FE50: Yes | FF50: 0 | FG50: 0 | FH50: 728 | FI50: 2
B51: 31 | D51: Crew Foreman | E51: Vendor #13 | G51: SW007718 | H51: 2018-10-17 | I51: 2018-10-20 | J51: Yes | K51: =VLOOKUP($D51,'C.1 - Rate Sheets'!$B$16:$E$35,2) -> 56.8 | L51: =VLOOKUP($D51,'C.1 - Rate Sheets'!$B$16:$E$35,3) -> 76.7 | M51: =VLOOKUP($D51,'C.1 - Rate Sheets'!$B$16:$E$35,4) -> 90.9 | N51: =VLOOKUP($D51,'C.1 - Rate Sheets'!B:F,5,FALSE) -> 0 | O51: 0 | P51: 0 | Q51: 0 | R51: 0 | S51: 0 | T51: 0 | U51: 0 | V51: 0 | W51: 0 | X51: 0 | Y51: 0 | Z51: 0 | AA51: 0 | AB51: 0 | AC51: 0 | AD51: 0 | AE51: 0 | AF51: 0 | AG51: 0 | AH51: 0 | AM51: 0 | AR51: 0 | AW51: 0 | BB51: 0 | BG51: 0 | BH51: 2 | BL51: 2 | BQ51: 0 | BV51: 0 | CA51: 0 | CF51: 0 | CK51: 0 | CL51: 0 | CM51: 0 | CN51: 0 | CO51: 0 | CP51: 0 | CQ51: 0 | CR51: 0 | CS51: 0 | CT51: 0 | CU51: 0 | CV51: 0 | CW51: 0 | CX51: 0 | CY51: 0 | CZ51: 0 | DA51: 0 | DB51: 0 | DC51: 0 | DD51: 0 | DE51: 0 | DF51: 0 | DG51: 0 | DH51: 0 | DI51: 0 | DJ51: 0 | DK51: 0 | DL51: 0 | DM51: 0 | DN51: 0 | DO51: 0 | DP51: 0 | DQ51: 0 | DR51: 0 | DS51: 0 | DT51: 0 | DU51: 0 | DV51: 0 | DW51: 0 | DX51: 0 | DY51: 0 | DZ51: 0 | EA51: 0 | EB51: 0 | EC51: 0 | ED51: 0 | EE51: 0 | EF51: 0 | EG51: 0 | EH51: 0 | EI51: 0 | EJ51: 0 | EK51: 0 | EL51: 0 | EM51: 0 | EN51: 0 | EO51: 0 | EP51: 0 | EQ51: 0 | ER51: 0 | ES51: 0 | ET51: 2 | EU51: 0 | EV51: 0 | EW51: 0 | EX51: 2 | EY51: 113.6 | EZ51: 0 | FA51: 0 | FB51: 0 | FC51: 113.6 | FD51: 113.6 | FE51: Yes | FF51: 0 | FG51: 0 | FH51: 0
B52: 32 | D52: Tree Trimmer | E52: Vendor #13 | G52: SW007718 | H52: 2018-10-17 | I52: 2018-10-20 | J52: Yes | K52: =VLOOKUP($D52,'C.1 - Rate Sheets'!$B$16:$E$35,2) -> 48.5 | L52: =VLOOKUP($D52,'C.1 - Rate Sheets'!$B$16:$E$35,3) -> 65.5 | M52: =VLOOKUP($D52,'C.1 - Rate Sheets'!$B$16:$E$35,4) -> 77.6 | N52: =VLOOKUP($D52,'C.1 - Rate Sheets'!B:F,5,FALSE) -> 0 | O52: 0 | P52: 0 | Q52: 0 | R52: 0 | S52: 0 | T52: 0 | U52: 0 | V52: 0 | W52: 0 | X52: 0 | Y52: 0 | Z52: 0 | AA52: 0 | AB52: 0 | AC52: 0 | AD52: 0 | AE52: 0 | AF52: 0 | AG52: 0 | AH52: 0 | AM52: 0 | AR52: 0 | AW52: 0 | BB52: 0 | BG52: 0 | BH52: 2 | BL52: 2 | BQ52: 0 | BV52: 0 | CA52: 0 | CF52: 0 | CK52: 0 | CL52: 0 | CM52: 0 | CN52: 0 | CO52: 0 | CP52: 0 | CQ52: 0 | CR52: 0 | CS52: 0 | CT52: 0 | CU52: 0 | CV52: 0 | CW52: 0 | CX52: 0 | CY52: 0 | CZ52: 0 | DA52: 0 | DB52: 0 | DC52: 0 | DD52: 0 | DE52: 0 | DF52: 0 | DG52: 0 | DH52: 0 | DI52: 0 | DJ52: 0 | DK52: 0 | DL52: 0 | DM52: 0 | DN52: 0 | DO52: 0 | DP52: 0 | DQ52: 0 | DR52: 0 | DS52: 0 | DT52: 0 | DU52: 0 | DV52: 0 | DW52: 0 | DX52: 0 | DY52: 0 | DZ52: 0 | EA52: 0 | EB52: 0 | EC52: 0 | ED52: 0 | EE52: 0 | EF52: 0 | EG52: 0 | EH52: 0 | EI52: 0 | EJ52: 0 | EK52: 0 | EL52: 0 | EM52: 0 | EN52: 0 | EO52: 0 | EP52: 0 | EQ52: 0 | ER52: 0 | ES52: 0 | ET52: 2 | EU52: 0 | EV52: 0 | EW52: 0 | EX52: 2 | EY52: 97 | EZ52: 0 | FA52: 0 | FB52: 0 | FC52: 97 | FD52: 97 | FE52: Yes | FF52: 0 | FG52: 0 | FH52: 0
B53: 33 | D53: Crew Foreman | E53: Vendor #13 | G53: SW007719 | H53: 2018-10-17 | I53: 2018-10-20 | J53: Yes | K53: =VLOOKUP($D53,'C.1 - Rate Sheets'!$B$16:$E$35,2) -> 56.8 | L53: =VLOOKUP($D53,'C.1 - Rate Sheets'!$B$16:$E$35,3) -> 76.7 | M53: =VLOOKUP($D53,'C.1 - Rate Sheets'!$B$16:$E$35,4) -> 90.9 | N53: =VLOOKUP($D53,'C.1 - Rate Sheets'!B:F,5,FALSE) -> 0 | O53: 0 | P53: 0 | Q53: 0 | R53: 0 | S53: =SUM(O53:R53) -> 0 | T53: 0 | U53: 0 | V53: 0 | W53: 0 | X53: 0 | Y53: 0 | Z53: 0 | AA53: 0 | AB53: 0 | AC53: 0 | AD53: 0 | AE53: 0 | AF53: 0 | AG53: 0 | AH53: 0 | AM53: 0 | AR53: 0 | AW53: 0 | BB53: 0 | BG53: 0 | BH53: 6 | BI53: 8 | BL53: 14 | BM53: 8 | BN53: 8 | BQ53: 16 | BR53: 8 | BS53: 8 | BV53: 16 | BX53: 16 | CA53: 16 | CF53: 0 | CK53: 0 | CL53: 0 | CM53: 0 | CN53: 0 | CO53: 0 | CP53: 0 | CQ53: 0 | CR53: 0 | CS53: 0 | CT53: 0 | CU53: 0 | CV53: 0 | CW53: 0 | CX53: 0 | CY53: 0 | CZ53: 0 | DA53: 0 | DB53: 0 | DC53: 0 | DD53: 0 | DE53: 0 | DF53: 0 | DG53: 0 | DH53: 0 | DI53: 0 | DJ53: 0 | DK53: 0 | DL53: 0 | DM53: 0 | DN53: 0 | DO53: 0 | DP53: 0 | DQ53: 0 | DR53: 0 | DS53: 0 | DT53: 0 | DU53: 0 | DV53: 0 | DW53: 0 | DX53: 0 | DY53: 0 | DZ53: 0 | EA53: 0 | EB53: 0 | EC53: 0 | ED53: 0 | EE53: 0 | EF53: 0 | EG53: 0 | EH53: 0 | EI53: 0 | EJ53: 0 | EK53: 0 | EL53: 0 | EM53: 0 | EN53: 0 | EO53: 0 | EP53: 0 | EQ53: 0 | ER53: 0 | ES53: 0 | ET53: 22 | EU53: 40 | EV53: 0 | EW53: 0 | EX53: 62 | EY53: 1249.6 | EZ53: 3068 | FA53: 0 | FB53: 0 | FC53: 4317.6 | FD53: 4317.6 | FE53: Yes | FF53: 0 | FG53: 0 | FH53: 0
B54: 34 | D54: Tree Trimmer | E54: Vendor #13 | G54: SW007719 | H54: 2018-10-17 | I54: 2018-10-20 | J54: Yes | K54: =VLOOKUP($D54,'C.1 - Rate Sheets'!$B$16:$E$35,2) -> 48.5 | L54: =VLOOKUP($D54,'C.1 - Rate Sheets'!$B$16:$E$35,3) -> 65.5 | M54: =VLOOKUP($D54,'C.1 - Rate Sheets'!$B$16:$E$35,4) -> 77.6 | N54: =VLOOKUP($D54,'C.1 - Rate Sheets'!B:F,5,FALSE) -> 0 | O54: 0 | P54: 0 | Q54: 0 | R54: 0 | S54: 0 | T54: 0 | U54: 0 | V54: 0 | W54: 0 | X54: 0 | Y54: 0 | Z54: 0 | AA54: 0 | AB54: 0 | AC54: 0 | AD54: 0 | AE54: 0 | AF54: 0 | AG54: 0 | AH54: 0 | AM54: 0 | AR54: 0 | AW54: 0 | BB54: 0 | BG54: 0 | BH54: 14 | BL54: 14 | BM54: 8 | BN54: 8 | BQ54: 16 | BR54: 8 | BS54: 8 | BV54: 16 | BX54: 16 | CA54: 16 | CF54: 0 | CK54: 0 | CL54: 0 | CM54: 0 | CN54: 0 | CO54: 0 | CP54: 0 | CQ54: 0 | CR54: 0 | CS54: 0 | CT54: 0 | CU54: 0 | CV54: 0 | CW54: 0 | CX54: 0 | CY54: 0 | CZ54: 0 | DA54: 0 | DB54: 0 | DC54: 0 | DD54: 0 | DE54: 0 | DF54: 0 | DG54: 0 | DH54: 0 | DI54: 0 | DJ54: 0 | DK54: 0 | DL54: 0 | DM54: 0 | DN54: 0 | DO54: 0 | DP54: 0 | DQ54: 0 | DR54: 0 | DS54: 0 | DT54: 0 | DU54: 0 | DV54: 0 | DW54: 0 | DX54: 0 | DY54: 0 | DZ54: 0 | EA54: 0 | EB54: 0 | EC54: 0 | ED54: 0 | EE54: 0 | EF54: 0 | EG54: 0 | EH54: 0 | EI54: 0 | EJ54: 0 | EK54: 0 | EL54: 0 | EM54: 0 | EN54: 0 | EO54: 0 | EP54: 0 | EQ54: 0 | ER54: 0 | ES54: 0 | ET54: 30 | EU54: 32 | EV54: 0 | EW54: 0 | EX54: 62 | EY54: 1455 | EZ54: 2096 | FA54: 0 | FB54: 0 | FC54: 3551 | FD54: 3551 | FE54: Yes | FF54: 0 | FG54: 0 | FH54: 728 | FI54: 3
B55: 35 | D55: Crew Foreman | E55: Vendor #13 | G55: SW007720 | H55: 2018-10-17 | I55: 2018-10-20 | J55: Yes | K55: =VLOOKUP($D55,'C.1 - Rate Sheets'!$B$16:$E$35,2) -> 56.8 | L55: =VLOOKUP($D55,'C.1 - Rate Sheets'!$B$16:$E$35,3) -> 76.7 | M55: =VLOOKUP($D55,'C.1 - Rate Sheets'!$B$16:$E$35,4) -> 90.9 | N55: =VLOOKUP($D55,'C.1 - Rate Sheets'!B:F,5,FALSE) -> 0 | O55: 0 | P55: 0 | Q55: 0 | R55: 0 | S55: 0 | T55: 0 | U55: 0 | V55: 0 | W55: 0 | X55: 0 | Y55: 0 | Z55: 0 | AA55: 0 | AB55: 0 | AC55: 0 | AD55: 0 | AE55: 0 | AF55: 0 | AG55: 0 | AH55: 0 | AM55: 0 | AR55: 0 | AW55: 0 | BB55: 0 | BG55: 0 | BH55: 2 | BL55: 2 | BQ55: 0 | BV55: 0 | CA55: 0 | CF55: 0 | CK55: 0 | CL55: 0 | CM55: 0 | CN55: 0 | CO55: 0 | CP55: 0 | CQ55: 0 | CR55: 0 | CS55: 0 | CT55: 0 | CU55: 0 | CV55: 0 | CW55: 0 | CX55: 0 | CY55: 0 | CZ55: 0 | DA55: 0 | DB55: 0 | DC55: 0 | DD55: 0 | DE55: 0 | DF55: 0 | DG55: 0 | DH55: 0 | DI55: 0 | DJ55: 0 | DK55: 0 | DL55: 0 | DM55: 0 | DN55: 0 | DO55: 0 | DP55: 0 | DQ55: 0 | DR55: 0 | DS55: 0 | DT55: 0 | DU55: 0 | DV55: 0 | DW55: 0 | DX55: 0 | DY55: 0 | DZ55: 0 | EA55: 0 | EB55: 0 | EC55: 0 | ED55: 0 | EE55: 0 | EF55: 0 | EG55: 0 | EH55: 0 | EI55: 0 | EJ55: 0 | EK55: 0 | EL55: 0 | EM55: 0 | EN55: 0 | EO55: 0 | EP55: 0 | EQ55: 0 | ER55: 0 | ES55: 0 | ET55: 2 | EU55: 0 | EV55: 0 | EW55: 0 | EX55: 2 | EY55: 113.6 | EZ55: 0 | FA55: 0 | FB55: 0 | FC55: 113.6 | FD55: 113.6 | FE55: Yes | FF55: 0 | FG55: 0 | FH55: 0
B56: 36 | D56: Tree Trimmer | E56: Vendor #13 | G56: SW007720 | H56: 2018-10-17 | I56: 2018-10-20 | J56: Yes | K56: =VLOOKUP($D56,'C.1 - Rate Sheets'!$B$16:$E$35,2) -> 48.5 | L56: =VLOOKUP($D56,'C.1 - Rate Sheets'!$B$16:$E$35,3) -> 65.5 | M56: =VLOOKUP($D56,'C.1 - Rate Sheets'!$B$16:$E$35,4) -> 77.6 | N56: =VLOOKUP($D56,'C.1 - Rate Sheets'!B:F,5,FALSE) -> 0 | O56: 0 | P56: 0 | Q56: 0 | R56: 0 | S56: 0 | T56: 0 | U56: 0 | V56: 0 | W56: 0 | X56: 0 | Y56: 0 | Z56: 0 | AA56: 0 | AB56: 0 | AC56: 0 | AD56: 0 | AE56: 0 | AF56: 0 | AG56: 0 | AH56: 0 | AM56: 0 | AR56: 0 | AW56: 0 | BB56: 0 | BG56: 0 | BH56: 2 | BL56: 2 | BQ56: 0 | BV56: 0 | CA56: 0 | CF56: 0 | CK56: 0 | CL56: 0 | CM56: 0 | CN56: 0 | CO56: 0 | CP56: 0 | CQ56: 0 | CR56: 0 | CS56: 0 | CT56: 0 | CU56: 0 | CV56: 0 | CW56: 0 | CX56: 0 | CY56: 0 | CZ56: 0 | DA56: 0 | DB56: 0 | DC56: 0 | DD56: 0 | DE56: 0 | DF56: 0 | DG56: 0 | DH56: 0 | DI56: 0 | DJ56: 0 | DK56: 0 | DL56: 0 | DM56: 0 | DN56: 0 | DO56: 0 | DP56: 0 | DQ56: 0 | DR56: 0 | DS56: 0 | DT56: 0 | DU56: 0 | DV56: 0 | DW56: 0 | DX56: 0 | DY56: 0 | DZ56: 0 | EA56: 0 | EB56: 0 | EC56: 0 | ED56: 0 | EE56: 0 | EF56: 0 | EG56: 0 | EH56: 0 | EI56: 0 | EJ56: 0 | EK56: 0 | EL56: 0 | EM56: 0 | EN56: 0 | EO56: 0 | EP56: 0 | EQ56: 0 | ER56: 0 | ES56: 0 | ET56: 2 | EU56: 0 | EV56: 0 | EW56: 0 | EX56: 2 | EY56: 97 | EZ56: 0 | FA56: 0 | FB56: 0 | FC56: 97 | FD56: 97 | FE56: Yes | FF56: 0 | FG56: 0 | FH56: 0
B57: 37 | D57: Crew Foreman | E57: Vendor #13 | G57: SW007721 | H57: 2018-10-17 | I57: 2018-10-20 | J57: Yes | K57: =VLOOKUP($D57,'C.1 - Rate Sheets'!$B$16:$E$35,2) -> 56.8 | L57: =VLOOKUP($D57,'C.1 - Rate Sheets'!$B$16:$E$35,3) -> 76.7 | M57: =VLOOKUP($D57,'C.1 - Rate Sheets'!$B$16:$E$35,4) -> 90.9 | N57: =VLOOKUP($D57,'C.1 - Rate Sheets'!B:F,5,FALSE) -> 0 | O57: 0 | P57: 0 | Q57: 0 | R57: 0 | S57: 0 | T57: 0 | U57: 0 | V57: 0 | W57: 0 | X57: 0 | Y57: 0 | Z57: 0 | AA57: 0 | AB57: 0 | AC57: 0 | AD57: 0 | AE57: 0 | AF57: 0 | AG57: 0 | AH57: 0 | AM57: 0 | AR57: 0 | AW57: 0 | BB57: 0 | BG57: 0 | BH57: 6 | BI57: 8 | BL57: 14 | BM57: 8 | BN57: 8 | BQ57: 16 | BR57: 8 | BS57: 8 | BV57: 16 | CA57: 0 | CF57: 0 | CK57: 0 | CL57: 0 | CM57: 0 | CN57: 0 | CO57: 0 | CP57: 0 | CQ57: 0 | CR57: 0 | CS57: 0 | CT57: 0 | CU57: 0 | CV57: 0 | CW57: 0 | CX57: 0 | CY57: 0 | CZ57: 0 | DA57: 0 | DB57: 0 | DC57: 0 | DD57: 0 | DE57: 0 | DF57: 0 | DG57: 0 | DH57: 0 | DI57: 0 | DJ57: 0 | DK57: 0 | DL57: 0 | DM57: 0 | DN57: 0 | DO57: 0 | DP57: 0 | DQ57: 0 | DR57: 0 | DS57: 0 | DT57: 0 | DU57: 0 | DV57: 0 | DW57: 0 | DX57: 0 | DY57: 0 | DZ57: 0 | EA57: 0 | EB57: 0 | EC57: 0 | ED57: 0 | EE57: 0 | EF57: 0 | EG57: 0 | EH57: 0 | EI57: 0 | EJ57: 0 | EK57: 0 | EL57: 0 | EM57: 0 | EN57: 0 | EO57: 0 | EP57: 0 | EQ57: 0 | ER57: 0 | ES57: 0 | ET57: 22 | EU57: 24 | EV57: 0 | EW57: 0 | EX57: 46 | EY57: 1249.6 | EZ57: 1840.8 | FA57: 0 | FB57: 0 | FC57: 3090.4 | FD57: 3090.4 | FE57: Yes | FF57: 0 | FG57: 0 | FH57: 0
B58: 38 | D58: Tree Trimmer | E58: Vendor #13 | G58: SW007721 | H58: 2018-10-17 | I58: 2018-10-20 | J58: Yes | K58: =VLOOKUP($D58,'C.1 - Rate Sheets'!$B$16:$E$35,2) -> 48.5 | L58: =VLOOKUP($D58,'C.1 - Rate Sheets'!$B$16:$E$35,3) -> 65.5 | M58: =VLOOKUP($D58,'C.1 - Rate Sheets'!$B$16:$E$35,4) -> 77.6 | N58: =VLOOKUP($D58,'C.1 - Rate Sheets'!B:F,5,FALSE) -> 0 | O58: 0 | P58: 0 | Q58: 0 | R58: 0 | S58: 0 | T58: 0 | U58: 0 | V58: 0 | W58: 0 | X58: 0 | Y58: 0 | Z58: 0 | AA58: 0 | AB58: 0 | AC58: 0 | AD58: 0 | AE58: 0 | AF58: 0 | AG58: 0 | AH58: 0 | AM58: 0 | AR58: 0 | AW58: 0 | BB58: 0 | BG58: 0 | BH58: 6 | BI58: 8 | BL58: 14 | BQ58: 0 | BV58: 0 | CA58: 0 | CF58: 0 | CK58: 0 | CL58: 0 | CM58: 0 | CN58: 0 | CO58: 0 | CP58: 0 | CQ58: 0 | CR58: 0 | CS58: 0 | CT58: 0 | CU58: 0 | CV58: 0 | CW58: 0 | CX58: 0 | CY58: 0 | CZ58: 0 | DA58: 0 | DB58: 0 | DC58: 0 | DD58: 0 | DE58: 0 | DF58: 0 | DG58: 0 | DH58: 0 | DI58: 0 | DJ58: 0 | DK58: 0 | DL58: 0 | DM58: 0 | DN58: 0 | DO58: 0 | DP58: 0 | DQ58: 0 | DR58: 0 | DS58: 0 | DT58: 0 | DU58: 0 | DV58: 0 | DW58: 0 | DX58: 0 | DY58: 0 | DZ58: 0 | EA58: 0 | EB58: 0 | EC58: 0 | ED58: 0 | EE58: 0 | EF58: 0 | EG58: 0 | EH58: 0 | EI58: 0 | EJ58: 0 | EK58: 0 | EL58: 0 | EM58: 0 | EN58: 0 | EO58: 0 | EP58: 0 | EQ58: 0 | ER58: 0 | ES58: 0 | ET58: 6 | EU58: 8 | EV58: 0 | EW58: 0 | EX58: 14 | EY58: 291 | EZ58: 524 | FA58: 0 | FB58: 0 | FC58: 815 | FD58: 815 | FE58: Yes | FF58: 0 | FG58: 0 | FH58: 118 | FI58: 4
B59: 39 | D59: Supervisor | E59: Vendor #13 | G59: SW007752 | H59: 2018-10-17 | I59: 2018-10-20 | J59: Yes | K59: =VLOOKUP($D59,'C.1 - Rate Sheets'!$B$16:$E$35,2) -> 74 | L59: =VLOOKUP($D59,'C.1 - Rate Sheets'!$B$16:$E$35,3) -> 99.9 | M59: =VLOOKUP($D59,'C.1 - Rate Sheets'!$B$16:$E$35,4) -> 118.4 | N59: =VLOOKUP($D59,'C.1 - Rate Sheets'!B:F,5,FALSE) -> 0 | O59: 0 | P59: 0 | Q59: 0 | R59: 0 | S59: 0 | T59: 0 | U59: 0 | V59: 0 | W59: 0 | X59: 0 | Y59: 0 | Z59: 0 | AA59: 0 | AB59: 0 | AC59: 0 | AD59: 0 | AE59: 0 | AF59: 0 | AG59: 0 | AH59: 0 | AM59: 0 | AR59: 0 | AW59: 0 | BB59: 0 | BG59: 0 | BH59: 2 | BL59: 2 | BQ59: 0 | BV59: 0 | CA59: 0 | CF59: 0 | CK59: 0 | CL59: 0 | CM59: 0 | CN59: 0 | CO59: 0 | CP59: 0 | CQ59: 0 | CR59: 0 | CS59: 0 | CT59: 0 | CU59: 0 | CV59: 0 | CW59: 0 | CX59: 0 | CY59: 0 | CZ59: 0 | DA59: 0 | DB59: 0 | DC59: 0 | DD59: 0 | DE59: 0 | DF59: 0 | DG59: 0 | DH59: 0 | DI59: 0 | DJ59: 0 | DK59: 0 | DL59: 0 | DM59: 0 | DN59: 0 | DO59: 0 | DP59: 0 | DQ59: 0 | DR59: 0 | DS59: 0 | DT59: 0 | DU59: 0 | DV59: 0 | DW59: 0 | DX59: 0 | DY59: 0 | DZ59: 0 | EA59: 0 | EB59: 0 | EC59: 0 | ED59: 0 | EE59: 0 | EF59: 0 | EG59: 0 | EH59: 0 | EI59: 0 | EJ59: 0 | EK59: 0 | EL59: 0 | EM59: 0 | EN59: 0 | EO59: 0 | EP59: 0 | EQ59: 0 | ER59: 0 | ES59: 0 | ET59: 2 | EU59: 0 | EV59: 0 | EW59: 0 | EX59: 2 | EY59: 148 | EZ59: 0 | FA59: 0 | FB59: 0 | FC59: 148 | FD59: 148 | FE59: Yes | FF59: 0 | FG59: 0 | FH59: 0
B60: 40 | D60: Supervisor | E60: Vendor #13 | G60: SW007753 | H60: 2018-10-17 | I60: 2018-10-20 | J60: Yes | K60: =VLOOKUP($D60,'C.1 - Rate Sheets'!$B$16:$E$35,2) -> 74 | L60: =VLOOKUP($D60,'C.1 - Rate Sheets'!$B$16:$E$35,3) -> 99.9 | M60: =VLOOKUP($D60,'C.1 - Rate Sheets'!$B$16:$E$35,4) -> 118.4 | N60: =VLOOKUP($D60,'C.1 - Rate Sheets'!B:F,5,FALSE) -> 0 | O60: 0 | P60: 0 | Q60: 0 | R60: 0 | S60: 0 | T60: 0 | U60: 0 | V60: 0 | W60: 0 | X60: 0 | Y60: 0 | Z60: 0 | AA60: 0 | AB60: 0 | AC60: 0 | AD60: 0 | AE60: 0 | AF60: 0 | AG60: 0 | AH60: 0 | AM60: 0 | AR60: 0 | AW60: 0 | BB60: 0 | BG60: 0 | BH60: 6 | BI60: 8 | BL60: 14 | BM60: 8 | BN60: 8 | BQ60: 16 | BR60: 8 | BS60: 8 | BV60: 16 | BX60: 16 | CA60: 16 | CF60: 0 | CK60: 0 | CL60: 0 | CM60: 0 | CN60: 0 | CO60: 0 | CP60: 0 | CQ60: 0 | CR60: 0 | CS60: 0 | CT60: 0 | CU60: 0 | CV60: 0 | CW60: 0 | CX60: 0 | CY60: 0 | CZ60: 0 | DA60: 0 | DB60: 0 | DC60: 0 | DD60: 0 | DE60: 0 | DF60: 0 | DG60: 0 | DH60: 0 | DI60: 0 | DJ60: 0 | DK60: 0 | DL60: 0 | DM60: 0 | DN60: 0 | DO60: 0 | DP60: 0 | DQ60: 0 | DR60: 0 | DS60: 0 | DT60: 0 | DU60: 0 | DV60: 0 | DW60: 0 | DX60: 0 | DY60: 0 | DZ60: 0 | EA60: 0 | EB60: 0 | EC60: 0 | ED60: 0 | EE60: 0 | EF60: 0 | EG60: 0 | EH60: 0 | EI60: 0 | EJ60: 0 | EK60: 0 | EL60: 0 | EM60: 0 | EN60: 0 | EO60: 0 | EP60: 0 | EQ60: 0 | ER60: 0 | ES60: 0 | ET60: 22 | EU60: 40 | EV60: 0 | EW60: 0 | EX60: 62 | EY60: 1628 | EZ60: 3996 | FA60: 0 | FB60: 0 | FC60: 5624 | FD60: 5624 | FE60: Yes | FF60: 0 | FG60: 0 | FH60: 0
B61: 41 | D61: Crew Foreman | E61: Vendor #13 | G61: SW007754 | H61: 2018-10-17 | I61: 2018-10-20 | J61: Yes | K61: =VLOOKUP($D61,'C.1 - Rate Sheets'!$B$16:$E$35,2) -> 56.8 | L61: =VLOOKUP($D61,'C.1 - Rate Sheets'!$B$16:$E$35,3) -> 76.7 | M61: =VLOOKUP($D61,'C.1 - Rate Sheets'!$B$16:$E$35,4) -> 90.9 | N61: =VLOOKUP($D61,'C.1 - Rate Sheets'!B:F,5,FALSE) -> 0 | O61: 0 | P61: 0 | Q61: 0 | R61: 0 | S61: 0 | T61: 0 | U61: 0 | V61: 0 | W61: 0 | X61: 0 | Y61: 0 | Z61: 0 | AA61: 0 | AB61: 0 | AC61: 0 | AD61: 0 | AE61: 0 | AF61: 0 | AG61: 0 | AH61: 0 | AM61: 0 | AR61: 0 | AW61: 0 | BB61: 0 | BG61: 0 | BH61: 2 | BL61: 2 | BQ61: 0 | BV61: 0 | CA61: 0 | CF61: 0 | CK61: 0 | CL61: 0 | CM61: 0 | CN61: 0 | CO61: 0 | CP61: 0 | CQ61: 0 | CR61: 0 | CS61: 0 | CT61: 0 | CU61: 0 | CV61: 0 | CW61: 0 | CX61: 0 | CY61: 0 | CZ61: 0 | DA61: 0 | DB61: 0 | DC61: 0 | DD61: 0 | DE61: 0 | DF61: 0 | DG61: 0 | DH61: 0 | DI61: 0 | DJ61: 0 | DK61: 0 | DL61: 0 | DM61: 0 | DN61: 0 | DO61: 0 | DP61: 0 | DQ61: 0 | DR61: 0 | DS61: 0 | DT61: 0 | DU61: 0 | DV61: 0 | DW61: 0 | DX61: 0 | DY61: 0 | DZ61: 0 | EA61: 0 | EB61: 0 | EC61: 0 | ED61: 0 | EE61: 0 | EF61: 0 | EG61: 0 | EH61: 0 | EI61: 0 | EJ61: 0 | EK61: 0 | EL61: 0 | EM61: 0 | EN61: 0 | EO61: 0 | EP61: 0 | EQ61: 0 | ER61: 0 | ES61: 0 | ET61: 2 | EU61: 0 | EV61: 0 | EW61: 0 | EX61: 2 | EY61: 113.6 | EZ61: 0 | FA61: 0 | FB61: 0 | FC61: 113.6 | FD61: 113.6 | FE61: Yes | FF61: 0 | FG61: 0 | FH61: 0
B62: 42 | D62: Tree Trimmer | E62: Vendor #13 | G62: SW007754 | H62: 2018-10-17 | I62: 2018-10-20 | J62: Yes | K62: =VLOOKUP($D62,'C.1 - Rate Sheets'!$B$16:$E$35,2) -> 48.5 | L62: =VLOOKUP($D62,'C.1 - Rate Sheets'!$B$16:$E$35,3) -> 65.5 | M62: =VLOOKUP($D62,'C.1 - Rate Sheets'!$B$16:$E$35,4) -> 77.6 | N62: =VLOOKUP($D62,'C.1 - Rate Sheets'!B:F,5,FALSE) -> 0 | O62: 0 | P62: 0 | Q62: 0 | R62: 0 | S62: 0 | T62: 0 | U62: 0 | V62: 0 | W62: 0 | X62: 0 | Y62: 0 | Z62: 0 | AA62: 0 | AB62: 0 | AC62: 0 | AD62: 0 | AE62: 0 | AF62: 0 | AG62: 0 | AH62: 0 | AM62: 0 | AR62: 0 | AW62: 0 | BB62: 0 | BG62: 0 | BH62: 2 | BL62: 2 | BQ62: 0 | BV62: 0 | CA62: 0 | CF62: 0 | CK62: 0 | CL62: 0 | CM62: 0 | CN62: 0 | CO62: 0 | CP62: 0 | CQ62: 0 | CR62: 0 | CS62: 0 | CT62: 0 | CU62: 0 | CV62: 0 | CW62: 0 | CX62: 0 | CY62: 0 | CZ62: 0 | DA62: 0 | DB62: 0 | DC62: 0 | DD62: 0 | DE62: 0 | DF62: 0 | DG62: 0 | DH62: 0 | DI62: 0 | DJ62: 0 | DK62: 0 | DL62: 0 | DM62: 0 | DN62: 0 | DO62: 0 | DP62: 0 | DQ62: 0 | DR62: 0 | DS62: 0 | DT62: 0 | DU62: 0 | DV62: 0 | DW62: 0 | DX62: 0 | DY62: 0 | DZ62: 0 | EA62: 0 | EB62: 0 | EC62: 0 | ED62: 0 | EE62: 0 | EF62: 0 | EG62: 0 | EH62: 0 | EI62: 0 | EJ62: 0 | EK62: 0 | EL62: 0 | EM62: 0 | EN62: 0 | EO62: 0 | EP62: 0 | EQ62: 0 | ER62: 0 | ES62: 0 | ET62: 2 | EU62: 0 | EV62: 0 | EW62: 0 | EX62: 2 | EY62: 97 | EZ62: 0 | FA62: 0 | FB62: 0 | FC62: 97 | FD62: 97 | FE62: Yes | FF62: 0 | FG62: 0 | FH62: 0
B63: 43 | D63: Crew Foreman | E63: Vendor #13 | G63: SW007755 | H63: 2018-10-17 | I63: 2018-10-20 | J63: Yes | K63: =VLOOKUP($D63,'C.1 - Rate Sheets'!$B$16:$E$35,2) -> 56.8 | L63: =VLOOKUP($D63,'C.1 - Rate Sheets'!$B$16:$E$35,3) -> 76.7 | M63: =VLOOKUP($D63,'C.1 - Rate Sheets'!$B$16:$E$35,4) -> 90.9 | N63: =VLOOKUP($D63,'C.1 - Rate Sheets'!B:F,5,FALSE) -> 0 | O63: 0 | P63: 0 | Q63: 0 | R63: 0 | S63: 0 | T63: 0 | U63: 0 | V63: 0 | W63: 0 | X63: 0 | Y63: 0 | Z63: 0 | AA63: 0 | AB63: 0 | AC63: 0 | AD63: 0 | AE63: 0 | AF63: 0 | AG63: 0 | AH63: 0 | AM63: 0 | AR63: 0 | AW63: 0 | BB63: 0 | BG63: 0 | BH63: 6 | BI63: 8 | BL63: 14 | BM63: 8 | BN63: 8 | BQ63: 16 | BR63: 8 | BS63: 8 | BV63: 16 | BX63: 16 | CA63: 16 | CF63: 0 | CK63: 0 | CL63: 0 | CM63: 0 | CN63: 0 | CO63: 0 | CP63: 0 | CQ63: 0 | CR63: 0 | CS63: 0 | CT63: 0 | CU63: 0 | CV63: 0 | CW63: 0 | CX63: 0 | CY63: 0 | CZ63: 0 | DA63: 0 | DB63: 0 | DC63: 0 | DD63: 0 | DE63: 0 | DF63: 0 | DG63: 0 | DH63: 0 | DI63: 0 | DJ63: 0 | DK63: 0 | DL63: 0 | DM63: 0 | DN63: 0 | DO63: 0 | DP63: 0 | DQ63: 0 | DR63: 0 | DS63: 0 | DT63: 0 | DU63: 0 | DV63: 0 | DW63: 0 | DX63: 0 | DY63: 0 | DZ63: 0 | EA63: 0 | EB63: 0 | EC63: 0 | ED63: 0 | EE63: 0 | EF63: 0 | EG63: 0 | EH63: 0 | EI63: 0 | EJ63: 0 | EK63: 0 | EL63: 0 | EM63: 0 | EN63: 0 | EO63: 0 | EP63: 0 | EQ63: 0 | ER63: 0 | ES63: 0 | ET63: 22 | EU63: 40 | EV63: 0 | EW63: 0 | EX63: 62 | EY63: 1249.6 | EZ63: 3068 | FA63: 0 | FB63: 0 | FC63: 4317.6 | FD63: 4317.6 | FE63: Yes | FF63: 0 | FG63: 0 | FH63: 0
B64: 44 | D64: Tree Trimmer | E64: Vendor #13 | G64: SW007755 | H64: 2018-10-17 | I64: 2018-10-20 | J64: Yes | K64: =VLOOKUP($D64,'C.1 - Rate Sheets'!$B$16:$E$35,2) -> 48.5 | L64: =VLOOKUP($D64,'C.1 - Rate Sheets'!$B$16:$E$35,3) -> 65.5 | M64: =VLOOKUP($D64,'C.1 - Rate Sheets'!$B$16:$E$35,4) -> 77.6 | N64: =VLOOKUP($D64,'C.1 - Rate Sheets'!B:F,5,FALSE) -> 0 | O64: 0 | P64: 0 | Q64: 0 | R64: 0 | S64: 0 | T64: 0 | U64: 0 | V64: 0 | W64: 0 | X64: 0 | Y64: 0 | Z64: 0 | AA64: 0 | AB64: 0 | AC64: 0 | AD64: 0 | AE64: 0 | AF64: 0 | AG64: 0 | AH64: 0 | AM64: 0 | AR64: 0 | AW64: 0 | BB64: 0 | BG64: 0 | BH64: 6 | BI64: 8 | BL64: 14 | BM64: 8 | BN64: 8 | BQ64: 16 | BR64: 8 | BS64: 8 | BV64: 16 | BX64: 16 | CA64: 16 | CF64: 0 | CK64: 0 | CL64: 0 | CM64: 0 | CN64: 0 | CO64: 0 | CP64: 0 | CQ64: 0 | CR64: 0 | CS64: 0 | CT64: 0 | CU64: 0 | CV64: 0 | CW64: 0 | CX64: 0 | CY64: 0 | CZ64: 0 | DA64: 0 | DB64: 0 | DC64: 0 | DD64: 0 | DE64: 0 | DF64: 0 | DG64: 0 | DH64: 0 | DI64: 0 | DJ64: 0 | DK64: 0 | DL64: 0 | DM64: 0 | DN64: 0 | DO64: 0 | DP64: 0 | DQ64: 0 | DR64: 0 | DS64: 0 | DT64: 0 | DU64: 0 | DV64: 0 | DW64: 0 | DX64: 0 | DY64: 0 | DZ64: 0 | EA64: 0 | EB64: 0 | EC64: 0 | ED64: 0 | EE64: 0 | EF64: 0 | EG64: 0 | EH64: 0 | EI64: 0 | EJ64: 0 | EK64: 0 | EL64: 0 | EM64: 0 | EN64: 0 | EO64: 0 | EP64: 0 | EQ64: 0 | ER64: 0 | ES64: 0 | ET64: 22 | EU64: 40 | EV64: 0 | EW64: 0 | EX64: 62 | EY64: 1067 | EZ64: 2620 | FA64: 0 | FB64: 0 | FC64: 3687 | FD64: 3687 | FE64: Yes | FF64: 0 | FG64: 0 | FH64: 0
B65: 45 | D65: Tree Trimmer | E65: Vendor #13 | G65: SW007757 | H65: 2018-10-17 | I65: 2018-10-20 | J65: Yes | K65: =VLOOKUP($D65,'C.1 - Rate Sheets'!$B$16:$E$35,2) -> 48.5 | L65: =VLOOKUP($D65,'C.1 - Rate Sheets'!$B$16:$E$35,3) -> 65.5 | M65: =VLOOKUP($D65,'C.1 - Rate Sheets'!$B$16:$E$35,4) -> 77.6 | N65: =VLOOKUP($D65,'C.1 - Rate Sheets'!B:F,5,FALSE) -> 0 | O65: 0 | P65: 0 | Q65: 0 | R65: 0 | S65: 0 | T65: 0 | U65: 0 | V65: 0 | W65: 0 | X65: 0 | Y65: 0 | Z65: 0 | AA65: 0 | AB65: 0 | AC65: 0 | AD65: 0 | AE65: 0 | AF65: 0 | AG65: 0 | AH65: 0 | AM65: 0 | AR65: 0 | AW65: 0 | BB65: 0 | BG65: 0 | BH65: 2 | BL65: 2 | BQ65: 0 | BV65: 0 | CA65: 0 | CF65: 0 | CK65: 0 | CL65: 0 | CM65: 0 | CN65: 0 | CO65: 0 | CP65: 0 | CQ65: 0 | CR65: 0 | CS65: 0 | CT65: 0 | CU65: 0 | CV65: 0 | CW65: 0 | CX65: 0 | CY65: 0 | CZ65: 0 | DA65: 0 | DB65: 0 | DC65: 0 | DD65: 0 | DE65: 0 | DF65: 0 | DG65: 0 | DH65: 0 | DI65: 0 | DJ65: 0 | DK65: 0 | DL65: 0 | DM65: 0 | DN65: 0 | DO65: 0 | DP65: 0 | DQ65: 0 | DR65: 0 | DS65: 0 | DT65: 0 | DU65: 0 | DV65: 0 | DW65: 0 | DX65: 0 | DY65: 0 | DZ65: 0 | EA65: 0 | EB65: 0 | EC65: 0 | ED65: 0 | EE65: 0 | EF65: 0 | EG65: 0 | EH65: 0 | EI65: 0 | EJ65: 0 | EK65: 0 | EL65: 0 | EM65: 0 | EN65: 0 | EO65: 0 | EP65: 0 | EQ65: 0 | ER65: 0 | ES65: 0 | ET65: 2 | EU65: 0 | EV65: 0 | EW65: 0 | EX65: 2 | EY65: 97 | EZ65: 0 | FA65: 0 | FB65: 0 | FC65: 97 | FD65: 97 | FE65: Yes | FF65: 0 | FG65: 0 | FH65: 0
B66: 46 | D66: Tree Trimmer | E66: Vendor #13 | G66: SW007757 | H66: 2018-10-17 | I66: 2018-10-20 | J66: Yes | K66: =VLOOKUP($D66,'C.1 - Rate Sheets'!$B$16:$E$35,2) -> 48.5 | L66: =VLOOKUP($D66,'C.1 - Rate Sheets'!$B$16:$E$35,3) -> 65.5 | M66: =VLOOKUP($D66,'C.1 - Rate Sheets'!$B$16:$E$35,4) -> 77.6 | N66: =VLOOKUP($D66,'C.1 - Rate Sheets'!B:F,5,FALSE) -> 0 | O66: 0 | P66: 0 | Q66: 0 | R66: 0 | S66: 0 | T66: 0 | U66: 0 | V66: 0 | W66: 0 | X66: 0 | Y66: 0 | Z66: 0 | AA66: 0 | AB66: 0 | AC66: 0 | AD66: 0 | AE66: 0 | AF66: 0 | AG66: 0 | AH66: 0 | AM66: 0 | AR66: 0 | AW66: 0 | BB66: 0 | BG66: 0 | BH66: 2 | BL66: 2 | BQ66: 0 | BV66: 0 | CA66: 0 | CF66: 0 | CK66: 0 | CL66: 0 | CM66: 0 | CN66: 0 | CO66: 0 | CP66: 0 | CQ66: 0 | CR66: 0 | CS66: 0 | CT66: 0 | CU66: 0 | CV66: 0 | CW66: 0 | CX66: 0 | CY66: 0 | CZ66: 0 | DA66: 0 | DB66: 0 | DC66: 0 | DD66: 0 | DE66: 0 | DF66: 0 | DG66: 0 | DH66: 0 | DI66: 0 | DJ66: 0 | DK66: 0 | DL66: 0 | DM66: 0 | DN66: 0 | DO66: 0 | DP66: 0 | DQ66: 0 | DR66: 0 | DS66: 0 | DT66: 0 | DU66: 0 | DV66: 0 | DW66: 0 | DX66: 0 | DY66: 0 | DZ66: 0 | EA66: 0 | EB66: 0 | EC66: 0 | ED66: 0 | EE66: 0 | EF66: 0 | EG66: 0 | EH66: 0 | EI66: 0 | EJ66: 0 | EK66: 0 | EL66: 0 | EM66: 0 | EN66: 0 | EO66: 0 | EP66: 0 | EQ66: 0 | ER66: 0 | ES66: 0 | ET66: 2 | EU66: 0 | EV66: 0 | EW66: 0 | EX66: 2 | EY66: 97 | EZ66: 0 | FA66: 0 | FB66: 0 | FC66: 97 | FD66: 97 | FE66: Yes | FF66: 0 | FG66: 0 | FH66: 0
B67: 47 | D67: Crew Foreman | E67: Vendor #13 | G67: SW007759 | H67: 2018-10-17 | I67: 2018-10-20 | J67: Yes | K67: =VLOOKUP($D67,'C.1 - Rate Sheets'!$B$16:$E$35,2) -> 56.8 | L67: =VLOOKUP($D67,'C.1 - Rate Sheets'!$B$16:$E$35,3) -> 76.7 | M67: =VLOOKUP($D67,'C.1 - Rate Sheets'!$B$16:$E$35,4) -> 90.9 | N67: =VLOOKUP($D67,'C.1 - Rate Sheets'!B:F,5,FALSE) -> 0 | O67: 0 | P67: 0 | Q67: 0 | R67: 0 | S67: 0 | T67: 0 | U67: 0 | V67: 0 | W67: 0 | X67: 0 | Y67: 0 | Z67: 0 | AA67: 0 | AB67: 0 | AC67: 0 | AD67: 0 | AE67: 0 | AF67: 0 | AG67: 0 | AH67: 0 | AM67: 0 | AR67: 0 | AW67: 0 | BB67: 0 | BG67: 0 | BH67: 6 | BI67: 8 | BL67: 14 | BM67: 8 | BN67: 8 | BQ67: 16 | BR67: 8 | BS67: 8 | BV67: 16 | BX67: 16 | CA67: 16 | CF67: 0 | CK67: 0 | CL67: 0 | CM67: 0 | CN67: 0 | CO67: 0 | CP67: 0 | CQ67: 0 | CR67: 0 | CS67: 0 | CT67: 0 | CU67: 0 | CV67: 0 | CW67: 0 | CX67: 0 | CY67: 0 | CZ67: 0 | DA67: 0 | DB67: 0 | DC67: 0 | DD67: 0 | DE67: 0 | DF67: 0 | DG67: 0 | DH67: 0 | DI67: 0 | DJ67: 0 | DK67: 0 | DL67: 0 | DM67: 0 | DN67: 0 | DO67: 0 | DP67: 0 | DQ67: 0 | DR67: 0 | DS67: 0 | DT67: 0 | DU67: 0 | DV67: 0 | DW67: 0 | DX67: 0 | DY67: 0 | DZ67: 0 | EA67: 0 | EB67: 0 | EC67: 0 | ED67: 0 | EE67: 0 | EF67: 0 | EG67: 0 | EH67: 0 | EI67: 0 | EJ67: 0 | EK67: 0 | EL67: 0 | EM67: 0 | EN67: 0 | EO67: 0 | EP67: 0 | EQ67: 0 | ER67: 0 | ES67: 0 | ET67: 22 | EU67: 40 | EV67: 0 | EW67: 0 | EX67: 62 | EY67: 1249.6 | EZ67: 3068 | FA67: 0 | FB67: 0 | FC67: 4317.6 | FD67: 4317.6 | FE67: Yes | FF67: 0 | FG67: 0 | FH67: 0
B68: 48 | D68: Tree Trimmer | E68: Vendor #13 | G68: SW007759 | H68: 2018-10-17 | I68: 2018-10-20 | J68: Yes | K68: =VLOOKUP($D68,'C.1 - Rate Sheets'!$B$16:$E$35,2) -> 48.5 | L68: =VLOOKUP($D68,'C.1 - Rate Sheets'!$B$16:$E$35,3) -> 65.5 | M68: =VLOOKUP($D68,'C.1 - Rate Sheets'!$B$16:$E$35,4) -> 77.6 | N68: =VLOOKUP($D68,'C.1 - Rate Sheets'!B:F,5,FALSE) -> 0 | O68: 0 | P68: 0 | Q68: 0 | R68: 0 | S68: 0 | T68: 0 | U68: 0 | V68: 0 | W68: 0 | X68: 0 | Y68: 0 | Z68: 0 | AA68: 0 | AB68: 0 | AC68: 0 | AD68: 0 | AE68: 0 | AF68: 0 | AG68: 0 | AH68: 0 | AM68: 0 | AR68: 0 | AW68: 0 | BB68: 0 | BG68: 0 | BH68: 6 | BI68: 8 | BL68: 14 | BM68: 8 | BN68: 8 | BQ68: 16 | BV68: 0 | CA68: 0 | CF68: 0 | CK68: 0 | CL68: 0 | CM68: 0 | CN68: 0 | CO68: 0 | CP68: 0 | CQ68: 0 | CR68: 0 | CS68: 0 | CT68: 0 | CU68: 0 | CV68: 0 | CW68: 0 | CX68: 0 | CY68: 0 | CZ68: 0 | DA68: 0 | DB68: 0 | DC68: 0 | DD68: 0 | DE68: 0 | DF68: 0 | DG68: 0 | DH68: 0 | DI68: 0 | DJ68: 0 | DK68: 0 | DL68: 0 | DM68: 0 | DN68: 0 | DO68: 0 | DP68: 0 | DQ68: 0 | DR68: 0 | DS68: 0 | DT68: 0 | DU68: 0 | DV68: 0 | DW68: 0 | DX68: 0 | DY68: 0 | DZ68: 0 | EA68: 0 | EB68: 0 | EC68: 0 | ED68: 0 | EE68: 0 | EF68: 0 | EG68: 0 | EH68: 0 | EI68: 0 | EJ68: 0 | EK68: 0 | EL68: 0 | EM68: 0 | EN68: 0 | EO68: 0 | EP68: 0 | EQ68: 0 | ER68: 0 | ES68: 0 | ET68: 14 | EU68: 16 | EV68: 0 | EW68: 0 | EX68: 30 | EY68: 679 | EZ68: 1048 | FA68: 0 | FB68: 0 | FC68: 1727 | FD68: 1727 | FE68: Yes | FF68: 0 | FG68: 0 | FH68: 0
B69: 49 | D69: Crew Foreman | E69: Vendor #13 | G69: SW007760 | H69: 2018-10-17 | I69: 2018-10-20 | J69: Yes | K69: =VLOOKUP($D69,'C.1 - Rate Sheets'!$B$16:$E$35,2) -> 56.8 | L69: =VLOOKUP($D69,'C.1 - Rate Sheets'!$B$16:$E$35,3) -> 76.7 | M69: =VLOOKUP($D69,'C.1 - Rate Sheets'!$B$16:$E$35,4) -> 90.9 | N69: =VLOOKUP($D69,'C.1 - Rate Sheets'!B:F,5,FALSE) -> 0 | O69: 0 | P69: 0 | Q69: 0 | R69: 0 | S69: 0 | T69: 0 | U69: 0 | V69: 0 | W69: 0 | X69: 0 | Y69: 0 | Z69: 0 | AA69: 0 | AB69: 0 | AC69: 0 | AD69: 0 | AE69: 0 | AF69: 0 | AG69: 0 | AH69: 0 | AM69: 0 | AR69: 0 | AW69: 0 | BB69: 0 | BG69: 0 | BH69: 2 | BL69: 2 | BQ69: 0 | BV69: 0 | CA69: 0 | CF69: 0 | CK69: 0 | CL69: 0 | CM69: 0 | CN69: 0 | CO69: 0 | CP69: 0 | CQ69: 0 | CR69: 0 | CS69: 0 | CT69: 0 | CU69: 0 | CV69: 0 | CW69: 0 | CX69: 0 | CY69: 0 | CZ69: 0 | DA69: 0 | DB69: 0 | DC69: 0 | DD69: 0 | DE69: 0 | DF69: 0 | DG69: 0 | DH69: 0 | DI69: 0 | DJ69: 0 | DK69: 0 | DL69: 0 | DM69: 0 | DN69: 0 | DO69: 0 | DP69: 0 | DQ69: 0 | DR69: 0 | DS69: 0 | DT69: 0 | DU69: 0 | DV69: 0 | DW69: 0 | DX69: 0 | DY69: 0 | DZ69: 0 | EA69: 0 | EB69: 0 | EC69: 0 | ED69: 0 | EE69: 0 | EF69: 0 | EG69: 0 | EH69: 0 | EI69: 0 | EJ69: 0 | EK69: 0 | EL69: 0 | EM69: 0 | EN69: 0 | EO69: 0 | EP69: 0 | EQ69: 0 | ER69: 0 | ES69: 0 | ET69: 2 | EU69: 0 | EV69: 0 | EW69: 0 | EX69: 2 | EY69: 113.6 | EZ69: 0 | FA69: 0 | FB69: 0 | FC69: 113.6 | FD69: 113.6 | FE69: Yes | FF69: 0 | FG69: 0 | FH69: 0
B70: 50 | D70: Tree Trimmer | E70: Vendor #13 | G70: SW007760 | H70: 2018-10-17 | I70: 2018-10-20 | J70: Yes | K70: =VLOOKUP($D70,'C.1 - Rate Sheets'!$B$16:$E$35,2) -> 48.5 | L70: =VLOOKUP($D70,'C.1 - Rate Sheets'!$B$16:$E$35,3) -> 65.5 | M70: =VLOOKUP($D70,'C.1 - Rate Sheets'!$B$16:$E$35,4) -> 77.6 | N70: =VLOOKUP($D70,'C.1 - Rate Sheets'!B:F,5,FALSE) -> 0 | O70: 0 | P70: 0 | Q70: 0 | R70: 0 | S70: 0 | T70: 0 | U70: 0 | V70: 0 | W70: 0 | X70: 0 | Y70: 0 | Z70: 0 | AA70: 0 | AB70: 0 | AC70: 0 | AD70: 0 | AE70: 0 | AF70: 0 | AG70: 0 | AH70: 0 | AM70: 0 | AR70: 0 | AW70: 0 | BB70: 0 | BG70: 0 | BH70: 2 | BL70: 2 | BQ70: 0 | BV70: 0 | CA70: 0 | CF70: 0 | CK70: 0 | CL70: 0 | CM70: 0 | CN70: 0 | CO70: 0 | CP70: 0 | CQ70: 0 | CR70: 0 | CS70: 0 | CT70: 0 | CU70: 0 | CV70: 0 | CW70: 0 | CX70: 0 | CY70: 0 | CZ70: 0 | DA70: 0 | DB70: 0 | DC70: 0 | DD70: 0 | DE70: 0 | DF70: 0 | DG70: 0 | DH70: 0 | DI70: 0 | DJ70: 0 | DK70: 0 | DL70: 0 | DM70: 0 | DN70: 0 | DO70: 0 | DP70: 0 | DQ70: 0 | DR70: 0 | DS70: 0 | DT70: 0 | DU70: 0 | DV70: 0 | DW70: 0 | DX70: 0 | DY70: 0 | DZ70: 0 | EA70: 0 | EB70: 0 | EC70: 0 | ED70: 0 | EE70: 0 | EF70: 0 | EG70: 0 | EH70: 0 | EI70: 0 | EJ70: 0 | EK70: 0 | EL70: 0 | EM70: 0 | EN70: 0 | EO70: 0 | EP70: 0 | EQ70: 0 | ER70: 0 | ES70: 0 | ET70: 2 | EU70: 0 | EV70: 0 | EW70: 0 | EX70: 2 | EY70: 97 | EZ70: 0 | FA70: 0 | FB70: 0 | FC70: 97 | FD70: 97 | FE70: Yes | FF70: 0 | FG70: 0 | FH70: 0
B71: 51 | D71: Crew Foreman | E71: Vendor #13 | G71: SW007761 | H71: 2018-10-17 | I71: 2018-10-20 | J71: Yes | K71: =VLOOKUP($D71,'C.1 - Rate Sheets'!$B$16:$E$35,2) -> 56.8 | L71: =VLOOKUP($D71,'C.1 - Rate Sheets'!$B$16:$E$35,3) -> 76.7 | M71: =VLOOKUP($D71,'C.1 - Rate Sheets'!$B$16:$E$35,4) -> 90.9 | N71: =VLOOKUP($D71,'C.1 - Rate Sheets'!B:F,5,FALSE) -> 0 | O71: 0 | P71: 0 | Q71: 0 | R71: 0 | S71: 0 | T71: 0 | U71: 0 | V71: 0 | W71: 0 | X71: 0 | Y71: 0 | Z71: 0 | AA71: 0 | AB71: 0 | AC71: 0 | AD71: 0 | AE71: 0 | AF71: 0 | AG71: 0 | AH71: 0 | AM71: 0 | AR71: 0 | AW71: 0 | BB71: 0 | BG71: 0 | BH71: 6 | BI71: 8 | BL71: 14 | BM71: 8 | BN71: 8 | BQ71: 16 | BR71: 8 | BS71: 8 | BV71: 16 | BX71: 16 | CA71: 16 | CF71: 0 | CK71: 0 | CL71: 0 | CM71: 0 | CN71: 0 | CO71: 0 | CP71: 0 | CQ71: 0 | CR71: 0 | CS71: 0 | CT71: 0 | CU71: 0 | CV71: 0 | CW71: 0 | CX71: 0 | CY71: 0 | CZ71: 0 | DA71: 0 | DB71: 0 | DC71: 0 | DD71: 0 | DE71: 0 | DF71: 0 | DG71: 0 | DH71: 0 | DI71: 0 | DJ71: 0 | DK71: 0 | DL71: 0 | DM71: 0 | DN71: 0 | DO71: 0 | DP71: 0 | DQ71: 0 | DR71: 0 | DS71: 0 | DT71: 0 | DU71: 0 | DV71: 0 | DW71: 0 | DX71: 0 | DY71: 0 | DZ71: 0 | EA71: 0 | EB71: 0 | EC71: 0 | ED71: 0 | EE71: 0 | EF71: 0 | EG71: 0 | EH71: 0 | EI71: 0 | EJ71: 0 | EK71: 0 | EL71: 0 | EM71: 0 | EN71: 0 | EO71: 0 | EP71: 0 | EQ71: 0 | ER71: 0 | ES71: 0 | ET71: 22 | EU71: 40 | EV71: 0 | EW71: 0 | EX71: 62 | EY71: 1249.6 | EZ71: 3068 | FA71: 0 | FB71: 0 | FC71: 4317.6 | FD71: 4317.6 | FE71: Yes | FF71: 0 | FG71: 0 | FH71: 0
B72: 52 | D72: Tree Trimmer | E72: Vendor #13 | G72: SW007761 | H72: 2018-10-17 | I72: 2018-10-20 | J72: Yes | K72: =VLOOKUP($D72,'C.1 - Rate Sheets'!$B$16:$E$35,2) -> 48.5 | L72: =VLOOKUP($D72,'C.1 - Rate Sheets'!$B$16:$E$35,3) -> 65.5 | M72: =VLOOKUP($D72,'C.1 - Rate Sheets'!$B$16:$E$35,4) -> 77.6 | N72: =VLOOKUP($D72,'C.1 - Rate Sheets'!B:F,5,FALSE) -> 0 | O72: 0 | P72: 0 | Q72: 0 | R72: 0 | S72: 0 | T72: 0 | U72: 0 | V72: 0 | W72: 0 | X72: 0 | Y72: 0 | Z72: 0 | AA72: 0 | AB72: 0 | AC72: 0 | AD72: 0 | AE72: 0 | AF72: 0 | AG72: 0 | AH72: 0 | AM72: 0 | AR72: 0 | AW72: 0 | BB72: 0 | BG72: 0 | BH72: 6 | BI72: 8 | BL72: 14 | BM72: 8 | BN72: 8 | BQ72: 16 | BR72: 8 | BS72: 8 | BV72: 16 | BX72: 16 | CA72: 16 | CF72: 0 | CK72: 0 | CL72: 0 | CM72: 0 | CN72: 0 | CO72: 0 | CP72: 0 | CQ72: 0 | CR72: 0 | CS72: 0 | CT72: 0 | CU72: 0 | CV72: 0 | CW72: 0 | CX72: 0 | CY72: 0 | CZ72: 0 | DA72: 0 | DB72: 0 | DC72: 0 | DD72: 0 | DE72: 0 | DF72: 0 | DG72: 0 | DH72: 0 | DI72: 0 | DJ72: 0 | DK72: 0 | DL72: 0 | DM72: 0 | DN72: 0 | DO72: 0 | DP72: 0 | DQ72: 0 | DR72: 0 | DS72: 0 | DT72: 0 | DU72: 0 | DV72: 0 | DW72: 0 | DX72: 0 | DY72: 0 | DZ72: 0 | EA72: 0 | EB72: 0 | EC72: 0 | ED72: 0 | EE72: 0 | EF72: 0 | EG72: 0 | EH72: 0 | EI72: 0 | EJ72: 0 | EK72: 0 | EL72: 0 | EM72: 0 | EN72: 0 | EO72: 0 | EP72: 0 | EQ72: 0 | ER72: 0 | ES72: 0 | ET72: 22 | EU72: 40 | EV72: 0 | EW72: 0 | EX72: 62 | EY72: 1067 | EZ72: 2620 | FA72: 0 | FB72: 0 | FC72: 3687 | FD72: 3687 | FE72: Yes | FF72: 0 | FG72: 0 | FH72: 0
B73: 53 | D73: Crew Foreman | E73: Vendor #13 | G73: SW007764 | H73: 2018-10-17 | I73: 2018-10-20 | J73: Yes | K73: =VLOOKUP($D73,'C.1 - Rate Sheets'!$B$16:$E$35,2) -> 56.8 | L73: =VLOOKUP($D73,'C.1 - Rate Sheets'!$B$16:$E$35,3) -> 76.7 | M73: =VLOOKUP($D73,'C.1 - Rate Sheets'!$B$16:$E$35,4) -> 90.9 | N73: =VLOOKUP($D73,'C.1 - Rate Sheets'!B:F,5,FALSE) -> 0 | O73: 0 | P73: 0 | Q73: 0 | R73: 0 | S73: 0 | T73: 0 | U73: 0 | V73: 0 | W73: 0 | X73: 0 | Y73: 0 | Z73: 0 | AA73: 0 | AB73: 0 | AC73: 0 | AD73: 0 | AE73: 0 | AF73: 0 | AG73: 0 | AH73: 0 | AM73: 0 | AR73: 0 | AW73: 0 | BB73: 0 | BG73: 0 | BH73: 6 | BI73: 8 | BL73: 14 | BM73: 8 | BN73: 8 | BQ73: 16 | BR73: 8 | BS73: 8 | BV73: 16 | BX73: 16 | CA73: 16 | CF73: 0 | CK73: 0 | CL73: 0 | CM73: 0 | CN73: 0 | CO73: 0 | CP73: 0 | CQ73: 0 | CR73: 0 | CS73: 0 | CT73: 0 | CU73: 0 | CV73: 0 | CW73: 0 | CX73: 0 | CY73: 0 | CZ73: 0 | DA73: 0 | DB73: 0 | DC73: 0 | DD73: 0 | DE73: 0 | DF73: 0 | DG73: 0 | DH73: 0 | DI73: 0 | DJ73: 0 | DK73: 0 | DL73: 0 | DM73: 0 | DN73: 0 | DO73: 0 | DP73: 0 | DQ73: 0 | DR73: 0 | DS73: 0 | DT73: 0 | DU73: 0 | DV73: 0 | DW73: 0 | DX73: 0 | DY73: 0 | DZ73: 0 | EA73: 0 | EB73: 0 | EC73: 0 | ED73: 0 | EE73: 0 | EF73: 0 | EG73: 0 | EH73: 0 | EI73: 0 | EJ73: 0 | EK73: 0 | EL73: 0 | EM73: 0 | EN73: 0 | EO73: 0 | EP73: 0 | EQ73: 0 | ER73: 0 | ES73: 0 | ET73: 22 | EU73: 40 | EV73: 0 | EW73: 0 | EX73: 62 | EY73: 1249.6 | EZ73: 3068 | FA73: 0 | FB73: 0 | FC73: 4317.6 | FD73: 4317.6 | FE73: Yes | FF73: 0 | FG73: 0 | FH73: 0
B74: 54 | D74: Tree Trimmer | E74: Vendor #13 | G74: SW007764 | H74: 2018-10-17 | I74: 2018-10-20 | J74: Yes | K74: =VLOOKUP($D74,'C.1 - Rate Sheets'!$B$16:$E$35,2) -> 48.5 | L74: =VLOOKUP($D74,'C.1 - Rate Sheets'!$B$16:$E$35,3) -> 65.5 | M74: =VLOOKUP($D74,'C.1 - Rate Sheets'!$B$16:$E$35,4) -> 77.6 | N74: =VLOOKUP($D74,'C.1 - Rate Sheets'!B:F,5,FALSE) -> 0 | O74: 0 | P74: 0 | Q74: 0 | R74: 0 | S74: 0 | T74: 0 | U74: 0 | V74: 0 | W74: 0 | X74: 0 | Y74: 0 | Z74: 0 | AA74: 0 | AB74: 0 | AC74: 0 | AD74: 0 | AE74: 0 | AF74: 0 | AG74: 0 | AH74: 0 | AM74: 0 | AR74: 0 | AW74: 0 | BB74: 0 | BG74: 0 | BH74: 6 | BI74: 8 | BL74: 14 | BM74: 8 | BN74: 8 | BQ74: 16 | BR74: 8 | BS74: 8 | BV74: 16 | BX74: 16 | CA74: 16 | CF74: 0 | CK74: 0 | CL74: 0 | CM74: 0 | CN74: 0 | CO74: 0 | CP74: 0 | CQ74: 0 | CR74: 0 | CS74: 0 | CT74: 0 | CU74: 0 | CV74: 0 | CW74: 0 | CX74: 0 | CY74: 0 | CZ74: 0 | DA74: 0 | DB74: 0 | DC74: 0 | DD74: 0 | DE74: 0 | DF74: 0 | DG74: 0 | DH74: 0 | DI74: 0 | DJ74: 0 | DK74: 0 | DL74: 0 | DM74: 0 | DN74: 0 | DO74: 0 | DP74: 0 | DQ74: 0 | DR74: 0 | DS74: 0 | DT74: 0 | DU74: 0 | DV74: 0 | DW74: 0 | DX74: 0 | DY74: 0 | DZ74: 0 | EA74: 0 | EB74: 0 | EC74: 0 | ED74: 0 | EE74: 0 | EF74: 0 | EG74: 0 | EH74: 0 | EI74: 0 | EJ74: 0 | EK74: 0 | EL74: 0 | EM74: 0 | EN74: 0 | EO74: 0 | EP74: 0 | EQ74: 0 | ER74: 0 | ES74: 0 | ET74: 22 | EU74: 40 | EV74: 0 | EW74: 0 | EX74: 62 | EY74: 1067 | EZ74: 2620 | FA74: 0 | FB74: 0 | FC74: 3687 | FD74: 3687 | FE74: Yes | FF74: 0 | FG74: 0 | FH74: 0
B75: 55 | D75: Crew Foreman | E75: Vendor #13 | G75: SW007766 | H75: 2018-10-17 | I75: 2018-10-20 | J75: Yes | K75: =VLOOKUP($D75,'C.1 - Rate Sheets'!$B$16:$E$35,2) -> 56.8 | L75: =VLOOKUP($D75,'C.1 - Rate Sheets'!$B$16:$E$35,3) -> 76.7 | M75: =VLOOKUP($D75,'C.1 - Rate Sheets'!$B$16:$E$35,4) -> 90.9 | N75: =VLOOKUP($D75,'C.1 - Rate Sheets'!B:F,5,FALSE) -> 0 | O75: 0 | P75: 0 | Q75: 0 | R75: 0 | S75: 0 | T75: 0 | U75: 0 | V75: 0 | W75: 0 | X75: 0 | Y75: 0 | Z75: 0 | AA75: 0 | AB75: 0 | AC75: 0 | AD75: 0 | AE75: 0 | AF75: 0 | AG75: 0 | AH75: 0 | AM75: 0 | AR75: 0 | AW75: 0 | BB75: 0 | BG75: 0 | BH75: 2 | BL75: 2 | BQ75: 0 | BV75: 0 | CA75: 0 | CF75: 0 | CK75: 0 | CL75: 0 | CM75: 0 | CN75: 0 | CO75: 0 | CP75: 0 | CQ75: 0 | CR75: 0 | CS75: 0 | CT75: 0 | CU75: 0 | CV75: 0 | CW75: 0 | CX75: 0 | CY75: 0 | CZ75: 0 | DA75: 0 | DB75: 0 | DC75: 0 | DD75: 0 | DE75: 0 | DF75: 0 | DG75: 0 | DH75: 0 | DI75: 0 | DJ75: 0 | DK75: 0 | DL75: 0 | DM75: 0 | DN75: 0 | DO75: 0 | DP75: 0 | DQ75: 0 | DR75: 0 | DS75: 0 | DT75: 0 | DU75: 0 | DV75: 0 | DW75: 0 | DX75: 0 | DY75: 0 | DZ75: 0 | EA75: 0 | EB75: 0 | EC75: 0 | ED75: 0 | EE75: 0 | EF75: 0 | EG75: 0 | EH75: 0 | EI75: 0 | EJ75: 0 | EK75: 0 | EL75: 0 | EM75: 0 | EN75: 0 | EO75: 0 | EP75: 0 | EQ75: 0 | ER75: 0 | ES75: 0 | ET75: 2 | EU75: 0 | EV75: 0 | EW75: 0 | EX75: 2 | EY75: 113.6 | EZ75: 0 | FA75: 0 | FB75: 0 | FC75: 113.6 | FD75: 113.6 | FE75: Yes | FF75: 0 | FG75: 0 | FH75: 0
B76: 56 | D76: Tree Trimmer | E76: Vendor #13 | G76: SW007766 | H76: 2018-10-17 | I76: 2018-10-20 | J76: Yes | K76: =VLOOKUP($D76,'C.1 - Rate Sheets'!$B$16:$E$35,2) -> 48.5 | L76: =VLOOKUP($D76,'C.1 - Rate Sheets'!$B$16:$E$35,3) -> 65.5 | M76: =VLOOKUP($D76,'C.1 - Rate Sheets'!$B$16:$E$35,4) -> 77.6 | N76: =VLOOKUP($D76,'C.1 - Rate Sheets'!B:F,5,FALSE) -> 0 | O76: 0 | P76: 0 | Q76: 0 | R76: 0 | S76: 0 | T76: 0 | U76: 0 | V76: 0 | W76: 0 | X76: 0 | Y76: 0 | Z76: 0 | AA76: 0 | AB76: 0 | AC76: 0 | AD76: 0 | AE76: 0 | AF76: 0 | AG76: 0 | AH76: 0 | AM76: 0 | AR76: 0 | AW76: 0 | BB76: 0 | BG76: 0 | BH76: 2 | BL76: 2 | BQ76: 0 | BV76: 0 | CA76: 0 | CF76: 0 | CK76: 0 | CL76: 0 | CM76: 0 | CN76: 0 | CO76: 0 | CP76: 0 | CQ76: 0 | CR76: 0 | CS76: 0 | CT76: 0 | CU76: 0 | CV76: 0 | CW76: 0 | CX76: 0 | CY76: 0 | CZ76: 0 | DA76: 0 | DB76: 0 | DC76: 0 | DD76: 0 | DE76: 0 | DF76: 0 | DG76: 0 | DH76: 0 | DI76: 0 | DJ76: 0 | DK76: 0 | DL76: 0 | DM76: 0 | DN76: 0 | DO76: 0 | DP76: 0 | DQ76: 0 | DR76: 0 | DS76: 0 | DT76: 0 | DU76: 0 | DV76: 0 | DW76: 0 | DX76: 0 | DY76: 0 | DZ76: 0 | EA76: 0 | EB76: 0 | EC76: 0 | ED76: 0 | EE76: 0 | EF76: 0 | EG76: 0 | EH76: 0 | EI76: 0 | EJ76: 0 | EK76: 0 | EL76: 0 | EM76: 0 | EN76: 0 | EO76: 0 | EP76: 0 | EQ76: 0 | ER76: 0 | ES76: 0 | ET76: 2 | EU76: 0 | EV76: 0 | EW76: 0 | EX76: 2 | EY76: 97 | EZ76: 0 | FA76: 0 | FB76: 0 | FC76: 97 | FD76: 97 | FE76: Yes | FF76: 0 | FG76: 0 | FH76: 0
B77: 57 | D77: Crew Foreman | E77: Vendor #13 | G77: SW007768 | H77: 2018-10-17 | I77: 2018-10-20 | J77: Yes | K77: =VLOOKUP($D77,'C.1 - Rate Sheets'!$B$16:$E$35,2) -> 56.8 | L77: =VLOOKUP($D77,'C.1 - Rate Sheets'!$B$16:$E$35,3) -> 76.7 | M77: =VLOOKUP($D77,'C.1 - Rate Sheets'!$B$16:$E$35,4) -> 90.9 | N77: =VLOOKUP($D77,'C.1 - Rate Sheets'!B:F,5,FALSE) -> 0 | O77: 0 | P77: 0 | Q77: 0 | R77: 0 | S77: 0 | T77: 0 | U77: 0 | V77: 0 | W77: 0 | X77: 0 | Y77: 0 | Z77: 0 | AA77: 0 | AB77: 0 | AC77: 0 | AD77: 0 | AE77: 0 | AF77: 0 | AG77: 0 | AH77: 0 | AM77: 0 | AR77: 0 | AW77: 0 | BB77: 0 | BG77: 0 | BH77: 2 | BL77: 2 | BQ77: 0 | BV77: 0 | CA77: 0 | CF77: 0 | CK77: 0 | CL77: 0 | CM77: 0 | CN77: 0 | CO77: 0 | CP77: 0 | CQ77: 0 | CR77: 0 | CS77: 0 | CT77: 0 | CU77: 0 | CV77: 0 | CW77: 0 | CX77: 0 | CY77: 0 | CZ77: 0 | DA77: 0 | DB77: 0 | DC77: 0 | DD77: 0 | DE77: 0 | DF77: 0 | DG77: 0 | DH77: 0 | DI77: 0 | DJ77: 0 | DK77: 0 | DL77: 0 | DM77: 0 | DN77: 0 | DO77: 0 | DP77: 0 | DQ77: 0 | DR77: 0 | DS77: 0 | DT77: 0 | DU77: 0 | DV77: 0 | DW77: 0 | DX77: 0 | DY77: 0 | DZ77: 0 | EA77: 0 | EB77: 0 | EC77: 0 | ED77: 0 | EE77: 0 | EF77: 0 | EG77: 0 | EH77: 0 | EI77: 0 | EJ77: 0 | EK77: 0 | EL77: 0 | EM77: 0 | EN77: 0 | EO77: 0 | EP77: 0 | EQ77: 0 | ER77: 0 | ES77: 0 | ET77: 2 | EU77: 0 | EV77: 0 | EW77: 0 | EX77: 2 | EY77: 113.6 | EZ77: 0 | FA77: 0 | FB77: 0 | FC77: 113.6 | FD77: 113.6 | FE77: Yes | FF77: 0 | FG77: 0 | FH77: 0
B78: 58 | D78: Tree Trimmer | E78: Vendor #13 | G78: SW007768 | H78: 2018-10-17 | I78: 2018-10-20 | J78: Yes | K78: =VLOOKUP($D78,'C.1 - Rate Sheets'!$B$16:$E$35,2) -> 48.5 | L78: =VLOOKUP($D78,'C.1 - Rate Sheets'!$B$16:$E$35,3) -> 65.5 | M78: =VLOOKUP($D78,'C.1 - Rate Sheets'!$B$16:$E$35,4) -> 77.6 | N78: =VLOOKUP($D78,'C.1 - Rate Sheets'!B:F,5,FALSE) -> 0 | O78: 0 | P78: 0 | Q78: 0 | R78: 0 | S78: 0 | T78: 0 | U78: 0 | V78: 0 | W78: 0 | X78: 0 | Y78: 0 | Z78: 0 | AA78: 0 | AB78: 0 | AC78: 0 | AD78: 0 | AE78: 0 | AF78: 0 | AG78: 0 | AH78: 0 | AM78: 0 | AR78: 0 | AW78: 0 | BB78: 0 | BG78: 0 | BH78: 2 | BL78: 2 | BQ78: 0 | BV78: 0 | CA78: 0 | CF78: 0 | CK78: 0 | CL78: 0 | CM78: 0 | CN78: 0 | CO78: 0 | CP78: 0 | CQ78: 0 | CR78: 0 | CS78: 0 | CT78: 0 | CU78: 0 | CV78: 0 | CW78: 0 | CX78: 0 | CY78: 0 | CZ78: 0 | DA78: 0 | DB78: 0 | DC78: 0 | DD78: 0 | DE78: 0 | DF78: 0 | DG78: 0 | DH78: 0 | DI78: 0 | DJ78: 0 | DK78: 0 | DL78: 0 | DM78: 0 | DN78: 0 | DO78: 0 | DP78: 0 | DQ78: 0 | DR78: 0 | DS78: 0 | DT78: 0 | DU78: 0 | DV78: 0 | DW78: 0 | DX78: 0 | DY78: 0 | DZ78: 0 | EA78: 0 | EB78: 0 | EC78: 0 | ED78: 0 | EE78: 0 | EF78: 0 | EG78: 0 | EH78: 0 | EI78: 0 | EJ78: 0 | EK78: 0 | EL78: 0 | EM78: 0 | EN78: 0 | EO78: 0 | EP78: 0 | EQ78: 0 | ER78: 0 | ES78: 0 | ET78: 2 | EU78: 0 | EV78: 0 | EW78: 0 | EX78: 2 | EY78: 97 | EZ78: 0 | FA78: 0 | FB78: 0 | FC78: 97 | FD78: 97 | FE78: Yes | FF78: 0 | FG78: 0 | FH78: 0
B79: 59 | D79: Crew Foreman | E79: Vendor #13 | G79: SW007769 | H79: 2018-10-17 | I79: 2018-10-20 | J79: Yes | K79: =VLOOKUP($D79,'C.1 - Rate Sheets'!$B$16:$E$35,2) -> 56.8 | L79: =VLOOKUP($D79,'C.1 - Rate Sheets'!$B$16:$E$35,3) -> 76.7 | M79: =VLOOKUP($D79,'C.1 - Rate Sheets'!$B$16:$E$35,4) -> 90.9 | N79: =VLOOKUP($D79,'C.1 - Rate Sheets'!B:F,5,FALSE) -> 0 | AW79: 0 | BB79: 0 | BG79: 0 | BH79: 6 | BI79: 8 | BL79: 14 | BM79: 8 | BN79: 8 | BQ79: 16 | BR79: 8 | BS79: 8 | BV79: 16 | BX79: 16 | CA79: 16 | CF79: 0 | CK79: 0 | CP79: 0 | CU79: 0 | CZ79: 0 | DE79: =+SUM(DA79:DD79) -> 0 | DJ79: =+SUM(DF79:DI79) -> 0 | ET79: 22 | EU79: 40 | EV79: 0 | EW79: 0 | EX79: 62 | EY79: 1249.6 | EZ79: 3068 | FA79: 0 | FB79: 0 | FC79: 4317.6 | FD79: 4317.6 | FE79: Yes | FF79: 0 | FG79: 0 | FH79: 0
B80: 60 | D80: Tree Trimmer | E80: Vendor #13 | G80: SW007769 | H80: 2018-10-17 | I80: 2018-10-20 | J80: Yes | K80: =VLOOKUP($D80,'C.1 - Rate Sheets'!$B$16:$E$35,2) -> 48.5 | L80: =VLOOKUP($D80,'C.1 - Rate Sheets'!$B$16:$E$35,3) -> 65.5 | M80: =VLOOKUP($D80,'C.1 - Rate Sheets'!$B$16:$E$35,4) -> 77.6 | N80: =VLOOKUP($D80,'C.1 - Rate Sheets'!B:F,5,FALSE) -> 0 | AW80: 0 | BB80: 0 | BG80: 0 | BH80: 6 | BI80: 8 | BL80: 14 | BM80: 8 | BN80: 8 | BQ80: 16 | BR80: 8 | BS80: 8 | BV80: 16 | BX80: 16 | CA80: 16 | CF80: 0 | CK80: 0 | CP80: 0 | CU80: 0 | CZ80: 0 | DE80: 0 | DJ80: 0 | ET80: 22 | EU80: 40 | EV80: 0 | EW80: 0 | EX80: 62 | EY80: 1067 | EZ80: 2620 | FA80: 0 | FB80: 0 | FC80: 3687 | FD80: 3687 | FE80: Yes | FF80: 0 | FG80: 0 | FH80: 0
B81: 61 | D81: Crew Foreman | E81: Vendor #13 | G81: SW007770 | H81: 2018-10-17 | I81: 2018-10-20 | J81: Yes | K81: =VLOOKUP($D81,'C.1 - Rate Sheets'!$B$16:$E$35,2) -> 56.8 | L81: =VLOOKUP($D81,'C.1 - Rate Sheets'!$B$16:$E$35,3) -> 76.7 | M81: =VLOOKUP($D81,'C.1 - Rate Sheets'!$B$16:$E$35,4) -> 90.9 | N81: =VLOOKUP($D81,'C.1 - Rate Sheets'!B:F,5,FALSE) -> 0 | AW81: 0 | BB81: 0 | BG81: 0 | BH81: 8 | BI81: 1 | BL81: 9 | BQ81: 0 | BV81: 0 | CA81: 0 | CF81: 0 | CK81: 0 | CP81: 0 | CU81: 0 | CZ81: 0 | DE81: 0 | DJ81: 0 | ET81: 8 | EU81: 1 | EV81: 0 | EW81: 0 | EX81: 9 | EY81: 454.4 | EZ81: 76.7 | FA81: 0 | FB81: 0 | FC81: 531.1 | FD81: 531.1 | FE81: Yes | FF81: 0 | FG81: 0 | FH81: 0
B82: 62 | D82: Tree Trimmer | E82: Vendor #13 | G82: SW007770 | H82: 2018-10-17 | I82: 2018-10-20 | J82: Yes | K82: =VLOOKUP($D82,'C.1 - Rate Sheets'!$B$16:$E$35,2) -> 48.5 | L82: =VLOOKUP($D82,'C.1 - Rate Sheets'!$B$16:$E$35,3) -> 65.5 | M82: =VLOOKUP($D82,'C.1 - Rate Sheets'!$B$16:$E$35,4) -> 77.6 | N82: =VLOOKUP($D82,'C.1 - Rate Sheets'!B:F,5,FALSE) -> 0 | AW82: 0 | BB82: 0 | BG82: 0 | BH82: 8 | BI82: 1 | BL82: 9 | BQ82: 0 | BV82: 0 | CA82: 0 | CF82: 0 | CK82: 0 | CP82: 0 | CU82: 0 | CZ82: 0 | DE82: 0 | DJ82: 0 | ET82: 8 | EU82: 1 | EV82: 0 | EW82: 0 | EX82: 9 | EY82: 388 | EZ82: 65.5 | FA82: 0 | FB82: 0 | FC82: 453.5 | FD82: 453.5 | FE82: Yes | FF82: 0 | FG82: 0 | FH82: 0
B83: 63 | D83: Crew Foreman | E83: Vendor #13 | G83: SW007771 | H83: 2018-10-17 | I83: 2018-10-20 | J83: Yes | K83: =VLOOKUP($D83,'C.1 - Rate Sheets'!$B$16:$E$35,2) -> 56.8 | L83: =VLOOKUP($D83,'C.1 - Rate Sheets'!$B$16:$E$35,3) -> 76.7 | M83: =VLOOKUP($D83,'C.1 - Rate Sheets'!$B$16:$E$35,4) -> 90.9 | N83: =VLOOKUP($D83,'C.1 - Rate Sheets'!B:F,5,FALSE) -> 0 | AW83: 0 | BB83: 0 | BG83: 0 | BI83: 7 | BL83: 7 | BM83: 8 | BN83: 8 | BQ83: 16 | BR83: 4 | BS83: 12 | BV83: 16 | BX83: 16 | CA83: 16 | CF83: 0 | CK83: 0 | CP83: 0 | CU83: 0 | CZ83: 0 | DE83: 0 | DJ83: 0 | ET83: 12 | EU83: 43 | EV83: 0 | EW83: 0 | EX83: 55 | EY83: =ET83*K83 -> 681.6 | EZ83: =EU83*L83 -> 3298.1 | FA83: =EV83*M83 -> 0 | FB83: =EW83*N83 -> 0 | FC83: 3979.7 | FD83: 3979.7 | FE83: Yes | FF83: 0 | FG83: 0 | FH83: 0
B84: 64 | D84: Tree Trimmer | E84: Vendor #13 | G84: SW007771 | H84: 2018-10-17 | I84: 2018-10-20 | J84: Yes | K84: =VLOOKUP($D84,'C.1 - Rate Sheets'!$B$16:$E$35,2) -> 48.5 | L84: =VLOOKUP($D84,'C.1 - Rate Sheets'!$B$16:$E$35,3) -> 65.5 | M84: =VLOOKUP($D84,'C.1 - Rate Sheets'!$B$16:$E$35,4) -> 77.6 | N84: =VLOOKUP($D84,'C.1 - Rate Sheets'!B:F,5,FALSE) -> 0 | AW84: 0 | BB84: 0 | BG84: 0 | BI84: 7 | BL84: 7 | BM84: 8 | BN84: 8 | BQ84: 16 | BR84: 4 | BS84: 12 | BV84: 16 | BX84: 16 | CA84: 16 | CF84: 0 | CK84: 0 | CP84: 0 | CU84: 0 | CZ84: 0 | DE84: 0 | DJ84: 0 | ET84: 12 | EU84: 43 | EV84: 0 | EW84: 0 | EX84: 55 | EY84: 582 | EZ84: 2816.5 | FA84: 0 | FB84: 0 | FC84: 3398.5 | FD84: 3398.5 | FE84: Yes | FF84: 0 | FG84: 0 | FH84: -258.3 | FI84: 5
B85: 65 | D85: Crew Foreman | E85: Vendor #13 | G85: SW007772 | H85: 2018-10-17 | I85: 2018-10-20 | J85: Yes | K85: =VLOOKUP($D85,'C.1 - Rate Sheets'!$B$16:$E$35,2) -> 56.8 | L85: =VLOOKUP($D85,'C.1 - Rate Sheets'!$B$16:$E$35,3) -> 76.7 | M85: =VLOOKUP($D85,'C.1 - Rate Sheets'!$B$16:$E$35,4) -> 90.9 | N85: =VLOOKUP($D85,'C.1 - Rate Sheets'!B:F,5,FALSE) -> 0 | AW85: 0 | BB85: 0 | BG85: 0 | BH85: 8 | BI85: 8 | BL85: 16 | BQ85: 0 | BV85: 0 | CA85: 0 | CF85: 0 | CK85: 0 | CP85: 0 | CU85: 0 | CZ85: 0 | DE85: 0 | DJ85: 0 | ET85: =SUM(O85,T85,Y85,AI85,AN85,AS85,AX85,BC85,BH85,BM85,BR85,BW85,CB85,CL85, CG85,CQ85,CV85,DA85,DF85,DK85, DP85,DU85,DZ85,EE85,EJ85,EO85) -> 8 | EU85: =SUM(P85,U85,Z85,AJ85,AO85,AT85,AY85,BD85,BI85,BN85,BS85,BX85,CC85,CM85, CH85,CR85,CW85,DB85,DG85,DL85, DQ85,DV85,EA85,EF85,EK85,EP85) -> 8 | EV85: =SUM(Q85,V85,AA85,AK85,AP85,AU85,AZ85,BE85,BJ85,BO85,BT85,BY85,CD85,CN85, CI85,CS85,CX85,DC85,DH85,DM85, DR85,DW85,EB85,EG85,EL85,EQ85) -> 0 | EW85: =SUM(R85,W85,AB85,AL85,AQ85,AV85,BA85,BF85,BK85,BP85,BU85,BZ85,CO85, CJ85,CT85,CY85,DD85,DI85,DN85, DS85,DX85,EC85,EH85,EM85,ER85) -> 0 | EX85: =SUM(S85,X85,AC85,AM85,AR85,AW85,BB85,BG85,BL85,BQ85,BV85,CA85,CP85, CK85,CU85,CZ85,DE85,DJ85,DO85, DT85,DY85,ED85,EI85,EN85,ES85) -> 16 | EY85: 454.4 | EZ85: 613.6 | FA85: 0 | FB85: 0 | FC85: 1068 | FD85: =FC85-FF85 -> 1068 | FE85: Yes | FF85: 0 | FG85: 0 | FH85: 0
B86: 66 | D86: Tree Trimmer | E86: Vendor #13 | G86: SW007772 | H86: 2018-10-17 | I86: 2018-10-20 | J86: Yes | K86: =VLOOKUP($D86,'C.1 - Rate Sheets'!$B$16:$E$35,2) -> 48.5 | L86: =VLOOKUP($D86,'C.1 - Rate Sheets'!$B$16:$E$35,3) -> 65.5 | M86: =VLOOKUP($D86,'C.1 - Rate Sheets'!$B$16:$E$35,4) -> 77.6 | N86: =VLOOKUP($D86,'C.1 - Rate Sheets'!B:F,5,FALSE) -> 0 | AW86: =SUM(AS86:AV86) -> 0 | BB86: =SUM(AX86:BA86) -> 0 | BG86: =SUM(BC86:BF86) -> 0 | BH86: 8 | BI86: 8 | BL86: 16 | BQ86: 0 | BV86: 0 | CA86: 0 | CF86: =+SUM(CB86:CE86) -> 0 | CK86: =SUM(CG86:CJ86) -> 0 | CP86: =+SUM(CL86:CO86) -> 0 | CU86: =+SUM(CQ86:CT86) -> 0 | CZ86: =+SUM(CV86:CY86) -> 0 | DE86: =+SUM(DA86:DD86) -> 0 | DJ86: =+SUM(DF86:DI86) -> 0 | ET86: 8 | EU86: 8 | EV86: 0 | EW86: 0 | EX86: 16 | EY86: 388 | EZ86: 524 | FA86: 0 | FB86: 0 | FC86: 912 | FD86: 912 | FE86: Yes | FF86: 0 | FG86: 0 | FH86: 0
B87: 67 | D87: Crew Foreman | E87: Vendor #13 | G87: SW007773 | H87: 2018-10-18 | I87: 2018-10-20 | J87: Yes | K87: =VLOOKUP($D87,'C.1 - Rate Sheets'!$B$16:$E$35,2) -> 56.8 | L87: =VLOOKUP($D87,'C.1 - Rate Sheets'!$B$16:$E$35,3) -> 76.7 | M87: =VLOOKUP($D87,'C.1 - Rate Sheets'!$B$16:$E$35,4) -> 90.9 | N87: =VLOOKUP($D87,'C.1 - Rate Sheets'!B:F,5,FALSE) -> 0 | AW87: 0 | BB87: 0 | BG87: 0 | BL87: 0 | BM87: 8 | BN87: 8 | BQ87: 16 | BR87: 4 | BS87: 12 | BV87: 16 | BX87: 16 | CA87: 16 | CF87: 0 | CK87: 0 | CP87: 0 | CU87: 0 | CZ87: 0 | DE87: 0 | DJ87: 0 | ET87: 12 | EU87: 36 | EV87: 0 | EW87: 0 | EX87: 48 | EY87: 681.6 | EZ87: 2761.2 | FA87: 0 | FB87: 0 | FC87: 3442.8 | FD87: 3442.8 | FE87: Yes | FF87: 0 | FG87: 0 | FH87: 0
B88: 68 | D88: Tree Trimmer | E88: Vendor #13 | G88: SW007773 | H88: 2018-10-18 | I88: 2018-10-20 | J88: Yes | K88: =VLOOKUP($D88,'C.1 - Rate Sheets'!$B$16:$E$35,2) -> 48.5 | L88: =VLOOKUP($D88,'C.1 - Rate Sheets'!$B$16:$E$35,3) -> 65.5 | M88: =VLOOKUP($D88,'C.1 - Rate Sheets'!$B$16:$E$35,4) -> 77.6 | N88: =VLOOKUP($D88,'C.1 - Rate Sheets'!B:F,5,FALSE) -> 0 | AW88: 0 | BB88: 0 | BG88: 0 | BL88: 0 | BM88: 8 | BN88: 8 | BQ88: 16 | BR88: 4 | BS88: 12 | BV88: 16 | BX88: 16 | CA88: 16 | CF88: 0 | CK88: 0 | CP88: 0 | CU88: 0 | CZ88: 0 | DE88: 0 | DJ88: 0 | ET88: 12 | EU88: 36 | EV88: 0 | EW88: 0 | EX88: 48 | EY88: 582 | EZ88: 2358 | FA88: 0 | FB88: 0 | FC88: 2940 | FD88: 2940 | FE88: Yes | FF88: 0 | FG88: 0 | FH88: -147.6 | FI88: 6
B89: 69 | D89: Crew Foreman | E89: Vendor #13 | G89: SW007774 | H89: 2018-10-18 | I89: 2018-10-20 | J89: Yes | K89: =VLOOKUP($D89,'C.1 - Rate Sheets'!$B$16:$E$35,2) -> 56.8 | L89: =VLOOKUP($D89,'C.1 - Rate Sheets'!$B$16:$E$35,3) -> 76.7 | M89: =VLOOKUP($D89,'C.1 - Rate Sheets'!$B$16:$E$35,4) -> 90.9 | N89: =VLOOKUP($D89,'C.1 - Rate Sheets'!B:F,5,FALSE) -> 0 | AW89: 0 | BB89: 0 | BG89: 0 | BL89: 0 | BM89: 8 | BN89: 8 | BQ89: 16 | BR89: 4 | BS89: 12 | BV89: 16 | BX89: 16 | CA89: 16 | CF89: 0 | CK89: 0 | CP89: 0 | CU89: 0 | CZ89: 0 | DE89: 0 | DJ89: 0 | ET89: 12 | EU89: 36 | EV89: 0 | EW89: 0 | EX89: 48 | EY89: 681.6 | EZ89: 2761.2 | FA89: 0 | FB89: 0 | FC89: 3442.8 | FD89: 3442.8 | FE89: Yes | FF89: 0 | FG89: 0 | FH89: 0
B90: 70 | D90: Tree Trimmer | E90: Vendor #13 | G90: SW007774 | H90: 2018-10-18 | I90: 2018-10-20 | J90: Yes | K90: =VLOOKUP($D90,'C.1 - Rate Sheets'!$B$16:$E$35,2) -> 48.5 | L90: =VLOOKUP($D90,'C.1 - Rate Sheets'!$B$16:$E$35,3) -> 65.5 | M90: =VLOOKUP($D90,'C.1 - Rate Sheets'!$B$16:$E$35,4) -> 77.6 | N90: =VLOOKUP($D90,'C.1 - Rate Sheets'!B:F,5,FALSE) -> 0 | AW90: 0 | BB90: 0 | BG90: 0 | BL90: 0 | BM90: 8 | BN90: 8 | BQ90: 16 | BR90: 4 | BS90: 12 | BV90: 16 | BX90: 16 | CA90: 16 | CF90: 0 | CK90: 0 | CP90: 0 | CU90: 0 | CZ90: 0 | DE90: 0 | DJ90: 0 | ET90: 12 | EU90: 36 | EV90: 0 | EW90: 0 | EX90: 48 | EY90: 582 | EZ90: 2358 | FA90: 0 | FB90: 0 | FC90: 2940 | FD90: 2940 | FE90: Yes | FF90: 0 | FG90: 0 | FH90: 0
B91: 71 | D91: Crew Foreman | E91: Vendor #13 | G91: SW007775 | H91: 2018-10-17 | I91: 2018-10-20 | J91: Yes | K91: =VLOOKUP($D91,'C.1 - Rate Sheets'!$B$16:$E$35,2) -> 56.8 | L91: =VLOOKUP($D91,'C.1 - Rate Sheets'!$B$16:$E$35,3) -> 76.7 | M91: =VLOOKUP($D91,'C.1 - Rate Sheets'!$B$16:$E$35,4) -> 90.9 | N91: =VLOOKUP($D91,'C.1 - Rate Sheets'!B:F,5,FALSE) -> 0 | AW91: 0 | BB91: 0 | BG91: 0 | BH91: 8 | BI91: 8 | BL91: 16 | BM91: 0 | BN91: 0 | BQ91: 0 | BV91: 0 | CA91: 0 | CF91: 0 | CK91: 0 | CP91: 0 | CU91: 0 | CZ91: 0 | DE91: 0 | DJ91: 0 | ET91: 8 | EU91: 8 | EV91: 0 | EW91: 0 | EX91: 16 | EY91: 454.4 | EZ91: 613.6 | FA91: 0 | FB91: 0 | FC91: 1068 | FD91: 1068 | FE91: Yes | FF91: 0 | FG91: 0 | FH91: 0
B92: 72 | D92: Tree Trimmer | E92: Vendor #13 | G92: SW007775 | H92: 2018-10-14 | I92: 2018-10-20 | J92: Yes | K92: =VLOOKUP($D92,'C.1 - Rate Sheets'!$B$16:$E$35,2) -> 48.5 | L92: =VLOOKUP($D92,'C.1 - Rate Sheets'!$B$16:$E$35,3) -> 65.5 | M92: =VLOOKUP($D92,'C.1 - Rate Sheets'!$B$16:$E$35,4) -> 77.6 | N92: =VLOOKUP($D92,'C.1 - Rate Sheets'!B:F,5,FALSE) -> 0 | AW92: 0 | BB92: 0 | BG92: 0 | BH92: 8 | BI92: 8 | BL92: 16 | BM92: 0 | BN92: 0 | BQ92: 0 | BV92: 0 | CA92: 0 | CF92: 0 | CK92: 0 | CP92: 0 | CU92: 0 | CZ92: 0 | DE92: 0 | DJ92: 0 | ET92: 8 | EU92: 8 | EV92: 0 | EW92: 0 | EX92: 16 | EY92: 388 | EZ92: 524 | FA92: 0 | FB92: 0 | FC92: 912 | FD92: 912 | FE92: Yes | FF92: 0 | FG92: 0 | FH92: 0
B93: 73 | D93: Crew Foreman | E93: Vendor #13 | G93: SW008066 | H93: 2018-10-14 | I93: 2018-10-20 | J93: Yes | K93: =VLOOKUP($D93,'C.1 - Rate Sheets'!$B$16:$E$35,2) -> 56.8 | L93: =VLOOKUP($D93,'C.1 - Rate Sheets'!$B$16:$E$35,3) -> 76.7 | M93: =VLOOKUP($D93,'C.1 - Rate Sheets'!$B$16:$E$35,4) -> 90.9 | N93: =VLOOKUP($D93,'C.1 - Rate Sheets'!B:F,5,FALSE) -> 0 | AU93: 16 | AW93: 16 | AX93: 8 | AY93: 8 | BB93: 16 | BC93: 8 | BD93: 8 | BG93: 16 | BH93: 8 | BI93: 8 | BL93: 16 | BM93: 8 | BN93: 8 | BQ93: 16 | BR93: 8 | BS93: 8 | BV93: 16 | BX93: 16 | CA93: 16 | CF93: 0 | CK93: 0 | CP93: 0 | CU93: 0 | CZ93: 0 | DE93: 0 | DJ93: 0 | ET93: 40 | EU93: 56 | EV93: 16 | EW93: 0 | EX93: 112 | EY93: 2272 | EZ93: 4295.2 | FA93: 1454.4 | FB93: 0 | FC93: 8021.6 | FD93: 8021.6 | FE93: Yes | FF93: 0 | FG93: 0 | FH93: 0
B94: 74 | D94: Tree Trimmer | E94: Vendor #13 | G94: SW008066 | H94: 2018-10-14 | I94: 2018-10-20 | J94: Yes | K94: =VLOOKUP($D94,'C.1 - Rate Sheets'!$B$16:$E$35,2) -> 48.5 | L94: =VLOOKUP($D94,'C.1 - Rate Sheets'!$B$16:$E$35,3) -> 65.5 | M94: =VLOOKUP($D94,'C.1 - Rate Sheets'!$B$16:$E$35,4) -> 77.6 | N94: =VLOOKUP($D94,'C.1 - Rate Sheets'!B:F,5,FALSE) -> 0 | AU94: 16 | AW94: 16 | AX94: 8 | AY94: 8 | BB94: 16 | BC94: 8 | BD94: 8 | BG94: 16 | BH94: 8 | BI94: 8 | BL94: 16 | BM94: 8 | BN94: 8 | BQ94: 16 | BR94: 8 | BS94: 8 | BV94: 16 | BX94: 16 | CA94: 16 | CF94: 0 | CK94: 0 | CP94: 0 | CU94: 0 | CZ94: 0 | DE94: 0 | DJ94: 0 | ET94: 40 | EU94: 56 | EV94: 16 | EW94: 0 | EX94: 112 | EY94: 1940 | EZ94: 3668 | FA94: 1241.6 | FB94: 0 | FC94: 6849.6 | FD94: 6849.6 | FE94: Yes | FF94: 0 | FG94: 0 | FH94: 0
B95: 73 | D95: Crew Foreman | E95: Vendor #13 | G95: SW008067 | H95: 2018-10-14 | I95: 2018-10-20 | J95: Yes | K95: =VLOOKUP($D95,'C.1 - Rate Sheets'!$B$16:$E$35,2) -> 56.8 | L95: =VLOOKUP($D95,'C.1 - Rate Sheets'!$B$16:$E$35,3) -> 76.7 | M95: =VLOOKUP($D95,'C.1 - Rate Sheets'!$B$16:$E$35,4) -> 90.9 | N95: =VLOOKUP($D95,'C.1 - Rate Sheets'!B:F,5,FALSE) -> 0 | AU95: 16 | AW95: =SUM(AS95:AV95) -> 16 | AX95: 8 | AY95: 8 | BB95: =SUM(AX95:BA95) -> 16 | BC95: 8 | BD95: 8 | BG95: =SUM(BC95:BF95) -> 16 | BH95: 8 | BI95: 8 | BL95: =SUM(BH95:BK95) -> 16 | BM95: 8 | BN95: 8 | BQ95: =SUM(BM95:BP95) -> 16 | BR95: 8 | BS95: 8 | BV95: =SUM(BR95:BU95) -> 16 | BX95: 16 | CA95: =SUM(BW95:BZ95) -> 16 | CF95: =+SUM(CB95:CE95) -> 0 | CK95: =SUM(CG95:CJ95) -> 0 | CP95: =+SUM(CL95:CO95) -> 0 | CU95: =+SUM(CQ95:CT95) -> 0 | CZ95: =+SUM(CV95:CY95) -> 0 | DE95: =+SUM(DA95:DD95) -> 0 | DJ95: =+SUM(DF95:DI95) -> 0 | ET95: =SUM(O95,T95,Y95,AI95,AN95,AS95,AX95,BC95,BH95,BM95,BR95,BW95,CB95,CL95, CG95,CQ95,CV95,DA95,DF95,DK95, DP95,DU95,DZ95,EE95,EJ95,EO95) -> 40 | EU95: =SUM(P95,U95,Z95,AJ95,AO95,AT95,AY95,BD95,BI95,BN95,BS95,BX95,CC95,CM95, CH95,CR95,CW95,DB95,DG95,DL95, DQ95,DV95,EA95,EF95,EK95,EP95) -> 56 | EV95: =SUM(Q95,V95,AA95,AK95,AP95,AU95,AZ95,BE95,BJ95,BO95,BT95,BY95,CD95,CN95, CI95,CS95,CX95,DC95,DH95,DM95, DR95,DW95,EB95,EG95,EL95,EQ95) -> 16 | EW95: =SUM(R95,W95,AB95,AL95,AQ95,AV95,BA95,BF95,BK95,BP95,BU95,BZ95,CO95, CJ95,CT95,CY95,DD95,DI95,DN95, DS95,DX95,EC95,EH95,EM95,ER95) -> 0 | EX95: =SUM(S95,X95,AC95,AM95,AR95,AW95,BB95,BG95,BL95,BQ95,BV95,CA95,CP95, CK95,CU95,CZ95,DE95,DJ95,DO95, DT95,DY95,ED95,EI95,EN95,ES95) -> 112 | EY95: 2272 | EZ95: 4295.2 | FA95: 1454.4 | FB95: 0 | FC95: =SUM(EY95:FB95) -> 8021.6 | FD95: =FC95-FF95 -> 8021.6 | FE95: Yes | FF95: 0 | FG95: 0 | FH95: 0
B96: 74 | D96: Tree Trimmer | E96: Vendor #13 | G96: SW008067 | H96: 2018-10-14 | I96: 2018-10-20 | J96: Yes | K96: =VLOOKUP($D96,'C.1 - Rate Sheets'!$B$16:$E$35,2) -> 48.5 | L96: =VLOOKUP($D96,'C.1 - Rate Sheets'!$B$16:$E$35,3) -> 65.5 | M96: =VLOOKUP($D96,'C.1 - Rate Sheets'!$B$16:$E$35,4) -> 77.6 | N96: =VLOOKUP($D96,'C.1 - Rate Sheets'!B:F,5,FALSE) -> 0 | AU96: 16 | AW96: 16 | AX96: 8 | AY96: 8 | BB96: 16 | BC96: 8 | BD96: 8 | BG96: 16 | BH96: 8 | BI96: 8 | BL96: 16 | BM96: 8 | BN96: 8 | BQ96: 16 | BR96: 8 | BS96: 8 | BV96: 16 | BX96: 16 | CA96: 16 | CF96: 0 | CK96: 0 | CP96: 0 | CU96: 0 | CZ96: 0 | DE96: 0 | DJ96: 0 | ET96: 40 | EU96: 56 | EV96: 16 | EW96: 0 | EX96: 112 | EY96: 1940 | EZ96: 3668 | FA96: 1241.6 | FB96: 0 | FC96: 6849.6 | FD96: 6849.6 | FE96: Yes | FF96: 0 | FG96: 0 | FH96: 0
B97: 75 | D97: Crew Foreman | E97: Vendor #13 | G97: SW008068 | H97: 2018-10-14 | I97: 2018-10-20 | J97: Yes | K97: =VLOOKUP($D97,'C.1 - Rate Sheets'!$B$16:$E$35,2) -> 56.8 | L97: =VLOOKUP($D97,'C.1 - Rate Sheets'!$B$16:$E$35,3) -> 76.7 | M97: =VLOOKUP($D97,'C.1 - Rate Sheets'!$B$16:$E$35,4) -> 90.9 | N97: =VLOOKUP($D97,'C.1 - Rate Sheets'!B:F,5,FALSE) -> 0 | AU97: 16 | AW97: 16 | AX97: 8 | AY97: 8 | BB97: 16 | BC97: 8 | BD97: 8 | BG97: 16 | BH97: 8 | BI97: 8 | BL97: 16 | BM97: 8 | BN97: 8 | BQ97: 16 | BR97: 8 | BS97: 8 | BV97: 16 | BX97: 16 | CA97: 16 | CF97: 0 | CK97: 0 | CP97: 0 | CU97: 0 | CZ97: 0 | DE97: 0 | DJ97: 0 | ET97: 40 | EU97: 56 | EV97: 16 | EW97: 0 | EX97: 112 | EY97: 2272 | EZ97: 4295.2 | FA97: 1454.4 | FB97: 0 | FC97: 8021.6 | FD97: 8021.6 | FE97: Yes | FF97: 0 | FG97: 0 | FH97: 0
B98: 76 | D98: Tree Trimmer | E98: Vendor #13 | G98: SW008068 | H98: 2018-10-14 | I98: 2018-10-20 | J98: Yes | K98: =VLOOKUP($D98,'C.1 - Rate Sheets'!$B$16:$E$35,2) -> 48.5 | L98: =VLOOKUP($D98,'C.1 - Rate Sheets'!$B$16:$E$35,3) -> 65.5 | M98: =VLOOKUP($D98,'C.1 - Rate Sheets'!$B$16:$E$35,4) -> 77.6 | N98: =VLOOKUP($D98,'C.1 - Rate Sheets'!B:F,5,FALSE) -> 0 | AU98: 16 | AW98: 16 | AX98: 8 | AY98: 8 | BB98: 16 | BC98: 8 | BD98: 8 | BG98: 16 | BH98: 8 | BI98: 8 | BL98: 16 | BM98: 8 | BN98: 8 | BQ98: 16 | BR98: 8 | BS98: 8 | BV98: 16 | BX98: 16 | CA98: 16 | CF98: 0 | CK98: 0 | CP98: 0 | CU98: 0 | CZ98: 0 | DE98: 0 | DJ98: 0 | ET98: 40 | EU98: 56 | EV98: 16 | EW98: 0 | EX98: 112 | EY98: 1940 | EZ98: 3668 | FA98: 1241.6 | FB98: 0 | FC98: 6849.6 | FD98: 6849.6 | FE98: Yes | FF98: 0 | FG98: 0 | FH98: 0
B99: 77 | D99: Crew Foreman | E99: Vendor #13 | G99: SW008069 | H99: 2018-10-14 | I99: 2018-10-20 | J99: Yes | K99: =VLOOKUP($D99,'C.1 - Rate Sheets'!$B$16:$E$35,2) -> 56.8 | L99: =VLOOKUP($D99,'C.1 - Rate Sheets'!$B$16:$E$35,3) -> 76.7 | M99: =VLOOKUP($D99,'C.1 - Rate Sheets'!$B$16:$E$35,4) -> 90.9 | N99: =VLOOKUP($D99,'C.1 - Rate Sheets'!B:F,5,FALSE) -> 0 | AU99: 16 | AW99: 16 | AX99: 8 | AY99: 8 | BB99: 16 | BC99: 8 | BD99: 8 | BG99: 16 | BH99: 8 | BI99: 8 | BL99: 16 | BM99: 8 | BN99: 8 | BQ99: 16 | BR99: 8 | BS99: 8 | BV99: 16 | BX99: 16 | CA99: 16 | CF99: 0 | CK99: 0 | CP99: 0 | CU99: 0 | CZ99: 0 | DE99: 0 | DJ99: 0 | ET99: 40 | EU99: 56 | EV99: 16 | EW99: 0 | EX99: 112 | EY99: 2272 | EZ99: 4295.2 | FA99: 1454.4 | FB99: 0 | FC99: 8021.6 | FD99: 8021.6 | FE99: Yes | FF99: 0 | FG99: 0 | FH99: 0
B100: 78 | D100: Tree Trimmer | E100: Vendor #13 | G100: SW008069 | H100: 2018-10-14 | I100: 2018-10-20 | J100: Yes | K100: =VLOOKUP($D100,'C.1 - Rate Sheets'!$B$16:$E$35,2) -> 48.5 | L100: =VLOOKUP($D100,'C.1 - Rate Sheets'!$B$16:$E$35,3) -> 65.5 | M100: =VLOOKUP($D100,'C.1 - Rate Sheets'!$B$16:$E$35,4) -> 77.6 | N100: =VLOOKUP($D100,'C.1 - Rate Sheets'!B:F,5,FALSE) -> 0 | AU100: 16 | AW100: 16 | AX100: 8 | AY100: 8 | BB100: 16 | BC100: 8 | BD100: 8 | BG100: 16 | BH100: 8 | BI100: 8 | BL100: 16 | BM100: 8 | BN100: 8 | BQ100: 16 | BR100: 8 | BS100: 8 | BV100: 16 | BX100: 16 | CA100: 16 | CF100: 0 | CK100: 0 | CP100: 0 | CU100: 0 | CZ100: 0 | DE100: 0 | DJ100: 0 | ET100: 40 | EU100: 56 | EV100: 16 | EW100: 0 | EX100: 112 | EY100: 1940 | EZ100: 3668 | FA100: 1241.6 | FB100: 0 | FC100: 6849.6 | FD100: 6849.6 | FE100: Yes | FF100: 0 | FG100: 0 | FH100: 0
B101: 79 | D101: Crew Foreman | E101: Vendor #13 | G101: SW008064 | H101: 2018-10-14 | I101: 2018-10-20 | J101: Yes | K101: =VLOOKUP($D101,'C.1 - Rate Sheets'!$B$16:$E$35,2) -> 56.8 | L101: =VLOOKUP($D101,'C.1 - Rate Sheets'!$B$16:$E$35,3) -> 76.7 | M101: =VLOOKUP($D101,'C.1 - Rate Sheets'!$B$16:$E$35,4) -> 90.9 | N101: =VLOOKUP($D101,'C.1 - Rate Sheets'!B:F,5,FALSE) -> 0 | AU101: 16 | AW101: 16 | AX101: 8 | AY101: 8 | BB101: 16 | BC101: 8 | BD101: 8 | BG101: 16 | BH101: 8 | BI101: 8 | BL101: 16 | BM101: 8 | BN101: 8 | BQ101: 16 | BR101: 8 | BS101: 8 | BV101: 16 | BX101: 16 | CA101: 16 | CF101: 0 | CK101: 0 | CP101: 0 | CU101: 0 | CZ101: 0 | DE101: 0 | DJ101: 0 | ET101: 40 | EU101: 56 | EV101: 16 | EW101: 0 | EX101: 112 | EY101: 2272 | EZ101: 4295.2 | FA101: 1454.4 | FB101: 0 | FC101: 8021.6 | FD101: 8021.6 | FE101: Yes | FF101: 0 | FG101: 0 | FH101: 0
B102: 80 | D102: Tree Trimmer | E102: Vendor #13 | G102: SW008064 | H102: 2018-10-14 | I102: 2018-10-20 | J102: Yes | K102: =VLOOKUP($D102,'C.1 - Rate Sheets'!$B$16:$E$35,2) -> 48.5 | L102: =VLOOKUP($D102,'C.1 - Rate Sheets'!$B$16:$E$35,3) -> 65.5 | M102: =VLOOKUP($D102,'C.1 - Rate Sheets'!$B$16:$E$35,4) -> 77.6 | N102: =VLOOKUP($D102,'C.1 - Rate Sheets'!B:F,5,FALSE) -> 0 | AU102: 16 | AW102: 16 | AX102: 8 | AY102: 8 | BB102: 16 | BC102: 8 | BD102: 8 | BG102: 16 | BH102: 8 | BI102: 8 | BL102: 16 | BM102: 8 | BN102: 8 | BQ102: 16 | BR102: 8 | BS102: 8 | BV102: 16 | BX102: 16 | CA102: 16 | CF102: 0 | CK102: 0 | CP102: 0 | CU102: 0 | CZ102: 0 | DE102: 0 | DJ102: 0 | ET102: 40 | EU102: 56 | EV102: 16 | EW102: 0 | EX102: 112 | EY102: 1940 | EZ102: 3668 | FA102: 1241.6 | FB102: 0 | FC102: 6849.6 | FD102: 6849.6 | FE102: Yes | FF102: 0 | FG102: 0 | FH102: 0
B103: 81 | D103: Supervisor | E103: Vendor #13 | G103: SW008065 | H103: 2018-10-14 | I103: 2018-10-20 | J103: Yes | K103: =VLOOKUP($D103,'C.1 - Rate Sheets'!$B$16:$E$35,2) -> 74 | L103: =VLOOKUP($D103,'C.1 - Rate Sheets'!$B$16:$E$35,3) -> 99.9 | M103: =VLOOKUP($D103,'C.1 - Rate Sheets'!$B$16:$E$35,4) -> 118.4 | N103: =VLOOKUP($D103,'C.1 - Rate Sheets'!B:F,5,FALSE) -> 0 | AU103: 16 | AW103: 16 | AX103: 8 | AY103: 8 | BB103: 16 | BC103: 8 | BD103: 8 | BG103: 16 | BH103: 8 | BI103: 8 | BL103: 16 | BM103: 8 | BN103: 8 | BQ103: 16 | BR103: 8 | BS103: 8 | BV103: 16 | BX103: 16 | CA103: 16 | CF103: 0 | CK103: 0 | CP103: 0 | CU103: 0 | CZ103: 0 | DE103: 0 | DJ103: 0 | ET103: 40 | EU103: 56 | EV103: 16 | EW103: 0 | EX103: 112 | EY103: 2960 | EZ103: 5594.4 | FA103: 1894.4 | FB103: 0 | FC103: 10448.8 | FD103: 10448.8 | FE103: Yes | FF103: 0 | FG103: 0 | FH103: 0
B104: 82 | D104: Supervisor | E104: Vendor #13 | G104: 5356275 | H104: 2018-10-22 | I104: 2018-10-27 | J104: Yes | K104: =VLOOKUP($D104,'C.1 - Rate Sheets'!$B$16:$E$35,2,TRUE) -> 74 | L104: =VLOOKUP($D104,'C.1 - Rate Sheets'!$B$16:$E$35,3) -> 99.9 | M104: =VLOOKUP($D104,'C.1 - Rate Sheets'!$B$16:$E$35,4) -> 118.4 | N104: =VLOOKUP($D104,'C.1 - Rate Sheets'!B:F,5,FALSE) -> 0 | AW104: 0 | BB104: 0 | BG104: 0 | BL104: 0 | BQ104: 0 | BV104: 0 | CA104: 0 | CF104: 0 | CG104: 2 | CK104: 2 | CP104: 0 | CU104: 0 | CZ104: 0 | DE104: 0 | DJ104: 0 | ET104: 2 | EU104: 0 | EV104: 0 | EW104: 0 | EX104: 2 | EY104: 148 | EZ104: 0 | FA104: 0 | FB104: 0 | FC104: 148 | FD104: 148 | FE104: Yes | FF104: 0 | FG104: 0 | FH104: 0
B105: 83 | D105: Crew Foreman | E105: Vendor #13 | G105: 5356276 | H105: 2018-10-22 | I105: 2018-10-27 | J105: Yes | K105: =VLOOKUP($D105,'C.1 - Rate Sheets'!$B$16:$E$35,2) -> 56.8 | L105: =VLOOKUP($D105,'C.1 - Rate Sheets'!$B$16:$E$35,3) -> 76.7 | M105: =VLOOKUP($D105,'C.1 - Rate Sheets'!$B$16:$E$35,4) -> 90.9 | N105: =VLOOKUP($D105,'C.1 - Rate Sheets'!B:F,5,FALSE) -> 0 | AW105: 0 | BB105: 0 | BG105: 0 | BL105: 0 | BQ105: 0 | BV105: 0 | CA105: 0 | CF105: 0 | CG105: 2 | CK105: 2 | CP105: 0 | CU105: 0 | CZ105: 0 | DE105: 0 | DJ105: 0 | ET105: 2 | EU105: 0 | EV105: 0 | EW105: 0 | EX105: 2 | EY105: 113.6 | EZ105: 0 | FA105: 0 | FB105: 0 | FC105: 113.6 | FD105: 113.6 | FE105: Yes | FF105: 0 | FG105: 0 | FH105: 0
B106: 84 | D106: Tree Trimmer | E106: Vendor #13 | G106: 5356276 | H106: 2018-10-22 | I106: 2018-10-27 | J106: Yes | K106: =VLOOKUP($D106,'C.1 - Rate Sheets'!$B$16:$E$35,2) -> 48.5 | L106: =VLOOKUP($D106,'C.1 - Rate Sheets'!$B$16:$E$35,3) -> 65.5 | M106: =VLOOKUP($D106,'C.1 - Rate Sheets'!$B$16:$E$35,4) -> 77.6 | N106: =VLOOKUP($D106,'C.1 - Rate Sheets'!B:F,5,FALSE) -> 0 | AW106: 0 | BB106: 0 | BG106: 0 | BL106: 0 | BQ106: 0 | BV106: 0 | CA106: 0 | CF106: 0 | CG106: 2 | CK106: 2 | CP106: 0 | CU106: 0 | CZ106: 0 | DE106: 0 | DJ106: 0 | ET106: 2 | EU106: 0 | EV106: 0 | EW106: 0 | EX106: 2 | EY106: 97 | EZ106: 0 | FA106: 0 | FB106: 0 | FC106: 97 | FD106: 97 | FE106: Yes | FF106: 0 | FG106: 0 | FH106: 0
B107: 85 | D107: Tree Trimmer | E107: Vendor #13 | G107: 5356276 | H107: 2018-10-22 | I107: 2018-10-27 | J107: Yes | K107: =VLOOKUP($D107,'C.1 - Rate Sheets'!$B$16:$E$35,2) -> 48.5 | L107: =VLOOKUP($D107,'C.1 - Rate Sheets'!$B$16:$E$35,3) -> 65.5 | M107: =VLOOKUP($D107,'C.1 - Rate Sheets'!$B$16:$E$35,4) -> 77.6 | N107: =VLOOKUP($D107,'C.1 - Rate Sheets'!B:F,5,FALSE) -> 0 | AW107: 0 | BB107: 0 | BG107: 0 | BL107: 0 | BQ107: 0 | BV107: 0 | CA107: 0 | CF107: 0 | CG107: 2 | CK107: 2 | CP107: 0 | CU107: 0 | CZ107: 0 | DE107: 0 | DJ107: 0 | ET107: 2 | EU107: 0 | EV107: 0 | EW107: 0 | EX107: 2 | EY107: 97 | EZ107: 0 | FA107: 0 | FB107: 0 | FC107: 97 | FD107: 97 | FE107: Yes | FF107: 0 | FG107: 0 | FH107: 0
B108: 86 | D108: Crew Foreman | E108: Vendor #13 | G108: 5356277 | H108: 2018-10-22 | I108: 2018-10-27 | J108: Yes | K108: =VLOOKUP($D108,'C.1 - Rate Sheets'!$B$16:$E$35,2) -> 56.8 | L108: =VLOOKUP($D108,'C.1 - Rate Sheets'!$B$16:$E$35,3) -> 76.7 | M108: =VLOOKUP($D108,'C.1 - Rate Sheets'!$B$16:$E$35,4) -> 90.9 | N108: =VLOOKUP($D108,'C.1 - Rate Sheets'!B:F,5,FALSE) -> 0 | AW108: 0 | BB108: 0 | BG108: 0 | BL108: 0 | BQ108: 0 | BV108: 0 | CA108: 0 | CF108: 0 | CG108: 2 | CK108: 2 | CP108: 0 | CU108: 0 | CZ108: 0 | DE108: 0 | DJ108: 0 | ET108: 2 | EU108: 0 | EV108: 0 | EW108: 0 | EX108: 2 | EY108: 113.6 | EZ108: 0 | FA108: 0 | FB108: 0 | FC108: 113.6 | FD108: 113.6 | FE108: Yes | FF108: 0 | FG108: 0 | FH108: 0
B109: 87 | D109: Tree Trimmer | E109: Vendor #13 | G109: 5356277 | H109: 2018-10-22 | I109: 2018-10-27 | J109: Yes | K109: =VLOOKUP($D109,'C.1 - Rate Sheets'!$B$16:$E$35,2) -> 48.5 | L109: =VLOOKUP($D109,'C.1 - Rate Sheets'!$B$16:$E$35,3) -> 65.5 | M109: =VLOOKUP($D109,'C.1 - Rate Sheets'!$B$16:$E$35,4) -> 77.6 | N109: =VLOOKUP($D109,'C.1 - Rate Sheets'!B:F,5,FALSE) -> 0 | AW109: 0 | BB109: 0 | BG109: 0 | BL109: 0 | BQ109: 0 | BV109: 0 | CA109: 0 | CF109: 0 | CG109: 2 | CK109: 2 | CP109: 0 | CU109: 0 | CZ109: 0 | DE109: 0 | DJ109: 0 | ET109: 2 | EU109: 0 | EV109: 0 | EW109: 0 | EX109: 2 | EY109: 97 | EZ109: 0 | FA109: 0 | FB109: 0 | FC109: 97 | FD109: 97 | FE109: Yes | FF109: 0 | FG109: 0 | FH109: 0
B110: 88 | D110: Crew Foreman | E110: Vendor #13 | G110: 5356278 | H110: 2018-10-22 | I110: 2018-10-27 | J110: Yes | K110: =VLOOKUP($D110,'C.1 - Rate Sheets'!$B$16:$E$35,2) -> 56.8 | L110: =VLOOKUP($D110,'C.1 - Rate Sheets'!$B$16:$E$35,3) -> 76.7 | M110: =VLOOKUP($D110,'C.1 - Rate Sheets'!$B$16:$E$35,4) -> 90.9 | N110: =VLOOKUP($D110,'C.1 - Rate Sheets'!B:F,5,FALSE) -> 0 | AW110: 0 | BB110: 0 | BG110: 0 | BL110: 0 | BQ110: 0 | BV110: 0 | CA110: 0 | CF110: 0 | CG110: 2 | CK110: 2 | CP110: 0 | CU110: 0 | CZ110: 0 | DE110: 0 | DJ110: 0 | ET110: 2 | EU110: 0 | EV110: 0 | EW110: 0 | EX110: 2 | EY110: 113.6 | EZ110: 0 | FA110: 0 | FB110: 0 | FC110: 113.6 | FD110: 113.6 | FE110: Yes | FF110: 0 | FG110: 0 | FH110: 0
B111: 89 | D111: Tree Trimmer | E111: Vendor #13 | G111: 5356278 | H111: 2018-10-22 | I111: 2018-10-27 | J111: Yes | K111: =VLOOKUP($D111,'C.1 - Rate Sheets'!$B$16:$E$35,2) -> 48.5 | L111: =VLOOKUP($D111,'C.1 - Rate Sheets'!$B$16:$E$35,3) -> 65.5 | M111: =VLOOKUP($D111,'C.1 - Rate Sheets'!$B$16:$E$35,4) -> 77.6 | N111: =VLOOKUP($D111,'C.1 - Rate Sheets'!B:F,5,FALSE) -> 0 | AW111: 0 | BB111: 0 | BG111: 0 | BL111: 0 | BQ111: 0 | BV111: 0 | CA111: 0 | CF111: 0 | CG111: 2 | CK111: 2 | CP111: 0 | CU111: 0 | CZ111: 0 | DE111: 0 | DJ111: 0 | ET111: 2 | EU111: 0 | EV111: 0 | EW111: 0 | EX111: 2 | EY111: 97 | EZ111: 0 | FA111: 0 | FB111: 0 | FC111: 97 | FD111: 97 | FE111: Yes | FF111: 0 | FG111: 0 | FH111: 0
B112: 90 | D112: Crew Foreman | E112: Vendor #13 | G112: 5356279 | H112: 2018-10-22 | I112: 2018-10-27 | J112: Yes | K112: =VLOOKUP($D112,'C.1 - Rate Sheets'!$B$16:$E$35,2) -> 56.8 | L112: =VLOOKUP($D112,'C.1 - Rate Sheets'!$B$16:$E$35,3) -> 76.7 | M112: =VLOOKUP($D112,'C.1 - Rate Sheets'!$B$16:$E$35,4) -> 90.9 | N112: =VLOOKUP($D112,'C.1 - Rate Sheets'!B:F,5,FALSE) -> 0 | AW112: 0 | BB112: 0 | BG112: 0 | BL112: 0 | BQ112: 0 | BV112: 0 | CA112: 0 | CF112: 0 | CG112: 2 | CK112: 2 | CP112: 0 | CU112: 0 | CZ112: 0 | DE112: 0 | DJ112: 0 | ET112: 2 | EU112: 0 | EV112: 0 | EW112: 0 | EX112: 2 | EY112: 113.6 | EZ112: 0 | FA112: 0 | FB112: 0 | FC112: 113.6 | FD112: 113.6 | FE112: Yes | FF112: 0 | FG112: 0 | FH112: 0
B113: 91 | D113: Tree Trimmer | E113: Vendor #13 | G113: 5356279 | H113: 2018-10-22 | I113: 2018-10-27 | J113: Yes | K113: =VLOOKUP($D113,'C.1 - Rate Sheets'!$B$16:$E$35,2) -> 48.5 | L113: =VLOOKUP($D113,'C.1 - Rate Sheets'!$B$16:$E$35,3) -> 65.5 | M113: =VLOOKUP($D113,'C.1 - Rate Sheets'!$B$16:$E$35,4) -> 77.6 | N113: =VLOOKUP($D113,'C.1 - Rate Sheets'!B:F,5,FALSE) -> 0 | AW113: 0 | BB113: 0 | BG113: 0 | BL113: 0 | BQ113: 0 | BV113: 0 | CA113: 0 | CF113: 0 | CG113: 2 | CK113: 2 | CP113: 0 | CU113: 0 | CZ113: 0 | DE113: 0 | DJ113: 0 | ET113: 2 | EU113: 0 | EV113: 0 | EW113: 0 | EX113: 2 | EY113: 97 | EZ113: 0 | FA113: 0 | FB113: 0 | FC113: 97 | FD113: 97 | FE113: Yes | FF113: 0 | FG113: 0 | FH113: 0
B114: 92 | D114: Crew Foreman | E114: Vendor #13 | G114: 5356280 | H114: 2018-10-22 | I114: 2018-10-27 | J114: Yes | K114: =VLOOKUP($D114,'C.1 - Rate Sheets'!$B$16:$E$35,2) -> 56.8 | L114: =VLOOKUP($D114,'C.1 - Rate Sheets'!$B$16:$E$35,3) -> 76.7 | M114: =VLOOKUP($D114,'C.1 - Rate Sheets'!$B$16:$E$35,4) -> 90.9 | N114: =VLOOKUP($D114,'C.1 - Rate Sheets'!B:F,5,FALSE) -> 0 | AW114: 0 | BB114: 0 | BG114: 0 | BL114: 0 | BQ114: 0 | BV114: 0 | CA114: 0 | CF114: 0 | CG114: 2 | CK114: 2 | CP114: 0 | CU114: 0 | CZ114: 0 | DE114: 0 | DJ114: 0 | ET114: 2 | EU114: 0 | EV114: 0 | EW114: 0 | EX114: 2 | EY114: 113.6 | EZ114: 0 | FA114: 0 | FB114: 0 | FC114: 113.6 | FD114: 113.6 | FE114: Yes | FF114: 0 | FG114: 0 | FH114: 0
B115: 93 | D115: Tree Trimmer | E115: Vendor #13 | G115: 5356280 | H115: 2018-10-22 | I115: 2018-10-27 | J115: Yes | K115: =VLOOKUP($D115,'C.1 - Rate Sheets'!$B$16:$E$35,2) -> 48.5 | L115: =VLOOKUP($D115,'C.1 - Rate Sheets'!$B$16:$E$35,3) -> 65.5 | M115: =VLOOKUP($D115,'C.1 - Rate Sheets'!$B$16:$E$35,4) -> 77.6 | N115: =VLOOKUP($D115,'C.1 - Rate Sheets'!B:F,5,FALSE) -> 0 | AW115: 0 | BB115: 0 | BG115: 0 | BL115: 0 | BQ115: 0 | BV115: 0 | CA115: 0 | CF115: 0 | CG115: 2 | CK115: 2 | CP115: 0 | CU115: 0 | CZ115: 0 | DE115: 0 | DJ115: 0 | ET115: 2 | EU115: 0 | EV115: 0 | EW115: 0 | EX115: 2 | EY115: 97 | EZ115: 0 | FA115: 0 | FB115: 0 | FC115: 97 | FD115: 97 | FE115: Yes | FF115: 0 | FG115: 0 | FH115: 0
B116: 94 | D116: Supervisor | E116: Vendor #13 | G116: 5356281 | H116: 2018-10-22 | I116: 2018-10-27 | J116: Yes | K116: =VLOOKUP($D116,'C.1 - Rate Sheets'!$B$16:$E$35,2) -> 74 | L116: =VLOOKUP($D116,'C.1 - Rate Sheets'!$B$16:$E$35,3) -> 99.9 | M116: =VLOOKUP($D116,'C.1 - Rate Sheets'!$B$16:$E$35,4) -> 118.4 | N116: =VLOOKUP($D116,'C.1 - Rate Sheets'!B:F,5,FALSE) -> 0 | AW116: 0 | BB116: 0 | BG116: 0 | BL116: 0 | BQ116: 0 | BV116: 0 | CA116: 0 | CF116: 0 | CG116: 6 | CH116: 8 | CK116: 14 | CL116: 8 | CM116: 8 | CP116: 16 | CQ116: 8 | CR116: 8 | CU116: 16 | CV116: 8 | CW116: 8 | CZ116: 16 | DA116: 8 | DB116: 8 | DE116: 16 | DG116: 16 | DJ116: 16 | ET116: 38 | EU116: 56 | EV116: 0 | EW116: 0 | EX116: 94 | EY116: 2812 | EZ116: 5594.4 | FA116: 0 | FB116: 0 | FC116: 8406.4 | FD116: 8406.4 | FE116: Yes | FF116: 0 | FG116: 0 | FH116: 0
B117: 95 | D117: Crew Foreman | E117: Vendor #13 | G117: 5356282 | H117: 2018-10-22 | I117: 2018-10-27 | J117: Yes | K117: =VLOOKUP($D117,'C.1 - Rate Sheets'!$B$16:$E$35,2) -> 56.8 | L117: =VLOOKUP($D117,'C.1 - Rate Sheets'!$B$16:$E$35,3) -> 76.7 | M117: =VLOOKUP($D117,'C.1 - Rate Sheets'!$B$16:$E$35,4) -> 90.9 | N117: =VLOOKUP($D117,'C.1 - Rate Sheets'!B:F,5,FALSE) -> 0 | AW117: 0 | BB117: 0 | BG117: 0 | BL117: 0 | BQ117: 0 | BV117: 0 | CA117: 0 | CF117: 0 | CG117: 6 | CH117: 8 | CK117: 14 | CL117: 8 | CM117: 8 | CP117: 16 | CQ117: 8 | CR117: 8 | CU117: =+SUM(CQ117:CT117) -> 16 | CV117: 8 | CW117: 8 | CZ117: =+SUM(CV117:CY117) -> 16 | DA117: 8 | DB117: 8 | DE117: 16 | DG117: 16 | DJ117: 16 | ET117: 38 | EU117: 56 | EV117: 0 | EW117: 0 | EX117: 94 | EY117: 2158.4 | EZ117: 4295.2 | FA117: 0 | FB117: 0 | FC117: 6453.6 | FD117: 6453.6 | FE117: Yes | FF117: 0 | FG117: 0 | FH117: 0
B118: 96 | D118: Tree Trimmer | E118: Vendor #13 | G118: 5356282 | H118: 2018-10-22 | I118: 2018-10-27 | J118: Yes | K118: =VLOOKUP($D118,'C.1 - Rate Sheets'!$B$16:$E$35,2) -> 48.5 | L118: =VLOOKUP($D118,'C.1 - Rate Sheets'!$B$16:$E$35,3) -> 65.5 | M118: =VLOOKUP($D118,'C.1 - Rate Sheets'!$B$16:$E$35,4) -> 77.6 | N118: =VLOOKUP($D118,'C.1 - Rate Sheets'!B:F,5,FALSE) -> 0 | AW118: 0 | BB118: 0 | BG118: 0 | BL118: 0 | BQ118: 0 | BV118: 0 | CA118: 0 | CF118: 0 | CG118: 6 | CH118: 8 | CK118: 14 | CL118: 8 | CM118: 8 | CP118: 16 | CQ118: 8 | CR118: 8 | CU118: =+SUM(CQ118:CT118) -> 16 | CV118: 8 | CW118: 8 | CZ118: =+SUM(CV118:CY118) -> 16 | DA118: 8 | DB118: 8 | DE118: 16 | DG118: 16 | DJ118: 16 | ET118: 38 | EU118: 56 | EV118: 0 | EW118: 0 | EX118: 94 | EY118: 1843 | EZ118: 3668 | FA118: 0 | FB118: 0 | FC118: 5511 | FD118: 5511 | FE118: Yes | FF118: 0 | FG118: 0 | FH118: 0
B119: 97 | D119: Tree Trimmer | E119: Vendor #13 | G119: 5356282 | H119: 2018-10-22 | I119: 2018-10-27 | J119: Yes | K119: =VLOOKUP($D119,'C.1 - Rate Sheets'!$B$16:$E$35,2) -> 48.5 | L119: =VLOOKUP($D119,'C.1 - Rate Sheets'!$B$16:$E$35,3) -> 65.5 | M119: =VLOOKUP($D119,'C.1 - Rate Sheets'!$B$16:$E$35,4) -> 77.6 | N119: =VLOOKUP($D119,'C.1 - Rate Sheets'!B:F,5,FALSE) -> 0 | AW119: 0 | BB119: 0 | BG119: 0 | BL119: 0 | BQ119: 0 | BV119: 0 | CA119: 0 | CF119: 0 | CG119: 6 | CH119: 8 | CK119: 14 | CL119: 8 | CM119: 8 | CP119: 16 | CQ119: 8 | CR119: 8 | CU119: 16 | CV119: 8 | CW119: 8 | CZ119: 16 | DA119: 8 | DB119: 8 | DE119: 16 | DG119: 16 | DJ119: 16 | ET119: 38 | EU119: 56 | EV119: 0 | EW119: 0 | EX119: 94 | EY119: 1843 | EZ119: 3668 | FA119: 0 | FB119: 0 | FC119: 5511 | FD119: 5511 | FE119: Yes | FF119: 0 | FG119: 0 | FH119: 0
B120: 98 | D120: Crew Foreman | E120: Vendor #13 | G120: 5356283 | H120: 2018-10-22 | I120: 2018-10-27 | J120: Yes | K120: =VLOOKUP($D120,'C.1 - Rate Sheets'!$B$16:$E$35,2) -> 56.8 | L120: =VLOOKUP($D120,'C.1 - Rate Sheets'!$B$16:$E$35,3) -> 76.7 | M120: =VLOOKUP($D120,'C.1 - Rate Sheets'!$B$16:$E$35,4) -> 90.9 | N120: =VLOOKUP($D120,'C.1 - Rate Sheets'!B:F,5,FALSE) -> 0 | AW120: 0 | BB120: 0 | BG120: 0 | BL120: 0 | BQ120: 0 | BV120: 0 | CA120: 0 | CF120: 0 | CG120: 6 | CH120: 8 | CK120: 14 | CL120: 8 | CM120: 8 | CP120: 16 | CQ120: 8 | CR120: 8 | CU120: 16 | CV120: 8 | CW120: 8 | CZ120: 16 | DA120: 8 | DB120: 8 | DE120: 16 | DG120: 16 | DJ120: 16 | ET120: 38 | EU120: 56 | EV120: 0 | EW120: 0 | EX120: 94 | EY120: 2158.4 | EZ120: 4295.2 | FA120: 0 | FB120: 0 | FC120: 6453.6 | FD120: 6453.6 | FE120: Yes | FF120: 0 | FG120: 0 | FH120: 0
B121: 99 | D121: Tree Trimmer | E121: Vendor #13 | G121: 5356283 | H121: 2018-10-22 | I121: 2018-10-27 | J121: Yes | K121: =VLOOKUP($D121,'C.1 - Rate Sheets'!$B$16:$E$35,2) -> 48.5 | L121: =VLOOKUP($D121,'C.1 - Rate Sheets'!$B$16:$E$35,3) -> 65.5 | M121: =VLOOKUP($D121,'C.1 - Rate Sheets'!$B$16:$E$35,4) -> 77.6 | N121: =VLOOKUP($D121,'C.1 - Rate Sheets'!B:F,5,FALSE) -> 0 | AW121: 0 | BB121: 0 | BG121: 0 | BL121: 0 | BQ121: 0 | BV121: 0 | CA121: 0 | CF121: 0 | CG121: 6 | CH121: 8 | CK121: 14 | CL121: 8 | CM121: 8 | CP121: 16 | CQ121: 8 | CR121: 8 | CU121: 16 | CV121: 8 | CW121: 8 | CZ121: 16 | DA121: 8 | DB121: 8 | DE121: 16 | DG121: 16 | DJ121: 16 | ET121: 38 | EU121: 56 | EV121: 0 | EW121: 0 | EX121: 94 | EY121: 1843 | EZ121: 3668 | FA121: 0 | FB121: 0 | FC121: 5511 | FD121: 5511 | FE121: Yes | FF121: 0 | FG121: 0 | FH121: 0
B122: 100 | D122: Crew Foreman | E122: Vendor #13 | G122: 5356284 | H122: 2018-10-22 | I122: 2018-10-27 | J122: Yes | K122: =VLOOKUP($D122,'C.1 - Rate Sheets'!$B$16:$E$35,2) -> 56.8 | L122: =VLOOKUP($D122,'C.1 - Rate Sheets'!$B$16:$E$35,3) -> 76.7 | M122: =VLOOKUP($D122,'C.1 - Rate Sheets'!$B$16:$E$35,4) -> 90.9 | N122: =VLOOKUP($D122,'C.1 - Rate Sheets'!B:F,5,FALSE) -> 0 | AW122: 0 | BB122: 0 | BG122: 0 | BL122: 0 | BQ122: 0 | BV122: 0 | CA122: 0 | CF122: 0 | CG122: 6 | CH122: 8 | CK122: 14 | CL122: 8 | CM122: 8 | CP122: 16 | CQ122: 8 | CR122: 8 | CU122: 16 | CV122: 8 | CW122: 8 | CZ122: 16 | DA122: 8 | DB122: 8 | DE122: 16 | DG122: 16 | DJ122: 16 | ET122: 38 | EU122: 56 | EV122: 0 | EW122: 0 | EX122: 94 | EY122: 2158.4 | EZ122: 4295.2 | FA122: 0 | FB122: 0 | FC122: 6453.6 | FD122: 6453.6 | FE122: Yes | FF122: 0 | FG122: 0 | FH122: 0
B123: 101 | D123: Tree Trimmer | E123: Vendor #13 | G123: 5356284 | H123: 2018-10-22 | I123: 2018-10-27 | J123: Yes | K123: =VLOOKUP($D123,'C.1 - Rate Sheets'!$B$16:$E$35,2) -> 48.5 | L123: =VLOOKUP($D123,'C.1 - Rate Sheets'!$B$16:$E$35,3) -> 65.5 | M123: =VLOOKUP($D123,'C.1 - Rate Sheets'!$B$16:$E$35,4) -> 77.6 | N123: =VLOOKUP($D123,'C.1 - Rate Sheets'!B:F,5,FALSE) -> 0 | AW123: 0 | BB123: 0 | BG123: 0 | BL123: 0 | BQ123: 0 | BV123: 0 | CA123: 0 | CF123: 0 | CG123: 6 | CH123: 8 | CK123: 14 | CL123: 8 | CM123: 8 | CP123: 16 | CQ123: 8 | CR123: 8 | CU123: 16 | CV123: 8 | CW123: 8 | CZ123: 16 | DA123: 8 | DB123: 8 | DE123: 16 | DG123: 16 | DJ123: 16 | ET123: 38 | EU123: 56 | EV123: 0 | EW123: 0 | EX123: 94 | EY123: 1843 | EZ123: 3668 | FA123: 0 | FB123: 0 | FC123: 5511 | FD123: 5511 | FE123: Yes | FF123: 0 | FG123: 0 | FH123: 0
B124: 102 | D124: Crew Foreman | E124: Vendor #13 | G124: 5356285 | H124: 2018-10-22 | I124: 2018-10-27 | J124: Yes | K124: =VLOOKUP($D124,'C.1 - Rate Sheets'!$B$16:$E$35,2) -> 56.8 | L124: =VLOOKUP($D124,'C.1 - Rate Sheets'!$B$16:$E$35,3) -> 76.7 | M124: =VLOOKUP($D124,'C.1 - Rate Sheets'!$B$16:$E$35,4) -> 90.9 | N124: =VLOOKUP($D124,'C.1 - Rate Sheets'!B:F,5,FALSE) -> 0 | AW124: 0 | BB124: 0 | BG124: 0 | BL124: 0 | BQ124: 0 | BV124: 0 | CA124: 0 | CF124: 0 | CG124: 6 | CH124: 8 | CK124: 14 | CL124: 8 | CM124: 8 | CP124: 16 | CQ124: 8 | CR124: 8 | CU124: 16 | CV124: 8 | CW124: 8 | CZ124: 16 | DA124: 8 | DB124: 8 | DE124: 16 | DG124: 16 | DJ124: 16 | ET124: 38 | EU124: 56 | EV124: 0 | EW124: 0 | EX124: 94 | EY124: 2158.4 | EZ124: 4295.2 | FA124: 0 | FB124: 0 | FC124: 6453.6 | FD124: 6453.6 | FE124: Yes | FF124: 0 | FG124: 0 | FH124: 0
B125: 103 | D125: Tree Trimmer | E125: Vendor #13 | G125: 5356285 | H125: 2018-10-22 | I125: 2018-10-27 | J125: Yes | K125: =VLOOKUP($D125,'C.1 - Rate Sheets'!$B$16:$E$35,2) -> 48.5 | L125: =VLOOKUP($D125,'C.1 - Rate Sheets'!$B$16:$E$35,3) -> 65.5 | M125: =VLOOKUP($D125,'C.1 - Rate Sheets'!$B$16:$E$35,4) -> 77.6 | N125: =VLOOKUP($D125,'C.1 - Rate Sheets'!B:F,5,FALSE) -> 0 | O125: 0 | P125: 0 | Q125: 0 | R125: 0 | S125: 0 | T125: 0 | U125: 0 | V125: 0 | W125: 0 | X125: 0 | Y125: 0 | Z125: 0 | AA125: 0 | AB125: 0 | AC125: 0 | AD125: 0 | AE125: 0 | AF125: 0 | AG125: 0 | AH125: 0 | AM125: 0 | AR125: 0 | AW125: =SUM(AS125:AV125) -> 0 | BB125: =SUM(AX125:BA125) -> 0 | BG125: =SUM(BC125:BF125) -> 0 | BL125: 0 | BQ125: 0 | BV125: 0 | CA125: 0 | CF125: 0 | CG125: 6 | CH125: 8 | CK125: =SUM(CG125:CJ125) -> 14 | CL125: 8 | CM125: 8 | CN125: 0 | CO125: 0 | CP125: 16 | CQ125: 8 | CR125: 8 | CS125: 0 | CT125: 0 | CU125: 16 | CV125: 8 | CW125: 8 | CX125: 0 | CY125: 0 | CZ125: =+SUM(CV125:CY125) -> 16 | DA125: 8 | DB125: 8 | DC125: 0 | DD125: 0 | DE125: =+SUM(DA125:DD125) -> 16 | DF125: 0 | DG125: 16 | DH125: 0 | DI125: 0 | DJ125: 16 | DK125: 0 | DL125: 0 | DM125: 0 | DN125: 0 | DO125: 0 | DP125: 0 | DQ125: 0 | DR125: 0 | DS125: 0 | DT125: 0 | DU125: 0 | DV125: 0 | DW125: 0 | DX125: 0 | DY125: 0 | DZ125: 0 | EA125: 0 | EB125: 0 | EC125: 0 | ED125: 0 | EE125: 0 | EF125: 0 | EG125: 0 | EH125: 0 | EI125: 0 | EJ125: 0 | EK125: 0 | EL125: 0 | EM125: 0 | EN125: 0 | EO125: 0 | EP125: 0 | EQ125: 0 | ER125: 0 | ES125: 0 | ET125: 38 | EU125: 56 | EV125: 0 | EW125: 0 | EX125: 94 | EY125: 1843 | EZ125: 3668 | FA125: 0 | FB125: 0 | FC125: 5511 | FD125: 5511 | FE125: Yes | FF125: 0 | FG125: 0 | FH125: 0
B126: 104 | D126: Crew Foreman | E126: Vendor #13 | G126: 5356286 | H126: 2018-10-23 | I126: 2018-10-27 | J126: Yes | K126: =VLOOKUP($D126,'C.1 - Rate Sheets'!$B$16:$E$35,2) -> 56.8 | L126: =VLOOKUP($D126,'C.1 - Rate Sheets'!$B$16:$E$35,3) -> 76.7 | M126: =VLOOKUP($D126,'C.1 - Rate Sheets'!$B$16:$E$35,4) -> 90.9 | N126: =VLOOKUP($D126,'C.1 - Rate Sheets'!B:F,5,FALSE) -> 0 | O126: 0 | P126: 0 | Q126: 0 | R126: 0 | S126: 0 | T126: 0 | U126: 0 | V126: 0 | W126: 0 | X126: 0 | Y126: 0 | Z126: 0 | AA126: 0 | AB126: 0 | AC126: 0 | AD126: 0 | AE126: 0 | AF126: 0 | AG126: 0 | AH126: 0 | AM126: 0 | AR126: 0 | AW126: 0 | BB126: 0 | BG126: 0 | BL126: 0 | BQ126: 0 | BV126: 0 | CA126: 0 | CF126: 0 | CK126: 0 | CL126: 4 | CM126: 0 | CN126: 0 | CO126: 0 | CP126: 4 | CQ126: 8 | CR126: 8 | CS126: 0 | CT126: 0 | CU126: 16 | CV126: 8 | CW126: 8 | CX126: 0 | CY126: 0 | CZ126: =+SUM(CV126:CY126) -> 16 | DA126: 8 | DB126: 8 | DC126: 0 | DD126: 0 | DE126: =+SUM(DA126:DD126) -> 16 | DF126: 0 | DG126: 16 | DH126: 0 | DI126: 0 | DJ126: 16 | DK126: 0 | DL126: 0 | DM126: 0 | DN126: 0 | DO126: 0 | DP126: 0 | DQ126: 0 | DR126: 0 | DS126: 0 | DT126: 0 | DU126: 0 | DV126: 0 | DW126: 0 | DX126: 0 | DY126: 0 | DZ126: 0 | EA126: 0 | EB126: 0 | EC126: 0 | ED126: 0 | EE126: 0 | EF126: 0 | EG126: 0 | EH126: 0 | EI126: 0 | EJ126: 0 | EK126: 0 | EL126: 0 | EM126: 0 | EN126: 0 | EO126: 0 | EP126: 0 | EQ126: 0 | ER126: 0 | ES126: 0 | ET126: 28 | EU126: 40 | EV126: 0 | EW126: 0 | EX126: 68 | EY126: 1590.4 | EZ126: 3068 | FA126: 0 | FB126: 0 | FC126: 4658.4 | FD126: 4658.4 | FE126: Yes | FF126: 0 | FG126: 0 | FH126: 0
B127: 105 | D127: Tree Trimmer | E127: Vendor #13 | G127: 5356286 | H127: 2018-10-21 | I127: 2018-10-27 | J127: Yes | K127: =VLOOKUP($D127,'C.1 - Rate Sheets'!$B$16:$E$35,2) -> 48.5 | L127: =VLOOKUP($D127,'C.1 - Rate Sheets'!$B$16:$E$35,3) -> 65.5 | M127: =VLOOKUP($D127,'C.1 - Rate Sheets'!$B$16:$E$35,4) -> 77.6 | N127: =VLOOKUP($D127,'C.1 - Rate Sheets'!B:F,5,FALSE) -> 0 | O127: 0 | P127: 0 | Q127: 0 | R127: 0 | S127: 0 | T127: 0 | U127: 0 | V127: 0 | W127: 0 | X127: 0 | Y127: 0 | Z127: 0 | AA127: 0 | AB127: 0 | AC127: 0 | AD127: 0 | AE127: 0 | AF127: 0 | AG127: 0 | AH127: 0 | AM127: 0 | AR127: 0 | AW127: 0 | BB127: 0 | BG127: 0 | BL127: 0 | BQ127: 0 | BV127: 0 | CA127: 0 | CF127: 0 | CK127: 0 | CL127: 4 | CM127: 0 | CN127: 0 | CO127: 0 | CP127: 4 | CQ127: 8 | CR127: 8 | CS127: 0 | CT127: 0 | CU127: 16 | CV127: 8 | CW127: 8 | CX127: 0 | CY127: 0 | CZ127: 16 | DA127: 8 | DB127: 8 | DC127: 0 | DD127: 0 | DE127: 16 | DF127: 0 | DG127: 16 | DH127: 0 | DI127: 0 | DJ127: 16 | DK127: 0 | DL127: 0 | DM127: 0 | DN127: 0 | DO127: 0 | DP127: 0 | DQ127: 0 | DR127: 0 | DS127: 0 | DT127: 0 | DU127: 0 | DV127: 0 | DW127: 0 | DX127: 0 | DY127: 0 | DZ127: 0 | EA127: 0 | EB127: 0 | EC127: 0 | ED127: 0 | EE127: 0 | EF127: 0 | EG127: 0 | EH127: 0 | EI127: 0 | EJ127: 0 | EK127: 0 | EL127: 0 | EM127: 0 | EN127: 0 | EO127: 0 | EP127: 0 | EQ127: 0 | ER127: 0 | ES127: 0 | ET127: 28 | EU127: 40 | EV127: 0 | EW127: 0 | EX127: 68 | EY127: 1358 | EZ127: 2620 | FA127: 0 | FB127: 0 | FC127: 3978 | FD127: 3978 | FE127: Yes | FF127: 0 | FG127: 0 | FH127: 0
B128: 106 | D128: Supervisor | E128: Vendor #13 | G128: SW007826 | H128: 2018-10-21 | I128: 2018-10-27 | J128: Yes | K128: =VLOOKUP($D128,'C.1 - Rate Sheets'!$B$16:$E$35,2) -> 74 | L128: =VLOOKUP($D128,'C.1 - Rate Sheets'!$B$16:$E$35,3) -> 99.9 | M128: =VLOOKUP($D128,'C.1 - Rate Sheets'!$B$16:$E$35,4) -> 118.4 | N128: =VLOOKUP($D128,'C.1 - Rate Sheets'!B:F,5,FALSE) -> 0 | O128: 0 | P128: 0 | Q128: 0 | R128: 0 | S128: 0 | T128: 0 | U128: 0 | V128: 0 | W128: 0 | X128: 0 | Y128: 0 | Z128: 0 | AA128: 0 | AB128: 0 | AC128: 0 | AD128: 0 | AE128: 0 | AF128: 0 | AG128: 0 | AH128: 0 | AM128: 0 | AR128: 0 | AW128: 0 | BB128: 0 | BG128: 0 | BL128: 0 | BQ128: 0 | BV128: 0 | CA128: 0 | CD128: 16 | CF128: 16 | CG128: 8 | CH128: 8 | CK128: 16 | CL128: 8 | CM128: 8 | CN128: 0 | CO128: 0 | CP128: 16 | CQ128: 8 | CR128: 8 | CS128: 0 | CT128: 0 | CU128: 16 | CV128: 8 | CW128: 8 | CX128: 0 | CY128: 0 | CZ128: 16 | DA128: 8 | DB128: 8 | DC128: 0 | DD128: 0 | DE128: 16 | DF128: 0 | DG128: 0 | DH128: 0 | DI128: 0 | DJ128: 0 | DK128: 0 | DL128: 0 | DM128: 0 | DN128: 0 | DO128: 0 | DP128: 0 | DQ128: 0 | DR128: 0 | DS128: 0 | DT128: 0 | DU128: 0 | DV128: 0 | DW128: 0 | DX128: 0 | DY128: 0 | DZ128: 0 | EA128: 0 | EB128: 0 | EC128: 0 | ED128: 0 | EE128: 0 | EF128: 0 | EG128: 0 | EH128: 0 | EI128: 0 | EJ128: 0 | EK128: 0 | EL128: 0 | EM128: 0 | EN128: 0 | EO128: 0 | EP128: 0 | EQ128: 0 | ER128: 0 | ES128: 0 | ET128: 40 | EU128: 40 | EV128: 16 | EW128: =SUM(R128,W128,AB128,AL128,AQ128,AV128,BA128,BF128,BK128,BP128,BU128,BZ128,CE128, CO128, CJ128,CT128,CY128,DD128,DI128,DN128, DS128,DX128,EC128,EH128,EM128,ER128) -> 0 | EX128: 80 | EY128: 2960 | EZ128: 3996 | FA128: 1894.4 | FB128: 0 | FC128: 8850.4 | FD128: 8850.4 | FE128: Yes | FF128: 0 | FG128: 0 | FH128: 0
B129: 107 | D129: Supervisor | E129: Vendor #13 | G129: SW007827 | H129: 2018-10-27 | I129: 2018-10-27 | J129: Yes | K129: =VLOOKUP($D129,'C.1 - Rate Sheets'!$B$16:$E$35,2) -> 74 | L129: =VLOOKUP($D129,'C.1 - Rate Sheets'!$B$16:$E$35,3) -> 99.9 | M129: =VLOOKUP($D129,'C.1 - Rate Sheets'!$B$16:$E$35,4) -> 118.4 | N129: =VLOOKUP($D129,'C.1 - Rate Sheets'!B:F,5,FALSE) -> 0 | O129: 0 | P129: 0 | Q129: 0 | R129: 0 | S129: 0 | T129: 0 | U129: 0 | V129: 0 | W129: 0 | X129: 0 | Y129: 0 | Z129: 0 | AA129: 0 | AB129: 0 | AC129: 0 | AD129: 0 | AE129: 0 | AF129: 0 | AG129: 0 | AH129: 0 | AM129: 0 | AR129: 0 | AW129: 0 | BB129: 0 | BG129: 0 | BL129: 0 | BQ129: 0 | BV129: 0 | CA129: 0 | CF129: 0 | CK129: 0 | CL129: 0 | CM129: 0 | CN129: 0 | CO129: 0 | CP129: 0 | CQ129: 0 | CR129: 0 | CS129: 0 | CT129: 0 | CU129: 0 | CV129: 0 | CW129: 0 | CX129: 0 | CY129: 0 | CZ129: 0 | DA129: 0 | DB129: 0 | DC129: 0 | DD129: 0 | DE129: 0 | DF129: 0 | DG129: 13 | DH129: 0 | DI129: 0 | DJ129: 13 | DK129: 0 | DL129: 0 | DM129: 0 | DN129: 0 | DO129: 0 | DP129: 0 | DQ129: 0 | DR129: 0 | DS129: 0 | DT129: 0 | DU129: 0 | DV129: 0 | DW129: 0 | DX129: 0 | DY129: 0 | DZ129: 0 | EA129: 0 | EB129: 0 | EC129: 0 | ED129: 0 | EE129: 0 | EF129: 0 | EG129: 0 | EH129: 0 | EI129: 0 | EJ129: 0 | EK129: 0 | EL129: 0 | EM129: 0 | EN129: 0 | EO129: 0 | EP129: 0 | EQ129: 0 | ER129: 0 | ES129: 0 | ET129: 0 | EU129: 13 | EV129: 0 | EW129: 0 | EX129: 13 | EY129: 0 | EZ129: 1298.7 | FA129: 0 | FB129: 0 | FC129: 1298.7 | FD129: 1298.7 | FE129: Yes | FF129: 0 | FG129: 0 | FH129: 0
B130: 108 | D130: Supervisor | E130: Vendor #13 | G130: SW007829 | H130: 2018-10-27 | I130: 2018-10-27 | J130: Yes | K130: =VLOOKUP($D130,'C.1 - Rate Sheets'!$B$16:$E$35,2) -> 74 | L130: =VLOOKUP($D130,'C.1 - Rate Sheets'!$B$16:$E$35,3) -> 99.9 | M130: =VLOOKUP($D130,'C.1 - Rate Sheets'!$B$16:$E$35,4) -> 118.4 | N130: =VLOOKUP($D130,'C.1 - Rate Sheets'!B:F,5,FALSE) -> 0 | O130: 0 | P130: 0 | Q130: 0 | R130: 0 | S130: 0 | T130: 0 | U130: 0 | V130: 0 | W130: 0 | X130: 0 | Y130: 0 | Z130: 0 | AA130: 0 | AB130: 0 | AC130: 0 | AD130: 0 | AE130: 0 | AF130: 0 | AG130: 0 | AH130: 0 | AM130: 0 | AN130: 0 | AO130: 0 | AP130: 0 | AQ130: 0 | AR130: 0 | AW130: 0 | BB130: 0 | BG130: 0 | BL130: 0 | BQ130: 0 | BV130: 0 | CA130: 0 | CF130: 0 | CK130: 0 | CL130: 0 | CM130: 0 | CN130: 0 | CO130: 0 | CP130: 0 | CQ130: 0 | CR130: 0 | CS130: 0 | CT130: 0 | CU130: 0 | CV130: 0 | CW130: 0 | CX130: 0 | CY130: 0 | CZ130: 0 | DA130: 0 | DB130: 0 | DC130: 0 | DD130: 0 | DE130: 0 | DF130: 0 | DG130: 13 | DH130: 0 | DI130: 0 | DJ130: 13 | DK130: 0 | DL130: 0 | DM130: 0 | DN130: 0 | DO130: 0 | DP130: 0 | DQ130: 0 | DR130: 0 | DS130: 0 | DT130: 0 | DU130: 0 | DV130: 0 | DW130: 0 | DX130: 0 | DY130: 0 | DZ130: 0 | EA130: 0 | EB130: 0 | EC130: 0 | ED130: 0 | EE130: 0 | EF130: 0 | EG130: 0 | EH130: 0 | EI130: 0 | EJ130: 0 | EK130: 0 | EL130: 0 | EM130: 0 | EN130: 0 | EO130: 0 | EP130: 0 | EQ130: 0 | ER130: 0 | ES130: 0 | ET130: 0 | EU130: 13 | EV130: 0 | EW130: 0 | EX130: 13 | EY130: 0 | EZ130: 1298.7 | FA130: 0 | FB130: 0 | FC130: 1298.7 | FD130: 1298.7 | FE130: Yes | FF130: 0 | FG130: 0 | FH130: 0
B131: 108 | D131: Tree Trimmer | E131: Vendor #13 | G131: SW007829 | H131: 2018-10-27 | I131: 2018-10-27 | J131: Yes | K131: =VLOOKUP($D131,'C.1 - Rate Sheets'!$B$16:$E$35,2) -> 48.5 | L131: =VLOOKUP($D131,'C.1 - Rate Sheets'!$B$16:$E$35,3) -> 65.5 | M131: =VLOOKUP($D131,'C.1 - Rate Sheets'!$B$16:$E$35,4) -> 77.6 | N131: =VLOOKUP($D131,'C.1 - Rate Sheets'!B:F,5,FALSE) -> 0 | O131: 0 | P131: 0 | Q131: 0 | R131: 0 | S131: =SUM(O131:R131) -> 0 | T131: 0 | U131: 0 | V131: 0 | W131: 0 | X131: =SUM(T131:W131) -> 0 | Y131: 0 | Z131: 0 | AA131: 0 | AB131: 0 | AC131: =SUM(Y131:AB131) -> 0 | AD131: 0 | AE131: 0 | AF131: 0 | AG131: 0 | AH131: =SUM(AD131:AG131) -> 0 | AM131: =SUM(AI131:AL131) -> 0 | AN131: 0 | AO131: 0 | AP131: 0 | AQ131: 0 | AR131: =SUM(AN131:AQ131) -> 0 | AW131: =SUM(AS131:AV131) -> 0 | BB131: =SUM(AX131:BA131) -> 0 | BG131: =SUM(BC131:BF131) -> 0 | BL131: =SUM(BH131:BK131) -> 0 | BQ131: =SUM(BM131:BP131) -> 0 | BV131: =SUM(BR131:BU131) -> 0 | CA131: =SUM(BW131:BZ131) -> 0 | CF131: =+SUM(CB131:CE131) -> 0 | CK131: =SUM(CG131:CJ131) -> 0 | CL131: 0 | CM131: 0 | CN131: 0 | CO131: 0 | CP131: =+SUM(CL131:CO131) -> 0 | CQ131: 0 | CR131: 0 | CS131: 0 | CT131: 0 | CU131: =+SUM(CQ131:CT131) -> 0 | CV131: 0 | CW131: 0 | CX131: 0 | CY131: 0 | CZ131: =+SUM(CV131:CY131) -> 0 | DA131: 0 | DB131: 0 | DC131: 0 | DD131: 0 | DE131: =+SUM(DA131:DD131) -> 0 | DF131: 0 | DG131: 13 | DH131: 0 | DI131: 0 | DJ131: =+SUM(DF131:DI131) -> 13 | DK131: 0 | DL131: 0 | DM131: 0 | DN131: 0 | DO131: =SUM(DK131:DN131) -> 0 | DP131: 0 | DQ131: 0 | DR131: 0 | DS131: 0 | DT131: =SUM(DP131:DS131) -> 0 | DU131: 0 | DV131: 0 | DW131: 0 | DX131: 0 | DY131: =SUM(DU131:DX131) -> 0 | DZ131: 0 | EA131: 0 | EB131: 0 | EC131: 0 | ED131: =SUM(DZ131:EC131) -> 0 | EE131: 0 | EF131: 0 | EG131: 0 | EH131: 0 | EI131: =SUM(EE131:EH131) -> 0 | EJ131: 0 | EK131: 0 | EL131: 0 | EM131: 0 | EN131: =SUM(EJ131:EM131) -> 0 | EO131: 0 | EP131: 0 | EQ131: 0 | ER131: 0 | ES131: =SUM(EO131:ER131) -> 0 | ET131: 0 | EU131: 13 | EV131: 0 | EW131: =SUM(R131,W131,AB131,AL131,AQ131,AV131,BA131,BF131,BK131,BP131,BU131,BZ131,CO131, CJ131,CT131,CY131,DD131,DI131,DN131, DS131,DX131,EC131,EH131,EM131,ER131) -> 0 | EX131: =SUM(S131,X131,AC131,AM131,AR131,AW131,BB131,BG131,BL131,BQ131,BV131,CA131,CP131, CK131,CU131,CZ131,DE131,DJ131,DO131, DT131,DY131,ED131,EI131,EN131,ES131) -> 13 | EY131: 0 | EZ131: 851.5 | FA131: 0 | FB131: 0 | FC131: =SUM(EY131:FB131) -> 851.5 | FD131: =FC131-FF131 -> 851.5 | FE131: Yes | FF131: 0 | FG131: 0 | FH131: -522.6 | FI131: 7
B132: 109 | D132: Crew Foreman | E132: Vendor #13 | G132: SW007830 | H132: 2018-10-21 | I132: 2018-10-27 | J132: Yes | K132: =VLOOKUP($D132,'C.1 - Rate Sheets'!$B$16:$E$35,2) -> 56.8 | L132: =VLOOKUP($D132,'C.1 - Rate Sheets'!$B$16:$E$35,3) -> 76.7 | M132: =VLOOKUP($D132,'C.1 - Rate Sheets'!$B$16:$E$35,4) -> 90.9 | N132: =VLOOKUP($D132,'C.1 - Rate Sheets'!B:F,5,FALSE) -> 0 | O132: 0 | P132: 0 | Q132: 0 | R132: 0 | S132: =SUM(O132:R132) -> 0 | T132: 0 | U132: 0 | V132: 0 | W132: 0 | X132: =SUM(T132:W132) -> 0 | Y132: 0 | Z132: 0 | AA132: 0 | AB132: 0 | AC132: =SUM(Y132:AB132) -> 0 | AD132: 0 | AE132: 0 | AF132: 0 | AG132: 0 | AH132: =SUM(AD132:AG132) -> 0 | AM132: =SUM(AI132:AL132) -> 0 | AN132: 0 | AO132: 0 | AP132: 0 | AQ132: 0 | AR132: =SUM(AN132:AQ132) -> 0 | AW132: =SUM(AS132:AV132) -> 0 | BB132: =SUM(AX132:BA132) -> 0 | BG132: =SUM(BC132:BF132) -> 0 | BL132: =SUM(BH132:BK132) -> 0 | BQ132: =SUM(BM132:BP132) -> 0 | BV132: =SUM(BR132:BU132) -> 0 | CA132: =SUM(BW132:BZ132) -> 0 | CD132: 16 | CF132: =+SUM(CB132:CE132) -> 16 | CG132: 8 | CH132: 8 | CK132: =SUM(CG132:CJ132) -> 16 | CL132: 8 | CM132: 8 | CN132: 0 | CO132: 0 | CP132: =+SUM(CL132:CO132) -> 16 | CQ132: 8 | CR132: 8 | CS132: 0 | CT132: 0 | CU132: =+SUM(CQ132:CT132) -> 16 | CV132: 8 | CW132: 8 | CX132: 0 | CY132: 0 | CZ132: =+SUM(CV132:CY132) -> 16 | DA132: 8 | DB132: 8 | DC132: 0 | DD132: 0 | DE132: =+SUM(DA132:DD132) -> 16 | DF132: 0 | DG132: 0 | DH132: 0 | DI132: 0 | DJ132: =+SUM(DF132:DI132) -> 0 | DK132: 0 | DL132: 0 | DM132: 0 | DN132: 0 | DO132: =SUM(DK132:DN132) -> 0 | DP132: 0 | DQ132: 0 | DR132: 0 | DS132: 0 | DT132: =SUM(DP132:DS132) -> 0 | DU132: 0 | DV132: 0 | DW132: 0 | DX132: 0 | DY132: =SUM(DU132:DX132) -> 0 | DZ132: 0 | EA132: 0 | EB132: 0 | EC132: 0 | ED132: =SUM(DZ132:EC132) -> 0 | EE132: 0 | EF132: 0 | EG132: 0 | EH132: 0 | EI132: =SUM(EE132:EH132) -> 0 | EJ132: 0 | EK132: 0 | EL132: 0 | EM132: 0 | EN132: =SUM(EJ132:EM132) -> 0 | EO132: 0 | EP132: 0 | EQ132: 0 | ER132: 0 | ES132: =SUM(EO132:ER132) -> 0 | ET132: =SUM(O132,T132,Y132,AI132,AN132,AS132,AX132,BC132,BH132,BM132,BR132,BW132,CB132,CL132, CG132,CQ132,CV132,DA132,DF132,DK132, DP132,DU132,DZ132,EE132,EJ132,EO132) -> 40 | EU132: 40 | EV132: =SUM(Q132,V132,AA132,AK132,AP132,AU132,AZ132,BE132,BJ132,BO132,BT132,BY132,CD132,CN132, CI132,CS132,CX132,DC132,DH132,DM132, DR132,DW132,EB132,EG132,EL132,EQ132) -> 16 | EW132: 0 | EX132: 80 | EY132: 2272 | EZ132: 3068 | FA132: 1454.4 | FB132: 0 | FC132: =SUM(EY132:FB132) -> 6794.4 | FD132: =FC132-FF132 -> 6794.4 | FE132: Yes | FF132: 0 | FG132: 0 | FH132: 0
B133: 110 | D133: Tree Trimmer | E133: Vendor #13 | G133: SW007830 | H133: 2018-10-21 | I133: 2018-10-27 | J133: Yes | K133: =VLOOKUP($D133,'C.1 - Rate Sheets'!$B$16:$E$35,2) -> 48.5 | L133: =VLOOKUP($D133,'C.1 - Rate Sheets'!$B$16:$E$35,3) -> 65.5 | M133: =VLOOKUP($D133,'C.1 - Rate Sheets'!$B$16:$E$35,4) -> 77.6 | N133: =VLOOKUP($D133,'C.1 - Rate Sheets'!B:F,5,FALSE) -> 0 | O133: 0 | P133: 0 | Q133: 0 | R133: 0 | S133: 0 | T133: 0 | U133: 0 | V133: 0 | W133: 0 | X133: 0 | Y133: 0 | Z133: 0 | AA133: 0 | AB133: 0 | AC133: 0 | AD133: 0 | AE133: 0 | AF133: 0 | AG133: 0 | AH133: 0 | AM133: 0 | AN133: 0 | AO133: 0 | AP133: 0 | AQ133: 0 | AR133: 0 | AW133: 0 | BB133: 0 | BG133: 0 | BL133: 0 | BQ133: 0 | BV133: 0 | CA133: 0 | CD133: 16 | CF133: 16 | CG133: 8 | CH133: 8 | CK133: 16 | CL133: 8 | CM133: 8 | CN133: 0 | CO133: 0 | CP133: 16 | CQ133: 8 | CR133: 8 | CS133: 0 | CT133: 0 | CU133: 16 | CV133: 8 | CW133: 8 | CX133: 0 | CY133: 0 | CZ133: 16 | DA133: 8 | DB133: 8 | DC133: 0 | DD133: 0 | DE133: 16 | DF133: 0 | DG133: 0 | DH133: 0 | DI133: 0 | DJ133: 0 | DK133: 0 | DL133: 0 | DM133: 0 | DN133: 0 | DO133: 0 | DP133: 0 | DQ133: 0 | DR133: 0 | DS133: 0 | DT133: 0 | DU133: 0 | DV133: 0 | DW133: 0 | DX133: 0 | DY133: 0 | DZ133: 0 | EA133: 0 | EB133: 0 | EC133: 0 | ED133: 0 | EE133: 0 | EF133: 0 | EG133: 0 | EH133: 0 | EI133: 0 | EJ133: 0 | EK133: 0 | EL133: 0 | EM133: 0 | EN133: 0 | EO133: 0 | EP133: 0 | EQ133: 0 | ER133: 0 | ES133: 0 | ET133: =SUM(O133,T133,Y133,AI133,AN133,AS133,AX133,BC133,BH133,BM133,BR133,BW133,CB133,CL133, CG133,CQ133,CV133,DA133,DF133,DK133, DP133,DU133,DZ133,EE133,EJ133,EO133) -> 40 | EU133: =SUM(P133,U133,Z133,AJ133,AO133,AT133,AY133,BD133,BI133,BN133,BS133,BX133,CC133,CM133, CH133,CR133,CW133,DB133,DG133,DL133, DQ133,DV133,EA133,EF133,EK133,EP133) -> 40 | EV133: =SUM(Q133,V133,AA133,AK133,AP133,AU133,AZ133,BE133,BJ133,BO133,BT133,BY133,CD133,CN133, CI133,CS133,CX133,DC133,DH133,DM133, DR133,DW133,EB133,EG133,EL133,EQ133) -> 16 | EW133: 0 | EX133: 80 | EY133: 1940 | EZ133: 2620 | FA133: 1241.6 | FB133: 0 | FC133: 5801.6 | FD133: 5801.6 | FE133: Yes | FF133: 0 | FG133: 0 | FH133: 0
B134: 111 | D134: Crew Foreman | E134: Vendor #13 | G134: SW007831 | H134: 2018-10-21 | I134: 2018-10-27 | J134: Yes | K134: =VLOOKUP($D134,'C.1 - Rate Sheets'!$B$16:$E$35,2) -> 56.8 | L134: =VLOOKUP($D134,'C.1 - Rate Sheets'!$B$16:$E$35,3) -> 76.7 | M134: =VLOOKUP($D134,'C.1 - Rate Sheets'!$B$16:$E$35,4) -> 90.9 | N134: =VLOOKUP($D134,'C.1 - Rate Sheets'!B:F,5,FALSE) -> 0 | O134: 0 | P134: 0 | Q134: 0 | R134: 0 | S134: 0 | T134: 0 | U134: 0 | V134: 0 | W134: 0 | X134: 0 | Y134: 0 | Z134: 0 | AA134: 0 | AB134: 0 | AC134: 0 | AD134: 0 | AE134: 0 | AF134: 0 | AG134: 0 | AH134: 0 | AM134: 0 | AN134: 0 | AO134: 0 | AP134: 0 | AQ134: 0 | AR134: 0 | AW134: 0 | BB134: 0 | BG134: 0 | BL134: 0 | BQ134: 0 | BV134: 0 | CA134: 0 | CD134: 16 | CF134: 16 | CG134: 8 | CH134: 8 | CK134: 16 | CL134: 8 | CM134: 8 | CN134: 0 | CO134: 0 | CP134: 16 | CQ134: 8 | CR134: 8 | CS134: 0 | CT134: 0 | CU134: 16 | CV134: 8 | CW134: 8 | CX134: 0 | CY134: 0 | CZ134: 16 | DA134: 8 | DB134: 8 | DC134: 0 | DD134: 0 | DE134: 16 | DF134: 0 | DG134: 0 | DH134: 0 | DI134: 0 | DJ134: 0 | DK134: 0 | DL134: 0 | DM134: 0 | DN134: 0 | DO134: 0 | DP134: 0 | DQ134: 0 | DR134: 0 | DS134: 0 | DT134: 0 | DU134: 0 | DV134: 0 | DW134: 0 | DX134: 0 | DY134: 0 | DZ134: 0 | EA134: 0 | EB134: 0 | EC134: 0 | ED134: 0 | EE134: 0 | EF134: 0 | EG134: 0 | EH134: 0 | EI134: 0 | EJ134: 0 | EK134: 0 | EL134: 0 | EM134: 0 | EN134: 0 | EO134: 0 | EP134: 0 | EQ134: 0 | ER134: 0 | ES134: 0 | ET134: 40 | EU134: 40 | EV134: 16 | EW134: 0 | EX134: 80 | EY134: 2272 | EZ134: 3068 | FA134: 1454.4 | FB134: 0 | FC134: 6794.4 | FD134: 6794.4 | FE134: Yes | FF134: 0 | FG134: 0 | FH134: 0
B135: 112 | D135: Tree Trimmer | E135: Vendor #13 | G135: SW007831 | H135: 2018-10-21 | I135: 2018-10-27 | J135: Yes | K135: =VLOOKUP($D135,'C.1 - Rate Sheets'!$B$16:$E$35,2) -> 48.5 | L135: =VLOOKUP($D135,'C.1 - Rate Sheets'!$B$16:$E$35,3) -> 65.5 | M135: =VLOOKUP($D135,'C.1 - Rate Sheets'!$B$16:$E$35,4) -> 77.6 | N135: =VLOOKUP($D135,'C.1 - Rate Sheets'!B:F,5,FALSE) -> 0 | O135: 0 | P135: 0 | Q135: 0 | R135: 0 | S135: 0 | T135: 0 | U135: 0 | V135: 0 | W135: 0 | X135: 0 | Y135: 0 | Z135: 0 | AA135: 0 | AB135: 0 | AC135: 0 | AD135: 0 | AE135: 0 | AF135: 0 | AG135: 0 | AH135: 0 | AM135: 0 | AN135: 0 | AO135: 0 | AP135: 0 | AQ135: 0 | AR135: 0 | AW135: 0 | BB135: 0 | BG135: 0 | BL135: 0 | BQ135: 0 | BV135: 0 | CA135: 0 | CD135: 16 | CF135: 16 | CG135: 8 | CH135: 8 | CK135: 16 | CL135: 8 | CM135: 8 | CN135: 0 | CO135: 0 | CP135: 16 | CQ135: 8 | CR135: 8 | CS135: 0 | CT135: 0 | CU135: 16 | CV135: 8 | CW135: 8 | CX135: 0 | CY135: 0 | CZ135: 16 | DA135: 8 | DB135: 8 | DC135: 0 | DD135: 0 | DE135: 16 | DF135: 0 | DG135: 0 | DH135: 0 | DI135: 0 | DJ135: 0 | DK135: 0 | DL135: 0 | DM135: 0 | DN135: 0 | DO135: 0 | DP135: 0 | DQ135: 0 | DR135: 0 | DS135: 0 | DT135: 0 | DU135: 0 | DV135: 0 | DW135: 0 | DX135: 0 | DY135: 0 | DZ135: 0 | EA135: 0 | EB135: 0 | EC135: 0 | ED135: 0 | EE135: 0 | EF135: 0 | EG135: 0 | EH135: 0 | EI135: 0 | EJ135: 0 | EK135: 0 | EL135: 0 | EM135: 0 | EN135: 0 | EO135: 0 | EP135: 0 | EQ135: 0 | ER135: 0 | ES135: 0 | ET135: 40 | EU135: 40 | EV135: 16 | EW135: 0 | EX135: 80 | EY135: 1940 | EZ135: 2620 | FA135: 1241.6 | FB135: 0 | FC135: 5801.6 | FD135: 5801.6 | FE135: Yes | FF135: 0 | FG135: 0 | FH135: 0
B136: 113 | D136: Crew Foreman | E136: Vendor #13 | G136: SW007832 | H136: 2018-10-21 | I136: 2018-10-27 | J136: Yes | K136: =VLOOKUP($D136,'C.1 - Rate Sheets'!$B$16:$E$35,2) -> 56.8 | L136: =VLOOKUP($D136,'C.1 - Rate Sheets'!$B$16:$E$35,3) -> 76.7 | M136: =VLOOKUP($D136,'C.1 - Rate Sheets'!$B$16:$E$35,4) -> 90.9 | N136: =VLOOKUP($D136,'C.1 - Rate Sheets'!B:F,5,FALSE) -> 0 | O136: 0 | P136: 0 | Q136: 0 | R136: 0 | S136: 0 | T136: 0 | U136: 0 | V136: 0 | W136: 0 | X136: 0 | Y136: 0 | Z136: 0 | AA136: 0 | AB136: 0 | AC136: 0 | AD136: 0 | AE136: 0 | AF136: 0 | AG136: 0 | AH136: 0 | AM136: 0 | AN136: 0 | AO136: 0 | AP136: 0 | AQ136: 0 | AR136: 0 | AW136: 0 | BB136: 0 | BG136: 0 | BL136: 0 | BQ136: 0 | BV136: 0 | CA136: 0 | CF136: 0 | CK136: 0 | CL136: 0 | CM136: 0 | CN136: 0 | CO136: 0 | CP136: 0 | CQ136: 0 | CR136: 0 | CS136: 0 | CT136: 0 | CU136: 0 | CV136: 0 | CW136: 0 | CX136: 0 | CY136: 0 | CZ136: 0 | DA136: 0 | DB136: 0 | DC136: 0 | DD136: 0 | DE136: 0 | DF136: 0 | DG136: 13 | DH136: 0 | DI136: 0 | DJ136: 13 | DK136: 0 | DL136: 0 | DM136: 0 | DN136: 0 | DO136: 0 | DP136: 0 | DQ136: 0 | DR136: 0 | DS136: 0 | DT136: 0 | DU136: 0 | DV136: 0 | DW136: 0 | DX136: 0 | DY136: 0 | DZ136: 0 | EA136: 0 | EB136: 0 | EC136: 0 | ED136: 0 | EE136: 0 | EF136: 0 | EG136: 0 | EH136: 0 | EI136: 0 | EJ136: 0 | EK136: 0 | EL136: 0 | EM136: 0 | EN136: 0 | EO136: 0 | EP136: 0 | EQ136: 0 | ER136: 0 | ES136: 0 | ET136: 0 | EU136: 13 | EV136: 0 | EW136: 0 | EX136: 13 | EY136: 0 | EZ136: 997.1 | FA136: 0 | FB136: 0 | FC136: 997.1 | FD136: 997.1 | FE136: Yes | FF136: 0 | FG136: 0 | FH136: 0
B137: 114 | D137: Tree Trimmer | E137: Vendor #13 | G137: SW007832 | H137: 2018-10-21 | I137: 2018-10-27 | J137: Yes | K137: =VLOOKUP($D137,'C.1 - Rate Sheets'!$B$16:$E$35,2) -> 48.5 | L137: =VLOOKUP($D137,'C.1 - Rate Sheets'!$B$16:$E$35,3) -> 65.5 | M137: =VLOOKUP($D137,'C.1 - Rate Sheets'!$B$16:$E$35,4) -> 77.6 | N137: =VLOOKUP($D137,'C.1 - Rate Sheets'!B:F,5,FALSE) -> 0 | O137: 0 | P137: 0 | Q137: 0 | R137: 0 | S137: 0 | T137: 0 | U137: 0 | V137: 0 | W137: 0 | X137: 0 | Y137: 0 | Z137: 0 | AA137: 0 | AB137: 0 | AC137: 0 | AD137: 0 | AE137: 0 | AF137: 0 | AG137: 0 | AH137: 0 | AM137: 0 | AN137: 0 | AO137: 0 | AP137: 0 | AQ137: 0 | AR137: 0 | AW137: 0 | BB137: 0 | BG137: 0 | BL137: 0 | BQ137: 0 | BV137: 0 | CA137: 0 | CF137: 0 | CK137: 0 | CL137: 0 | CM137: 0 | CN137: 0 | CO137: 0 | CP137: 0 | CQ137: 0 | CR137: 0 | CS137: 0 | CT137: 0 | CU137: 0 | CV137: 0 | CW137: 0 | CX137: 0 | CY137: 0 | CZ137: 0 | DA137: 0 | DB137: 0 | DC137: 0 | DD137: 0 | DE137: 0 | DF137: 0 | DG137: 13 | DH137: 0 | DI137: 0 | DJ137: 13 | DK137: 0 | DL137: 0 | DM137: 0 | DN137: 0 | DO137: 0 | DP137: 0 | DQ137: 0 | DR137: 0 | DS137: 0 | DT137: 0 | DU137: 0 | DV137: 0 | DW137: 0 | DX137: 0 | DY137: 0 | DZ137: 0 | EA137: 0 | EB137: 0 | EC137: 0 | ED137: 0 | EE137: 0 | EF137: 0 | EG137: 0 | EH137: 0 | EI137: 0 | EJ137: 0 | EK137: 0 | EL137: 0 | EM137: 0 | EN137: 0 | EO137: 0 | EP137: 0 | EQ137: 0 | ER137: 0 | ES137: 0 | ET137: 0 | EU137: 13 | EV137: 0 | EW137: 0 | EX137: 13 | EY137: 0 | EZ137: 851.5 | FA137: 0 | FB137: 0 | FC137: 851.5 | FD137: 851.5 | FE137: Yes | FF137: 0 | FG137: 0 | FH137: 0
B138: 115 | D138: Crew Foreman | E138: Vendor #13 | G138: SW007833 | H138: 2018-10-21 | I138: 2018-10-27 | J138: Yes | K138: =VLOOKUP($D138,'C.1 - Rate Sheets'!$B$16:$E$35,2) -> 56.8 | L138: =VLOOKUP($D138,'C.1 - Rate Sheets'!$B$16:$E$35,3) -> 76.7 | M138: =VLOOKUP($D138,'C.1 - Rate Sheets'!$B$16:$E$35,4) -> 90.9 | N138: =VLOOKUP($D138,'C.1 - Rate Sheets'!B:F,5,FALSE) -> 0 | O138: 0 | P138: 0 | Q138: 0 | R138: 0 | S138: 0 | T138: 0 | U138: 0 | V138: 0 | W138: 0 | X138: 0 | Y138: 0 | Z138: 0 | AA138: 0 | AB138: 0 | AC138: 0 | AD138: 0 | AE138: 0 | AF138: 0 | AG138: 0 | AH138: 0 | AM138: 0 | AN138: 0 | AO138: 0 | AP138: 0 | AQ138: 0 | AR138: 0 | AW138: 0 | BB138: 0 | BG138: 0 | BL138: 0 | BQ138: 0 | BV138: 0 | CA138: 0 | CD138: 16 | CF138: 16 | CG138: 8 | CH138: 8 | CK138: 16 | CL138: 8 | CM138: 8 | CN138: 0 | CO138: 0 | CP138: 16 | CQ138: 8 | CR138: 8 | CS138: 0 | CT138: 0 | CU138: 16 | CV138: 8 | CW138: 8 | CX138: 0 | CY138: 0 | CZ138: 16 | DA138: 8 | DB138: 8 | DC138: 0 | DD138: 0 | DE138: 16 | DF138: 0 | DG138: 0 | DH138: 0 | DI138: 0 | DJ138: 0 | DK138: 0 | DL138: 0 | DM138: 0 | DN138: 0 | DO138: 0 | DP138: 0 | DQ138: 0 | DR138: 0 | DS138: 0 | DT138: 0 | DU138: 0 | DV138: 0 | DW138: 0 | DX138: 0 | DY138: 0 | DZ138: 0 | EA138: 0 | EB138: 0 | EC138: 0 | ED138: 0 | EE138: 0 | EF138: 0 | EG138: 0 | EH138: 0 | EI138: 0 | EJ138: 0 | EK138: 0 | EL138: 0 | EM138: 0 | EN138: 0 | EO138: 0 | EP138: 0 | EQ138: 0 | ER138: 0 | ES138: 0 | ET138: 40 | EU138: 40 | EV138: 16 | EW138: 0 | EX138: 80 | EY138: 2272 | EZ138: 3068 | FA138: 1454.4 | FB138: 0 | FC138: 6794.4 | FD138: 6794.4 | FE138: Yes | FF138: 0 | FG138: 0 | FH138: 0
B139: 116 | D139: Tree Trimmer | E139: Vendor #13 | G139: SW007833 | H139: 2018-10-21 | I139: 2018-10-27 | J139: Yes | K139: =VLOOKUP($D139,'C.1 - Rate Sheets'!$B$16:$E$35,2) -> 48.5 | L139: =VLOOKUP($D139,'C.1 - Rate Sheets'!$B$16:$E$35,3) -> 65.5 | M139: =VLOOKUP($D139,'C.1 - Rate Sheets'!$B$16:$E$35,4) -> 77.6 | N139: =VLOOKUP($D139,'C.1 - Rate Sheets'!B:F,5,FALSE) -> 0 | O139: 0 | P139: 0 | Q139: 0 | R139: 0 | S139: 0 | T139: 0 | U139: 0 | V139: 0 | W139: 0 | X139: 0 | Y139: 0 | Z139: 0 | AA139: 0 | AB139: 0 | AC139: 0 | AD139: 0 | AE139: 0 | AF139: 0 | AG139: 0 | AH139: 0 | AM139: 0 | AN139: 0 | AO139: 0 | AP139: 0 | AQ139: 0 | AR139: 0 | AW139: 0 | BB139: 0 | BG139: 0 | BL139: 0 | BQ139: 0 | BV139: 0 | CA139: 0 | CD139: 16 | CF139: 16 | CG139: 8 | CH139: 8 | CK139: 16 | CL139: 8 | CM139: 8 | CN139: 0 | CO139: 0 | CP139: 16 | CQ139: 8 | CR139: 8 | CS139: 0 | CT139: 0 | CU139: 16 | CV139: 8 | CW139: 8 | CX139: 0 | CY139: 0 | CZ139: 16 | DA139: 8 | DB139: 8 | DC139: 0 | DD139: 0 | DE139: 16 | DF139: 0 | DG139: 0 | DH139: 0 | DI139: 0 | DJ139: 0 | DK139: 0 | DL139: 0 | DM139: 0 | DN139: 0 | DO139: 0 | DP139: 0 | DQ139: 0 | DR139: 0 | DS139: 0 | DT139: 0 | DU139: 0 | DV139: 0 | DW139: 0 | DX139: 0 | DY139: 0 | DZ139: 0 | EA139: 0 | EB139: 0 | EC139: 0 | ED139: 0 | EE139: 0 | EF139: 0 | EG139: 0 | EH139: 0 | EI139: 0 | EJ139: 0 | EK139: 0 | EL139: 0 | EM139: 0 | EN139: 0 | EO139: 0 | EP139: 0 | EQ139: 0 | ER139: 0 | ES139: 0 | ET139: 40 | EU139: 40 | EV139: 16 | EW139: 0 | EX139: 80 | EY139: 1940 | EZ139: 2620 | FA139: 1241.6 | FB139: 0 | FC139: 5801.6 | FD139: 5801.6 | FE139: Yes | FF139: 0 | FG139: 0 | FH139: 0
B140: 117 | D140: Crew Foreman | E140: Vendor #13 | G140: SW007834 | H140: 2018-10-21 | I140: 2018-10-27 | J140: Yes | K140: =VLOOKUP($D140,'C.1 - Rate Sheets'!$B$16:$E$35,2) -> 56.8 | L140: =VLOOKUP($D140,'C.1 - Rate Sheets'!$B$16:$E$35,3) -> 76.7 | M140: =VLOOKUP($D140,'C.1 - Rate Sheets'!$B$16:$E$35,4) -> 90.9 | N140: =VLOOKUP($D140,'C.1 - Rate Sheets'!B:F,5,FALSE) -> 0 | O140: 0 | P140: 0 | Q140: 0 | R140: 0 | S140: 0 | T140: 0 | U140: 0 | V140: 0 | W140: 0 | X140: 0 | Y140: 0 | Z140: 0 | AA140: 0 | AB140: 0 | AC140: 0 | AD140: 0 | AE140: 0 | AF140: 0 | AG140: 0 | AH140: 0 | AM140: 0 | AN140: 0 | AO140: 0 | AP140: 0 | AQ140: 0 | AR140: 0 | AW140: 0 | BB140: 0 | BG140: 0 | BL140: 0 | BQ140: 0 | BV140: 0 | CA140: 0 | CF140: 0 | CK140: 0 | CL140: 0 | CM140: 0 | CN140: 0 | CO140: 0 | CP140: 0 | CQ140: 0 | CR140: 0 | CS140: 0 | CT140: 0 | CU140: 0 | CV140: 0 | CW140: 0 | CX140: 0 | CY140: 0 | CZ140: 0 | DA140: 0 | DB140: 0 | DC140: 0 | DD140: 0 | DE140: 0 | DF140: 0 | DG140: 13 | DH140: 0 | DI140: 0 | DJ140: 13 | DK140: 0 | DL140: 0 | DM140: 0 | DN140: 0 | DO140: 0 | DP140: 0 | DQ140: 0 | DR140: 0 | DS140: 0 | DT140: 0 | DU140: 0 | DV140: 0 | DW140: 0 | DX140: 0 | DY140: 0 | DZ140: 0 | EA140: 0 | EB140: 0 | EC140: 0 | ED140: 0 | EE140: 0 | EF140: 0 | EG140: 0 | EH140: 0 | EI140: 0 | EJ140: 0 | EK140: 0 | EL140: 0 | EM140: 0 | EN140: 0 | EO140: 0 | EP140: 0 | EQ140: 0 | ER140: 0 | ES140: 0 | ET140: 0 | EU140: 13 | EV140: 0 | EW140: 0 | EX140: 13 | EY140: 0 | EZ140: 997.1 | FA140: 0 | FB140: 0 | FC140: 997.1 | FD140: 997.1 | FE140: Yes | FF140: 0 | FG140: 0 | FH140: 0
B141: 118 | D141: Tree Trimmer | E141: Vendor #13 | G141: SW007834 | H141: 2018-10-21 | I141: 2018-10-27 | J141: Yes | K141: =VLOOKUP($D141,'C.1 - Rate Sheets'!$B$16:$E$35,2) -> 48.5 | L141: =VLOOKUP($D141,'C.1 - Rate Sheets'!$B$16:$E$35,3) -> 65.5 | M141: =VLOOKUP($D141,'C.1 - Rate Sheets'!$B$16:$E$35,4) -> 77.6 | N141: =VLOOKUP($D141,'C.1 - Rate Sheets'!B:F,5,FALSE) -> 0 | O141: 0 | P141: 0 | Q141: 0 | R141: 0 | S141: 0 | T141: 0 | U141: 0 | V141: 0 | W141: 0 | X141: 0 | Y141: 0 | Z141: 0 | AA141: 0 | AB141: 0 | AC141: 0 | AD141: 0 | AE141: 0 | AF141: 0 | AG141: 0 | AH141: 0 | AM141: 0 | AN141: 0 | AO141: 0 | AP141: 0 | AQ141: 0 | AR141: 0 | AW141: 0 | BB141: 0 | BG141: 0 | BL141: 0 | BQ141: 0 | BV141: 0 | CA141: 0 | CF141: 0 | CK141: 0 | CL141: 0 | CM141: 0 | CN141: 0 | CO141: 0 | CP141: 0 | CQ141: 0 | CR141: 0 | CS141: 0 | CT141: 0 | CU141: 0 | CV141: 0 | CW141: 0 | CX141: 0 | CY141: 0 | CZ141: 0 | DA141: 0 | DB141: 0 | DC141: 0 | DD141: 0 | DE141: 0 | DF141: 0 | DG141: 13 | DH141: 0 | DI141: 0 | DJ141: 13 | DK141: 0 | DL141: 0 | DM141: 0 | DN141: 0 | DO141: 0 | DP141: 0 | DQ141: 0 | DR141: 0 | DS141: 0 | DT141: 0 | DU141: 0 | DV141: 0 | DW141: 0 | DX141: 0 | DY141: 0 | DZ141: 0 | EA141: 0 | EB141: 0 | EC141: 0 | ED141: 0 | EE141: 0 | EF141: 0 | EG141: 0 | EH141: 0 | EI141: 0 | EJ141: 0 | EK141: 0 | EL141: 0 | EM141: 0 | EN141: 0 | EO141: 0 | EP141: 0 | EQ141: 0 | ER141: 0 | ES141: 0 | ET141: 0 | EU141: 13 | EV141: 0 | EW141: 0 | EX141: 13 | EY141: 0 | EZ141: 851.5 | FA141: 0 | FB141: 0 | FC141: 851.5 | FD141: 851.5 | FE141: Yes | FF141: 0 | FG141: 0 | FH141: 0
B142: 119 | D142: Supervisor | E142: Vendor #13 | G142: SW007901 | H142: 2018-10-21 | I142: 2018-10-27 | J142: Yes | K142: =VLOOKUP($D142,'C.1 - Rate Sheets'!$B$16:$E$35,2) -> 74 | L142: =VLOOKUP($D142,'C.1 - Rate Sheets'!$B$16:$E$35,3) -> 99.9 | M142: =VLOOKUP($D142,'C.1 - Rate Sheets'!$B$16:$E$35,4) -> 118.4 | N142: =VLOOKUP($D142,'C.1 - Rate Sheets'!B:F,5,FALSE) -> 0 | O142: 0 | P142: 0 | Q142: 0 | R142: 0 | S142: 0 | T142: 0 | U142: 0 | V142: 0 | W142: 0 | X142: 0 | Y142: 0 | Z142: 0 | AA142: 0 | AB142: 0 | AC142: 0 | AD142: 0 | AE142: 0 | AF142: 0 | AG142: 0 | AH142: 0 | AM142: 0 | AN142: 0 | AO142: 0 | AP142: 0 | AQ142: 0 | AR142: 0 | AW142: 0 | BB142: 0 | BG142: 0 | BL142: 0 | BQ142: 0 | BV142: 0 | CA142: 0 | CD142: 16 | CF142: 16 | CG142: 8 | CH142: 8 | CK142: 16 | CL142: 8 | CM142: 8 | CN142: 0 | CO142: 0 | CP142: 16 | CQ142: 8 | CR142: 8 | CS142: 0 | CT142: 0 | CU142: 16 | CV142: 8 | CW142: 8 | CX142: 0 | CY142: 0 | CZ142: 16 | DA142: 8 | DB142: 8 | DC142: 0 | DD142: 0 | DE142: 16 | DF142: 0 | DG142: 16 | DH142: 0 | DI142: 0 | DJ142: 16 | DK142: 0 | DL142: 0 | DM142: 0 | DN142: 0 | DO142: 0 | DP142: 0 | DQ142: 0 | DR142: 0 | DS142: 0 | DT142: 0 | DU142: 0 | DV142: 0 | DW142: 0 | DX142: 0 | DY142: 0 | DZ142: 0 | EA142: 0 | EB142: 0 | EC142: 0 | ED142: 0 | EE142: 0 | EF142: 0 | EG142: 0 | EH142: 0 | EI142: 0 | EJ142: 0 | EK142: 0 | EL142: 0 | EM142: 0 | EN142: 0 | EO142: 0 | EP142: 0 | EQ142: 0 | ER142: 0 | ES142: 0 | ET142: 40 | EU142: 56 | EV142: 16 | EW142: 0 | EX142: 96 | EY142: 2960 | EZ142: 5594.4 | FA142: 1894.4 | FB142: 0 | FC142: 10448.8 | FD142: 10448.8 | FE142: Yes | FF142: 0 | FG142: 0 | FH142: 0
B143: 120 | D143: Crew Foreman | E143: Vendor #13 | G143: SW007902 | H143: 2018-10-21 | I143: 2018-10-27 | J143: Yes | K143: =VLOOKUP($D143,'C.1 - Rate Sheets'!$B$16:$E$35,2) -> 56.8 | L143: =VLOOKUP($D143,'C.1 - Rate Sheets'!$B$16:$E$35,3) -> 76.7 | M143: =VLOOKUP($D143,'C.1 - Rate Sheets'!$B$16:$E$35,4) -> 90.9 | N143: =VLOOKUP($D143,'C.1 - Rate Sheets'!B:F,5,FALSE) -> 0 | O143: 0 | P143: 0 | Q143: 0 | R143: 0 | S143: 0 | T143: 0 | U143: 0 | V143: 0 | W143: 0 | X143: 0 | Y143: 0 | Z143: 0 | AA143: 0 | AB143: 0 | AC143: 0 | AD143: 0 | AE143: 0 | AF143: 0 | AG143: 0 | AH143: 0 | AM143: 0 | AN143: 0 | AO143: 0 | AP143: 0 | AQ143: 0 | AR143: 0 | AW143: 0 | BB143: 0 | BG143: 0 | BL143: 0 | BQ143: 0 | BV143: 0 | CA143: 0 | CD143: 16 | CF143: 16 | CG143: 8 | CH143: 8 | CK143: 16 | CL143: 8 | CM143: 8 | CN143: 0 | CO143: 0 | CP143: 16 | CQ143: 8 | CR143: 8 | CS143: 0 | CT143: 0 | CU143: 16 | CV143: 8 | CW143: 8 | CX143: 0 | CY143: 0 | CZ143: 16 | DA143: 8 | DB143: 8 | DC143: 0 | DD143: 0 | DE143: 16 | DF143: 0 | DG143: 16 | DH143: 0 | DI143: 0 | DJ143: 16 | DK143: 0 | DL143: 0 | DM143: 0 | DN143: 0 | DO143: 0 | DP143: 0 | DQ143: 0 | DR143: 0 | DS143: 0 | DT143: 0 | DU143: 0 | DV143: 0 | DW143: 0 | DX143: 0 | DY143: 0 | DZ143: 0 | EA143: 0 | EB143: 0 | EC143: 0 | ED143: 0 | EE143: 0 | EF143: 0 | EG143: 0 | EH143: 0 | EI143: 0 | EJ143: 0 | EK143: 0 | EL143: 0 | EM143: 0 | EN143: 0 | EO143: 0 | EP143: 0 | EQ143: 0 | ER143: 0 | ES143: 0 | ET143: 40 | EU143: 56 | EV143: 16 | EW143: 0 | EX143: 96 | EY143: 2272 | EZ143: 4295.2 | FA143: 1454.4 | FB143: 0 | FC143: 8021.6 | FD143: 8021.6 | FE143: Yes | FF143: 0 | FG143: 0 | FH143: 0
B144: 121 | D144: Tree Trimmer | E144: Vendor #13 | G144: SW007902 | H144: 2018-10-21 | I144: 2018-10-27 | J144: Yes | K144: =VLOOKUP($D144,'C.1 - Rate Sheets'!$B$16:$E$35,2) -> 48.5 | L144: =VLOOKUP($D144,'C.1 - Rate Sheets'!$B$16:$E$35,3) -> 65.5 | M144: =VLOOKUP($D144,'C.1 - Rate Sheets'!$B$16:$E$35,4) -> 77.6 | N144: =VLOOKUP($D144,'C.1 - Rate Sheets'!B:F,5,FALSE) -> 0 | O144: 0 | P144: 0 | Q144: 0 | R144: 0 | S144: 0 | T144: 0 | U144: 0 | V144: 0 | W144: 0 | X144: 0 | Y144: 0 | Z144: 0 | AA144: 0 | AB144: 0 | AC144: 0 | AD144: 0 | AE144: 0 | AF144: 0 | AG144: 0 | AH144: 0 | AM144: 0 | AN144: 0 | AO144: 0 | AP144: 0 | AQ144: 0 | AR144: 0 | AW144: 0 | BB144: 0 | BG144: 0 | BL144: 0 | BQ144: 0 | BV144: 0 | CA144: 0 | CD144: 16 | CF144: 16 | CG144: 8 | CH144: 8 | CK144: 16 | CL144: 8 | CM144: 8 | CN144: 0 | CO144: 0 | CP144: 16 | CQ144: 8 | CR144: 8 | CS144: 0 | CT144: 0 | CU144: 16 | CV144: 8 | CW144: 8 | CX144: 0 | CY144: 0 | CZ144: 16 | DA144: 8 | DB144: 8 | DC144: 0 | DD144: 0 | DE144: 16 | DF144: 0 | DG144: 16 | DH144: 0 | DI144: 0 | DJ144: 16 | DK144: 0 | DL144: 0 | DM144: 0 | DN144: 0 | DO144: 0 | DP144: 0 | DQ144: 0 | DR144: 0 | DS144: 0 | DT144: 0 | DU144: 0 | DV144: 0 | DW144: 0 | DX144: 0 | DY144: 0 | DZ144: 0 | EA144: 0 | EB144: 0 | EC144: 0 | ED144: 0 | EE144: 0 | EF144: 0 | EG144: 0 | EH144: 0 | EI144: 0 | EJ144: 0 | EK144: 0 | EL144: 0 | EM144: 0 | EN144: 0 | EO144: 0 | EP144: 0 | EQ144: 0 | ER144: 0 | ES144: 0 | ET144: 40 | EU144: 56 | EV144: 16 | EW144: 0 | EX144: 96 | EY144: 1940 | EZ144: 3668 | FA144: 1241.6 | FB144: 0 | FC144: 6849.6 | FD144: 6849.6 | FE144: Yes | FF144: 0 | FG144: 0 | FH144: 0
B145: 122 | D145: Crew Foreman | E145: Vendor #13 | G145: SW007903 | H145: 2018-10-21 | I145: 2018-10-27 | J145: Yes | K145: =VLOOKUP($D145,'C.1 - Rate Sheets'!$B$16:$E$35,2) -> 56.8 | L145: =VLOOKUP($D145,'C.1 - Rate Sheets'!$B$16:$E$35,3) -> 76.7 | M145: =VLOOKUP($D145,'C.1 - Rate Sheets'!$B$16:$E$35,4) -> 90.9 | N145: =VLOOKUP($D145,'C.1 - Rate Sheets'!B:F,5,FALSE) -> 0 | O145: 0 | P145: 0 | Q145: 0 | R145: 0 | S145: 0 | T145: 0 | U145: 0 | V145: 0 | W145: 0 | X145: 0 | Y145: 0 | Z145: 0 | AA145: 0 | AB145: 0 | AC145: 0 | AD145: 0 | AE145: 0 | AF145: 0 | AG145: 0 | AH145: 0 | AM145: 0 | AN145: 0 | AO145: 0 | AP145: 0 | AQ145: 0 | AR145: 0 | AW145: 0 | BB145: 0 | BG145: 0 | BL145: 0 | BQ145: 0 | BV145: 0 | CA145: 0 | CD145: 16 | CF145: 16 | CG145: 8 | CH145: 8 | CK145: 16 | CL145: 8 | CM145: 8 | CN145: 0 | CO145: 0 | CP145: 16 | CQ145: 8 | CR145: 8 | CS145: 0 | CT145: 0 | CU145: 16 | CV145: 8 | CW145: 8 | CX145: 0 | CY145: 0 | CZ145: 16 | DA145: 8 | DB145: 8 | DC145: 0 | DD145: 0 | DE145: 16 | DF145: 0 | DG145: 16 | DH145: 0 | DI145: 0 | DJ145: 16 | DK145: 0 | DL145: 0 | DM145: 0 | DN145: 0 | DO145: 0 | DP145: 0 | DQ145: 0 | DR145: 0 | DS145: 0 | DT145: 0 | DU145: 0 | DV145: 0 | DW145: 0 | DX145: 0 | DY145: 0 | DZ145: 0 | EA145: 0 | EB145: 0 | EC145: 0 | ED145: 0 | EE145: 0 | EF145: 0 | EG145: 0 | EH145: 0 | EI145: 0 | EJ145: 0 | EK145: 0 | EL145: 0 | EM145: 0 | EN145: 0 | EO145: 0 | EP145: 0 | EQ145: 0 | ER145: 0 | ES145: 0 | ET145: 40 | EU145: 56 | EV145: 16 | EW145: 0 | EX145: 96 | EY145: 2272 | EZ145: 4295.2 | FA145: 1454.4 | FB145: 0 | FC145: 8021.6 | FD145: 8021.6 | FE145: Yes | FF145: 0 | FG145: 0 | FH145: 0
B146: 123 | D146: Tree Trimmer | E146: Vendor #13 | G146: SW007903 | H146: 2018-10-21 | I146: 2018-10-27 | J146: Yes | K146: =VLOOKUP($D146,'C.1 - Rate Sheets'!$B$16:$E$35,2) -> 48.5 | L146: =VLOOKUP($D146,'C.1 - Rate Sheets'!$B$16:$E$35,3) -> 65.5 | M146: =VLOOKUP($D146,'C.1 - Rate Sheets'!$B$16:$E$35,4) -> 77.6 | N146: =VLOOKUP($D146,'C.1 - Rate Sheets'!B:F,5,FALSE) -> 0 | O146: 0 | P146: 0 | Q146: 0 | R146: 0 | S146: 0 | T146: 0 | U146: 0 | V146: 0 | W146: 0 | X146: 0 | Y146: 0 | Z146: 0 | AA146: 0 | AB146: 0 | AC146: 0 | AD146: 0 | AE146: 0 | AF146: 0 | AG146: 0 | AH146: 0 | AM146: 0 | AN146: 0 | AO146: 0 | AP146: 0 | AQ146: 0 | AR146: 0 | AW146: 0 | BB146: 0 | BG146: 0 | BL146: 0 | BQ146: 0 | BV146: 0 | CA146: 0 | CD146: 16 | CF146: 16 | CG146: 8 | CH146: 8 | CK146: 16 | CL146: 8 | CM146: 8 | CN146: 0 | CO146: 0 | CP146: 16 | CQ146: 8 | CR146: 8 | CS146: 0 | CT146: 0 | CU146: 16 | CV146: 8 | CW146: 8 | CX146: 0 | CY146: 0 | CZ146: 16 | DA146: 8 | DB146: 8 | DC146: 0 | DD146: 0 | DE146: 16 | DF146: 0 | DG146: 16 | DH146: 0 | DI146: 0 | DJ146: 16 | DK146: 0 | DL146: 0 | DM146: 0 | DN146: 0 | DO146: 0 | DP146: 0 | DQ146: 0 | DR146: 0 | DS146: 0 | DT146: 0 | DU146: 0 | DV146: 0 | DW146: 0 | DX146: 0 | DY146: 0 | DZ146: 0 | EA146: 0 | EB146: 0 | EC146: 0 | ED146: 0 | EE146: 0 | EF146: 0 | EG146: 0 | EH146: 0 | EI146: 0 | EJ146: 0 | EK146: 0 | EL146: 0 | EM146: 0 | EN146: 0 | EO146: 0 | EP146: 0 | EQ146: 0 | ER146: 0 | ES146: 0 | ET146: 40 | EU146: 56 | EV146: 16 | EW146: 0 | EX146: 96 | EY146: 1940 | EZ146: 3668 | FA146: 1241.6 | FB146: 0 | FC146: 6849.6 | FD146: 6849.6 | FE146: Yes | FF146: 0 | FG146: 0 | FH146: 0
B147: 124 | D147: Crew Foreman | E147: Vendor #13 | G147: SW007904 | H147: 2018-10-21 | I147: 2018-10-27 | J147: Yes | K147: =VLOOKUP($D147,'C.1 - Rate Sheets'!$B$16:$E$35,2) -> 56.8 | L147: =VLOOKUP($D147,'C.1 - Rate Sheets'!$B$16:$E$35,3) -> 76.7 | M147: =VLOOKUP($D147,'C.1 - Rate Sheets'!$B$16:$E$35,4) -> 90.9 | N147: =VLOOKUP($D147,'C.1 - Rate Sheets'!B:F,5,FALSE) -> 0 | O147: 0 | P147: 0 | Q147: 0 | R147: 0 | S147: 0 | T147: 0 | U147: 0 | V147: 0 | W147: 0 | X147: 0 | Y147: 0 | Z147: 0 | AA147: 0 | AB147: 0 | AC147: 0 | AD147: 0 | AE147: 0 | AF147: 0 | AG147: 0 | AH147: 0 | AM147: 0 | AN147: 0 | AO147: 0 | AP147: 0 | AQ147: 0 | AR147: 0 | AW147: 0 | BB147: 0 | BG147: 0 | BL147: 0 | BQ147: 0 | BV147: 0 | CA147: 0 | CD147: 16 | CF147: 16 | CG147: 8 | CH147: 8 | CK147: 16 | CL147: 8 | CM147: 8 | CN147: 0 | CO147: 0 | CP147: 16 | CQ147: 8 | CR147: 8 | CS147: 0 | CT147: 0 | CU147: 16 | CV147: 8 | CW147: 8 | CX147: 0 | CY147: 0 | CZ147: 16 | DA147: 8 | DB147: 8 | DC147: 0 | DD147: 0 | DE147: 16 | DF147: 0 | DG147: 16 | DH147: 0 | DI147: 0 | DJ147: 16 | DK147: 0 | DL147: 0 | DM147: 0 | DN147: 0 | DO147: 0 | DP147: 0 | DQ147: 0 | DR147: 0 | DS147: 0 | DT147: 0 | DU147: 0 | DV147: 0 | DW147: 0 | DX147: 0 | DY147: 0 | DZ147: 0 | EA147: 0 | EB147: 0 | EC147: 0 | ED147: 0 | EE147: 0 | EF147: 0 | EG147: 0 | EH147: 0 | EI147: 0 | EJ147: 0 | EK147: 0 | EL147: 0 | EM147: 0 | EN147: 0 | EO147: 0 | EP147: 0 | EQ147: 0 | ER147: 0 | ES147: 0 | ET147: 40 | EU147: 56 | EV147: 16 | EW147: 0 | EX147: 96 | EY147: =ET147*K147 -> 2272 | EZ147: =EU147*L147 -> 4295.2 | FA147: =EV147*M147 -> 1454.4 | FB147: =EW147*N147 -> 0 | FC147: 8021.6 | FD147: 8021.6 | FE147: Yes | FF147: 0 | FG147: 0 | FH147: 0
B148: 125 | D148: Tree Trimmer | E148: Vendor #13 | G148: SW007904 | H148: 2018-10-21 | I148: 2018-10-27 | J148: Yes | K148: =VLOOKUP($D148,'C.1 - Rate Sheets'!$B$16:$E$35,2) -> 48.5 | L148: =VLOOKUP($D148,'C.1 - Rate Sheets'!$B$16:$E$35,3) -> 65.5 | M148: =VLOOKUP($D148,'C.1 - Rate Sheets'!$B$16:$E$35,4) -> 77.6 | N148: =VLOOKUP($D148,'C.1 - Rate Sheets'!B:F,5,FALSE) -> 0 | O148: 0 | P148: 0 | Q148: 0 | R148: 0 | S148: 0 | T148: 0 | U148: 0 | V148: 0 | W148: 0 | X148: 0 | Y148: 0 | Z148: 0 | AA148: 0 | AB148: 0 | AC148: 0 | AD148: 0 | AE148: 0 | AF148: 0 | AG148: 0 | AH148: 0 | AM148: 0 | AN148: 0 | AO148: 0 | AP148: 0 | AQ148: 0 | AR148: 0 | AW148: 0 | BB148: 0 | BG148: 0 | BL148: 0 | BQ148: 0 | BV148: 0 | CA148: 0 | CD148: 16 | CF148: 16 | CG148: 8 | CH148: 8 | CK148: 16 | CL148: 8 | CM148: 8 | CN148: 0 | CO148: 0 | CP148: 16 | CQ148: 8 | CR148: 8 | CS148: 0 | CT148: 0 | CU148: 16 | CV148: 8 | CW148: 8 | CX148: 0 | CY148: 0 | CZ148: 16 | DA148: 8 | DB148: 8 | DC148: 0 | DD148: 0 | DE148: 16 | DF148: 0 | DG148: 16 | DH148: 0 | DI148: 0 | DJ148: 16 | DK148: 0 | DL148: 0 | DM148: 0 | DN148: 0 | DO148: 0 | DP148: 0 | DQ148: 0 | DR148: 0 | DS148: 0 | DT148: 0 | DU148: 0 | DV148: 0 | DW148: 0 | DX148: 0 | DY148: 0 | DZ148: 0 | EA148: 0 | EB148: 0 | EC148: 0 | ED148: 0 | EE148: 0 | EF148: 0 | EG148: 0 | EH148: 0 | EI148: 0 | EJ148: 0 | EK148: 0 | EL148: 0 | EM148: 0 | EN148: 0 | EO148: 0 | EP148: 0 | EQ148: 0 | ER148: 0 | ES148: 0 | ET148: 40 | EU148: 56 | EV148: 16 | EW148: 0 | EX148: 96 | EY148: 1940 | EZ148: 3668 | FA148: 1241.6 | FB148: 0 | FC148: 6849.6 | FD148: 6849.6 | FE148: Yes | FF148: 0 | FG148: 0 | FH148: 0
B149: 126 | D149: Crew Foreman | E149: Vendor #13 | G149: SW007905 | H149: 2018-10-21 | I149: 2018-10-27 | J149: Yes | K149: =VLOOKUP($D149,'C.1 - Rate Sheets'!$B$16:$E$35,2) -> 56.8 | L149: =VLOOKUP($D149,'C.1 - Rate Sheets'!$B$16:$E$35,3) -> 76.7 | M149: =VLOOKUP($D149,'C.1 - Rate Sheets'!$B$16:$E$35,4) -> 90.9 | N149: =VLOOKUP($D149,'C.1 - Rate Sheets'!B:F,5,FALSE) -> 0 | O149: 0 | P149: 0 | Q149: 0 | R149: 0 | S149: 0 | T149: 0 | U149: 0 | V149: 0 | W149: 0 | X149: 0 | Y149: 0 | Z149: 0 | AA149: 0 | AB149: 0 | AC149: 0 | AD149: 0 | AE149: 0 | AF149: 0 | AG149: 0 | AH149: 0 | AM149: 0 | AN149: 0 | AO149: 0 | AP149: 0 | AQ149: 0 | AR149: 0 | AW149: 0 | BB149: 0 | BG149: 0 | BL149: 0 | BQ149: 0 | BV149: 0 | CA149: 0 | CD149: 16 | CF149: 16 | CG149: 8 | CH149: 8 | CK149: 16 | CL149: 8 | CM149: 8 | CN149: 0 | CO149: 0 | CP149: 16 | CQ149: 8 | CR149: 8 | CS149: 0 | CT149: 0 | CU149: 16 | CV149: 8 | CW149: 8 | CX149: 0 | CY149: 0 | CZ149: 16 | DA149: 8 | DB149: 8 | DC149: 0 | DD149: 0 | DE149: 16 | DF149: 0 | DG149: 0 | DH149: 0 | DI149: 0 | DJ149: 0 | DK149: 0 | DL149: 0 | DM149: 0 | DN149: 0 | DO149: 0 | DP149: 0 | DQ149: 0 | DR149: 0 | DS149: 0 | DT149: 0 | DU149: 0 | DV149: 0 | DW149: 0 | DX149: 0 | DY149: 0 | DZ149: 0 | EA149: 0 | EB149: 0 | EC149: 0 | ED149: 0 | EE149: 0 | EF149: 0 | EG149: 0 | EH149: 0 | EI149: 0 | EJ149: 0 | EK149: 0 | EL149: 0 | EM149: 0 | EN149: 0 | EO149: 0 | EP149: 0 | EQ149: 0 | ER149: 0 | ES149: 0 | ET149: 40 | EU149: 40 | EV149: 16 | EW149: 0 | EX149: 80 | EY149: 2272 | EZ149: 3068 | FA149: 1454.4 | FB149: 0 | FC149: 6794.4 | FD149: 6794.4 | FE149: Yes | FF149: 0 | FG149: 0 | FH149: 0
B150: 127 | D150: Tree Trimmer | E150: Vendor #13 | G150: SW007905 | H150: 2018-10-21 | I150: 2018-10-27 | J150: Yes | K150: =VLOOKUP($D150,'C.1 - Rate Sheets'!$B$16:$E$35,2) -> 48.5 | L150: =VLOOKUP($D150,'C.1 - Rate Sheets'!$B$16:$E$35,3) -> 65.5 | M150: =VLOOKUP($D150,'C.1 - Rate Sheets'!$B$16:$E$35,4) -> 77.6 | N150: =VLOOKUP($D150,'C.1 - Rate Sheets'!B:F,5,FALSE) -> 0 | O150: 0 | P150: 0 | Q150: 0 | R150: 0 | S150: 0 | T150: 0 | U150: 0 | V150: 0 | W150: 0 | X150: 0 | Y150: 0 | Z150: 0 | AA150: 0 | AB150: 0 | AC150: 0 | AD150: 0 | AE150: 0 | AF150: 0 | AG150: 0 | AH150: 0 | AM150: 0 | AN150: 0 | AO150: 0 | AP150: 0 | AQ150: 0 | AR150: 0 | AW150: 0 | BB150: 0 | BG150: 0 | BL150: 0 | BQ150: 0 | BV150: 0 | CA150: 0 | CD150: 16 | CF150: 16 | CG150: 8 | CH150: 8 | CK150: 16 | CL150: 8 | CM150: 8 | CN150: 0 | CO150: 0 | CP150: 16 | CQ150: 8 | CR150: 8 | CS150: 0 | CT150: 0 | CU150: 16 | CV150: 8 | CW150: 8 | CX150: 0 | CY150: 0 | CZ150: 16 | DA150: 8 | DB150: 8 | DC150: 0 | DD150: 0 | DE150: 16 | DF150: 0 | DG150: 0 | DH150: 0 | DI150: 0 | DJ150: 0 | DK150: 0 | DL150: 0 | DM150: 0 | DN150: 0 | DO150: 0 | DP150: 0 | DQ150: 0 | DR150: 0 | DS150: 0 | DT150: 0 | DU150: 0 | DV150: 0 | DW150: 0 | DX150: 0 | DY150: 0 | DZ150: 0 | EA150: 0 | EB150: 0 | EC150: 0 | ED150: 0 | EE150: 0 | EF150: 0 | EG150: 0 | EH150: 0 | EI150: 0 | EJ150: 0 | EK150: 0 | EL150: 0 | EM150: 0 | EN150: 0 | EO150: 0 | EP150: 0 | EQ150: 0 | ER150: 0 | ES150: 0 | ET150: 40 | EU150: 40 | EV150: 16 | EW150: 0 | EX150: 80 | EY150: 1940 | EZ150: 2620 | FA150: 1241.6 | FB150: 0 | FC150: 5801.6 | FD150: 5801.6 | FE150: Yes | FF150: 0 | FG150: 0 | FH150: 0
B151: 128 | D151: Tree Trimmer | E151: Vendor #13 | G151: SW007905 | H151: 2018-10-21 | I151: 2018-10-27 | J151: Yes | K151: =VLOOKUP($D151,'C.1 - Rate Sheets'!$B$16:$E$35,2) -> 48.5 | L151: =VLOOKUP($D151,'C.1 - Rate Sheets'!$B$16:$E$35,3) -> 65.5 | M151: =VLOOKUP($D151,'C.1 - Rate Sheets'!$B$16:$E$35,4) -> 77.6 | N151: =VLOOKUP($D151,'C.1 - Rate Sheets'!B:F,5,FALSE) -> 0 | O151: 0 | P151: 0 | Q151: 0 | R151: 0 | S151: 0 | T151: 0 | U151: 0 | V151: 0 | W151: 0 | X151: 0 | Y151: 0 | Z151: 0 | AA151: 0 | AB151: 0 | AC151: 0 | AD151: 0 | AE151: 0 | AF151: 0 | AG151: 0 | AH151: 0 | AM151: 0 | AN151: 0 | AO151: 0 | AP151: 0 | AQ151: 0 | AR151: 0 | AW151: 0 | BB151: 0 | BG151: 0 | BL151: 0 | BQ151: 0 | BV151: 0 | CA151: 0 | CD151: 16 | CF151: 16 | CG151: 8 | CH151: 8 | CK151: 16 | CL151: 8 | CM151: 8 | CN151: 0 | CO151: 0 | CP151: 16 | CQ151: 8 | CR151: 8 | CS151: 0 | CT151: 0 | CU151: 16 | CV151: 8 | CW151: 8 | CX151: 0 | CY151: 0 | CZ151: 16 | DA151: 8 | DB151: 8 | DC151: 0 | DD151: 0 | DE151: 16 | DF151: 0 | DG151: 0 | DH151: 0 | DI151: 0 | DJ151: 0 | DK151: 0 | DL151: 0 | DM151: 0 | DN151: 0 | DO151: 0 | DP151: 0 | DQ151: 0 | DR151: 0 | DS151: 0 | DT151: 0 | DU151: 0 | DV151: 0 | DW151: 0 | DX151: 0 | DY151: 0 | DZ151: 0 | EA151: 0 | EB151: 0 | EC151: 0 | ED151: 0 | EE151: 0 | EF151: 0 | EG151: 0 | EH151: 0 | EI151: 0 | EJ151: 0 | EK151: 0 | EL151: 0 | EM151: 0 | EN151: 0 | EO151: 0 | EP151: 0 | EQ151: 0 | ER151: 0 | ES151: 0 | ET151: 40 | EU151: 40 | EV151: 16 | EW151: 0 | EX151: 80 | EY151: 1940 | EZ151: 2620 | FA151: 1241.6 | FB151: 0 | FC151: 5801.6 | FD151: 5801.6 | FE151: Yes | FF151: 0 | FG151: 0 | FH151: 0
B152: 129 | D152: Crew Foreman | E152: Vendor #13 | G152: SW007906 | H152: 2018-10-21 | I152: 2018-10-27 | J152: Yes | K152: =VLOOKUP($D152,'C.1 - Rate Sheets'!$B$16:$E$35,2) -> 56.8 | L152: =VLOOKUP($D152,'C.1 - Rate Sheets'!$B$16:$E$35,3) -> 76.7 | M152: =VLOOKUP($D152,'C.1 - Rate Sheets'!$B$16:$E$35,4) -> 90.9 | N152: =VLOOKUP($D152,'C.1 - Rate Sheets'!B:F,5,FALSE) -> 0 | O152: 0 | P152: 0 | Q152: 0 | R152: 0 | S152: 0 | T152: 0 | U152: 0 | V152: 0 | W152: 0 | X152: 0 | Y152: 0 | Z152: 0 | AA152: 0 | AB152: 0 | AC152: 0 | AD152: 0 | AE152: 0 | AF152: 0 | AG152: 0 | AH152: 0 | AM152: 0 | AN152: 0 | AO152: 0 | AP152: 0 | AQ152: 0 | AR152: 0 | AW152: 0 | BB152: 0 | BG152: 0 | BL152: 0 | BQ152: 0 | BV152: 0 | CA152: 0 | CF152: 0 | CK152: 0 | CL152: 0 | CM152: 0 | CN152: 0 | CO152: 0 | CP152: 0 | CQ152: 0 | CR152: 0 | CS152: 0 | CT152: 0 | CU152: 0 | CV152: 0 | CW152: 0 | CX152: 0 | CY152: 0 | CZ152: 0 | DA152: 0 | DB152: 0 | DC152: 0 | DD152: 0 | DE152: 0 | DF152: 0 | DG152: 12 | DH152: 0 | DI152: 0 | DJ152: 12 | DK152: 0 | DL152: 0 | DM152: 0 | DN152: 0 | DO152: 0 | DP152: 0 | DQ152: 0 | DR152: 0 | DS152: 0 | DT152: 0 | DU152: 0 | DV152: 0 | DW152: 0 | DX152: 0 | DY152: 0 | DZ152: 0 | EA152: 0 | EB152: 0 | EC152: 0 | ED152: 0 | EE152: 0 | EF152: 0 | EG152: 0 | EH152: 0 | EI152: 0 | EJ152: 0 | EK152: 0 | EL152: 0 | EM152: 0 | EN152: 0 | EO152: 0 | EP152: 0 | EQ152: 0 | ER152: 0 | ES152: 0 | ET152: 0 | EU152: 12 | EV152: 0 | EW152: =SUM(R152,W152,AB152,AL152,AQ152,AV152,BA152,BF152,BK152,BP152,BU152,BZ152,CO152, CJ152,CT152,CY152,DD152,DI152,DN152, DS152,DX152,EC152,EH152,EM152,ER152) -> 0 | EX152: =SUM(S152,X152,AC152,AM152,AR152,AW152,BB152,BG152,BL152,BQ152,BV152,CA152,CP152, CK152,CU152,CZ152,DE152,DJ152,DO152, DT152,DY152,ED152,EI152,EN152,ES152) -> 12 | EY152: 0 | EZ152: 920.4 | FA152: 0 | FB152: 0 | FC152: 920.4 | FD152: 920.4 | FE152: Yes | FF152: 0 | FG152: 0 | FH152: 0
B153: 130 | D153: Tree Trimmer | E153: Vendor #13 | G153: SW007906 | H153: 2018-10-21 | I153: 2018-10-27 | J153: Yes | K153: =VLOOKUP($D153,'C.1 - Rate Sheets'!$B$16:$E$35,2) -> 48.5 | L153: =VLOOKUP($D153,'C.1 - Rate Sheets'!$B$16:$E$35,3) -> 65.5 | M153: =VLOOKUP($D153,'C.1 - Rate Sheets'!$B$16:$E$35,4) -> 77.6 | N153: =VLOOKUP($D153,'C.1 - Rate Sheets'!B:F,5,FALSE) -> 0 | O153: 0 | P153: 0 | Q153: 0 | R153: 0 | S153: 0 | T153: 0 | U153: 0 | V153: 0 | W153: 0 | X153: 0 | Y153: 0 | Z153: 0 | AA153: 0 | AB153: 0 | AC153: 0 | AD153: 0 | AE153: 0 | AF153: 0 | AG153: 0 | AH153: 0 | AM153: 0 | AN153: 0 | AO153: 0 | AP153: 0 | AQ153: 0 | AR153: 0 | AW153: 0 | BB153: 0 | BG153: 0 | BL153: 0 | BQ153: 0 | BV153: 0 | CA153: 0 | CF153: 0 | CK153: 0 | CL153: 0 | CM153: 0 | CN153: 0 | CO153: 0 | CP153: 0 | CQ153: 0 | CR153: 0 | CS153: 0 | CT153: 0 | CU153: 0 | CV153: 0 | CW153: 0 | CX153: 0 | CY153: 0 | CZ153: 0 | DA153: 0 | DB153: 0 | DC153: 0 | DD153: 0 | DE153: 0 | DF153: 0 | DG153: 12 | DH153: 0 | DI153: 0 | DJ153: 12 | DK153: 0 | DL153: 0 | DM153: 0 | DN153: 0 | DO153: 0 | DP153: 0 | DQ153: 0 | DR153: 0 | DS153: 0 | DT153: 0 | DU153: 0 | DV153: 0 | DW153: 0 | DX153: 0 | DY153: 0 | DZ153: 0 | EA153: 0 | EB153: 0 | EC153: 0 | ED153: 0 | EE153: 0 | EF153: 0 | EG153: 0 | EH153: 0 | EI153: 0 | EJ153: 0 | EK153: 0 | EL153: 0 | EM153: 0 | EN153: 0 | EO153: 0 | EP153: 0 | EQ153: 0 | ER153: 0 | ES153: 0 | ET153: 0 | EU153: 12 | EV153: 0 | EW153: 0 | EX153: 12 | EY153: 0 | EZ153: 786 | FA153: 0 | FB153: 0 | FC153: 786 | FD153: 786 | FE153: Yes | FF153: 0 | FG153: 0 | FH153: 0
B154: 131 | D154: Tree Trimmer | E154: Vendor #13 | G154: SW007906 | H154: 2018-10-21 | I154: 2018-10-27 | J154: Yes | K154: =VLOOKUP($D154,'C.1 - Rate Sheets'!$B$16:$E$35,2) -> 48.5 | L154: =VLOOKUP($D154,'C.1 - Rate Sheets'!$B$16:$E$35,3) -> 65.5 | M154: =VLOOKUP($D154,'C.1 - Rate Sheets'!$B$16:$E$35,4) -> 77.6 | N154: =VLOOKUP($D154,'C.1 - Rate Sheets'!B:F,5,FALSE) -> 0 | O154: 0 | P154: 0 | Q154: 0 | R154: 0 | S154: 0 | T154: 0 | U154: 0 | V154: 0 | W154: 0 | X154: 0 | Y154: 0 | Z154: 0 | AA154: 0 | AB154: 0 | AC154: 0 | AD154: 0 | AE154: 0 | AF154: 0 | AG154: 0 | AH154: 0 | AM154: 0 | AN154: 0 | AO154: 0 | AP154: 0 | AQ154: 0 | AR154: 0 | AW154: 0 | BB154: 0 | BG154: 0 | BL154: 0 | BQ154: 0 | BV154: 0 | CA154: 0 | CF154: 0 | CK154: 0 | CL154: 0 | CM154: 0 | CN154: 0 | CO154: 0 | CP154: 0 | CQ154: 0 | CR154: 0 | CS154: 0 | CT154: 0 | CU154: 0 | CV154: 0 | CW154: 0 | CX154: 0 | CY154: 0 | CZ154: 0 | DA154: 0 | DB154: 0 | DC154: 0 | DD154: 0 | DE154: 0 | DF154: 0 | DG154: 12 | DH154: 0 | DI154: 0 | DJ154: 12 | DK154: 0 | DL154: 0 | DM154: 0 | DN154: 0 | DO154: 0 | DP154: 0 | DQ154: 0 | DR154: 0 | DS154: 0 | DT154: 0 | DU154: 0 | DV154: 0 | DW154: 0 | DX154: 0 | DY154: 0 | DZ154: 0 | EA154: 0 | EB154: 0 | EC154: 0 | ED154: 0 | EE154: 0 | EF154: 0 | EG154: 0 | EH154: 0 | EI154: 0 | EJ154: 0 | EK154: 0 | EL154: 0 | EM154: 0 | EN154: 0 | EO154: 0 | EP154: 0 | EQ154: 0 | ER154: 0 | ES154: 0 | ET154: 0 | EU154: 12 | EV154: 0 | EW154: 0 | EX154: 12 | EY154: 0 | EZ154: 786 | FA154: 0 | FB154: 0 | FC154: 786 | FD154: 786 | FE154: Yes | FF154: 0 | FG154: 0 | FH154: -786 | FI154: 8
B155: 132 | D155: Crew Foreman | E155: Vendor #13 | G155: SW007907 | H155: 2018-10-21 | I155: 2018-10-27 | J155: Yes | K155: =VLOOKUP($D155,'C.1 - Rate Sheets'!$B$16:$E$35,2) -> 56.8 | L155: =VLOOKUP($D155,'C.1 - Rate Sheets'!$B$16:$E$35,3) -> 76.7 | M155: =VLOOKUP($D155,'C.1 - Rate Sheets'!$B$16:$E$35,4) -> 90.9 | N155: =VLOOKUP($D155,'C.1 - Rate Sheets'!B:F,5,FALSE) -> 0 | O155: 0 | P155: 0 | Q155: 0 | R155: 0 | S155: 0 | T155: 0 | U155: 0 | V155: 0 | W155: 0 | X155: 0 | Y155: 0 | Z155: 0 | AA155: 0 | AB155: 0 | AC155: 0 | AD155: 0 | AE155: 0 | AF155: 0 | AG155: 0 | AH155: 0 | AM155: 0 | AN155: 0 | AO155: 0 | AP155: 0 | AQ155: 0 | AR155: 0 | AW155: 0 | BB155: 0 | BG155: 0 | BL155: 0 | BQ155: 0 | BV155: 0 | CA155: 0 | CD155: 16 | CF155: 16 | CG155: 8 | CH155: 8 | CK155: 16 | CL155: 8 | CM155: 8 | CN155: 0 | CO155: 0 | CP155: 16 | CQ155: 8 | CR155: 8 | CS155: 0 | CT155: 0 | CU155: 16 | CV155: 8 | CW155: 8 | CX155: 0 | CY155: 0 | CZ155: 16 | DA155: 8 | DB155: 8 | DC155: 0 | DD155: 0 | DE155: 16 | DF155: 0 | DG155: 16 | DH155: 0 | DI155: 0 | DJ155: 16 | DK155: 0 | DL155: 0 | DM155: 0 | DN155: 0 | DO155: 0 | DP155: 0 | DQ155: 0 | DR155: 0 | DS155: 0 | DT155: 0 | DU155: 0 | DV155: 0 | DW155: 0 | DX155: 0 | DY155: 0 | DZ155: 0 | EA155: 0 | EB155: 0 | EC155: 0 | ED155: 0 | EE155: 0 | EF155: 0 | EG155: 0 | EH155: 0 | EI155: 0 | EJ155: 0 | EK155: 0 | EL155: 0 | EM155: 0 | EN155: 0 | EO155: 0 | EP155: 0 | EQ155: 0 | ER155: 0 | ES155: 0 | ET155: 40 | EU155: 56 | EV155: 16 | EW155: 0 | EX155: 96 | EY155: 2272 | EZ155: 4295.2 | FA155: 1454.4 | FB155: 0 | FC155: 8021.6 | FD155: 8021.6 | FE155: Yes | FF155: 0 | FG155: 0 | FH155: 0
B156: 133 | D156: Tree Trimmer | E156: Vendor #13 | G156: SW007907 | H156: 2018-10-21 | I156: 2018-10-27 | J156: Yes | K156: =VLOOKUP($D156,'C.1 - Rate Sheets'!$B$16:$E$35,2) -> 48.5 | L156: =VLOOKUP($D156,'C.1 - Rate Sheets'!$B$16:$E$35,3) -> 65.5 | M156: =VLOOKUP($D156,'C.1 - Rate Sheets'!$B$16:$E$35,4) -> 77.6 | N156: =VLOOKUP($D156,'C.1 - Rate Sheets'!B:F,5,FALSE) -> 0 | O156: 0 | P156: 0 | Q156: 0 | R156: 0 | S156: 0 | T156: 0 | U156: 0 | V156: 0 | W156: 0 | X156: 0 | Y156: 0 | Z156: 0 | AA156: 0 | AB156: 0 | AC156: 0 | AD156: 0 | AE156: 0 | AF156: 0 | AG156: 0 | AH156: 0 | AM156: 0 | AN156: 0 | AO156: 0 | AP156: 0 | AQ156: 0 | AR156: 0 | AW156: 0 | BB156: 0 | BG156: 0 | BL156: 0 | BQ156: 0 | BV156: 0 | CA156: 0 | CD156: 16 | CF156: 16 | CG156: 8 | CH156: 8 | CK156: 16 | CL156: 8 | CM156: 8 | CN156: 0 | CO156: 0 | CP156: 16 | CQ156: 8 | CR156: 8 | CS156: 0 | CT156: 0 | CU156: 16 | CV156: 8 | CW156: 8 | CX156: 0 | CY156: 0 | CZ156: 16 | DA156: 8 | DB156: 8 | DC156: 0 | DD156: 0 | DE156: 16 | DF156: 0 | DG156: 16 | DH156: 0 | DI156: 0 | DJ156: 16 | DK156: 0 | DL156: 0 | DM156: 0 | DN156: 0 | DO156: 0 | DP156: 0 | DQ156: 0 | DR156: 0 | DS156: 0 | DT156: 0 | DU156: 0 | DV156: 0 | DW156: 0 | DX156: 0 | DY156: 0 | DZ156: 0 | EA156: 0 | EB156: 0 | EC156: 0 | ED156: 0 | EE156: 0 | EF156: 0 | EG156: 0 | EH156: 0 | EI156: 0 | EJ156: 0 | EK156: 0 | EL156: 0 | EM156: 0 | EN156: 0 | EO156: 0 | EP156: 0 | EQ156: 0 | ER156: 0 | ES156: 0 | ET156: 40 | EU156: 56 | EV156: 16 | EW156: 0 | EX156: 96 | EY156: 1940 | EZ156: 3668 | FA156: 1241.6 | FB156: 0 | FC156: 6849.6 | FD156: 6849.6 | FE156: Yes | FF156: 0 | FG156: 0 | FH156: 0
B157: 134 | D157: Crew Foreman | E157: Vendor #13 | G157: SW007908 | H157: 2018-10-21 | I157: 2018-10-27 | J157: Yes | K157: =VLOOKUP($D157,'C.1 - Rate Sheets'!$B$16:$E$35,2) -> 56.8 | L157: =VLOOKUP($D157,'C.1 - Rate Sheets'!$B$16:$E$35,3) -> 76.7 | M157: =VLOOKUP($D157,'C.1 - Rate Sheets'!$B$16:$E$35,4) -> 90.9 | N157: =VLOOKUP($D157,'C.1 - Rate Sheets'!B:F,5,FALSE) -> 0 | O157: 0 | P157: 0 | Q157: 0 | R157: 0 | S157: 0 | T157: 0 | U157: 0 | V157: 0 | W157: 0 | X157: 0 | Y157: 0 | Z157: 0 | AA157: 0 | AB157: 0 | AC157: 0 | AD157: 0 | AE157: 0 | AF157: 0 | AG157: 0 | AH157: 0 | AM157: 0 | AN157: 0 | AO157: 0 | AP157: 0 | AQ157: 0 | AR157: 0 | AW157: 0 | BB157: 0 | BG157: 0 | BL157: 0 | BQ157: 0 | BV157: 0 | CA157: 0 | CD157: 16 | CF157: 16 | CG157: 8 | CH157: 8 | CK157: 16 | CL157: 8 | CM157: 8 | CN157: 0 | CO157: 0 | CP157: 16 | CQ157: 8 | CR157: 8 | CS157: 0 | CT157: 0 | CU157: 16 | CV157: 8 | CW157: 8 | CX157: 0 | CY157: 0 | CZ157: 16 | DA157: 8 | DB157: 8 | DC157: 0 | DD157: 0 | DE157: 16 | DF157: 0 | DG157: 16 | DH157: 0 | DI157: 0 | DJ157: 16 | DK157: 0 | DL157: 0 | DM157: 0 | DN157: 0 | DO157: 0 | DP157: 0 | DQ157: 0 | DR157: 0 | DS157: 0 | DT157: 0 | DU157: 0 | DV157: 0 | DW157: 0 | DX157: 0 | DY157: 0 | DZ157: 0 | EA157: 0 | EB157: 0 | EC157: 0 | ED157: 0 | EE157: 0 | EF157: 0 | EG157: 0 | EH157: 0 | EI157: 0 | EJ157: 0 | EK157: 0 | EL157: 0 | EM157: 0 | EN157: 0 | EO157: 0 | EP157: 0 | EQ157: 0 | ER157: 0 | ES157: 0 | ET157: 40 | EU157: 56 | EV157: 16 | EW157: 0 | EX157: 96 | EY157: 2272 | EZ157: 4295.2 | FA157: 1454.4 | FB157: 0 | FC157: 8021.6 | FD157: 8021.6 | FE157: Yes | FF157: 0 | FG157: 0 | FH157: 0
B158: 135 | D158: Crew Foreman | E158: Vendor #13 | G158: SW007908 | H158: 2018-10-21 | I158: 2018-10-27 | J158: Yes | K158: =VLOOKUP($D158,'C.1 - Rate Sheets'!$B$16:$E$35,2) -> 56.8 | L158: =VLOOKUP($D158,'C.1 - Rate Sheets'!$B$16:$E$35,3) -> 76.7 | M158: =VLOOKUP($D158,'C.1 - Rate Sheets'!$B$16:$E$35,4) -> 90.9 | N158: =VLOOKUP($D158,'C.1 - Rate Sheets'!B:F,5,FALSE) -> 0 | O158: 0 | P158: 0 | Q158: 0 | R158: 0 | S158: 0 | T158: 0 | U158: 0 | V158: 0 | W158: 0 | X158: 0 | Y158: 0 | Z158: 0 | AA158: 0 | AB158: 0 | AC158: 0 | AD158: 0 | AE158: 0 | AF158: 0 | AG158: 0 | AH158: 0 | AM158: 0 | AN158: 0 | AO158: 0 | AP158: 0 | AQ158: 0 | AR158: 0 | AW158: 0 | BB158: 0 | BG158: 0 | BL158: 0 | BQ158: 0 | BV158: 0 | CA158: 0 | CD158: 16 | CF158: 16 | CG158: 8 | CH158: 8 | CK158: 16 | CL158: 8 | CM158: 8 | CN158: 0 | CO158: 0 | CP158: 16 | CQ158: 8 | CR158: 8 | CS158: 0 | CT158: 0 | CU158: 16 | CV158: 8 | CW158: 8 | CX158: 0 | CY158: 0 | CZ158: 16 | DA158: 8 | DB158: 8 | DC158: 0 | DD158: 0 | DE158: 16 | DF158: 0 | DG158: 16 | DH158: 0 | DI158: 0 | DJ158: 16 | DK158: 0 | DL158: 0 | DM158: 0 | DN158: 0 | DO158: 0 | DP158: 0 | DQ158: 0 | DR158: 0 | DS158: 0 | DT158: 0 | DU158: 0 | DV158: 0 | DW158: 0 | DX158: 0 | DY158: 0 | DZ158: 0 | EA158: 0 | EB158: 0 | EC158: 0 | ED158: 0 | EE158: 0 | EF158: 0 | EG158: 0 | EH158: 0 | EI158: 0 | EJ158: 0 | EK158: 0 | EL158: 0 | EM158: 0 | EN158: 0 | EO158: 0 | EP158: 0 | EQ158: 0 | ER158: 0 | ES158: 0 | ET158: 40 | EU158: 56 | EV158: 16 | EW158: 0 | EX158: 96 | EY158: 2272 | EZ158: 4295.2 | FA158: 1454.4 | FB158: 0 | FC158: 8021.6 | FD158: 8021.6 | FE158: Yes | FF158: 0 | FG158: 0 | FH158: 912 | FI158: 9
B159: 136 | D159: Crew Foreman | E159: Vendor #13 | G159: SW007909 | H159: 2018-10-21 | I159: 2018-10-27 | J159: Yes | K159: =VLOOKUP($D159,'C.1 - Rate Sheets'!$B$16:$E$35,2) -> 56.8 | L159: =VLOOKUP($D159,'C.1 - Rate Sheets'!$B$16:$E$35,3) -> 76.7 | M159: =VLOOKUP($D159,'C.1 - Rate Sheets'!$B$16:$E$35,4) -> 90.9 | N159: =VLOOKUP($D159,'C.1 - Rate Sheets'!B:F,5,FALSE) -> 0 | O159: 0 | P159: 0 | Q159: 0 | R159: 0 | S159: 0 | T159: 0 | U159: 0 | V159: 0 | W159: 0 | X159: 0 | Y159: 0 | Z159: 0 | AA159: 0 | AB159: 0 | AC159: 0 | AD159: 0 | AE159: 0 | AF159: 0 | AG159: 0 | AH159: 0 | AM159: 0 | AN159: 0 | AO159: 0 | AP159: 0 | AQ159: 0 | AR159: 0 | AW159: 0 | BB159: 0 | BG159: 0 | BL159: 0 | BQ159: 0 | BV159: 0 | CA159: 0 | CD159: 16 | CF159: 16 | CG159: 8 | CH159: 8 | CK159: 16 | CL159: 8 | CM159: 8 | CN159: 0 | CO159: 0 | CP159: 16 | CQ159: 8 | CR159: 8 | CS159: 0 | CT159: 0 | CU159: 16 | CV159: 8 | CW159: 8 | CX159: 0 | CY159: 0 | CZ159: 16 | DA159: 8 | DB159: 8 | DC159: 0 | DD159: 0 | DE159: 16 | DF159: 0 | DG159: 16 | DI159: 0 | DJ159: 16 | DK159: 0 | DL159: 0 | DM159: 0 | DN159: 0 | DO159: 0 | DP159: 0 | DQ159: 0 | DR159: 0 | DS159: 0 | DT159: 0 | DU159: 0 | DV159: 0 | DW159: 0 | DX159: 0 | DY159: 0 | DZ159: 0 | EA159: 0 | EB159: 0 | EC159: 0 | ED159: 0 | EE159: 0 | EF159: 0 | EG159: 0 | EH159: 0 | EI159: 0 | EJ159: 0 | EK159: 0 | EL159: 0 | EM159: 0 | EN159: 0 | EO159: 0 | EP159: 0 | EQ159: 0 | ER159: 0 | ES159: 0 | ET159: 40 | EU159: 56 | EV159: 16 | EW159: 0 | EX159: 96 | EY159: 2272 | EZ159: 4295.2 | FA159: 1454.4 | FB159: 0 | FC159: 8021.6 | FD159: 8021.6 | FE159: Yes | FF159: 0 | FG159: 0 | FH159: 0
B160: 137 | D160: Tree Trimmer | E160: Vendor #13 | G160: SW007909 | H160: 2018-10-21 | I160: 2018-10-27 | J160: Yes | K160: =VLOOKUP($D160,'C.1 - Rate Sheets'!$B$16:$E$35,2) -> 48.5 | L160: =VLOOKUP($D160,'C.1 - Rate Sheets'!$B$16:$E$35,3) -> 65.5 | M160: =VLOOKUP($D160,'C.1 - Rate Sheets'!$B$16:$E$35,4) -> 77.6 | N160: =VLOOKUP($D160,'C.1 - Rate Sheets'!B:F,5,FALSE) -> 0 | O160: 0 | P160: 0 | Q160: 0 | R160: 0 | S160: 0 | T160: 0 | U160: 0 | V160: 0 | W160: 0 | X160: 0 | Y160: 0 | Z160: 0 | AA160: 0 | AB160: 0 | AC160: 0 | AD160: 0 | AE160: 0 | AF160: 0 | AG160: 0 | AH160: 0 | AM160: 0 | AN160: 0 | AO160: 0 | AP160: 0 | AQ160: 0 | AR160: 0 | AW160: 0 | BB160: 0 | BG160: 0 | BL160: 0 | BQ160: 0 | BV160: 0 | CA160: 0 | CD160: 16 | CF160: 16 | CG160: 8 | CH160: 8 | CK160: 16 | CL160: 8 | CM160: 8 | CN160: 0 | CO160: 0 | CP160: 16 | CQ160: 8 | CR160: 8 | CS160: 0 | CT160: 0 | CU160: 16 | CV160: 8 | CW160: 8 | CX160: 0 | CY160: 0 | CZ160: 16 | DA160: 8 | DB160: 8 | DC160: 0 | DD160: 0 | DE160: 16 | DF160: 0 | DG160: 16 | DI160: 0 | DJ160: 16 | DK160: 0 | DL160: 0 | DM160: 0 | DN160: 0 | DO160: 0 | DP160: 0 | DQ160: 0 | DR160: 0 | DS160: 0 | DT160: 0 | DU160: 0 | DV160: 0 | DW160: 0 | DX160: 0 | DY160: 0 | DZ160: 0 | EA160: 0 | EB160: 0 | EC160: 0 | ED160: 0 | EE160: 0 | EF160: 0 | EG160: 0 | EH160: 0 | EI160: 0 | EJ160: 0 | EK160: 0 | EL160: 0 | EM160: 0 | EN160: 0 | EO160: 0 | EP160: 0 | EQ160: 0 | ER160: 0 | ES160: 0 | ET160: 40 | EU160: 56 | EV160: 16 | EW160: 0 | EX160: 96 | EY160: 1940 | EZ160: 3668 | FA160: 1241.6 | FB160: 0 | FC160: 6849.6 | FD160: 6849.6 | FE160: Yes | FF160: 0 | FG160: 0 | FH160: 0
B161: 138 | D161: Supervisor | E161: Vendor #13 | G161: SW008070 | H161: 2018-10-21 | I161: 2018-10-27 | J161: Yes | K161: =VLOOKUP($D161,'C.1 - Rate Sheets'!$B$16:$E$35,2) -> 74 | L161: =VLOOKUP($D161,'C.1 - Rate Sheets'!$B$16:$E$35,3) -> 99.9 | M161: =VLOOKUP($D161,'C.1 - Rate Sheets'!$B$16:$E$35,4) -> 118.4 | N161: =VLOOKUP($D161,'C.1 - Rate Sheets'!B:F,5,FALSE) -> 0 | O161: 0 | P161: 0 | Q161: 0 | R161: 0 | S161: 0 | T161: 0 | U161: 0 | V161: 0 | W161: 0 | X161: 0 | Y161: 0 | Z161: 0 | AA161: 0 | AB161: 0 | AC161: 0 | AD161: 0 | AE161: 0 | AF161: 0 | AG161: 0 | AH161: 0 | AM161: 0 | AN161: 0 | AO161: 0 | AP161: 0 | AQ161: 0 | AR161: 0 | AW161: 0 | BB161: 0 | BG161: 0 | BL161: 0 | BQ161: 0 | BV161: 0 | CA161: 0 | CD161: 16 | CF161: 16 | CG161: 8 | CH161: 8 | CK161: 16 | CL161: 8 | CM161: 8 | CN161: 0 | CO161: 0 | CP161: 16 | CQ161: 8 | CR161: 8 | CS161: 0 | CT161: 0 | CU161: 16 | CV161: 8 | CW161: 8 | CX161: 0 | CY161: 0 | CZ161: 16 | DA161: 8 | DB161: 8 | DC161: 0 | DD161: 0 | DE161: 16 | DF161: 0 | DG161: 0 | DH161: 0 | DI161: 0 | DJ161: 0 | DK161: 0 | DL161: 0 | DM161: 0 | DN161: 0 | DO161: 0 | DP161: 0 | DQ161: 0 | DR161: 0 | DS161: 0 | DT161: 0 | DU161: 0 | DV161: 0 | DW161: 0 | DX161: 0 | DY161: 0 | DZ161: 0 | EA161: 0 | EB161: 0 | EC161: 0 | ED161: 0 | EE161: 0 | EF161: 0 | EG161: 0 | EH161: 0 | EI161: 0 | EJ161: 0 | EK161: 0 | EL161: 0 | EM161: 0 | EN161: 0 | EO161: 0 | EP161: 0 | EQ161: 0 | ER161: 0 | ES161: 0 | ET161: 40 | EU161: 40 | EV161: 16 | EW161: 0 | EX161: 80 | EY161: 2960 | EZ161: 3996 | FA161: 1894.4 | FB161: 0 | FC161: 8850.4 | FD161: 8850.4 | FE161: Yes | FF161: 0 | FG161: 0 | FH161: 0
B162: 139 | D162: Crew Foreman | E162: Vendor #13 | G162: SW008071 | H162: 2018-10-21 | I162: 2018-10-27 | J162: Yes | K162: =VLOOKUP($D162,'C.1 - Rate Sheets'!$B$16:$E$35,2) -> 56.8 | L162: =VLOOKUP($D162,'C.1 - Rate Sheets'!$B$16:$E$35,3) -> 76.7 | M162: =VLOOKUP($D162,'C.1 - Rate Sheets'!$B$16:$E$35,4) -> 90.9 | N162: =VLOOKUP($D162,'C.1 - Rate Sheets'!B:F,5,FALSE) -> 0 | O162: 0 | P162: 0 | Q162: 0 | R162: 0 | S162: 0 | T162: 0 | U162: 0 | V162: 0 | W162: 0 | X162: 0 | Y162: 0 | Z162: 0 | AA162: 0 | AB162: 0 | AC162: 0 | AD162: 0 | AE162: 0 | AF162: 0 | AG162: 0 | AH162: 0 | AM162: 0 | AN162: 0 | AO162: 0 | AP162: 0 | AQ162: 0 | AR162: 0 | AW162: 0 | BB162: 0 | BG162: 0 | BL162: 0 | BQ162: 0 | BV162: 0 | CA162: 0 | CD162: 16 | CF162: 16 | CG162: 8 | CH162: 8 | CK162: 16 | CL162: 8 | CM162: 8 | CN162: 0 | CO162: 0 | CP162: 16 | CQ162: 8 | CR162: 8 | CS162: 0 | CT162: 0 | CU162: 16 | CV162: 8 | CW162: 8 | CX162: 0 | CY162: 0 | CZ162: 16 | DA162: 8 | DB162: 8 | DC162: 0 | DD162: 0 | DE162: 16 | DF162: 0 | DG162: 0 | DH162: 0 | DI162: 0 | DJ162: 0 | DK162: 0 | DL162: 0 | DM162: 0 | DN162: 0 | DO162: 0 | DP162: 0 | DQ162: 0 | DR162: 0 | DS162: 0 | DT162: 0 | DU162: 0 | DV162: 0 | DW162: 0 | DX162: 0 | DY162: 0 | DZ162: 0 | EA162: 0 | EB162: 0 | EC162: 0 | ED162: 0 | EE162: 0 | EF162: 0 | EG162: 0 | EH162: 0 | EI162: 0 | EJ162: 0 | EK162: 0 | EL162: 0 | EM162: 0 | EN162: 0 | EO162: 0 | EP162: 0 | EQ162: 0 | ER162: 0 | ES162: 0 | ET162: 40 | EU162: 40 | EV162: 16 | EW162: 0 | EX162: 80 | EY162: 2272 | EZ162: 3068 | FA162: 1454.4 | FB162: 0 | FC162: 6794.4 | FD162: 6794.4 | FE162: Yes | FF162: 0 | FG162: 0 | FH162: 0
B163: 140 | D163: Tree Trimmer | E163: Vendor #13 | G163: SW008071 | H163: 2018-10-21 | I163: 2018-10-27 | J163: Yes | K163: =VLOOKUP($D163,'C.1 - Rate Sheets'!$B$16:$E$35,2) -> 48.5 | L163: =VLOOKUP($D163,'C.1 - Rate Sheets'!$B$16:$E$35,3) -> 65.5 | M163: =VLOOKUP($D163,'C.1 - Rate Sheets'!$B$16:$E$35,4) -> 77.6 | N163: =VLOOKUP($D163,'C.1 - Rate Sheets'!B:F,5,FALSE) -> 0 | O163: 0 | P163: 0 | Q163: 0 | R163: 0 | S163: 0 | T163: 0 | U163: 0 | V163: 0 | W163: 0 | X163: 0 | Y163: 0 | Z163: 0 | AA163: 0 | AB163: 0 | AC163: 0 | AD163: 0 | AE163: 0 | AF163: 0 | AG163: 0 | AH163: 0 | AM163: 0 | AN163: 0 | AO163: 0 | AP163: 0 | AQ163: 0 | AR163: 0 | AW163: 0 | BB163: 0 | BG163: 0 | BL163: 0 | BQ163: 0 | BV163: 0 | CA163: 0 | CD163: 16 | CF163: 16 | CG163: 8 | CH163: 8 | CK163: 16 | CL163: 8 | CM163: 8 | CN163: 0 | CO163: 0 | CP163: 16 | CQ163: 8 | CR163: 8 | CS163: 0 | CT163: 0 | CU163: 16 | CV163: 8 | CW163: 8 | CX163: 0 | CY163: 0 | CZ163: 16 | DA163: 8 | DB163: 8 | DC163: 0 | DD163: 0 | DE163: 16 | DF163: 0 | DG163: 0 | DH163: 0 | DI163: 0 | DJ163: 0 | DK163: 0 | DL163: 0 | DM163: 0 | DN163: 0 | DO163: 0 | DP163: 0 | DQ163: 0 | DR163: 0 | DS163: 0 | DT163: 0 | DU163: 0 | DV163: 0 | DW163: 0 | DX163: 0 | DY163: 0 | DZ163: 0 | EA163: 0 | EB163: 0 | EC163: 0 | ED163: 0 | EE163: 0 | EF163: 0 | EG163: 0 | EH163: 0 | EI163: 0 | EJ163: 0 | EK163: 0 | EL163: 0 | EM163: 0 | EN163: 0 | EO163: 0 | EP163: 0 | EQ163: 0 | ER163: 0 | ES163: 0 | ET163: 40 | EU163: 40 | EV163: 16 | EW163: 0 | EX163: 80 | EY163: 1940 | EZ163: 2620 | FA163: 1241.6 | FB163: 0 | FC163: 5801.6 | FD163: 5801.6 | FE163: Yes | FF163: 0 | FG163: 0 | FH163: 0
B164: 141 | D164: Crew Foreman | E164: Vendor #13 | G164: SW008072 | H164: 2018-10-21 | I164: 2018-10-27 | J164: Yes | K164: =VLOOKUP($D164,'C.1 - Rate Sheets'!$B$16:$E$35,2) -> 56.8 | L164: =VLOOKUP($D164,'C.1 - Rate Sheets'!$B$16:$E$35,3) -> 76.7 | M164: =VLOOKUP($D164,'C.1 - Rate Sheets'!$B$16:$E$35,4) -> 90.9 | N164: =VLOOKUP($D164,'C.1 - Rate Sheets'!B:F,5,FALSE) -> 0 | O164: 0 | P164: 0 | Q164: 0 | R164: 0 | S164: 0 | T164: 0 | U164: 0 | V164: 0 | W164: 0 | X164: 0 | Y164: 0 | Z164: 0 | AA164: 0 | AB164: 0 | AC164: 0 | AD164: 0 | AE164: 0 | AF164: 0 | AG164: 0 | AH164: 0 | AM164: 0 | AN164: 0 | AO164: 0 | AP164: 0 | AQ164: 0 | AR164: 0 | AW164: 0 | BB164: 0 | BG164: 0 | BL164: 0 | BQ164: 0 | BV164: 0 | CA164: 0 | CD164: 16 | CF164: 16 | CG164: 8 | CH164: 8 | CK164: 16 | CL164: 8 | CM164: 8 | CN164: 0 | CO164: 0 | CP164: 16 | CQ164: 8 | CR164: 8 | CS164: 0 | CT164: 0 | CU164: 16 | CV164: 8 | CW164: 8 | CX164: 0 | CY164: 0 | CZ164: 16 | DA164: 8 | DB164: 8 | DC164: 0 | DD164: 0 | DE164: 16 | DF164: 0 | DG164: 0 | DH164: 0 | DI164: 0 | DJ164: 0 | DK164: 0 | DL164: 0 | DM164: 0 | DN164: 0 | DO164: 0 | DP164: 0 | DQ164: 0 | DR164: 0 | DS164: 0 | DT164: 0 | DU164: 0 | DV164: 0 | DW164: 0 | DX164: 0 | DY164: 0 | DZ164: 0 | EA164: 0 | EB164: 0 | EC164: 0 | ED164: 0 | EE164: 0 | EF164: 0 | EG164: 0 | EH164: 0 | EI164: 0 | EJ164: 0 | EK164: 0 | EL164: 0 | EM164: 0 | EN164: 0 | EO164: 0 | EP164: 0 | EQ164: 0 | ER164: 0 | ES164: 0 | ET164: 40 | EU164: 40 | EV164: 16 | EW164: 0 | EX164: 80 | EY164: 2272 | EZ164: 3068 | FA164: 1454.4 | FB164: 0 | FC164: 6794.4 | FD164: 6794.4 | FE164: Yes | FF164: 0 | FG164: 0 | FH164: 0
B165: 142 | D165: Tree Trimmer | E165: Vendor #13 | G165: SW008072 | H165: 2018-10-21 | I165: 2018-10-27 | J165: Yes | K165: =VLOOKUP($D165,'C.1 - Rate Sheets'!$B$16:$E$35,2) -> 48.5 | L165: =VLOOKUP($D165,'C.1 - Rate Sheets'!$B$16:$E$35,3) -> 65.5 | M165: =VLOOKUP($D165,'C.1 - Rate Sheets'!$B$16:$E$35,4) -> 77.6 | N165: =VLOOKUP($D165,'C.1 - Rate Sheets'!B:F,5,FALSE) -> 0 | O165: 0 | P165: 0 | Q165: 0 | R165: 0 | S165: 0 | T165: 0 | U165: 0 | V165: 0 | W165: 0 | X165: 0 | Y165: 0 | Z165: 0 | AA165: 0 | AB165: 0 | AC165: 0 | AD165: 0 | AE165: 0 | AF165: 0 | AG165: 0 | AH165: 0 | AM165: 0 | AN165: 0 | AO165: 0 | AP165: 0 | AQ165: 0 | AR165: 0 | AW165: 0 | BB165: 0 | BG165: 0 | BL165: 0 | BQ165: 0 | BV165: 0 | CA165: 0 | CD165: 16 | CF165: 16 | CG165: 8 | CH165: 8 | CK165: 16 | CL165: 8 | CM165: 8 | CN165: 0 | CO165: 0 | CP165: 16 | CQ165: 8 | CR165: 8 | CS165: 0 | CT165: 0 | CU165: 16 | CV165: 8 | CW165: 8 | CX165: 0 | CY165: 0 | CZ165: 16 | DA165: 8 | DB165: 8 | DC165: 0 | DD165: 0 | DE165: 16 | DF165: 0 | DG165: 0 | DH165: 0 | DI165: 0 | DJ165: 0 | DK165: 0 | DL165: 0 | DM165: 0 | DN165: 0 | DO165: 0 | DP165: 0 | DQ165: 0 | DR165: 0 | DS165: 0 | DT165: 0 | DU165: 0 | DV165: 0 | DW165: 0 | DX165: 0 | DY165: 0 | DZ165: 0 | EA165: 0 | EB165: 0 | EC165: 0 | ED165: 0 | EE165: 0 | EF165: 0 | EG165: 0 | EH165: 0 | EI165: 0 | EJ165: 0 | EK165: 0 | EL165: 0 | EM165: 0 | EN165: 0 | EO165: 0 | EP165: 0 | EQ165: 0 | ER165: 0 | ES165: 0 | ET165: 40 | EU165: 40 | EV165: 16 | EW165: 0 | EX165: 80 | EY165: 1940 | EZ165: 2620 | FA165: 1241.6 | FB165: 0 | FC165: 5801.6 | FD165: 5801.6 | FE165: Yes | FF165: 0 | FG165: 0 | FH165: 0
B166: 143 | D166: Crew Foreman | E166: Vendor #13 | G166: SW008073 | H166: 2018-10-21 | I166: 2018-10-27 | J166: Yes | K166: =VLOOKUP($D166,'C.1 - Rate Sheets'!$B$16:$E$35,2) -> 56.8 | L166: =VLOOKUP($D166,'C.1 - Rate Sheets'!$B$16:$E$35,3) -> 76.7 | M166: =VLOOKUP($D166,'C.1 - Rate Sheets'!$B$16:$E$35,4) -> 90.9 | N166: =VLOOKUP($D166,'C.1 - Rate Sheets'!B:F,5,FALSE) -> 0 | O166: 0 | P166: 0 | Q166: 0 | R166: 0 | S166: 0 | T166: 0 | U166: 0 | V166: 0 | W166: 0 | X166: 0 | Y166: 0 | Z166: 0 | AA166: 0 | AB166: 0 | AC166: 0 | AD166: 0 | AE166: 0 | AF166: 0 | AG166: 0 | AH166: 0 | AM166: 0 | AN166: 0 | AO166: 0 | AP166: 0 | AQ166: 0 | AR166: 0 | AW166: 0 | BB166: 0 | BG166: 0 | BL166: 0 | BQ166: 0 | BV166: 0 | CA166: 0 | CD166: 16 | CF166: 16 | CG166: 8 | CH166: 8 | CK166: 16 | CL166: 8 | CM166: 8 | CN166: 0 | CO166: 0 | CP166: 16 | CQ166: 8 | CR166: 8 | CS166: 0 | CT166: 0 | CU166: 16 | CV166: 8 | CW166: 8 | CX166: 0 | CY166: 0 | CZ166: 16 | DC166: 0 | DD166: 0 | DE166: 0 | DF166: 0 | DG166: 0 | DH166: 0 | DI166: 0 | DJ166: 0 | DK166: 0 | DL166: 0 | DM166: 0 | DN166: 0 | DO166: 0 | DP166: 0 | DQ166: 0 | DR166: 0 | DS166: 0 | DT166: 0 | DU166: 0 | DV166: 0 | DW166: 0 | DX166: 0 | DY166: 0 | DZ166: 0 | EA166: 0 | EB166: 0 | EC166: 0 | ED166: 0 | EE166: 0 | EF166: 0 | EG166: 0 | EH166: 0 | EI166: 0 | EJ166: 0 | EK166: 0 | EL166: 0 | EM166: 0 | EN166: 0 | EO166: 0 | EP166: 0 | EQ166: 0 | ER166: 0 | ES166: 0 | ET166: 32 | EU166: 32 | EV166: 16 | EW166: 0 | EX166: 64 | EY166: 1817.6 | EZ166: 2454.4 | FA166: 1454.4 | FB166: 0 | FC166: 5726.4 | FD166: 5726.4 | FE166: Yes | FF166: 0 | FG166: 0 | FH166: 0
B167: 144 | D167: Tree Trimmer | E167: Vendor #13 | G167: SW008073 | H167: 2018-10-21 | I167: 2018-10-27 | J167: Yes | K167: =VLOOKUP($D167,'C.1 - Rate Sheets'!$B$16:$E$35,2) -> 48.5 | L167: =VLOOKUP($D167,'C.1 - Rate Sheets'!$B$16:$E$35,3) -> 65.5 | M167: =VLOOKUP($D167,'C.1 - Rate Sheets'!$B$16:$E$35,4) -> 77.6 | N167: =VLOOKUP($D167,'C.1 - Rate Sheets'!B:F,5,FALSE) -> 0 | O167: 0 | P167: 0 | Q167: 0 | R167: 0 | S167: 0 | T167: 0 | U167: 0 | V167: 0 | W167: 0 | X167: 0 | Y167: 0 | Z167: 0 | AA167: 0 | AB167: 0 | AC167: 0 | AD167: 0 | AE167: 0 | AF167: 0 | AG167: 0 | AH167: 0 | AM167: 0 | AN167: 0 | AO167: 0 | AP167: 0 | AQ167: 0 | AR167: 0 | AW167: 0 | BB167: 0 | BG167: 0 | BL167: 0 | BQ167: 0 | BV167: 0 | CA167: 0 | CD167: 16 | CF167: 16 | CG167: 8 | CH167: 8 | CK167: 16 | CL167: 8 | CM167: 8 | CN167: 0 | CO167: 0 | CP167: 16 | CQ167: 8 | CR167: 8 | CS167: 0 | CT167: 0 | CU167: 16 | CV167: 8 | CW167: 8 | CX167: 0 | CY167: 0 | CZ167: 16 | DC167: 0 | DD167: 0 | DE167: 0 | DF167: 0 | DG167: 0 | DH167: 0 | DI167: 0 | DJ167: 0 | DK167: 0 | DL167: 0 | DM167: 0 | DN167: 0 | DO167: 0 | DP167: 0 | DQ167: 0 | DR167: 0 | DS167: 0 | DT167: 0 | DU167: 0 | DV167: 0 | DW167: 0 | DX167: 0 | DY167: 0 | DZ167: 0 | EA167: 0 | EB167: 0 | EC167: 0 | ED167: 0 | EE167: 0 | EF167: 0 | EG167: 0 | EH167: 0 | EI167: 0 | EJ167: 0 | EK167: 0 | EL167: 0 | EM167: 0 | EN167: 0 | EO167: 0 | EP167: 0 | EQ167: 0 | ER167: 0 | ES167: 0 | ET167: 32 | EU167: 32 | EV167: 16 | EW167: 0 | EX167: 64 | EY167: 1552 | EZ167: 2096 | FA167: 1241.6 | FB167: 0 | FC167: 4889.6 | FD167: 4889.6 | FE167: Yes | FF167: 0 | FG167: 0 | FH167: 0
B168: 145 | D168: Crew Foreman | E168: Vendor #13 | G168: SW008074 | H168: 2018-10-21 | I168: 2018-10-27 | J168: Yes | K168: =VLOOKUP($D168,'C.1 - Rate Sheets'!$B$16:$E$35,2) -> 56.8 | L168: =VLOOKUP($D168,'C.1 - Rate Sheets'!$B$16:$E$35,3) -> 76.7 | M168: =VLOOKUP($D168,'C.1 - Rate Sheets'!$B$16:$E$35,4) -> 90.9 | N168: =VLOOKUP($D168,'C.1 - Rate Sheets'!B:F,5,FALSE) -> 0 | O168: 0 | P168: 0 | Q168: 0 | R168: 0 | S168: 0 | T168: 0 | U168: 0 | V168: 0 | W168: 0 | X168: 0 | Y168: 0 | Z168: 0 | AA168: 0 | AB168: 0 | AC168: 0 | AD168: 0 | AE168: 0 | AF168: 0 | AG168: 0 | AH168: 0 | AM168: 0 | AN168: 0 | AO168: 0 | AP168: 0 | AQ168: 0 | AR168: 0 | AW168: 0 | BB168: 0 | BG168: 0 | BL168: 0 | BQ168: 0 | BV168: 0 | CA168: 0 | CD168: 16 | CF168: 16 | CG168: 8 | CH168: 8 | CK168: 16 | CL168: 8 | CM168: 8 | CN168: 0 | CO168: 0 | CP168: 16 | CQ168: 8 | CR168: 8 | CS168: 0 | CT168: 0 | CU168: 16 | CV168: 8 | CW168: 8 | CX168: 0 | CY168: 0 | CZ168: 16 | DA168: 0 | DB168: 0 | DC168: 0 | DD168: 0 | DE168: 0 | DF168: 0 | DG168: 0 | DH168: 0 | DI168: 0 | DJ168: 0 | DK168: 0 | DL168: 0 | DM168: 0 | DN168: 0 | DO168: 0 | DP168: 0 | DQ168: 0 | DR168: 0 | DS168: 0 | DT168: 0 | DU168: 0 | DV168: 0 | DW168: 0 | DX168: 0 | DY168: 0 | DZ168: 0 | EA168: 0 | EB168: 0 | EC168: 0 | ED168: 0 | EE168: 0 | EF168: 0 | EG168: 0 | EH168: 0 | EI168: 0 | EJ168: 0 | EK168: 0 | EL168: 0 | EM168: 0 | EN168: 0 | EO168: 0 | EP168: 0 | EQ168: 0 | ER168: 0 | ES168: 0 | ET168: 32 | EU168: 32 | EV168: 16 | EW168: 0 | EX168: 64 | EY168: 1817.6 | EZ168: 2454.4 | FA168: 1454.4 | FB168: 0 | FC168: 5726.4 | FD168: 5726.4 | FE168: Yes | FF168: 0 | FG168: 0 | FH168: 0
B169: 146 | D169: Tree Trimmer | E169: Vendor #13 | G169: SW008074 | H169: 2018-10-21 | I169: 2018-10-27 | J169: Yes | K169: =VLOOKUP($D169,'C.1 - Rate Sheets'!$B$16:$E$35,2) -> 48.5 | L169: =VLOOKUP($D169,'C.1 - Rate Sheets'!$B$16:$E$35,3) -> 65.5 | M169: =VLOOKUP($D169,'C.1 - Rate Sheets'!$B$16:$E$35,4) -> 77.6 | N169: =VLOOKUP($D169,'C.1 - Rate Sheets'!B:F,5,FALSE) -> 0 | O169: 0 | P169: 0 | Q169: 0 | R169: 0 | S169: 0 | T169: 0 | U169: 0 | V169: 0 | W169: 0 | X169: 0 | Y169: 0 | Z169: 0 | AA169: 0 | AB169: 0 | AC169: 0 | AD169: 0 | AE169: 0 | AF169: 0 | AG169: 0 | AH169: 0 | AM169: 0 | AN169: 0 | AO169: 0 | AP169: 0 | AQ169: 0 | AR169: 0 | AW169: 0 | BB169: 0 | BG169: 0 | BL169: 0 | BQ169: 0 | BV169: 0 | CA169: 0 | CD169: 16 | CF169: 16 | CG169: 8 | CH169: 8 | CK169: 16 | CL169: 8 | CM169: 8 | CN169: 0 | CO169: 0 | CP169: 16 | CQ169: 8 | CR169: 8 | CS169: 0 | CT169: 0 | CU169: 16 | CV169: 8 | CW169: 8 | CX169: 0 | CY169: 0 | CZ169: 16 | DA169: 0 | DB169: 0 | DC169: 0 | DD169: 0 | DE169: 0 | DF169: 0 | DG169: 0 | DH169: 0 | DI169: 0 | DJ169: 0 | DK169: 0 | DL169: 0 | DM169: 0 | DN169: 0 | DO169: 0 | DP169: 0 | DQ169: 0 | DR169: 0 | DS169: 0 | DT169: 0 | DU169: 0 | DV169: 0 | DW169: 0 | DX169: 0 | DY169: 0 | DZ169: 0 | EA169: 0 | EB169: 0 | EC169: 0 | ED169: 0 | EE169: 0 | EF169: 0 | EG169: 0 | EH169: 0 | EI169: 0 | EJ169: 0 | EK169: 0 | EL169: 0 | EM169: 0 | EN169: 0 | EO169: 0 | EP169: 0 | EQ169: 0 | ER169: 0 | ES169: 0 | ET169: 32 | EU169: 32 | EV169: 16 | EW169: 0 | EX169: 64 | EY169: 1552 | EZ169: 2096 | FA169: 1241.6 | FB169: 0 | FC169: 4889.6 | FD169: 4889.6 | FE169: Yes | FF169: 0 | FG169: 0 | FH169: 0
B170: 147 | D170: Crew Foreman | E170: Vendor #13 | G170: SW008075 | H170: 2018-10-21 | I170: 2018-10-27 | J170: Yes | K170: =VLOOKUP($D170,'C.1 - Rate Sheets'!$B$16:$E$35,2) -> 56.8 | L170: =VLOOKUP($D170,'C.1 - Rate Sheets'!$B$16:$E$35,3) -> 76.7 | M170: =VLOOKUP($D170,'C.1 - Rate Sheets'!$B$16:$E$35,4) -> 90.9 | N170: =VLOOKUP($D170,'C.1 - Rate Sheets'!B:F,5,FALSE) -> 0 | O170: 0 | P170: 0 | Q170: 0 | R170: 0 | S170: 0 | T170: 0 | U170: 0 | V170: 0 | W170: 0 | X170: 0 | Y170: 0 | Z170: 0 | AA170: 0 | AB170: 0 | AC170: 0 | AD170: 0 | AE170: 0 | AF170: 0 | AG170: 0 | AH170: 0 | AM170: 0 | AN170: 0 | AO170: 0 | AP170: 0 | AQ170: 0 | AR170: 0 | AW170: 0 | BB170: 0 | BG170: 0 | BL170: 0 | BQ170: 0 | BV170: 0 | CA170: 0 | CD170: 16 | CF170: 16 | CG170: 8 | CH170: 8 | CK170: 16 | CL170: 8 | CM170: 8 | CN170: 0 | CO170: 0 | CP170: 16 | CQ170: 8 | CR170: 8 | CS170: 0 | CT170: 0 | CU170: 16 | CV170: 8 | CW170: 8 | CX170: 0 | CY170: 0 | CZ170: 16 | DA170: 0 | DB170: 0 | DC170: 0 | DD170: 0 | DE170: 0 | DF170: 0 | DG170: 0 | DH170: 0 | DI170: 0 | DJ170: 0 | DK170: 0 | DL170: 0 | DM170: 0 | DN170: 0 | DO170: 0 | DP170: 0 | DQ170: 0 | DR170: 0 | DS170: 0 | DT170: 0 | DU170: 0 | DV170: 0 | DW170: 0 | DX170: 0 | DY170: 0 | DZ170: 0 | EA170: 0 | EB170: 0 | EC170: 0 | ED170: 0 | EE170: 0 | EF170: 0 | EG170: 0 | EH170: 0 | EI170: 0 | EJ170: 0 | EK170: 0 | EL170: 0 | EM170: 0 | EN170: 0 | EO170: 0 | EP170: 0 | EQ170: 0 | ER170: 0 | ES170: 0 | ET170: 32 | EU170: 32 | EV170: 16 | EW170: 0 | EX170: 64 | EY170: 1817.6 | EZ170: 2454.4 | FA170: 1454.4 | FB170: 0 | FC170: 5726.4 | FD170: 5726.4 | FE170: Yes | FF170: 0 | FG170: 0 | FH170: 0
B171: 148 | D171: Tree Trimmer | E171: Vendor #13 | G171: SW008075 | H171: 2018-10-21 | I171: 2018-10-27 | J171: Yes | K171: =VLOOKUP($D171,'C.1 - Rate Sheets'!$B$16:$E$35,2) -> 48.5 | L171: =VLOOKUP($D171,'C.1 - Rate Sheets'!$B$16:$E$35,3) -> 65.5 | M171: =VLOOKUP($D171,'C.1 - Rate Sheets'!$B$16:$E$35,4) -> 77.6 | N171: =VLOOKUP($D171,'C.1 - Rate Sheets'!B:F,5,FALSE) -> 0 | O171: 0 | P171: 0 | Q171: 0 | R171: 0 | S171: 0 | T171: 0 | U171: 0 | V171: 0 | W171: 0 | X171: 0 | Y171: 0 | Z171: 0 | AA171: 0 | AB171: 0 | AC171: 0 | AD171: 0 | AE171: 0 | AF171: 0 | AG171: 0 | AH171: 0 | AM171: 0 | AN171: 0 | AO171: 0 | AP171: 0 | AQ171: 0 | AR171: 0 | AW171: 0 | BB171: 0 | BG171: 0 | BL171: 0 | BQ171: 0 | BV171: 0 | CA171: 0 | CD171: 16 | CF171: 16 | CG171: 8 | CH171: 8 | CK171: 16 | CL171: 8 | CM171: 8 | CN171: 0 | CO171: 0 | CP171: 16 | CQ171: 8 | CR171: 8 | CS171: 0 | CT171: 0 | CU171: 16 | CV171: 8 | CW171: 8 | CX171: 0 | CY171: 0 | CZ171: 16 | DA171: 0 | DB171: 0 | DC171: 0 | DD171: 0 | DE171: 0 | DF171: 0 | DG171: 0 | DH171: 0 | DI171: 0 | DJ171: 0 | DK171: 0 | DL171: 0 | DM171: 0 | DN171: 0 | DO171: 0 | DP171: 0 | DQ171: 0 | DR171: 0 | DS171: 0 | DT171: 0 | DU171: 0 | DV171: 0 | DW171: 0 | DX171: 0 | DY171: 0 | DZ171: 0 | EA171: 0 | EB171: 0 | EC171: 0 | ED171: 0 | EE171: 0 | EF171: 0 | EG171: 0 | EH171: 0 | EI171: 0 | EJ171: 0 | EK171: 0 | EL171: 0 | EM171: 0 | EN171: 0 | EO171: 0 | EP171: 0 | EQ171: 0 | ER171: 0 | ES171: 0 | ET171: 32 | EU171: 32 | EV171: 16 | EW171: 0 | EX171: 64 | EY171: 1552 | EZ171: 2096 | FA171: 1241.6 | FB171: 0 | FC171: 4889.6 | FD171: 4889.6 | FE171: Yes | FF171: 0 | FG171: 0 | FH171: 0
B172: 149 | D172: Supervisor | E172: Vendor #13 | G172: SW008076 | H172: 2018-10-27 | I172: 2018-10-27 | J172: Yes | K172: =VLOOKUP($D172,'C.1 - Rate Sheets'!$B$16:$E$35,2) -> 74 | L172: =VLOOKUP($D172,'C.1 - Rate Sheets'!$B$16:$E$35,3) -> 99.9 | M172: =VLOOKUP($D172,'C.1 - Rate Sheets'!$B$16:$E$35,4) -> 118.4 | N172: =VLOOKUP($D172,'C.1 - Rate Sheets'!B:F,5,FALSE) -> 0 | O172: 0 | P172: 0 | Q172: 0 | R172: 0 | S172: 0 | T172: 0 | U172: 0 | V172: 0 | W172: 0 | X172: 0 | Y172: 0 | Z172: 0 | AA172: 0 | AB172: 0 | AC172: 0 | AD172: 0 | AE172: 0 | AF172: 0 | AG172: 0 | AH172: 0 | AM172: 0 | AN172: 0 | AO172: 0 | AP172: 0 | AQ172: 0 | AR172: 0 | AW172: 0 | BB172: 0 | BG172: 0 | BL172: 0 | BQ172: 0 | BV172: 0 | CA172: 0 | CF172: 0 | CK172: 0 | CL172: 0 | CM172: 0 | CN172: 0 | CO172: 0 | CP172: 0 | CQ172: 0 | CR172: 0 | CS172: 0 | CT172: 0 | CU172: 0 | CV172: 0 | CW172: 0 | CX172: 0 | CY172: 0 | CZ172: 0 | DA172: 0 | DB172: 0 | DC172: 0 | DD172: 0 | DE172: 0 | DF172: 0 | DG172: 16 | DH172: 0 | DI172: 0 | DJ172: 16 | DK172: 0 | DL172: 0 | DM172: 0 | DN172: 0 | DO172: 0 | DP172: 0 | DQ172: 0 | DR172: 0 | DS172: 0 | DT172: 0 | DU172: 0 | DV172: 0 | DW172: 0 | DX172: 0 | DY172: 0 | DZ172: 0 | EA172: 0 | EB172: 0 | EC172: 0 | ED172: 0 | EE172: 0 | EF172: 0 | EG172: 0 | EH172: 0 | EI172: 0 | EJ172: 0 | EK172: 0 | EL172: 0 | EM172: 0 | EN172: 0 | EO172: 0 | EP172: 0 | EQ172: 0 | ER172: 0 | ES172: 0 | ET172: 0 | EU172: 16 | EV172: 0 | EW172: 0 | EX172: 16 | EY172: 0 | EZ172: 1598.4 | FA172: 0 | FB172: 0 | FC172: 1598.4 | FD172: 1598.4 | FE172: Yes | FF172: 0 | FG172: 0 | FH172: 0
B173: 150 | D173: Crew Foreman | E173: Vendor #13 | G173: SW008077 | H173: 2018-10-28 | I173: 2018-10-28 | J173: Yes | K173: =VLOOKUP($D173,'C.1 - Rate Sheets'!$B$16:$E$35,2) -> 56.8 | L173: =VLOOKUP($D173,'C.1 - Rate Sheets'!$B$16:$E$35,3) -> 76.7 | M173: =VLOOKUP($D173,'C.1 - Rate Sheets'!$B$16:$E$35,4) -> 90.9 | N173: =VLOOKUP($D173,'C.1 - Rate Sheets'!B:F,5,FALSE) -> 0 | O173: 0 | P173: 0 | Q173: 0 | R173: 0 | S173: 0 | T173: 0 | U173: 0 | V173: 0 | W173: 0 | X173: 0 | Y173: 0 | Z173: 0 | AA173: 0 | AB173: 0 | AC173: 0 | AD173: 0 | AE173: 0 | AF173: 0 | AG173: 0 | AH173: 0 | AM173: 0 | AN173: 0 | AO173: 0 | AP173: 0 | AQ173: 0 | AR173: 0 | AW173: 0 | BB173: 0 | BG173: 0 | BL173: 0 | BQ173: 0 | BV173: 0 | CA173: 0 | CF173: 0 | CK173: 0 | CL173: 0 | CM173: 0 | CN173: 0 | CO173: 0 | CP173: 0 | CQ173: 0 | CR173: 0 | CS173: 0 | CT173: 0 | CU173: 0 | CV173: 0 | CW173: 0 | CX173: 0 | CY173: 0 | CZ173: 0 | DA173: 0 | DB173: 0 | DC173: 0 | DD173: 0 | DE173: 0 | DF173: 0 | DG173: 0 | DH173: 0 | DI173: 0 | DJ173: 0 | DK173: 0 | DL173: 13 | DM173: 0 | DN173: 0 | DO173: 13 | DP173: 0 | DQ173: 0 | DR173: 0 | DS173: 0 | DT173: 0 | DU173: 0 | DV173: 0 | DW173: 0 | DX173: 0 | DY173: 0 | DZ173: 0 | EA173: 0 | EB173: 0 | EC173: 0 | ED173: 0 | EE173: 0 | EF173: 0 | EG173: 0 | EH173: 0 | EI173: 0 | EJ173: 0 | EK173: 0 | EL173: 0 | EM173: 0 | EN173: 0 | EO173: 0 | EP173: 0 | EQ173: 0 | ER173: 0 | ES173: 0 | ET173: 0 | EU173: 13 | EV173: 0 | EW173: 0 | EX173: 13 | EY173: 0 | EZ173: 997.1 | FA173: 0 | FB173: 0 | FC173: 997.1 | FD173: 997.1 | FE173: Yes | FF173: 0 | FG173: 0 | FH173: 0
B174: 151 | D174: Tree Trimmer | E174: Vendor #13 | G174: SW008077 | H174: 2018-10-28 | I174: 2018-10-28 | J174: Yes | K174: =VLOOKUP($D174,'C.1 - Rate Sheets'!$B$16:$E$35,2) -> 48.5 | L174: =VLOOKUP($D174,'C.1 - Rate Sheets'!$B$16:$E$35,3) -> 65.5 | M174: =VLOOKUP($D174,'C.1 - Rate Sheets'!$B$16:$E$35,4) -> 77.6 | N174: =VLOOKUP($D174,'C.1 - Rate Sheets'!B:F,5,FALSE) -> 0 | O174: 0 | P174: 0 | Q174: 0 | R174: 0 | S174: 0 | T174: 0 | U174: 0 | V174: 0 | W174: 0 | X174: 0 | Y174: 0 | Z174: 0 | AA174: 0 | AB174: 0 | AC174: 0 | AD174: 0 | AE174: 0 | AF174: 0 | AG174: 0 | AH174: 0 | AM174: 0 | AN174: 0 | AO174: 0 | AP174: 0 | AQ174: 0 | AR174: 0 | AW174: 0 | BB174: 0 | BG174: 0 | BL174: 0 | BQ174: 0 | BV174: 0 | CA174: 0 | CF174: 0 | CK174: 0 | CL174: 0 | CM174: 0 | CN174: 0 | CO174: 0 | CP174: 0 | CQ174: 0 | CR174: 0 | CS174: 0 | CT174: 0 | CU174: 0 | CV174: 0 | CW174: 0 | CX174: 0 | CY174: 0 | CZ174: 0 | DA174: 0 | DB174: 0 | DC174: 0 | DD174: 0 | DE174: 0 | DF174: 0 | DG174: 0 | DH174: 0 | DI174: 0 | DJ174: 0 | DK174: 0 | DL174: 13 | DM174: 0 | DN174: 0 | DO174: 13 | DP174: 0 | DQ174: 0 | DR174: 0 | DS174: 0 | DT174: 0 | DU174: 0 | DV174: 0 | DW174: 0 | DX174: 0 | DY174: 0 | DZ174: 0 | EA174: 0 | EB174: 0 | EC174: 0 | ED174: 0 | EE174: 0 | EF174: 0 | EG174: 0 | EH174: 0 | EI174: 0 | EJ174: 0 | EK174: 0 | EL174: 0 | EM174: 0 | EN174: 0 | EO174: 0 | EP174: 0 | EQ174: 0 | ER174: 0 | ES174: 0 | ET174: 0 | EU174: 13 | EV174: 0 | EW174: 0 | EX174: 13 | EY174: 0 | EZ174: 851.5 | FA174: 0 | FB174: 0 | FC174: 851.5 | FD174: 851.5 | FE174: Yes | FF174: 0 | FG174: 0 | FH174: 0
B175: 152 | D175: Crew Foreman | E175: Vendor #13 | G175: SW008078 | H175: 2018-10-21 | I175: 2018-10-27 | J175: Yes | K175: =VLOOKUP($D175,'C.1 - Rate Sheets'!$B$16:$E$35,2) -> 56.8 | L175: =VLOOKUP($D175,'C.1 - Rate Sheets'!$B$16:$E$35,3) -> 76.7 | M175: =VLOOKUP($D175,'C.1 - Rate Sheets'!$B$16:$E$35,4) -> 90.9 | N175: =VLOOKUP($D175,'C.1 - Rate Sheets'!B:F,5,FALSE) -> 0 | O175: 0 | P175: 0 | Q175: 0 | R175: 0 | S175: 0 | T175: 0 | U175: 0 | V175: 0 | W175: 0 | X175: 0 | Y175: 0 | Z175: 0 | AA175: 0 | AB175: 0 | AC175: 0 | AD175: 0 | AE175: 0 | AF175: 0 | AG175: 0 | AH175: 0 | AM175: 0 | AN175: 0 | AO175: 0 | AP175: 0 | AQ175: 0 | AR175: 0 | AW175: 0 | BB175: 0 | BG175: 0 | BL175: 0 | BQ175: 0 | BV175: 0 | CA175: 0 | CF175: 0 | CK175: 0 | CL175: 0 | CM175: 0 | CN175: 0 | CO175: 0 | CP175: 0 | CQ175: 0 | CR175: 0 | CS175: 0 | CT175: 0 | CU175: 0 | CV175: 0 | CW175: 0 | CX175: 0 | CY175: 0 | CZ175: 0 | DA175: 0 | DB175: 0 | DC175: 0 | DD175: 0 | DE175: 0 | DF175: 0 | DG175: 16 | DH175: 0 | DI175: 0 | DJ175: 16 | DK175: 0 | DL175: 0 | DM175: 0 | DN175: 0 | DO175: 0 | DP175: 0 | DQ175: 0 | DR175: 0 | DS175: 0 | DT175: 0 | DU175: 0 | DV175: 0 | DW175: 0 | DX175: 0 | DY175: 0 | DZ175: 0 | EA175: 0 | EB175: 0 | EC175: 0 | ED175: 0 | EE175: 0 | EF175: 0 | EG175: 0 | EH175: 0 | EI175: 0 | EJ175: 0 | EK175: 0 | EL175: 0 | EM175: 0 | EN175: 0 | EO175: 0 | EP175: 0 | EQ175: 0 | ER175: 0 | ES175: 0 | ET175: 0 | EU175: 16 | EV175: 0 | EW175: 0 | EX175: 16 | EY175: 0 | EZ175: 1227.2 | FA175: 0 | FB175: 0 | FC175: 1227.2 | FD175: 1227.2 | FE175: Yes | FF175: 0 | FG175: 0 | FH175: 0
B176: 153 | D176: Tree Trimmer | E176: Vendor #13 | G176: SW008078 | H176: 2018-10-21 | I176: 2018-10-27 | J176: Yes | K176: =VLOOKUP($D176,'C.1 - Rate Sheets'!$B$16:$E$35,2) -> 48.5 | L176: =VLOOKUP($D176,'C.1 - Rate Sheets'!$B$16:$E$35,3) -> 65.5 | M176: =VLOOKUP($D176,'C.1 - Rate Sheets'!$B$16:$E$35,4) -> 77.6 | N176: =VLOOKUP($D176,'C.1 - Rate Sheets'!B:F,5,FALSE) -> 0 | O176: 0 | P176: 0 | Q176: 0 | R176: 0 | S176: 0 | T176: 0 | U176: 0 | V176: 0 | W176: 0 | X176: 0 | Y176: 0 | Z176: 0 | AA176: 0 | AB176: 0 | AC176: 0 | AD176: 0 | AE176: 0 | AF176: 0 | AG176: 0 | AH176: 0 | AM176: 0 | AN176: 0 | AO176: 0 | AP176: 0 | AQ176: 0 | AR176: 0 | AW176: 0 | BB176: 0 | BG176: 0 | BL176: 0 | BQ176: 0 | BV176: 0 | CA176: 0 | CF176: 0 | CK176: 0 | CL176: 0 | CM176: 0 | CN176: 0 | CO176: 0 | CP176: 0 | CQ176: 0 | CR176: 0 | CS176: 0 | CT176: 0 | CU176: 0 | CV176: 0 | CW176: 0 | CX176: 0 | CY176: 0 | CZ176: 0 | DA176: 0 | DB176: 0 | DC176: 0 | DD176: 0 | DE176: 0 | DF176: 0 | DG176: 16 | DH176: 0 | DI176: 0 | DJ176: 16 | DK176: 0 | DL176: 0 | DM176: 0 | DN176: 0 | DO176: 0 | DP176: 0 | DQ176: 0 | DR176: 0 | DS176: 0 | DT176: 0 | DU176: 0 | DV176: 0 | DW176: 0 | DX176: 0 | DY176: 0 | DZ176: 0 | EA176: 0 | EB176: 0 | EC176: 0 | ED176: 0 | EE176: 0 | EF176: 0 | EG176: 0 | EH176: 0 | EI176: 0 | EJ176: 0 | EK176: 0 | EL176: 0 | EM176: 0 | EN176: 0 | EO176: 0 | EP176: 0 | EQ176: 0 | ER176: 0 | ES176: 0 | ET176: 0 | EU176: 16 | EV176: 0 | EW176: 0 | EX176: 16 | EY176: 0 | EZ176: 1048 | FA176: 0 | FB176: 0 | FC176: 1048 | FD176: 1048 | FE176: Yes | FF176: 0 | FG176: 0 | FH176: 0
B177: 154 | D177: Crew Foreman | E177: Vendor #13 | G177: SW008079 | H177: 2018-10-21 | I177: 2018-10-26 | J177: Yes | K177: =VLOOKUP($D177,'C.1 - Rate Sheets'!$B$16:$E$35,2) -> 56.8 | L177: =VLOOKUP($D177,'C.1 - Rate Sheets'!$B$16:$E$35,3) -> 76.7 | M177: =VLOOKUP($D177,'C.1 - Rate Sheets'!$B$16:$E$35,4) -> 90.9 | N177: =VLOOKUP($D177,'C.1 - Rate Sheets'!B:F,5,FALSE) -> 0 | O177: 0 | P177: 0 | Q177: 0 | R177: 0 | S177: 0 | T177: 0 | U177: 0 | V177: 0 | W177: 0 | X177: 0 | Y177: 0 | Z177: 0 | AA177: 0 | AB177: 0 | AC177: 0 | AD177: 0 | AE177: 0 | AF177: 0 | AG177: 0 | AH177: 0 | AM177: 0 | AN177: 0 | AO177: 0 | AP177: 0 | AQ177: 0 | AR177: 0 | AW177: 0 | BB177: 0 | BG177: 0 | BL177: 0 | BQ177: 0 | BR177: 0 | BS177: 0 | BV177: 0 | CA177: 0 | CF177: 0 | CK177: 0 | CL177: 0 | CM177: 0 | CN177: 0 | CO177: 0 | CP177: 0 | CQ177: 0 | CR177: 0 | CS177: 0 | CT177: 0 | CU177: 0 | CV177: 0 | CW177: 0 | CX177: 0 | CY177: 0 | CZ177: 0 | DA177: 8 | DB177: 5 | DC177: 0 | DD177: 0 | DE177: 13 | DF177: 0 | DG177: 0 | DH177: 0 | DI177: 0 | DJ177: 0 | DK177: 0 | DL177: 0 | DM177: 0 | DN177: 0 | DO177: 0 | DP177: 0 | DQ177: 0 | DR177: 0 | DS177: 0 | DT177: 0 | DU177: 0 | DV177: 0 | DW177: 0 | DX177: 0 | DY177: 0 | DZ177: 0 | EA177: 0 | EB177: 0 | EC177: 0 | ED177: 0 | EE177: 0 | EF177: 0 | EG177: 0 | EH177: 0 | EI177: 0 | EJ177: 0 | EK177: 0 | EL177: 0 | EM177: 0 | EN177: 0 | EO177: 0 | EP177: 0 | EQ177: 0 | ER177: 0 | ES177: 0 | ET177: 8 | EU177: 5 | EV177: 0 | EW177: 0 | EX177: 13 | EY177: 454.4 | EZ177: 383.5 | FA177: 0 | FB177: 0 | FC177: 837.9 | FD177: 837.9 | FE177: Yes | FF177: 0 | FG177: 0 | FH177: 0
B178: 155 | D178: Tree Trimmer | E178: Vendor #13 | G178: SW008079 | H178: 2018-10-21 | I178: 2018-10-26 | J178: Yes | K178: =VLOOKUP($D178,'C.1 - Rate Sheets'!$B$16:$E$35,2) -> 48.5 | L178: =VLOOKUP($D178,'C.1 - Rate Sheets'!$B$16:$E$35,3) -> 65.5 | M178: =VLOOKUP($D178,'C.1 - Rate Sheets'!$B$16:$E$35,4) -> 77.6 | N178: =VLOOKUP($D178,'C.1 - Rate Sheets'!B:F,5,FALSE) -> 0 | O178: 0 | P178: 0 | Q178: 0 | R178: 0 | S178: 0 | T178: 0 | U178: 0 | V178: 0 | W178: 0 | X178: 0 | Y178: 0 | Z178: 0 | AA178: 0 | AB178: 0 | AC178: 0 | AD178: 0 | AE178: 0 | AF178: 0 | AG178: 0 | AH178: 0 | AM178: 0 | AN178: 0 | AO178: 0 | AP178: 0 | AQ178: 0 | AR178: 0 | AW178: 0 | BB178: 0 | BG178: 0 | BL178: 0 | BQ178: 0 | BR178: 0 | BS178: 0 | BV178: 0 | CA178: 0 | CF178: 0 | CK178: 0 | CL178: 0 | CM178: 0 | CN178: 0 | CO178: 0 | CP178: 0 | CQ178: 0 | CR178: 0 | CS178: 0 | CT178: 0 | CU178: 0 | CV178: 0 | CW178: 0 | CX178: 0 | CY178: 0 | CZ178: 0 | DA178: 8 | DB178: 5 | DC178: 0 | DD178: 0 | DE178: 13 | DF178: 0 | DG178: 0 | DH178: 0 | DI178: 0 | DJ178: 0 | DK178: 0 | DL178: 0 | DM178: 0 | DN178: 0 | DO178: 0 | DP178: 0 | DQ178: 0 | DR178: 0 | DS178: 0 | DT178: 0 | DU178: 0 | DV178: 0 | DW178: 0 | DX178: 0 | DY178: 0 | DZ178: 0 | EA178: 0 | EB178: 0 | EC178: 0 | ED178: 0 | EE178: 0 | EF178: 0 | EG178: 0 | EH178: 0 | EI178: 0 | EJ178: 0 | EK178: 0 | EL178: 0 | EM178: 0 | EN178: 0 | EO178: 0 | EP178: 0 | EQ178: 0 | ER178: 0 | ES178: 0 | ET178: 8 | EU178: 5 | EV178: 0 | EW178: 0 | EX178: 13 | EY178: 388 | EZ178: 327.5 | FA178: 0 | FB178: 0 | FC178: 715.5 | FD178: 715.5 | FE178: Yes | FF178: 0 | FG178: 0 | FH178: 0
B179: 156 | D179: Crew Foreman | E179: Vendor #13 | G179: SW008080 | H179: 2018-10-21 | I179: 2018-10-26 | J179: Yes | K179: =VLOOKUP($D179,'C.1 - Rate Sheets'!$B$16:$E$35,2) -> 56.8 | L179: =VLOOKUP($D179,'C.1 - Rate Sheets'!$B$16:$E$35,3) -> 76.7 | M179: =VLOOKUP($D179,'C.1 - Rate Sheets'!$B$16:$E$35,4) -> 90.9 | N179: =VLOOKUP($D179,'C.1 - Rate Sheets'!B:F,5,FALSE) -> 0 | O179: 0 | P179: 0 | Q179: 0 | R179: 0 | S179: 0 | T179: 0 | U179: 0 | V179: 0 | W179: 0 | X179: 0 | Y179: 0 | Z179: 0 | AA179: 0 | AB179: 0 | AC179: 0 | AD179: 0 | AE179: 0 | AF179: 0 | AG179: 0 | AH179: 0 | AM179: 0 | AN179: 0 | AO179: 0 | AP179: 0 | AQ179: 0 | AR179: 0 | AW179: 0 | BB179: 0 | BG179: 0 | BL179: 0 | BQ179: 0 | BV179: 0 | CA179: 0 | CF179: 0 | CK179: 0 | CL179: 0 | CM179: 0 | CN179: 0 | CO179: 0 | CP179: 0 | CQ179: 0 | CR179: 0 | CS179: 0 | CT179: 0 | CU179: 0 | CV179: 0 | CW179: 0 | CX179: 0 | CY179: 0 | CZ179: 0 | DA179: 8 | DB179: 5 | DC179: 0 | DD179: 0 | DE179: 13 | DF179: 0 | DG179: 0 | DH179: 0 | DI179: 0 | DJ179: 0 | DK179: 0 | DL179: 0 | DM179: 0 | DN179: 0 | DO179: 0 | DP179: 0 | DQ179: 0 | DR179: 0 | DS179: 0 | DT179: 0 | DU179: 0 | DV179: 0 | DW179: 0 | DX179: 0 | DY179: 0 | DZ179: 0 | EA179: 0 | EB179: 0 | EC179: 0 | ED179: 0 | EE179: 0 | EF179: 0 | EG179: 0 | EH179: 0 | EI179: 0 | EJ179: 0 | EK179: 0 | EL179: 0 | EM179: 0 | EN179: 0 | EO179: 0 | EP179: 0 | EQ179: 0 | ER179: 0 | ES179: 0 | ET179: 8 | EU179: 5 | EV179: 0 | EW179: 0 | EX179: 13 | EY179: 454.4 | EZ179: 383.5 | FA179: 0 | FB179: 0 | FC179: 837.9 | FD179: 837.9 | FE179: Yes | FF179: 0 | FG179: 0 | FH179: 0
B180: 157 | D180: Tree Trimmer | E180: Vendor #13 | G180: SW008080 | H180: 2018-10-21 | I180: 2018-10-26 | J180: Yes | K180: =VLOOKUP($D180,'C.1 - Rate Sheets'!$B$16:$E$35,2) -> 48.5 | L180: =VLOOKUP($D180,'C.1 - Rate Sheets'!$B$16:$E$35,3) -> 65.5 | M180: =VLOOKUP($D180,'C.1 - Rate Sheets'!$B$16:$E$35,4) -> 77.6 | N180: =VLOOKUP($D180,'C.1 - Rate Sheets'!B:F,5,FALSE) -> 0 | O180: 0 | P180: 0 | Q180: 0 | R180: 0 | S180: 0 | T180: 0 | U180: 0 | V180: 0 | W180: 0 | X180: 0 | Y180: 0 | Z180: 0 | AA180: 0 | AB180: 0 | AC180: 0 | AD180: 0 | AE180: 0 | AF180: 0 | AG180: 0 | AH180: 0 | AM180: 0 | AN180: 0 | AO180: 0 | AP180: 0 | AQ180: 0 | AR180: 0 | AW180: 0 | BB180: 0 | BG180: 0 | BL180: 0 | BQ180: 0 | BV180: 0 | CA180: 0 | CF180: 0 | CK180: 0 | CL180: 0 | CM180: 0 | CN180: 0 | CO180: 0 | CP180: 0 | CQ180: 0 | CR180: 0 | CS180: 0 | CT180: 0 | CU180: 0 | CV180: 0 | CW180: 0 | CX180: 0 | CY180: 0 | CZ180: 0 | DA180: 8 | DB180: 5 | DC180: 0 | DD180: 0 | DE180: 13 | DF180: 0 | DG180: 0 | DH180: 0 | DI180: 0 | DJ180: 0 | DK180: 0 | DL180: 0 | DM180: 0 | DN180: 0 | DO180: 0 | DP180: 0 | DQ180: 0 | DR180: 0 | DS180: 0 | DT180: 0 | DU180: 0 | DV180: 0 | DW180: 0 | DX180: 0 | DY180: 0 | DZ180: 0 | EA180: 0 | EB180: 0 | EC180: 0 | ED180: 0 | EE180: 0 | EF180: 0 | EG180: 0 | EH180: 0 | EI180: 0 | EJ180: 0 | EK180: 0 | EL180: 0 | EM180: 0 | EN180: 0 | EO180: 0 | EP180: 0 | EQ180: 0 | ER180: 0 | ES180: 0 | ET180: 8 | EU180: 5 | EV180: 0 | EW180: 0 | EX180: 13 | EY180: 388 | EZ180: 327.5 | FA180: 0 | FB180: 0 | FC180: 715.5 | FD180: 715.5 | FE180: Yes | FF180: 0 | FG180: 0 | FH180: 0
B181: 158 | D181: Crew Foreman | E181: Vendor #13 | G181: SW008081 | H181: 2018-10-21 | I181: 2018-10-27 | J181: Yes | K181: =VLOOKUP($D181,'C.1 - Rate Sheets'!$B$16:$E$35,2) -> 56.8 | L181: =VLOOKUP($D181,'C.1 - Rate Sheets'!$B$16:$E$35,3) -> 76.7 | M181: =VLOOKUP($D181,'C.1 - Rate Sheets'!$B$16:$E$35,4) -> 90.9 | N181: =VLOOKUP($D181,'C.1 - Rate Sheets'!B:F,5,FALSE) -> 0 | O181: 0 | P181: 0 | Q181: 0 | R181: 0 | S181: 0 | T181: 0 | U181: 0 | V181: 0 | W181: 0 | X181: 0 | Y181: 0 | Z181: 0 | AA181: 0 | AB181: 0 | AC181: 0 | AD181: 0 | AE181: 0 | AF181: 0 | AG181: 0 | AH181: 0 | AM181: 0 | AN181: 0 | AO181: 0 | AP181: 0 | AQ181: 0 | AR181: 0 | AW181: 0 | BB181: 0 | BG181: 0 | BL181: 0 | BQ181: 0 | BV181: 0 | CA181: 0 | CF181: 0 | CK181: 0 | CL181: 0 | CM181: 0 | CN181: 0 | CO181: 0 | CP181: 0 | CQ181: 0 | CR181: 0 | CS181: 0 | CT181: 0 | CU181: 0 | CV181: 0 | CW181: 0 | CX181: 0 | CY181: 0 | CZ181: 0 | DA181: 0 | DB181: 0 | DC181: 0 | DD181: 0 | DE181: 0 | DF181: 8 | DG181: 5 | DH181: 0 | DI181: 0 | DJ181: 13 | DK181: 0 | DL181: 0 | DM181: 0 | DN181: 0 | DO181: 0 | DP181: 0 | DQ181: 0 | DR181: 0 | DS181: 0 | DT181: 0 | DU181: 0 | DV181: 0 | DW181: 0 | DX181: 0 | DY181: 0 | DZ181: 0 | EA181: 0 | EB181: 0 | EC181: 0 | ED181: 0 | EE181: 0 | EF181: 0 | EG181: 0 | EH181: 0 | EI181: 0 | EJ181: 0 | EK181: 0 | EL181: 0 | EM181: 0 | EN181: 0 | EO181: 0 | EP181: 0 | EQ181: 0 | ER181: 0 | ES181: 0 | ET181: 8 | EU181: 5 | EV181: 0 | EW181: 0 | EX181: 13 | EY181: 454.4 | EZ181: 383.5 | FA181: 0 | FB181: 0 | FC181: 837.9 | FD181: 837.9 | FE181: Yes | FF181: 0 | FG181: 0 | FH181: 0
B182: 159 | D182: Tree Trimmer | E182: Vendor #13 | G182: SW008081 | H182: 2018-10-21 | I182: 2018-10-27 | J182: Yes | K182: =VLOOKUP($D182,'C.1 - Rate Sheets'!$B$16:$E$35,2) -> 48.5 | L182: =VLOOKUP($D182,'C.1 - Rate Sheets'!$B$16:$E$35,3) -> 65.5 | M182: =VLOOKUP($D182,'C.1 - Rate Sheets'!$B$16:$E$35,4) -> 77.6 | N182: =VLOOKUP($D182,'C.1 - Rate Sheets'!B:F,5,FALSE) -> 0 | O182: 0 | P182: 0 | Q182: 0 | R182: 0 | S182: 0 | T182: 0 | U182: 0 | V182: 0 | W182: 0 | X182: 0 | Y182: 0 | Z182: 0 | AA182: 0 | AB182: 0 | AC182: 0 | AD182: 0 | AE182: 0 | AF182: 0 | AG182: 0 | AH182: 0 | AM182: 0 | AN182: 0 | AO182: 0 | AP182: 0 | AQ182: 0 | AR182: 0 | AW182: 0 | BB182: 0 | BG182: 0 | BL182: 0 | BQ182: 0 | BV182: 0 | CA182: 0 | CF182: 0 | CK182: 0 | CL182: 0 | CM182: 0 | CN182: 0 | CO182: 0 | CP182: 0 | CQ182: 0 | CR182: 0 | CS182: 0 | CT182: 0 | CU182: 0 | CV182: 0 | CW182: 0 | CX182: 0 | CY182: 0 | CZ182: 0 | DA182: 0 | DB182: 0 | DC182: 0 | DD182: 0 | DE182: 0 | DF182: 8 | DG182: 5 | DH182: 0 | DI182: 0 | DJ182: 13 | DK182: 0 | DL182: 0 | DM182: 0 | DN182: 0 | DO182: 0 | DP182: 0 | DQ182: 0 | DR182: 0 | DS182: 0 | DT182: 0 | DU182: 0 | DV182: 0 | DW182: 0 | DX182: 0 | DY182: 0 | DZ182: 0 | EA182: 0 | EB182: 0 | EC182: 0 | ED182: 0 | EE182: 0 | EF182: 0 | EG182: 0 | EH182: 0 | EI182: 0 | EJ182: 0 | EK182: 0 | EL182: 0 | EM182: 0 | EN182: 0 | EO182: 0 | EP182: 0 | EQ182: 0 | ER182: 0 | ES182: 0 | ET182: 8 | EU182: 5 | EV182: 0 | EW182: 0 | EX182: 13 | EY182: 388 | EZ182: 327.5 | FA182: 0 | FB182: 0 | FC182: 715.5 | FD182: 715.5 | FE182: Yes | FF182: 0 | FG182: 0 | FH182: 0
B183: 160 | D183: Supervisor | E183: Vendor #13 | G183: SW007910 | H183: 2018-10-28 | I183: 2018-11-02 | J183: Yes | K183: =VLOOKUP($D183,'C.1 - Rate Sheets'!$B$16:$E$35,2) -> 74 | L183: =VLOOKUP($D183,'C.1 - Rate Sheets'!$B$16:$E$35,3) -> 99.9 | M183: =VLOOKUP($D183,'C.1 - Rate Sheets'!$B$16:$E$35,4) -> 118.4 | N183: =VLOOKUP($D183,'C.1 - Rate Sheets'!B:F,5,FALSE) -> 0 | O183: 0 | P183: 0 | Q183: 0 | R183: 0 | S183: 0 | T183: 0 | U183: 0 | V183: 0 | W183: 0 | X183: 0 | Y183: 0 | Z183: 0 | AA183: 0 | AB183: 0 | AC183: 0 | AD183: 0 | AE183: 0 | AF183: 0 | AG183: 0 | AH183: 0 | AM183: 0 | AN183: 0 | AO183: 0 | AP183: 0 | AQ183: 0 | AR183: 0 | AW183: 0 | BB183: 0 | BG183: 0 | BL183: 0 | BQ183: 0 | BV183: 0 | CA183: 0 | CF183: 0 | CK183: 0 | CL183: 0 | CM183: 0 | CN183: 0 | CO183: 0 | CP183: 0 | CQ183: 0 | CR183: 0 | CS183: 0 | CT183: 0 | CU183: 0 | CV183: 0 | CW183: 0 | CX183: 0 | CY183: 0 | CZ183: 0 | DA183: 0 | DB183: 0 | DC183: 0 | DD183: 0 | DE183: 0 | DF183: 0 | DG183: 0 | DH183: 0 | DI183: 0 | DJ183: 0 | DK183: 0 | DL183: 0 | DM183: 16 | DN183: 0 | DO183: =+SUM(DK183:DN183) -> 16 | DP183: 8 | DQ183: 8 | DR183: 0 | DS183: 0 | DT183: =+SUM(DP183:DS183) -> 16 | DU183: 8 | DV183: 8 | DW183: 0 | DX183: 0 | DY183: 16 | DZ183: 8 | EA183: 8 | EB183: 0 | EC183: 0 | ED183: 16 | EE183: 8 | EF183: 8 | EG183: 0 | EH183: 0 | EI183: 16 | EJ183: 8 | EK183: 8 | EL183: 0 | EM183: 0 | EN183: 16 | EO183: 0 | EP183: 0 | EQ183: 0 | ER183: 0 | ES183: 0 | ET183: 40 | EU183: 40 | EV183: 16 | EW183: 0 | EX183: 96 | EY183: 2960 | EZ183: 3996 | FA183: 1894.4 | FB183: 0 | FC183: 8850.4 | FD183: 8850.4 | FE183: Yes | FF183: 0 | FG183: 0 | FH183: 0
B184: 161 | D184: Supervisor | E184: Vendor #13 | G184: SW007911 | H184: 2018-11-03 | I184: 2018-11-03 | J184: Yes | K184: =VLOOKUP($D184,'C.1 - Rate Sheets'!$B$16:$E$35,2) -> 74 | L184: =VLOOKUP($D184,'C.1 - Rate Sheets'!$B$16:$E$35,3) -> 99.9 | M184: =VLOOKUP($D184,'C.1 - Rate Sheets'!$B$16:$E$35,4) -> 118.4 | N184: =VLOOKUP($D184,'C.1 - Rate Sheets'!B:F,5,FALSE) -> 0 | O184: 0 | P184: 0 | Q184: 0 | R184: 0 | S184: 0 | T184: 0 | U184: 0 | V184: 0 | W184: 0 | X184: 0 | Y184: 0 | Z184: 0 | AA184: 0 | AB184: 0 | AC184: 0 | AD184: 0 | AE184: 0 | AF184: 0 | AG184: 0 | AH184: 0 | AM184: 0 | AN184: 0 | AO184: 0 | AP184: 0 | AQ184: 0 | AR184: 0 | AW184: 0 | BB184: 0 | BG184: 0 | BL184: 0 | BQ184: 0 | BV184: 0 | CA184: 0 | CF184: 0 | CK184: 0 | CL184: 0 | CM184: 0 | CN184: 0 | CO184: 0 | CP184: 0 | CQ184: 0 | CR184: 0 | CS184: 0 | CT184: 0 | CU184: 0 | CV184: 0 | CW184: 0 | CX184: 0 | CY184: 0 | CZ184: 0 | DA184: 0 | DB184: 0 | DC184: 0 | DD184: 0 | DE184: 0 | DF184: 0 | DG184: 0 | DH184: 0 | DI184: 0 | DJ184: 0 | DK184: 0 | DN184: 0 | DO184: 0 | DR184: 0 | DS184: 0 | DT184: 0 | DW184: 0 | DX184: 0 | DY184: 0 | EB184: 0 | EC184: 0 | ED184: 0 | EG184: 0 | EH184: 0 | EI184: 0 | EL184: 0 | EM184: 0 | EN184: 0 | EO184: 0 | EP184: 13 | EQ184: 0 | ER184: 0 | ES184: 13 | ET184: 0 | EU184: 13 | EV184: 0 | EW184: 0 | EX184: 13 | EY184: 0 | EZ184: 1298.7 | FA184: 0 | FB184: 0 | FC184: 1298.7 | FD184: 1298.7 | FE184: Yes | FF184: 0 | FG184: 0 | FH184: 0
B185: 162 | D185: Crew Foreman | E185: Vendor #13 | G185: SW007912 | H185: 2018-10-28 | I185: 2018-11-02 | J185: Yes | K185: =VLOOKUP($D185,'C.1 - Rate Sheets'!$B$16:$E$35,2) -> 56.8 | L185: =VLOOKUP($D185,'C.1 - Rate Sheets'!$B$16:$E$35,3) -> 76.7 | M185: =VLOOKUP($D185,'C.1 - Rate Sheets'!$B$16:$E$35,4) -> 90.9 | N185: =VLOOKUP($D185,'C.1 - Rate Sheets'!B:F,5,FALSE) -> 0 | O185: 0 | P185: 0 | Q185: 0 | R185: 0 | S185: 0 | T185: 0 | U185: 0 | V185: 0 | W185: 0 | X185: 0 | Y185: 0 | Z185: 0 | AA185: 0 | AB185: 0 | AC185: 0 | AD185: 0 | AE185: 0 | AF185: 0 | AG185: 0 | AH185: 0 | AM185: 0 | AN185: 0 | AO185: 0 | AP185: 0 | AQ185: 0 | AR185: 0 | AW185: 0 | BB185: 0 | BG185: 0 | BL185: 0 | BQ185: 0 | BV185: 0 | CA185: 0 | CF185: 0 | CK185: 0 | CL185: 0 | CM185: 0 | CN185: 0 | CO185: 0 | CP185: 0 | CQ185: 0 | CR185: 0 | CS185: 0 | CT185: 0 | CU185: 0 | CV185: 0 | CW185: 0 | CX185: 0 | CY185: 0 | CZ185: 0 | DA185: 0 | DB185: 0 | DC185: 0 | DD185: 0 | DE185: 0 | DF185: 0 | DG185: 0 | DH185: 0 | DI185: 0 | DJ185: 0 | DK185: 0 | DL185: 0 | DM185: 16 | DN185: 0 | DO185: 16 | DP185: 8 | DQ185: 8 | DR185: 0 | DS185: 0 | DT185: 16 | DU185: 8 | DV185: 8 | DW185: 0 | DX185: 0 | DY185: 16 | DZ185: 8 | EA185: 8 | EB185: 0 | EC185: 0 | ED185: 16 | EE185: 8 | EF185: 8 | EG185: 0 | EH185: 0 | EI185: 16 | EJ185: 8 | EK185: 8 | EL185: 0 | EM185: 0 | EN185: 16 | EO185: 0 | EP185: 0 | EQ185: 0 | ER185: 0 | ES185: 0 | ET185: 40 | EU185: 40 | EV185: 16 | EW185: 0 | EX185: 96 | EY185: 2272 | EZ185: 3068 | FA185: 1454.4 | FB185: 0 | FC185: 6794.4 | FD185: 6794.4 | FE185: Yes | FF185: 0 | FG185: 0 | FH185: 0
B186: 163 | D186: Tree Trimmer | E186: Vendor #13 | G186: SW007912 | H186: 2018-10-28 | I186: 2018-11-02 | J186: Yes | K186: =VLOOKUP($D186,'C.1 - Rate Sheets'!$B$16:$E$35,2) -> 48.5 | L186: =VLOOKUP($D186,'C.1 - Rate Sheets'!$B$16:$E$35,3) -> 65.5 | M186: =VLOOKUP($D186,'C.1 - Rate Sheets'!$B$16:$E$35,4) -> 77.6 | N186: =VLOOKUP($D186,'C.1 - Rate Sheets'!B:F,5,FALSE) -> 0 | O186: 0 | P186: 0 | Q186: 0 | R186: 0 | S186: 0 | T186: 0 | U186: 0 | V186: 0 | W186: 0 | X186: 0 | Y186: 0 | Z186: 0 | AA186: 0 | AB186: 0 | AC186: 0 | AD186: 0 | AE186: 0 | AF186: 0 | AG186: 0 | AH186: 0 | AM186: 0 | AN186: 0 | AO186: 0 | AP186: 0 | AQ186: 0 | AR186: 0 | AW186: 0 | BB186: 0 | BG186: 0 | BL186: 0 | BQ186: 0 | BV186: 0 | CA186: 0 | CF186: 0 | CK186: 0 | CL186: 0 | CM186: 0 | CN186: 0 | CO186: 0 | CP186: 0 | CQ186: 0 | CR186: 0 | CS186: 0 | CT186: 0 | CU186: 0 | CV186: 0 | CW186: 0 | CX186: 0 | CY186: 0 | CZ186: 0 | DA186: 0 | DB186: 0 | DC186: 0 | DD186: 0 | DE186: 0 | DF186: 0 | DG186: 0 | DH186: 0 | DI186: 0 | DJ186: 0 | DK186: 0 | DL186: 0 | DM186: 16 | DN186: 0 | DO186: 16 | DP186: 8 | DQ186: 8 | DR186: 0 | DS186: 0 | DT186: 16 | DU186: 8 | DV186: 8 | DW186: 0 | DX186: 0 | DY186: 16 | DZ186: 8 | EA186: 8 | EB186: 0 | EC186: 0 | ED186: 16 | EE186: 8 | EF186: 8 | EG186: 0 | EH186: 0 | EI186: 16 | EJ186: 8 | EK186: 8 | EL186: 0 | EM186: 0 | EN186: 16 | EO186: 0 | EP186: 0 | EQ186: 0 | ER186: 0 | ES186: 0 | ET186: 40 | EU186: 40 | EV186: 16 | EW186: 0 | EX186: 96 | EY186: 1940 | EZ186: 2620 | FA186: 1241.6 | FB186: 0 | FC186: 5801.6 | FD186: 5801.6 | FE186: Yes | FF186: 0 | FG186: 0 | FH186: 0
B187: 164 | D187: Crew Foreman | E187: Vendor #13 | G187: SW007913 | H187: 2018-11-03 | I187: 2018-11-03 | J187: Yes | K187: =VLOOKUP($D187,'C.1 - Rate Sheets'!$B$16:$E$35,2) -> 56.8 | L187: =VLOOKUP($D187,'C.1 - Rate Sheets'!$B$16:$E$35,3) -> 76.7 | M187: =VLOOKUP($D187,'C.1 - Rate Sheets'!$B$16:$E$35,4) -> 90.9 | N187: =VLOOKUP($D187,'C.1 - Rate Sheets'!B:F,5,FALSE) -> 0 | O187: 0 | P187: 0 | Q187: 0 | R187: 0 | S187: 0 | T187: 0 | U187: 0 | V187: 0 | W187: 0 | X187: 0 | Y187: 0 | Z187: 0 | AA187: 0 | AB187: 0 | AC187: 0 | AD187: 0 | AE187: 0 | AF187: 0 | AG187: 0 | AH187: 0 | AM187: 0 | AN187: 0 | AO187: 0 | AP187: 0 | AQ187: 0 | AR187: 0 | AW187: 0 | BB187: 0 | BG187: 0 | BL187: 0 | BQ187: 0 | BV187: 0 | CA187: 0 | CF187: 0 | CK187: 0 | CL187: 0 | CM187: 0 | CN187: 0 | CO187: 0 | CP187: 0 | CQ187: 0 | CR187: 0 | CS187: 0 | CT187: 0 | CU187: 0 | CV187: 0 | CW187: 0 | CX187: 0 | CY187: 0 | CZ187: 0 | DA187: 0 | DB187: 0 | DC187: 0 | DD187: 0 | DE187: 0 | DF187: 0 | DG187: 0 | DH187: 0 | DI187: 0 | DJ187: 0 | DK187: 0 | DL187: 0 | DM187: 0 | DN187: 0 | DO187: 0 | DP187: 0 | DQ187: 0 | DR187: 0 | DS187: 0 | DT187: 0 | DU187: 0 | DV187: 0 | DW187: 0 | DX187: 0 | DY187: 0 | DZ187: 0 | EA187: 0 | EB187: 0 | EC187: 0 | ED187: 0 | EE187: 0 | EF187: 0 | EG187: 0 | EH187: 0 | EI187: 0 | EJ187: 0 | EK187: 0 | EL187: 0 | EM187: 0 | EN187: 0 | EO187: 0 | EP187: 13 | EQ187: 0 | ER187: 0 | ES187: 13 | ET187: 0 | EU187: 13 | EV187: 0 | EW187: 0 | EX187: 13 | EY187: 0 | EZ187: 997.1 | FA187: 0 | FB187: 0 | FC187: 997.1 | FD187: 997.1 | FE187: Yes | FF187: 0 | FG187: 0 | FH187: 0
B188: 165 | D188: Tree Trimmer | E188: Vendor #13 | G188: SW007913 | H188: 2018-11-03 | I188: 2018-11-03 | J188: Yes | K188: =VLOOKUP($D188,'C.1 - Rate Sheets'!$B$16:$E$35,2) -> 48.5 | L188: =VLOOKUP($D188,'C.1 - Rate Sheets'!$B$16:$E$35,3) -> 65.5 | M188: =VLOOKUP($D188,'C.1 - Rate Sheets'!$B$16:$E$35,4) -> 77.6 | N188: =VLOOKUP($D188,'C.1 - Rate Sheets'!B:F,5,FALSE) -> 0 | O188: 0 | P188: 0 | Q188: 0 | R188: 0 | S188: 0 | T188: 0 | U188: 0 | V188: 0 | W188: 0 | X188: 0 | Y188: 0 | Z188: 0 | AA188: 0 | AB188: 0 | AC188: 0 | AD188: 0 | AE188: 0 | AF188: 0 | AG188: 0 | AH188: 0 | AM188: 0 | AN188: 0 | AO188: 0 | AP188: 0 | AQ188: 0 | AR188: 0 | AW188: 0 | BB188: 0 | BG188: 0 | BL188: 0 | BQ188: 0 | BV188: 0 | CA188: 0 | CF188: 0 | CK188: 0 | CL188: 0 | CM188: 0 | CN188: 0 | CO188: 0 | CP188: 0 | CQ188: 0 | CR188: 0 | CS188: 0 | CT188: 0 | CU188: 0 | CV188: 0 | CW188: 0 | CX188: 0 | CY188: 0 | CZ188: 0 | DA188: 0 | DB188: 0 | DC188: 0 | DD188: 0 | DE188: 0 | DF188: 0 | DG188: 0 | DH188: 0 | DI188: 0 | DJ188: 0 | DK188: 0 | DL188: 0 | DM188: 0 | DN188: 0 | DO188: 0 | DP188: 0 | DQ188: 0 | DR188: 0 | DS188: 0 | DT188: 0 | DU188: 0 | DV188: 0 | DW188: 0 | DX188: 0 | DY188: 0 | DZ188: 0 | EA188: 0 | EB188: 0 | EC188: 0 | ED188: 0 | EE188: 0 | EF188: 0 | EG188: 0 | EH188: 0 | EI188: 0 | EJ188: 0 | EK188: 0 | EL188: 0 | EM188: 0 | EN188: 0 | EO188: 0 | EP188: 13 | EQ188: 0 | ER188: 0 | ES188: 13 | ET188: 0 | EU188: 13 | EV188: 0 | EW188: 0 | EX188: 13 | EY188: 0 | EZ188: 851.5 | FA188: 0 | FB188: 0 | FC188: 851.5 | FD188: 851.5 | FE188: Yes | FF188: 0 | FG188: 0 | FH188: 0
B189: 166 | D189: Crew Foreman | E189: Vendor #13 | G189: SW007914 | H189: 2018-10-28 | I189: 2018-11-02 | J189: Yes | K189: =VLOOKUP($D189,'C.1 - Rate Sheets'!$B$16:$E$35,2) -> 56.8 | L189: =VLOOKUP($D189,'C.1 - Rate Sheets'!$B$16:$E$35,3) -> 76.7 | M189: =VLOOKUP($D189,'C.1 - Rate Sheets'!$B$16:$E$35,4) -> 90.9 | N189: =VLOOKUP($D189,'C.1 - Rate Sheets'!B:F,5,FALSE) -> 0 | O189: 0 | P189: 0 | Q189: 0 | R189: 0 | S189: 0 | T189: 0 | U189: 0 | V189: 0 | W189: 0 | X189: 0 | Y189: 0 | Z189: 0 | AA189: 0 | AB189: 0 | AC189: 0 | AD189: 0 | AE189: 0 | AF189: 0 | AG189: 0 | AH189: 0 | AM189: 0 | AN189: 0 | AO189: 0 | AP189: 0 | AQ189: 0 | AR189: 0 | AW189: 0 | BB189: 0 | BG189: 0 | BL189: 0 | BQ189: 0 | BV189: 0 | CA189: 0 | CF189: 0 | CK189: 0 | CL189: 0 | CM189: 0 | CN189: 0 | CO189: 0 | CP189: 0 | CQ189: 0 | CR189: 0 | CS189: 0 | CT189: 0 | CU189: 0 | CV189: 0 | CW189: 0 | CX189: 0 | CY189: 0 | CZ189: 0 | DA189: 0 | DB189: 0 | DC189: 0 | DD189: 0 | DE189: 0 | DF189: 0 | DG189: 0 | DH189: 0 | DI189: 0 | DJ189: 0 | DK189: 0 | DL189: 0 | DM189: 16 | DN189: 0 | DO189: 16 | DP189: 8 | DQ189: 8 | DR189: 0 | DS189: 0 | DT189: 16 | DU189: 8 | DV189: 8 | DW189: 0 | DX189: 0 | DY189: 16 | DZ189: 8 | EA189: 8 | EB189: 0 | EC189: 0 | ED189: 16 | EE189: 8 | EF189: 8 | EG189: 0 | EH189: 0 | EI189: 16 | EJ189: 8 | EK189: 8 | EL189: 0 | EM189: 0 | EN189: 16 | EO189: 0 | EP189: 0 | EQ189: 0 | ER189: 0 | ES189: 0 | ET189: 40 | EU189: 40 | EV189: 16 | EW189: 0 | EX189: 96 | EY189: 2272 | EZ189: 3068 | FA189: 1454.4 | FB189: 0 | FC189: 6794.4 | FD189: 6794.4 | FE189: Yes | FF189: 0 | FG189: 0 | FH189: 0
B190: 167 | D190: Tree Trimmer | E190: Vendor #13 | G190: SW007914 | H190: 2018-10-28 | I190: 2018-11-02 | J190: Yes | K190: =VLOOKUP($D190,'C.1 - Rate Sheets'!$B$16:$E$35,2) -> 48.5 | L190: =VLOOKUP($D190,'C.1 - Rate Sheets'!$B$16:$E$35,3) -> 65.5 | M190: =VLOOKUP($D190,'C.1 - Rate Sheets'!$B$16:$E$35,4) -> 77.6 | N190: =VLOOKUP($D190,'C.1 - Rate Sheets'!B:F,5,FALSE) -> 0 | O190: 0 | P190: 0 | Q190: 0 | R190: 0 | S190: 0 | T190: 0 | U190: 0 | V190: 0 | W190: 0 | X190: 0 | Y190: 0 | Z190: 0 | AA190: 0 | AB190: 0 | AC190: 0 | AD190: 0 | AE190: 0 | AF190: 0 | AG190: 0 | AH190: 0 | AM190: 0 | AN190: 0 | AO190: 0 | AP190: 0 | AQ190: 0 | AR190: 0 | AW190: 0 | BB190: 0 | BG190: 0 | BL190: 0 | BQ190: 0 | BV190: 0 | CA190: 0 | CF190: 0 | CK190: 0 | CL190: 0 | CM190: 0 | CN190: 0 | CO190: 0 | CP190: 0 | CQ190: 0 | CR190: 0 | CS190: 0 | CT190: 0 | CU190: 0 | CV190: 0 | CW190: 0 | CX190: 0 | CY190: 0 | CZ190: 0 | DA190: 0 | DB190: 0 | DC190: 0 | DD190: 0 | DE190: 0 | DF190: 0 | DG190: 0 | DH190: 0 | DI190: 0 | DJ190: 0 | DK190: 0 | DL190: 0 | DM190: 16 | DN190: 0 | DO190: 16 | DP190: 8 | DQ190: 8 | DR190: 0 | DS190: 0 | DT190: 16 | DU190: 8 | DV190: 8 | DW190: 0 | DX190: 0 | DY190: 16 | DZ190: 8 | EA190: 8 | EB190: 0 | EC190: 0 | ED190: 16 | EE190: 8 | EF190: 8 | EG190: 0 | EH190: 0 | EI190: 16 | EJ190: 8 | EK190: 8 | EL190: 0 | EM190: 0 | EN190: 16 | EO190: 0 | EP190: 0 | EQ190: 0 | ER190: 0 | ES190: 0 | ET190: 40 | EU190: 40 | EV190: 16 | EW190: 0 | EX190: 96 | EY190: 1940 | EZ190: 2620 | FA190: 1241.6 | FB190: 0 | FC190: 5801.6 | FD190: 5801.6 | FE190: Yes | FF190: 0 | FG190: 0 | FH190: 0
B191: 168 | D191: Crew Foreman | E191: Vendor #13 | G191: SW007915 | H191: 2018-11-03 | I191: 2018-11-03 | J191: Yes | K191: =VLOOKUP($D191,'C.1 - Rate Sheets'!$B$16:$E$35,2) -> 56.8 | L191: =VLOOKUP($D191,'C.1 - Rate Sheets'!$B$16:$E$35,3) -> 76.7 | M191: =VLOOKUP($D191,'C.1 - Rate Sheets'!$B$16:$E$35,4) -> 90.9 | N191: =VLOOKUP($D191,'C.1 - Rate Sheets'!B:F,5,FALSE) -> 0 | O191: 0 | P191: 0 | Q191: 0 | R191: 0 | S191: 0 | T191: 0 | U191: 0 | V191: 0 | W191: 0 | X191: 0 | Y191: 0 | Z191: 0 | AA191: 0 | AB191: 0 | AC191: 0 | AD191: 0 | AE191: 0 | AF191: 0 | AG191: 0 | AH191: 0 | AM191: 0 | AN191: 0 | AO191: 0 | AP191: 0 | AQ191: 0 | AR191: 0 | AW191: 0 | BB191: 0 | BG191: 0 | BL191: 0 | BQ191: 0 | BV191: 0 | CA191: 0 | CF191: 0 | CK191: 0 | CL191: 0 | CM191: 0 | CN191: 0 | CO191: 0 | CP191: 0 | CQ191: 0 | CR191: 0 | CS191: 0 | CT191: 0 | CU191: 0 | CV191: 0 | CW191: 0 | CX191: 0 | CY191: 0 | CZ191: 0 | DA191: 0 | DB191: 0 | DC191: 0 | DD191: 0 | DE191: 0 | DF191: 0 | DG191: 0 | DH191: 0 | DI191: 0 | DJ191: 0 | DK191: 0 | DL191: 0 | DM191: 0 | DN191: 0 | DO191: 0 | DP191: 0 | DQ191: 0 | DR191: 0 | DS191: 0 | DT191: 0 | DU191: 0 | DV191: 0 | DW191: 0 | DX191: 0 | DY191: 0 | DZ191: 0 | EA191: 0 | EB191: 0 | EC191: 0 | ED191: 0 | EE191: 0 | EF191: 0 | EG191: 0 | EH191: 0 | EI191: 0 | EJ191: 0 | EK191: 0 | EL191: 0 | EM191: 0 | EN191: 0 | EO191: 0 | EP191: 13 | EQ191: 0 | ER191: 0 | ES191: 13 | ET191: 0 | EU191: 13 | EV191: 0 | EW191: 0 | EX191: 13 | EY191: 0 | EZ191: 997.1 | FA191: 0 | FB191: 0 | FC191: 997.1 | FD191: 997.1 | FE191: Yes | FF191: 0 | FG191: 0 | FH191: 0
B192: 169 | D192: Tree Trimmer | E192: Vendor #13 | G192: SW007915 | H192: 2018-11-03 | I192: 2018-11-03 | J192: Yes | K192: =VLOOKUP($D192,'C.1 - Rate Sheets'!$B$16:$E$35,2) -> 48.5 | L192: =VLOOKUP($D192,'C.1 - Rate Sheets'!$B$16:$E$35,3) -> 65.5 | M192: =VLOOKUP($D192,'C.1 - Rate Sheets'!$B$16:$E$35,4) -> 77.6 | N192: =VLOOKUP($D192,'C.1 - Rate Sheets'!B:F,5,FALSE) -> 0 | O192: 0 | P192: 0 | Q192: 0 | R192: 0 | S192: 0 | T192: 0 | U192: 0 | V192: 0 | W192: 0 | X192: 0 | Y192: 0 | Z192: 0 | AA192: 0 | AB192: 0 | AC192: 0 | AD192: 0 | AE192: 0 | AF192: 0 | AG192: 0 | AH192: 0 | AM192: 0 | AN192: 0 | AO192: 0 | AP192: 0 | AQ192: 0 | AR192: 0 | AW192: 0 | BB192: 0 | BG192: 0 | BL192: 0 | BQ192: 0 | BV192: 0 | CA192: 0 | CF192: 0 | CK192: 0 | CL192: 0 | CM192: 0 | CN192: 0 | CO192: 0 | CP192: 0 | CQ192: 0 | CR192: 0 | CS192: 0 | CT192: 0 | CU192: 0 | CV192: 0 | CW192: 0 | CX192: 0 | CY192: 0 | CZ192: 0 | DA192: 0 | DB192: 0 | DC192: 0 | DD192: 0 | DE192: 0 | DF192: 0 | DG192: 0 | DH192: 0 | DI192: 0 | DJ192: 0 | DK192: 0 | DL192: 0 | DM192: 0 | DN192: 0 | DO192: 0 | DP192: 0 | DQ192: 0 | DR192: 0 | DS192: 0 | DT192: 0 | DU192: 0 | DV192: 0 | DW192: 0 | DX192: 0 | DY192: 0 | DZ192: 0 | EA192: 0 | EB192: 0 | EC192: 0 | ED192: 0 | EE192: 0 | EF192: 0 | EG192: 0 | EH192: 0 | EI192: 0 | EJ192: 0 | EK192: 0 | EL192: 0 | EM192: 0 | EN192: 0 | EO192: 0 | EP192: 13 | EQ192: 0 | ER192: 0 | ES192: 13 | ET192: 0 | EU192: 13 | EV192: 0 | EW192: 0 | EX192: 13 | EY192: 0 | EZ192: 851.5 | FA192: 0 | FB192: 0 | FC192: 851.5 | FD192: 851.5 | FE192: Yes | FF192: 0 | FG192: 0 | FH192: 0
B193: 170 | D193: Crew Foreman | E193: Vendor #13 | G193: SW007916 | H193: 2018-10-28 | I193: 2018-11-02 | J193: Yes | K193: =VLOOKUP($D193,'C.1 - Rate Sheets'!$B$16:$E$35,2) -> 56.8 | L193: =VLOOKUP($D193,'C.1 - Rate Sheets'!$B$16:$E$35,3) -> 76.7 | M193: =VLOOKUP($D193,'C.1 - Rate Sheets'!$B$16:$E$35,4) -> 90.9 | N193: =VLOOKUP($D193,'C.1 - Rate Sheets'!B:F,5,FALSE) -> 0 | O193: 0 | P193: 0 | Q193: 0 | R193: 0 | S193: 0 | T193: 0 | U193: 0 | V193: 0 | W193: 0 | X193: 0 | Y193: 0 | Z193: 0 | AA193: 0 | AB193: 0 | AC193: 0 | AD193: 0 | AE193: 0 | AF193: 0 | AG193: 0 | AH193: 0 | AM193: 0 | AN193: 0 | AO193: 0 | AP193: 0 | AQ193: 0 | AR193: 0 | AW193: 0 | BB193: 0 | BG193: 0 | BL193: 0 | BQ193: 0 | BV193: 0 | CA193: 0 | CF193: 0 | CK193: 0 | CL193: 0 | CM193: 0 | CN193: 0 | CO193: 0 | CP193: 0 | CQ193: 0 | CR193: 0 | CS193: 0 | CT193: 0 | CU193: 0 | CV193: 0 | CW193: 0 | CX193: 0 | CY193: 0 | CZ193: 0 | DA193: 0 | DB193: 0 | DC193: 0 | DD193: 0 | DE193: 0 | DF193: 0 | DG193: 0 | DH193: 0 | DI193: 0 | DJ193: 0 | DK193: 0 | DL193: 0 | DM193: 16 | DN193: 0 | DO193: 16 | DP193: 8 | DQ193: 8 | DR193: 0 | DS193: 0 | DT193: 16 | DU193: 8 | DV193: 8 | DW193: 0 | DX193: 0 | DY193: 16 | DZ193: 8 | EA193: 8 | EB193: 0 | EC193: 0 | ED193: 16 | EE193: 8 | EF193: 8 | EG193: 0 | EH193: 0 | EI193: 16 | EJ193: 8 | EK193: 8 | EL193: 0 | EM193: 0 | EN193: 16 | EO193: 0 | EP193: 0 | EQ193: 0 | ER193: 0 | ES193: 0 | ET193: 40 | EU193: 40 | EV193: 16 | EW193: 0 | EX193: 96 | EY193: 2272 | EZ193: 3068 | FA193: 1454.4 | FB193: 0 | FC193: 6794.4 | FD193: 6794.4 | FE193: Yes | FF193: 0 | FG193: 0 | FH193: 0
B194: 171 | D194: Tree Trimmer | E194: Vendor #13 | G194: SW007916 | H194: 2018-10-28 | I194: 2018-11-02 | J194: Yes | K194: =VLOOKUP($D194,'C.1 - Rate Sheets'!$B$16:$E$35,2) -> 48.5 | L194: =VLOOKUP($D194,'C.1 - Rate Sheets'!$B$16:$E$35,3) -> 65.5 | M194: =VLOOKUP($D194,'C.1 - Rate Sheets'!$B$16:$E$35,4) -> 77.6 | N194: =VLOOKUP($D194,'C.1 - Rate Sheets'!B:F,5,FALSE) -> 0 | O194: 0 | P194: 0 | Q194: 0 | R194: 0 | S194: 0 | T194: 0 | U194: 0 | V194: 0 | W194: 0 | X194: 0 | Y194: 0 | Z194: 0 | AA194: 0 | AB194: 0 | AC194: 0 | AD194: 0 | AE194: 0 | AF194: 0 | AG194: 0 | AH194: 0 | AM194: 0 | AN194: 0 | AO194: 0 | AP194: 0 | AQ194: 0 | AR194: 0 | AW194: 0 | BB194: 0 | BG194: 0 | BL194: 0 | BQ194: 0 | BV194: 0 | CA194: 0 | CF194: 0 | CK194: 0 | CL194: 0 | CM194: 0 | CN194: 0 | CO194: 0 | CP194: 0 | CQ194: 0 | CR194: 0 | CS194: 0 | CT194: 0 | CU194: 0 | CV194: 0 | CW194: 0 | CX194: 0 | CY194: 0 | CZ194: 0 | DA194: 0 | DB194: 0 | DC194: 0 | DD194: 0 | DE194: 0 | DF194: 0 | DG194: 0 | DH194: 0 | DI194: 0 | DJ194: 0 | DK194: 0 | DL194: 0 | DM194: 16 | DN194: 0 | DO194: 16 | DP194: 8 | DQ194: 8 | DR194: 0 | DS194: 0 | DT194: 16 | DU194: 8 | DV194: 8 | DW194: 0 | DX194: 0 | DY194: 16 | DZ194: 8 | EA194: 8 | EB194: 0 | EC194: 0 | ED194: 16 | EE194: 8 | EF194: 8 | EG194: 0 | EH194: 0 | EI194: 16 | EJ194: 8 | EK194: 8 | EL194: 0 | EM194: 0 | EN194: 16 | EO194: 0 | EP194: 0 | EQ194: 0 | ER194: 0 | ES194: 0 | ET194: 40 | EU194: 40 | EV194: 16 | EW194: 0 | EX194: 96 | EY194: 1940 | EZ194: 2620 | FA194: 1241.6 | FB194: 0 | FC194: 5801.6 | FD194: 5801.6 | FE194: Yes | FF194: 0 | FG194: 0 | FH194: 0
B195: 172 | D195: Crew Foreman | E195: Vendor #13 | G195: SW007917 | H195: 2018-11-03 | I195: 2018-11-03 | J195: Yes | K195: =VLOOKUP($D195,'C.1 - Rate Sheets'!$B$16:$E$35,2) -> 56.8 | L195: =VLOOKUP($D195,'C.1 - Rate Sheets'!$B$16:$E$35,3) -> 76.7 | M195: =VLOOKUP($D195,'C.1 - Rate Sheets'!$B$16:$E$35,4) -> 90.9 | N195: =VLOOKUP($D195,'C.1 - Rate Sheets'!B:F,5,FALSE) -> 0 | O195: 0 | P195: 0 | Q195: 0 | R195: 0 | S195: 0 | T195: 0 | U195: 0 | V195: 0 | W195: 0 | X195: 0 | Y195: 0 | Z195: 0 | AA195: 0 | AB195: 0 | AC195: 0 | AD195: 0 | AE195: 0 | AF195: 0 | AG195: 0 | AH195: 0 | AM195: 0 | AN195: 0 | AO195: 0 | AP195: 0 | AQ195: 0 | AR195: 0 | AW195: 0 | BB195: 0 | BG195: 0 | BL195: 0 | BQ195: 0 | BV195: 0 | CA195: 0 | CF195: 0 | CK195: 0 | CL195: 0 | CM195: 0 | CN195: 0 | CO195: 0 | CP195: 0 | CQ195: 0 | CR195: 0 | CS195: 0 | CT195: 0 | CU195: 0 | CV195: 0 | CW195: 0 | CX195: 0 | CY195: 0 | CZ195: 0 | DA195: 0 | DB195: 0 | DC195: 0 | DD195: 0 | DE195: 0 | DF195: 0 | DG195: 0 | DH195: 0 | DI195: 0 | DJ195: 0 | DK195: 0 | DL195: 0 | DM195: 0 | DN195: 0 | DO195: 0 | DP195: 0 | DQ195: 0 | DR195: 0 | DS195: 0 | DT195: 0 | DU195: 0 | DV195: 0 | DW195: 0 | DX195: 0 | DY195: 0 | DZ195: 0 | EA195: 0 | EB195: 0 | EC195: 0 | ED195: 0 | EE195: 0 | EF195: 0 | EG195: 0 | EH195: 0 | EI195: 0 | EJ195: 0 | EK195: 0 | EL195: 0 | EM195: 0 | EN195: 0 | EO195: 0 | EP195: 13 | EQ195: 0 | ER195: 0 | ES195: 13 | ET195: 0 | EU195: 13 | EV195: 0 | EW195: 0 | EX195: 13 | EY195: 0 | EZ195: 997.1 | FA195: 0 | FB195: 0 | FC195: 997.1 | FD195: 997.1 | FE195: Yes | FF195: 0 | FG195: 0 | FH195: 0
B196: 173 | D196: Tree Trimmer | E196: Vendor #13 | G196: SW007917 | H196: 2018-11-03 | I196: 2018-11-03 | J196: Yes | K196: =VLOOKUP($D196,'C.1 - Rate Sheets'!$B$16:$E$35,2) -> 48.5 | L196: =VLOOKUP($D196,'C.1 - Rate Sheets'!$B$16:$E$35,3) -> 65.5 | M196: =VLOOKUP($D196,'C.1 - Rate Sheets'!$B$16:$E$35,4) -> 77.6 | N196: =VLOOKUP($D196,'C.1 - Rate Sheets'!B:F,5,FALSE) -> 0 | O196: 0 | P196: 0 | Q196: 0 | R196: 0 | S196: =SUM(O196:R196) -> 0 | T196: 0 | U196: 0 | V196: 0 | W196: 0 | X196: =SUM(T196:W196) -> 0 | Y196: 0 | Z196: 0 | AA196: 0 | AB196: 0 | AC196: =SUM(Y196:AB196) -> 0 | AD196: 0 | AE196: 0 | AF196: 0 | AG196: 0 | AH196: =SUM(AD196:AG196) -> 0 | AM196: =SUM(AI196:AL196) -> 0 | AN196: 0 | AO196: 0 | AP196: 0 | AQ196: 0 | AR196: =SUM(AN196:AQ196) -> 0 | AW196: =SUM(AS196:AV196) -> 0 | BB196: =SUM(AX196:BA196) -> 0 | BG196: =SUM(BC196:BF196) -> 0 | BL196: =SUM(BH196:BK196) -> 0 | BQ196: =SUM(BM196:BP196) -> 0 | BV196: =SUM(BR196:BU196) -> 0 | CA196: =SUM(BW196:BZ196) -> 0 | CF196: =+SUM(CB196:CE196) -> 0 | CK196: =SUM(CG196:CJ196) -> 0 | CL196: 0 | CM196: 0 | CN196: 0 | CO196: 0 | CP196: =+SUM(CL196:CO196) -> 0 | CQ196: 0 | CR196: 0 | CS196: 0 | CT196: 0 | CU196: =+SUM(CQ196:CT196) -> 0 | CV196: 0 | CW196: 0 | CX196: 0 | CY196: 0 | CZ196: =+SUM(CV196:CY196) -> 0 | DA196: 0 | DB196: 0 | DC196: 0 | DD196: 0 | DE196: =+SUM(DA196:DD196) -> 0 | DF196: 0 | DG196: 0 | DH196: 0 | DI196: 0 | DJ196: =+SUM(DF196:DI196) -> 0 | DK196: 0 | DL196: 0 | DM196: 0 | DN196: 0 | DO196: =SUM(DK196:DN196) -> 0 | DP196: 0 | DQ196: 0 | DR196: 0 | DS196: 0 | DT196: =SUM(DP196:DS196) -> 0 | DU196: 0 | DV196: 0 | DW196: 0 | DX196: 0 | DY196: =SUM(DU196:DX196) -> 0 | DZ196: 0 | EA196: 0 | EB196: 0 | EC196: 0 | ED196: =SUM(DZ196:EC196) -> 0 | EE196: 0 | EF196: 0 | EG196: 0 | EH196: 0 | EI196: =SUM(EE196:EH196) -> 0 | EJ196: 0 | EK196: 0 | EL196: 0 | EM196: 0 | EN196: =SUM(EJ196:EM196) -> 0 | EO196: 0 | EP196: 13 | EQ196: 0 | ER196: 0 | ES196: =SUM(EO196:ER196) -> 13 | ET196: 0 | EU196: 13 | EV196: 0 | EW196: 0 | EX196: 13 | EY196: 0 | EZ196: 851.5 | FA196: 0 | FB196: 0 | FC196: =SUM(EY196:FB196) -> 851.5 | FD196: =FC196-FF196 -> 851.5 | FE196: Yes | FF196: 0 | FG196: 0 | FH196: 0
B197: 174 | D197: Crew Foreman | E197: Vendor #13 | G197: SW007918 | H197: 2018-10-28 | I197: 2018-11-02 | J197: Yes | K197: =VLOOKUP($D197,'C.1 - Rate Sheets'!$B$16:$E$35,2) -> 56.8 | L197: =VLOOKUP($D197,'C.1 - Rate Sheets'!$B$16:$E$35,3) -> 76.7 | M197: =VLOOKUP($D197,'C.1 - Rate Sheets'!$B$16:$E$35,4) -> 90.9 | N197: =VLOOKUP($D197,'C.1 - Rate Sheets'!B:F,5,FALSE) -> 0 | O197: 0 | P197: 0 | Q197: 0 | R197: 0 | S197: 0 | T197: 0 | U197: 0 | V197: 0 | W197: 0 | X197: 0 | Y197: 0 | Z197: 0 | AA197: 0 | AB197: 0 | AC197: 0 | AD197: 0 | AE197: 0 | AF197: 0 | AG197: 0 | AH197: 0 | AM197: 0 | AN197: 0 | AO197: 0 | AP197: 0 | AQ197: 0 | AR197: 0 | AW197: 0 | BB197: 0 | BG197: 0 | BL197: 0 | BQ197: 0 | BV197: 0 | CA197: 0 | CF197: 0 | CK197: 0 | CL197: 0 | CM197: 0 | CN197: 0 | CO197: 0 | CP197: 0 | CQ197: 0 | CR197: 0 | CS197: 0 | CT197: 0 | CU197: 0 | CV197: 0 | CW197: 0 | CX197: 0 | CY197: 0 | CZ197: 0 | DA197: 0 | DB197: 0 | DC197: 0 | DD197: 0 | DE197: 0 | DF197: 0 | DG197: 0 | DH197: 0 | DI197: 0 | DJ197: 0 | DK197: 0 | DL197: 0 | DM197: 16 | DN197: 0 | DO197: 16 | DP197: 8 | DQ197: 8 | DR197: 0 | DS197: 0 | DT197: 16 | DU197: 8 | DV197: 8 | DW197: 0 | DX197: 0 | DY197: 16 | DZ197: 8 | EA197: 8 | EB197: 0 | EC197: 0 | ED197: 16 | EE197: 8 | EF197: 8 | EG197: 0 | EH197: 0 | EI197: 16 | EJ197: 8 | EK197: 8 | EL197: 0 | EM197: 0 | EN197: 16 | EO197: 0 | EP197: 0 | EQ197: 0 | ER197: 0 | ES197: 0 | ET197: =SUM(O197,T197,Y197,AI197,AN197,AS197,AX197,BC197,BH197,BM197,BR197,BW197,CB197,CL197, CG197,CQ197,CV197,DA197,DF197,DK197, DP197,DU197,DZ197,EE197,EJ197,EO197) -> 40 | EU197: =SUM(P197,U197,Z197,AJ197,AO197,AT197,AY197,BD197,BI197,BN197,BS197,BX197,CC197,CM197, CH197,CR197,CW197,DB197,DG197,DL197, DQ197,DV197,EA197,EF197,EK197,EP197) -> 40 | EV197: =SUM(Q197,V197,AA197,AK197,AP197,AU197,AZ197,BE197,BJ197,BO197,BT197,BY197,CD197,CN197, CI197,CS197,CX197,DC197,DH197,DM197, DR197,DW197,EB197,EG197,EL197,EQ197) -> 16 | EW197: 0 | EX197: 96 | EY197: 2272 | EZ197: 3068 | FA197: 1454.4 | FB197: 0 | FC197: 6794.4 | FD197: 6794.4 | FE197: Yes | FF197: 0 | FG197: 0 | FH197: 0
B198: 175 | D198: Tree Trimmer | E198: Vendor #13 | G198: SW007918 | H198: 2018-10-28 | I198: 2018-11-02 | J198: Yes | K198: =VLOOKUP($D198,'C.1 - Rate Sheets'!$B$16:$E$35,2) -> 48.5 | L198: =VLOOKUP($D198,'C.1 - Rate Sheets'!$B$16:$E$35,3) -> 65.5 | M198: =VLOOKUP($D198,'C.1 - Rate Sheets'!$B$16:$E$35,4) -> 77.6 | N198: =VLOOKUP($D198,'C.1 - Rate Sheets'!B:F,5,FALSE) -> 0 | O198: 0 | P198: 0 | Q198: 0 | R198: 0 | S198: 0 | T198: 0 | U198: 0 | V198: 0 | W198: 0 | X198: 0 | Y198: 0 | Z198: 0 | AA198: 0 | AB198: 0 | AC198: 0 | AD198: 0 | AE198: 0 | AF198: 0 | AG198: 0 | AH198: 0 | AM198: 0 | AN198: 0 | AO198: 0 | AP198: 0 | AQ198: 0 | AR198: 0 | AW198: 0 | BB198: 0 | BG198: 0 | BL198: 0 | BQ198: 0 | BV198: 0 | CA198: 0 | CF198: 0 | CK198: 0 | CL198: 0 | CM198: 0 | CN198: 0 | CO198: 0 | CP198: 0 | CQ198: 0 | CR198: 0 | CS198: 0 | CT198: 0 | CU198: 0 | CV198: 0 | CW198: 0 | CX198: 0 | CY198: 0 | CZ198: 0 | DA198: 0 | DB198: 0 | DC198: 0 | DD198: 0 | DE198: 0 | DF198: 0 | DG198: 0 | DH198: 0 | DI198: 0 | DJ198: 0 | DK198: 0 | DL198: 0 | DM198: 16 | DN198: 0 | DO198: 16 | DP198: 8 | DQ198: 8 | DR198: 0 | DS198: 0 | DT198: 16 | DU198: 8 | DV198: 8 | DW198: 0 | DX198: 0 | DY198: 16 | DZ198: 8 | EA198: 8 | EB198: 0 | EC198: 0 | ED198: 16 | EE198: 8 | EF198: 8 | EG198: 0 | EH198: 0 | EI198: 16 | EJ198: 8 | EK198: 8 | EL198: 0 | EM198: 0 | EN198: 16 | EO198: 0 | EP198: 0 | EQ198: 0 | ER198: 0 | ES198: 0 | ET198: 40 | EU198: 40 | EV198: 16 | EW198: 0 | EX198: 96 | EY198: 1940 | EZ198: 2620 | FA198: 1241.6 | FB198: 0 | FC198: 5801.6 | FD198: 5801.6 | FE198: Yes | FF198: 0 | FG198: 0 | FH198: 0
B199: 176 | D199: Crew Foreman | E199: Vendor #13 | G199: SW007919 | H199: 2018-11-03 | I199: 2018-11-03 | J199: Yes | K199: =VLOOKUP($D199,'C.1 - Rate Sheets'!$B$16:$E$35,2) -> 56.8 | L199: =VLOOKUP($D199,'C.1 - Rate Sheets'!$B$16:$E$35,3) -> 76.7 | M199: =VLOOKUP($D199,'C.1 - Rate Sheets'!$B$16:$E$35,4) -> 90.9 | N199: =VLOOKUP($D199,'C.1 - Rate Sheets'!B:F,5,FALSE) -> 0 | O199: 0 | P199: 0 | Q199: 0 | R199: 0 | S199: 0 | T199: 0 | U199: 0 | V199: 0 | W199: 0 | X199: 0 | Y199: 0 | Z199: 0 | AA199: 0 | AB199: 0 | AC199: 0 | AD199: 0 | AE199: 0 | AF199: 0 | AG199: 0 | AH199: 0 | AM199: 0 | AN199: 0 | AO199: 0 | AP199: 0 | AQ199: 0 | AR199: 0 | AW199: 0 | BB199: 0 | BG199: 0 | BL199: 0 | BQ199: 0 | BV199: 0 | CA199: 0 | CF199: 0 | CK199: 0 | CL199: 0 | CM199: 0 | CN199: 0 | CO199: 0 | CP199: 0 | CQ199: 0 | CR199: 0 | CS199: 0 | CT199: 0 | CU199: 0 | CV199: 0 | CW199: 0 | CX199: 0 | CY199: 0 | CZ199: 0 | DA199: 0 | DB199: 0 | DC199: 0 | DD199: 0 | DE199: 0 | DF199: 0 | DG199: 0 | DH199: 0 | DI199: 0 | DJ199: 0 | DK199: 0 | DL199: 0 | DM199: 0 | DN199: 0 | DO199: 0 | DP199: 0 | DQ199: 0 | DR199: 0 | DS199: 0 | DT199: 0 | DU199: 0 | DV199: 0 | DW199: 0 | DX199: 0 | DY199: 0 | DZ199: 0 | EA199: 0 | EB199: 0 | EC199: 0 | ED199: 0 | EE199: 0 | EF199: 0 | EG199: 0 | EH199: 0 | EI199: 0 | EJ199: 0 | EK199: 0 | EL199: 0 | EM199: 0 | EN199: 0 | EO199: 0 | EP199: 13 | EQ199: 0 | ER199: 0 | ES199: 13 | ET199: 0 | EU199: 13 | EV199: 0 | EW199: 0 | EX199: 13 | EY199: 0 | EZ199: 997.1 | FA199: 0 | FB199: 0 | FC199: 997.1 | FD199: 997.1 | FE199: Yes | FF199: 0 | FG199: 0 | FH199: 0
B200: 177 | D200: Tree Trimmer | E200: Vendor #13 | G200: SW007919 | H200: 2018-11-03 | I200: 2018-11-03 | J200: Yes | K200: =VLOOKUP($D200,'C.1 - Rate Sheets'!$B$16:$E$35,2) -> 48.5 | L200: =VLOOKUP($D200,'C.1 - Rate Sheets'!$B$16:$E$35,3) -> 65.5 | M200: =VLOOKUP($D200,'C.1 - Rate Sheets'!$B$16:$E$35,4) -> 77.6 | N200: =VLOOKUP($D200,'C.1 - Rate Sheets'!B:F,5,FALSE) -> 0 | O200: 0 | P200: 0 | Q200: 0 | R200: 0 | S200: 0 | T200: 0 | U200: 0 | V200: 0 | W200: 0 | X200: 0 | Y200: 0 | Z200: 0 | AA200: 0 | AB200: 0 | AC200: 0 | AD200: 0 | AE200: 0 | AF200: 0 | AG200: 0 | AH200: 0 | AM200: 0 | AN200: 0 | AO200: 0 | AP200: 0 | AQ200: 0 | AR200: 0 | AW200: 0 | BB200: 0 | BG200: 0 | BL200: 0 | BQ200: 0 | BV200: 0 | CA200: 0 | CF200: 0 | CK200: 0 | CL200: 0 | CM200: 0 | CN200: 0 | CO200: 0 | CP200: 0 | CQ200: 0 | CR200: 0 | CS200: 0 | CT200: 0 | CU200: 0 | CV200: 0 | CW200: 0 | CX200: 0 | CY200: 0 | CZ200: 0 | DA200: 0 | DB200: 0 | DC200: 0 | DD200: 0 | DE200: 0 | DF200: 0 | DG200: 0 | DH200: 0 | DI200: 0 | DJ200: 0 | DK200: 0 | DL200: 0 | DM200: 0 | DN200: 0 | DO200: 0 | DP200: 0 | DQ200: 0 | DR200: 0 | DS200: 0 | DT200: 0 | DU200: 0 | DV200: 0 | DW200: 0 | DX200: 0 | DY200: 0 | DZ200: 0 | EA200: 0 | EB200: 0 | EC200: 0 | ED200: 0 | EE200: 0 | EF200: 0 | EG200: 0 | EH200: 0 | EI200: 0 | EJ200: 0 | EK200: 0 | EL200: 0 | EM200: 0 | EN200: 0 | EO200: 0 | EP200: 13 | EQ200: 0 | ER200: 0 | ES200: 13 | ET200: 0 | EU200: 13 | EV200: 0 | EW200: 0 | EX200: 13 | EY200: 0 | EZ200: 851.5 | FA200: 0 | FB200: 0 | FC200: 851.5 | FD200: 851.5 | FE200: Yes | FF200: 0 | FG200: 0 | FH200: 0
B201: 178 | D201: Crew Foreman | E201: Vendor #13 | G201: SW007920 | H201: 2018-10-28 | I201: 2018-11-03 | J201: Yes | K201: =VLOOKUP($D201,'C.1 - Rate Sheets'!$B$16:$E$35,2) -> 56.8 | L201: =VLOOKUP($D201,'C.1 - Rate Sheets'!$B$16:$E$35,3) -> 76.7 | M201: =VLOOKUP($D201,'C.1 - Rate Sheets'!$B$16:$E$35,4) -> 90.9 | N201: =VLOOKUP($D201,'C.1 - Rate Sheets'!B:F,5,FALSE) -> 0 | O201: 0 | P201: 0 | Q201: 0 | R201: 0 | S201: 0 | T201: 0 | U201: 0 | V201: 0 | W201: 0 | X201: 0 | Y201: 0 | Z201: 0 | AA201: 0 | AB201: 0 | AC201: 0 | AD201: 0 | AE201: 0 | AF201: 0 | AG201: 0 | AH201: 0 | AM201: 0 | AN201: 0 | AO201: 0 | AP201: 0 | AQ201: 0 | AR201: 0 | AW201: 0 | BB201: 0 | BG201: 0 | BL201: 0 | BQ201: 0 | BV201: 0 | CA201: 0 | CF201: 0 | CK201: 0 | CL201: 0 | CM201: 0 | CN201: 0 | CO201: 0 | CP201: 0 | CQ201: 0 | CR201: 0 | CS201: 0 | CT201: 0 | CU201: 0 | CV201: 0 | CW201: 0 | CX201: 0 | CY201: 0 | CZ201: 0 | DA201: 0 | DB201: 0 | DC201: 0 | DD201: 0 | DE201: 0 | DF201: 0 | DG201: 0 | DH201: 0 | DI201: 0 | DJ201: 0 | DK201: 0 | DL201: 0 | DM201: 16 | DN201: 0 | DO201: 16 | DP201: 8 | DQ201: 8 | DR201: 0 | DS201: 0 | DT201: 16 | DU201: 8 | DV201: 8 | DW201: 0 | DX201: 0 | DY201: 16 | DZ201: 0 | EA201: 0 | EB201: 0 | EC201: 0 | ED201: 0 | EE201: 0 | EF201: 0 | EG201: 0 | EH201: 0 | EI201: 0 | EJ201: 0 | EK201: 0 | EL201: 0 | EM201: 0 | EN201: 0 | EO201: 0 | EP201: 0 | EQ201: 0 | ER201: 0 | ES201: 0 | ET201: 16 | EU201: 16 | EV201: 16 | EW201: 0 | EX201: 48 | EY201: 908.8 | EZ201: 1227.2 | FA201: 1454.4 | FB201: 0 | FC201: 3590.4 | FD201: 3590.4 | FE201: Yes | FF201: 0 | FG201: 0 | FH201: 0
B202: 179 | D202: Tree Trimmer | E202: Vendor #13 | G202: SW007920 | H202: 2018-10-28 | I202: 2018-11-03 | J202: Yes | K202: =VLOOKUP($D202,'C.1 - Rate Sheets'!$B$16:$E$35,2) -> 48.5 | L202: =VLOOKUP($D202,'C.1 - Rate Sheets'!$B$16:$E$35,3) -> 65.5 | M202: =VLOOKUP($D202,'C.1 - Rate Sheets'!$B$16:$E$35,4) -> 77.6 | N202: =VLOOKUP($D202,'C.1 - Rate Sheets'!B:F,5,FALSE) -> 0 | O202: 0 | P202: 0 | Q202: 0 | R202: 0 | S202: 0 | T202: 0 | U202: 0 | V202: 0 | W202: 0 | X202: 0 | Y202: 0 | Z202: 0 | AA202: 0 | AB202: 0 | AC202: 0 | AD202: 0 | AE202: 0 | AF202: 0 | AG202: 0 | AH202: 0 | AM202: 0 | AN202: 0 | AO202: 0 | AP202: 0 | AQ202: 0 | AR202: 0 | AW202: 0 | BB202: 0 | BG202: 0 | BL202: 0 | BQ202: 0 | BV202: 0 | CA202: 0 | CF202: 0 | CK202: 0 | CL202: 0 | CM202: 0 | CN202: 0 | CO202: 0 | CP202: 0 | CQ202: 0 | CR202: 0 | CS202: 0 | CT202: 0 | CU202: 0 | CV202: 0 | CW202: 0 | CX202: 0 | CY202: 0 | CZ202: 0 | DA202: 0 | DB202: 0 | DC202: 0 | DD202: 0 | DE202: 0 | DF202: 0 | DG202: 0 | DH202: 0 | DI202: 0 | DJ202: 0 | DK202: 0 | DL202: 0 | DM202: 16 | DN202: 0 | DO202: 16 | DP202: 8 | DQ202: 8 | DR202: 0 | DS202: 0 | DT202: 16 | DU202: 8 | DV202: 8 | DW202: 0 | DX202: 0 | DY202: 16 | DZ202: 0 | EA202: 0 | EB202: 0 | EC202: 0 | ED202: 0 | EE202: 0 | EF202: 0 | EG202: 0 | EH202: 0 | EI202: 0 | EJ202: 0 | EK202: 0 | EL202: 0 | EM202: 0 | EN202: 0 | EO202: 0 | EP202: 0 | EQ202: 0 | ER202: 0 | ES202: 0 | ET202: 16 | EU202: 16 | EV202: 16 | EW202: 0 | EX202: 48 | EY202: 776 | EZ202: 1048 | FA202: 1241.6 | FB202: 0 | FC202: 3065.6 | FD202: 3065.6 | FE202: Yes | FF202: 0 | FG202: 0 | FH202: 0
B203: 180 | D203: Crew Foreman | E203: Vendor #13 | G203: SW007921 | H203: 2018-10-31 | I203: 2018-11-03 | J203: Yes | K203: =VLOOKUP($D203,'C.1 - Rate Sheets'!$B$16:$E$35,2) -> 56.8 | L203: =VLOOKUP($D203,'C.1 - Rate Sheets'!$B$16:$E$35,3) -> 76.7 | M203: =VLOOKUP($D203,'C.1 - Rate Sheets'!$B$16:$E$35,4) -> 90.9 | N203: =VLOOKUP($D203,'C.1 - Rate Sheets'!B:F,5,FALSE) -> 0 | O203: 0 | P203: 0 | Q203: 0 | R203: 0 | S203: 0 | T203: 0 | U203: 0 | V203: 0 | W203: 0 | X203: 0 | Y203: 0 | Z203: 0 | AA203: 0 | AB203: 0 | AC203: 0 | AD203: 0 | AE203: 0 | AF203: 0 | AG203: 0 | AH203: 0 | AM203: 0 | AN203: 0 | AO203: 0 | AP203: 0 | AQ203: 0 | AR203: 0 | AW203: 0 | BB203: 0 | BG203: 0 | BL203: 0 | BQ203: 0 | BV203: 0 | CA203: 0 | CF203: 0 | CK203: 0 | CL203: 0 | CM203: 0 | CN203: 0 | CO203: 0 | CP203: 0 | CQ203: 0 | CR203: 0 | CS203: 0 | CT203: 0 | CU203: 0 | CV203: 0 | CW203: 0 | CX203: 0 | CY203: 0 | CZ203: 0 | DA203: 0 | DB203: 0 | DC203: 0 | DD203: 0 | DE203: 0 | DF203: 0 | DG203: 0 | DH203: 0 | DI203: 0 | DJ203: 0 | DK203: 0 | DL203: 0 | DM203: 0 | DN203: 0 | DO203: 0 | DP203: 0 | DQ203: 0 | DR203: 0 | DS203: 0 | DT203: 0 | DU203: 0 | DV203: 0 | DW203: 0 | DX203: 0 | DY203: 0 | DZ203: 8 | EA203: 8 | EB203: 0 | EC203: 0 | ED203: 16 | EE203: 0 | EF203: 0 | EG203: 0 | EH203: 0 | EI203: 0 | EJ203: 0 | EK203: 0 | EL203: 0 | EM203: 0 | EN203: 0 | EO203: 0 | EP203: 0 | EQ203: 0 | ER203: 0 | ES203: 0 | ET203: 8 | EU203: 8 | EV203: 0 | EW203: 0 | EX203: 16 | EY203: 454.4 | EZ203: 613.6 | FA203: 0 | FB203: 0 | FC203: 1068 | FD203: 1068 | FE203: Yes | FF203: 0 | FG203: 0 | FH203: 0
B204: 181 | D204: Tree Trimmer | E204: Vendor #13 | G204: SW007921 | H204: 2018-10-31 | I204: 2018-11-03 | J204: Yes | K204: =VLOOKUP($D204,'C.1 - Rate Sheets'!$B$16:$E$35,2) -> 48.5 | L204: =VLOOKUP($D204,'C.1 - Rate Sheets'!$B$16:$E$35,3) -> 65.5 | M204: =VLOOKUP($D204,'C.1 - Rate Sheets'!$B$16:$E$35,4) -> 77.6 | N204: =VLOOKUP($D204,'C.1 - Rate Sheets'!B:F,5,FALSE) -> 0 | O204: 0 | P204: 0 | Q204: 0 | R204: 0 | S204: 0 | T204: 0 | U204: 0 | V204: 0 | W204: 0 | X204: 0 | Y204: 0 | Z204: 0 | AA204: 0 | AB204: 0 | AC204: 0 | AD204: 0 | AE204: 0 | AF204: 0 | AG204: 0 | AH204: 0 | AM204: 0 | AN204: 0 | AO204: 0 | AP204: 0 | AQ204: 0 | AR204: 0 | AW204: 0 | BB204: 0 | BG204: 0 | BL204: 0 | BQ204: 0 | BV204: 0 | CA204: 0 | CF204: 0 | CK204: 0 | CL204: 0 | CM204: 0 | CN204: 0 | CO204: 0 | CP204: 0 | CQ204: 0 | CR204: 0 | CS204: 0 | CT204: 0 | CU204: 0 | CV204: 0 | CW204: 0 | CX204: 0 | CY204: 0 | CZ204: 0 | DA204: 0 | DB204: 0 | DC204: 0 | DD204: 0 | DE204: 0 | DF204: 0 | DG204: 0 | DH204: 0 | DI204: 0 | DJ204: 0 | DK204: 0 | DL204: 0 | DM204: 0 | DN204: 0 | DO204: 0 | DP204: 0 | DQ204: 0 | DR204: 0 | DS204: 0 | DT204: 0 | DU204: 0 | DV204: 0 | DW204: 0 | DX204: 0 | DY204: 0 | DZ204: 8 | EA204: 8 | EB204: 0 | EC204: 0 | ED204: 16 | EE204: 0 | EF204: 0 | EG204: 0 | EH204: 0 | EI204: 0 | EJ204: 0 | EK204: 0 | EL204: 0 | EM204: 0 | EN204: 0 | EO204: 0 | EP204: 0 | EQ204: 0 | ER204: 0 | ES204: 0 | ET204: 8 | EU204: 8 | EV204: 0 | EW204: 0 | EX204: 16 | EY204: 388 | EZ204: 524 | FA204: 0 | FB204: 0 | FC204: 912 | FD204: 912 | FE204: Yes | FF204: 0 | FG204: 0 | FH204: 0
B205: 182 | D205: Tree Trimmer | E205: Vendor #13 | G205: SW007921 | H205: 2018-10-31 | I205: 2018-11-03 | J205: Yes | K205: =VLOOKUP($D205,'C.1 - Rate Sheets'!$B$16:$E$35,2) -> 48.5 | L205: =VLOOKUP($D205,'C.1 - Rate Sheets'!$B$16:$E$35,3) -> 65.5 | M205: =VLOOKUP($D205,'C.1 - Rate Sheets'!$B$16:$E$35,4) -> 77.6 | N205: =VLOOKUP($D205,'C.1 - Rate Sheets'!B:F,5,FALSE) -> 0 | O205: 0 | P205: 0 | Q205: 0 | R205: 0 | S205: 0 | T205: 0 | U205: 0 | V205: 0 | W205: 0 | X205: 0 | Y205: 0 | Z205: 0 | AA205: 0 | AB205: 0 | AC205: 0 | AD205: 0 | AE205: 0 | AF205: 0 | AG205: 0 | AH205: 0 | AM205: 0 | AN205: 0 | AO205: 0 | AP205: 0 | AQ205: 0 | AR205: 0 | AW205: 0 | BB205: 0 | BG205: 0 | BL205: 0 | BQ205: 0 | BV205: 0 | CA205: 0 | CF205: 0 | CK205: 0 | CL205: 0 | CM205: 0 | CN205: 0 | CO205: 0 | CP205: 0 | CQ205: 0 | CR205: 0 | CS205: 0 | CT205: 0 | CU205: 0 | CV205: 0 | CW205: 0 | CX205: 0 | CY205: 0 | CZ205: 0 | DA205: 0 | DB205: 0 | DC205: 0 | DD205: 0 | DE205: 0 | DF205: 0 | DG205: 0 | DH205: 0 | DI205: 0 | DJ205: 0 | DK205: 0 | DL205: 0 | DM205: 0 | DN205: 0 | DO205: 0 | DP205: 0 | DQ205: 0 | DR205: 0 | DS205: 0 | DT205: 0 | DU205: 0 | DV205: 0 | DW205: 0 | DX205: 0 | DY205: 0 | DZ205: 8 | EA205: 8 | EB205: 0 | EC205: 0 | ED205: 16 | EE205: 0 | EF205: 0 | EG205: 0 | EH205: 0 | EI205: 0 | EJ205: 0 | EK205: 0 | EL205: 0 | EM205: 0 | EN205: 0 | EO205: 0 | EP205: 0 | EQ205: 0 | ER205: 0 | ES205: 0 | ET205: 8 | EU205: 8 | EV205: 0 | EW205: 0 | EX205: 16 | EY205: 388 | EZ205: 524 | FA205: 0 | FB205: 0 | FC205: 912 | FD205: 912 | FE205: Yes | FF205: 0 | FG205: 0 | FH205: 0
B206: 183 | D206: Crew Foreman | E206: Vendor #13 | G206: SW007922 | H206: 2018-10-28 | I206: 2018-11-03 | J206: Yes | K206: =VLOOKUP($D206,'C.1 - Rate Sheets'!$B$16:$E$35,2) -> 56.8 | L206: =VLOOKUP($D206,'C.1 - Rate Sheets'!$B$16:$E$35,3) -> 76.7 | M206: =VLOOKUP($D206,'C.1 - Rate Sheets'!$B$16:$E$35,4) -> 90.9 | N206: =VLOOKUP($D206,'C.1 - Rate Sheets'!B:F,5,FALSE) -> 0 | O206: 0 | P206: 0 | Q206: 0 | R206: 0 | S206: 0 | T206: 0 | U206: 0 | V206: 0 | W206: 0 | X206: 0 | Y206: 0 | Z206: 0 | AA206: 0 | AB206: 0 | AC206: 0 | AD206: 0 | AE206: 0 | AF206: 0 | AG206: 0 | AH206: 0 | AM206: 0 | AN206: 0 | AO206: 0 | AP206: 0 | AQ206: 0 | AR206: 0 | AW206: 0 | BB206: 0 | BG206: 0 | BL206: 0 | BQ206: 0 | BV206: 0 | CA206: 0 | CF206: 0 | CK206: 0 | CL206: 0 | CM206: 0 | CN206: 0 | CO206: 0 | CP206: 0 | CQ206: 0 | CR206: 0 | CS206: 0 | CT206: 0 | CU206: 0 | CV206: 0 | CW206: 0 | CX206: 0 | CY206: 0 | CZ206: 0 | DA206: 0 | DB206: 0 | DC206: 0 | DD206: 0 | DE206: 0 | DF206: 0 | DG206: 0 | DH206: 0 | DI206: 0 | DJ206: 0 | DK206: 0 | DL206: 0 | DM206: 16 | DN206: 0 | DO206: 16 | DP206: 8 | DQ206: 8 | DR206: 0 | DS206: 0 | DT206: 16 | DU206: 8 | DV206: 8 | DW206: 0 | DX206: 0 | DY206: 16 | DZ206: 8 | EA206: 8 | EB206: 0 | EC206: 0 | ED206: 16 | EE206: 8 | EF206: 8 | EG206: 0 | EH206: 0 | EI206: 16 | EJ206: 8 | EK206: 8 | EL206: 0 | EM206: 0 | EN206: 16 | EO206: 0 | EP206: 0 | EQ206: 0 | ER206: 0 | ES206: 0 | ET206: 40 | EU206: 40 | EV206: 16 | EW206: 0 | EX206: 96 | EY206: 2272 | EZ206: 3068 | FA206: 1454.4 | FB206: 0 | FC206: 6794.4 | FD206: 6794.4 | FE206: Yes | FF206: 0 | FG206: 0 | FH206: 0
B207: 184 | D207: Tree Trimmer | E207: Vendor #13 | G207: SW007922 | H207: 2018-10-28 | I207: 2018-10-30 | J207: Yes | K207: =VLOOKUP($D207,'C.1 - Rate Sheets'!$B$16:$E$35,2) -> 48.5 | L207: =VLOOKUP($D207,'C.1 - Rate Sheets'!$B$16:$E$35,3) -> 65.5 | M207: =VLOOKUP($D207,'C.1 - Rate Sheets'!$B$16:$E$35,4) -> 77.6 | N207: =VLOOKUP($D207,'C.1 - Rate Sheets'!B:F,5,FALSE) -> 0 | O207: 0 | P207: 0 | Q207: 0 | R207: 0 | S207: 0 | T207: 0 | U207: 0 | V207: 0 | W207: 0 | X207: 0 | Y207: 0 | Z207: 0 | AA207: 0 | AB207: 0 | AC207: 0 | AD207: 0 | AE207: 0 | AF207: 0 | AG207: 0 | AH207: 0 | AM207: 0 | AN207: 0 | AO207: 0 | AP207: 0 | AQ207: 0 | AR207: 0 | AW207: 0 | BB207: 0 | BG207: 0 | BL207: 0 | BQ207: 0 | BV207: 0 | CA207: 0 | CF207: 0 | CK207: 0 | CL207: 0 | CM207: 0 | CN207: 0 | CO207: 0 | CP207: 0 | CQ207: 0 | CR207: 0 | CS207: 0 | CT207: 0 | CU207: 0 | CV207: 0 | CW207: 0 | CX207: 0 | CY207: 0 | CZ207: 0 | DA207: 0 | DB207: 0 | DC207: 0 | DD207: 0 | DE207: 0 | DF207: 0 | DG207: 0 | DH207: 0 | DI207: 0 | DJ207: 0 | DK207: 0 | DL207: 0 | DM207: 16 | DN207: 0 | DO207: 16 | DP207: 8 | DQ207: 8 | DR207: 0 | DS207: 0 | DT207: 16 | DU207: 8 | DV207: 8 | DW207: 0 | DX207: 0 | DY207: 16 | EB207: 0 | EC207: 0 | ED207: 0 | EG207: 0 | EH207: 0 | EI207: 0 | EJ207: 0 | EK207: 0 | EL207: 0 | EM207: 0 | EN207: 0 | EO207: 0 | EP207: 0 | EQ207: 0 | ER207: 0 | ES207: 0 | ET207: 16 | EU207: 16 | EV207: 16 | EW207: 0 | EX207: 48 | EY207: 776 | EZ207: 1048 | FA207: 1241.6 | FB207: 0 | FC207: 3065.6 | FD207: 3065.6 | FE207: Yes | FF207: 0 | FG207: 0 | FH207: 0
B208: 185 | D208: Crew Foreman | E208: Vendor #13 | G208: SW007923 | H208: 2018-11-03 | I208: 2018-11-03 | J208: Yes | K208: =VLOOKUP($D208,'C.1 - Rate Sheets'!$B$16:$E$35,2) -> 56.8 | L208: =VLOOKUP($D208,'C.1 - Rate Sheets'!$B$16:$E$35,3) -> 76.7 | M208: =VLOOKUP($D208,'C.1 - Rate Sheets'!$B$16:$E$35,4) -> 90.9 | N208: =VLOOKUP($D208,'C.1 - Rate Sheets'!B:F,5,FALSE) -> 0 | O208: 0 | P208: 0 | Q208: 0 | R208: 0 | S208: 0 | T208: 0 | U208: 0 | V208: 0 | W208: 0 | X208: 0 | Y208: 0 | Z208: 0 | AA208: 0 | AB208: 0 | AC208: 0 | AD208: 0 | AE208: 0 | AF208: 0 | AG208: 0 | AH208: 0 | AM208: 0 | AN208: 0 | AO208: 0 | AP208: 0 | AQ208: 0 | AR208: 0 | AW208: 0 | BB208: 0 | BG208: 0 | BL208: 0 | BQ208: 0 | BV208: 0 | CA208: 0 | CF208: 0 | CK208: 0 | CL208: 0 | CM208: 0 | CN208: 0 | CO208: 0 | CP208: 0 | CQ208: 0 | CR208: 0 | CS208: 0 | CT208: 0 | CU208: 0 | CV208: 0 | CW208: 0 | CX208: 0 | CY208: 0 | CZ208: 0 | DA208: 0 | DB208: 0 | DC208: 0 | DD208: 0 | DE208: 0 | DF208: 0 | DG208: 0 | DH208: 0 | DI208: 0 | DJ208: 0 | DK208: 0 | DL208: 0 | DM208: 0 | DN208: 0 | DO208: 0 | DP208: 0 | DQ208: 0 | DR208: 0 | DS208: 0 | DT208: 0 | DU208: 0 | DV208: 0 | DW208: 0 | DX208: 0 | DY208: 0 | DZ208: 0 | EA208: 0 | EB208: 0 | EC208: 0 | ED208: 0 | EE208: 0 | EF208: 0 | EG208: 0 | EH208: 0 | EI208: 0 | EJ208: 0 | EK208: 0 | EL208: 0 | EM208: 0 | EN208: 0 | EO208: 0 | EP208: 16 | EQ208: 0 | ER208: 0 | ES208: 16 | ET208: 0 | EU208: 16 | EV208: 0 | EW208: 0 | EX208: 16 | EY208: 0 | EZ208: 1227.2 | FA208: 0 | FB208: 0 | FC208: 1227.2 | FD208: 1227.2 | FE208: Yes | FF208: 0 | FG208: 0 | FH208: 0
... 38 more rows

Sheet C.3 - Asset by Company
A1: Asset Tag | B1: Position | C1: Name

Sheet C.4 - Timesheets - Equipment
B2: Equipment Charges - Time Card
B4: Test Plan: | C4: Obtain the time cards. (A) Populate the equipment names and types (if provided). Find additional information regarding individual equipment charge from related invoice. (B) Enter hours worked from time card(s). (C) Confirm that the dates per the time cards fall between dates provided per 'A - Contractor Summary' tab. (D) Identify any equipment charges to be reviewed. (E) For charges which required further review, document review (include why it was determined to be allowed/disallowed via a tickmark).
B10: Rx | C10: Recalculated.
B11: a | C11: Provided from tab 'C.1 - Rate Sheets'.
B12: b | C12: Check figure should equal $0. Cell will appear yellow if discrepancies are noted.
C14: A | H14: Rx | J14: C | K14: a | L14: B | M14: B | AL14: Rx | AO14: D | AP14: E
B15: # | C15: Equipment Name | D15: Equipment ID | E15: Company | F15: Crew# | G15: Invoice | H15: Start Date | I15: End Date | J15: Dates Worked Reasonable? | K15: Rates | L15: =L16 -> 2018-10-12 | M15: =M16 -> 2018-10-13 | N15: =N16 -> 2018-10-14 | O15: 2018-10-15 | P15: 2018-10-16 | Q15: 2018-10-17 | R15: 2018-10-18 | S15: 2018-10-19 | T15: 2018-10-20 | U15: 2018-10-21 | V15: 2018-10-22 | W15: 2018-10-23 | X15: 2018-10-24 | Y15: 2018-10-25 | Z15: 2018-10-26 | AA15: 2018-10-27 | AB15: 2018-10-28 | AC15: 2018-10-29 | AD15: 2018-10-30 | AE15: 2018-10-31 | AF15: 2018-11-01 | AG15: 2018-11-02 | AH15: 2018-11-03 | AI15: 2018-11-13 | AJ15: 2018-11-14 | AK15: 2018-11-15 | AL15: Total Hours | AM15: Total Equipment $ | AN15: Allowable Charges | AO15: To Be Reviewed | AP15: Reviewed - Allowable Charge | AQ15: Reviewed - Unallowable Charge | AR15: Tickmarks
L16: 2018-10-12 | M16: 2018-10-13 | N16: 2018-10-14 | O16: 2018-10-15 | P16: 2018-10-16 | Q16: 2018-10-17 | R16: 2018-10-18 | S16: 2018-10-19 | T16: 2018-10-20 | U16: 2018-10-21 | V16: 2018-10-22 | W16: 2018-10-23 | X16: 2018-10-24 | Y16: 2018-10-25 | Z16: 2018-10-26 | AA16: 2018-10-27 | AB16: 2018-10-28 | AC16: 2018-10-29 | AD16: 2018-10-30 | AE16: 2018-10-31 | AF16: 2018-11-01 | AG16: 2018-11-02 | AH16: 2018-11-03 | AI16: 2018-11-13 | AJ16: 2018-11-14 | AK16: 2018-11-15
L17: Hours | M17: Hours | N17: Hours | O17: Hours | P17: Hours | Q17: Hours | R17: Hours | S17: Hours | T17: Hours | U17: Hours | V17: Hours | W17: Hours | X17: Hours | Y17: Hours | Z17: Hours | AA17: Hours | AB17: Hours | AC17: Hours | AD17: Hours | AE17: Hours | AF17: Hours | AG17: Hours | AH17: Hours | AI17: Hours | AJ17: Hours | AK17: Hours
B18: 1 | C18: Ariel Lift Over 60 | E18: Vendor #13 | F18: Maynard | G18: SW008057 | H18: 2018-10-13 | I18: 2018-10-13 | J18: Yes | K18: =VLOOKUP($C18,'C.1 - Rate Sheets'!H:I,2,FALSE) -> 28 | M18: 16 | AI18: 0 | AJ18: 0 | AK18: 0 | AL18: =SUM(L18:AK18) -> 16 | AM18: =AL18*K18 -> 448 | AN18: =AM18-AO18 -> 448 | AO18: 0 | AP18: 0 | AQ18: 0
B19: 2 | C19: Ariel Lift Over 60 | E19: Vendor #13 | F19: Williams | G19: SW008058 | H19: 2018-10-13 | I19: 2018-10-13 | J19: Yes | K19: =VLOOKUP($C19,'C.1 - Rate Sheets'!H:I,2,FALSE) -> 28 | M19: 16 | AI19: 0 | AJ19: 0 | AK19: 0 | AL19: 16 | AM19: 448 | AN19: 448 | AO19: 0 | AP19: 0 | AQ19: 0
B20: 3 | C20: =+'C.1 - Rate Sheets'!H17 -> Ariel Lift 60-2WD | E20: Vendor #13 | F20: Suggs | G20: SW008059 | H20: 2018-10-12 | I20: 2018-10-13 | J20: Yes | K20: =VLOOKUP($C20,'C.1 - Rate Sheets'!H:I,2,FALSE) -> 18 | L20: 6 | M20: 16 | AI20: 0 | AJ20: 0 | AK20: 0 | AL20: 22 | AM20: 396 | AN20: 396 | AO20: 0 | AP20: 0 | AQ20: 0
